Workbook

Sheet Cover
C7: ACCC Fixed Line Services Model
C9: Version 2.2 (Public)
C11: 2015-10-09
C13: The FLSM is the building block model the ACCC uses to estimate prices for final access determinations for the declared fixed line services.
C16: FLSM version 1.1 was the final version of the model used to estimate the prices included in the final access determinations released in July 2011.
C19: FLSM version 1.2 was the version of the model used to estimate the wholesale ADSL prices included in the draft wholesale ADSL final access determination released in March 2013 and the final wholesale ADSL final access determination released in May 2013.
C23: FLSM version 2.0 was the draft version of the model used to estimate prices for the fixed line services FAD draft decision released in March 2015.
C26: FLSM version 2.1 was the draft version of the model used to estimate prices for the fixed line services FAD further draft decision released in June 2015.
C29: FLSM version 2.2 is the version of the model used to estimate prices for the fixed line services FAD final decision released in October 2015.

Sheet A. Model Design
A1: A. Model Design
B44: Key
C45: Information sheets
C46: Sheets no longer in use
C47: Input sheets
C48: Calculation sheets
B50: Model Conventions
B51: Red writing | F51: User inputs
B52: Black writing | F52: All other cells
B53: Grey with white writing | F53: Header and start of table
B55: NB: all cost values are in Australian Dollars (AUD) unless otherwise stated.

Sheet B. Service Prices
A1: B. | B1: Service Prices
B3: B.0 | C3: Purpose
C4: Calculates unit prices and a uniform price change.
B6: B.1 | C6: Unit prices per service
C9: Fixed Line Access Services | E9: Units | F9: Real Service Price
F11: Y01 | G11: Y02 | H11: Y03 | I11: Y04 | J11: Y05 | K11: Y06 | L11: Y07 | M11: Y08 | N11: Y09 | O11: Y10 | P11: Y11 | Q11: Y12
C12: Code | D12: Service | F12: =VLOOKUP(F11,Years,2,FALSE) -> 2009/2010 | G12: 2010/2011 | H12: 2011/2012 | I12: 2012/2013 | J12: 2013/2014 | K12: 2014/2015 | L12: 2015/2016 | M12: 2016/2017 | N12: 2017/2018 | O12: 2018/2019 | P12: 2019/2020 | Q12: 2020/2021
C14: S01 | D14: =VLOOKUP(C14,Services,2,FALSE) -> Unconditioned Local Loop Service Band 1-3 | E14: $ / month | F14: =VLOOKUP($C14,'7. Service Costs'!$C$140:$S$150,'7. Service Costs'!H$2,FALSE)/12 -> 0.04133689714 | G14: =VLOOKUP($C14,'7. Service Costs'!$C$140:$S$150,'7. Service Costs'!I$2,FALSE)/12 -> 0.02425312319 | H14: =VLOOKUP($C14,'7. Service Costs'!$C$140:$S$150,'7. Service Costs'!J$2,FALSE)/12 -> 0.02773241359 | I14: =VLOOKUP($C14,'7. Service Costs'!$C$140:$S$150,'7. Service Costs'!K$2,FALSE)/12 -> 0.0310940149 | J14: =VLOOKUP($C14,'7. Service Costs'!$C$140:$S$150,'7. Service Costs'!L$2,FALSE)/12 -> 0.04667091032 | K14: =VLOOKUP($C14,'7. Service Costs'!$C$140:$S$150,'7. Service Costs'!M$2,FALSE)/12 -> 41782.91596 | L14: =VLOOKUP($C14,'7. Service Costs'!$C$140:$S$150,'7. Service Costs'!N$2,FALSE)/12 -> 42333.40536 | M14: =VLOOKUP($C14,'7. Service Costs'!$C$140:$S$150,'7. Service Costs'!O$2,FALSE)/12 -> 42867.71251 | N14: =VLOOKUP($C14,'7. Service Costs'!$C$140:$S$150,'7. Service Costs'!P$2,FALSE)/12 -> 43382.93702 | O14: =VLOOKUP($C14,'7. Service Costs'!$C$140:$S$150,'7. Service Costs'!Q$2,FALSE)/12 -> 43878.96487 | P14: =VLOOKUP($C14,'7. Service Costs'!$C$140:$S$150,'7. Service Costs'!R$2,FALSE)/12 -> 0 | Q14: =VLOOKUP($C14,'7. Service Costs'!$C$140:$S$150,'7. Service Costs'!S$2,FALSE)/12 -> 0
C15: S02 | D15: Unconditioned Local Loop Service Band 4 | E15: $ / month | F15: =VLOOKUP($C15,'7. Service Costs'!$C$140:$S$150,'7. Service Costs'!H$2,FALSE)/12 -> 0 | G15: =VLOOKUP($C15,'7. Service Costs'!$C$140:$S$150,'7. Service Costs'!I$2,FALSE)/12 -> 0 | H15: =VLOOKUP($C15,'7. Service Costs'!$C$140:$S$150,'7. Service Costs'!J$2,FALSE)/12 -> 0 | I15: =VLOOKUP($C15,'7. Service Costs'!$C$140:$S$150,'7. Service Costs'!K$2,FALSE)/12 -> 0 | J15: =VLOOKUP($C15,'7. Service Costs'!$C$140:$S$150,'7. Service Costs'!L$2,FALSE)/12 -> 0 | K15: =VLOOKUP($C15,'7. Service Costs'!$C$140:$S$150,'7. Service Costs'!M$2,FALSE)/12 -> 41782.91596 | L15: =VLOOKUP($C15,'7. Service Costs'!$C$140:$S$150,'7. Service Costs'!N$2,FALSE)/12 -> 42333.40536 | M15: =VLOOKUP($C15,'7. Service Costs'!$C$140:$S$150,'7. Service Costs'!O$2,FALSE)/12 -> 42867.71251 | N15: =VLOOKUP($C15,'7. Service Costs'!$C$140:$S$150,'7. Service Costs'!P$2,FALSE)/12 -> 43382.93702 | O15: =VLOOKUP($C15,'7. Service Costs'!$C$140:$S$150,'7. Service Costs'!Q$2,FALSE)/12 -> 43878.96487 | P15: =VLOOKUP($C15,'7. Service Costs'!$C$140:$S$150,'7. Service Costs'!R$2,FALSE)/12 -> 0 | Q15: =VLOOKUP($C15,'7. Service Costs'!$C$140:$S$150,'7. Service Costs'!S$2,FALSE)/12 -> 0
C16: S03 | D16: Wholesale Line Rental | E16: $ / month | F16: =VLOOKUP($C16,'7. Service Costs'!$C$140:$S$150,'7. Service Costs'!H$2,FALSE)/12 -> 0.04575683043 | G16: =VLOOKUP($C16,'7. Service Costs'!$C$140:$S$150,'7. Service Costs'!I$2,FALSE)/12 -> 0.02200532483 | H16: =VLOOKUP($C16,'7. Service Costs'!$C$140:$S$150,'7. Service Costs'!J$2,FALSE)/12 -> 0.02682751576 | I16: =VLOOKUP($C16,'7. Service Costs'!$C$140:$S$150,'7. Service Costs'!K$2,FALSE)/12 -> 0.03844585028 | J16: =VLOOKUP($C16,'7. Service Costs'!$C$140:$S$150,'7. Service Costs'!L$2,FALSE)/12 -> 0.1881235309 | K16: =VLOOKUP($C16,'7. Service Costs'!$C$140:$S$150,'7. Service Costs'!M$2,FALSE)/12 -> 154200.269 | L16: =VLOOKUP($C16,'7. Service Costs'!$C$140:$S$150,'7. Service Costs'!N$2,FALSE)/12 -> 156563.6155 | M16: =VLOOKUP($C16,'7. Service Costs'!$C$140:$S$150,'7. Service Costs'!O$2,FALSE)/12 -> 158701.2557 | N16: =VLOOKUP($C16,'7. Service Costs'!$C$140:$S$150,'7. Service Costs'!P$2,FALSE)/12 -> 160762.2758 | O16: =VLOOKUP($C16,'7. Service Costs'!$C$140:$S$150,'7. Service Costs'!Q$2,FALSE)/12 -> 162746.2544 | P16: =VLOOKUP($C16,'7. Service Costs'!$C$140:$S$150,'7. Service Costs'!R$2,FALSE)/12 -> 0 | Q16: =VLOOKUP($C16,'7. Service Costs'!$C$140:$S$150,'7. Service Costs'!S$2,FALSE)/12 -> 0
C17: S04 | D17: Fixed Originating & Terminating Access Service | E17: ¢ / minute | F17: =VLOOKUP($C17,'7. Service Costs'!$C$140:$S$150,'7. Service Costs'!H$2,FALSE)*100 -> 135632113.5 | G17: =VLOOKUP($C17,'7. Service Costs'!$C$140:$S$150,'7. Service Costs'!I$2,FALSE)*100 -> 56109276.34 | H17: =VLOOKUP($C17,'7. Service Costs'!$C$140:$S$150,'7. Service Costs'!J$2,FALSE)*100 -> 68680670.7 | I17: =VLOOKUP($C17,'7. Service Costs'!$C$140:$S$150,'7. Service Costs'!K$2,FALSE)*100 -> 223933629.1 | J17: =VLOOKUP($C17,'7. Service Costs'!$C$140:$S$150,'7. Service Costs'!L$2,FALSE)*100 -> 302261339.6 | K17: =VLOOKUP($C17,'7. Service Costs'!$C$140:$S$150,'7. Service Costs'!M$2,FALSE)*100 -> 65965429.4 | L17: =VLOOKUP($C17,'7. Service Costs'!$C$140:$S$150,'7. Service Costs'!N$2,FALSE)*100 -> 96575993.81 | M17: =VLOOKUP($C17,'7. Service Costs'!$C$140:$S$150,'7. Service Costs'!O$2,FALSE)*100 -> 97585682.02 | N17: =VLOOKUP($C17,'7. Service Costs'!$C$140:$S$150,'7. Service Costs'!P$2,FALSE)*100 -> 98582373.33 | O17: =VLOOKUP($C17,'7. Service Costs'!$C$140:$S$150,'7. Service Costs'!Q$2,FALSE)*100 -> 99564474.71 | P17: =VLOOKUP($C17,'7. Service Costs'!$C$140:$S$150,'7. Service Costs'!R$2,FALSE)*100 -> 0 | Q17: =VLOOKUP($C17,'7. Service Costs'!$C$140:$S$150,'7. Service Costs'!S$2,FALSE)*100 -> 0
C18: S05 | D18: Local Carriage Service | E18: ¢ / call | F18: =VLOOKUP($C18,'7. Service Costs'!$C$140:$S$150,'7. Service Costs'!H$2,FALSE)*100 -> 0.03743547635 | G18: =VLOOKUP($C18,'7. Service Costs'!$C$140:$S$150,'7. Service Costs'!I$2,FALSE)*100 -> 0.02060634722 | H18: =VLOOKUP($C18,'7. Service Costs'!$C$140:$S$150,'7. Service Costs'!J$2,FALSE)*100 -> 0.0234556181 | I18: =VLOOKUP($C18,'7. Service Costs'!$C$140:$S$150,'7. Service Costs'!K$2,FALSE)*100 -> 0.07305443164 | J18: =VLOOKUP($C18,'7. Service Costs'!$C$140:$S$150,'7. Service Costs'!L$2,FALSE)*100 -> 0.09979072697 | K18: =VLOOKUP($C18,'7. Service Costs'!$C$140:$S$150,'7. Service Costs'!M$2,FALSE)*100 -> 65965429.4 | L18: =VLOOKUP($C18,'7. Service Costs'!$C$140:$S$150,'7. Service Costs'!N$2,FALSE)*100 -> 96575993.81 | M18: =VLOOKUP($C18,'7. Service Costs'!$C$140:$S$150,'7. Service Costs'!O$2,FALSE)*100 -> 97585682.02 | N18: =VLOOKUP($C18,'7. Service Costs'!$C$140:$S$150,'7. Service Costs'!P$2,FALSE)*100 -> 98582373.33 | O18: =VLOOKUP($C18,'7. Service Costs'!$C$140:$S$150,'7. Service Costs'!Q$2,FALSE)*100 -> 99564474.71 | P18: =VLOOKUP($C18,'7. Service Costs'!$C$140:$S$150,'7. Service Costs'!R$2,FALSE)*100 -> 0 | Q18: =VLOOKUP($C18,'7. Service Costs'!$C$140:$S$150,'7. Service Costs'!S$2,FALSE)*100 -> 0
C19: S06 | D19: Line Sharing Service | E19: $ / month | F19: =VLOOKUP($C19,'7. Service Costs'!$C$140:$S$150,'7. Service Costs'!H$2,FALSE)/12 -> 0.1135091818 | G19: =VLOOKUP($C19,'7. Service Costs'!$C$140:$S$150,'7. Service Costs'!I$2,FALSE)/12 -> 0.2435327305 | H19: =VLOOKUP($C19,'7. Service Costs'!$C$140:$S$150,'7. Service Costs'!J$2,FALSE)/12 -> 0.2466132577 | I19: =VLOOKUP($C19,'7. Service Costs'!$C$140:$S$150,'7. Service Costs'!K$2,FALSE)/12 -> 0.2536382657 | J19: =VLOOKUP($C19,'7. Service Costs'!$C$140:$S$150,'7. Service Costs'!L$2,FALSE)/12 -> 0.2515019324 | K19: =VLOOKUP($C19,'7. Service Costs'!$C$140:$S$150,'7. Service Costs'!M$2,FALSE)/12 -> 40854.61102 | L19: =VLOOKUP($C19,'7. Service Costs'!$C$140:$S$150,'7. Service Costs'!N$2,FALSE)/12 -> 41319.94863 | M19: =VLOOKUP($C19,'7. Service Costs'!$C$140:$S$150,'7. Service Costs'!O$2,FALSE)/12 -> 41830.56728 | N19: =VLOOKUP($C19,'7. Service Costs'!$C$140:$S$150,'7. Service Costs'!P$2,FALSE)/12 -> 42322.42613 | O19: =VLOOKUP($C19,'7. Service Costs'!$C$140:$S$150,'7. Service Costs'!Q$2,FALSE)/12 -> 42795.40224 | P19: =VLOOKUP($C19,'7. Service Costs'!$C$140:$S$150,'7. Service Costs'!R$2,FALSE)/12 -> 0 | Q19: =VLOOKUP($C19,'7. Service Costs'!$C$140:$S$150,'7. Service Costs'!S$2,FALSE)/12 -> 0
C20: S07 | D20: =VLOOKUP(C20,Services,2,FALSE) -> Wholesale ADSL | E20: $ / month | F20: =VLOOKUP($C20,'7. Service Costs'!$C$140:$S$150,'7. Service Costs'!H$2,FALSE)/12 -> 7857.621305 | G20: =VLOOKUP($C20,'7. Service Costs'!$C$140:$S$150,'7. Service Costs'!I$2,FALSE)/12 -> 8113.999342 | H20: =VLOOKUP($C20,'7. Service Costs'!$C$140:$S$150,'7. Service Costs'!J$2,FALSE)/12 -> 8083.332425 | I20: =VLOOKUP($C20,'7. Service Costs'!$C$140:$S$150,'7. Service Costs'!K$2,FALSE)/12 -> 10481.38004 | J20: =VLOOKUP($C20,'7. Service Costs'!$C$140:$S$150,'7. Service Costs'!L$2,FALSE)/12 -> 10041.66187 | K20: =VLOOKUP($C20,'7. Service Costs'!$C$140:$S$150,'7. Service Costs'!M$2,FALSE)/12 -> 41753.66905 | L20: =VLOOKUP($C20,'7. Service Costs'!$C$140:$S$150,'7. Service Costs'!N$2,FALSE)/12 -> 42997.12975 | M20: =VLOOKUP($C20,'7. Service Costs'!$C$140:$S$150,'7. Service Costs'!O$2,FALSE)/12 -> 43494.84324 | N20: =VLOOKUP($C20,'7. Service Costs'!$C$140:$S$150,'7. Service Costs'!P$2,FALSE)/12 -> 43974.76418 | O20: =VLOOKUP($C20,'7. Service Costs'!$C$140:$S$150,'7. Service Costs'!Q$2,FALSE)/12 -> 44436.65508 | P20: =VLOOKUP($C20,'7. Service Costs'!$C$140:$S$150,'7. Service Costs'!R$2,FALSE)/12 -> 0 | Q20: =VLOOKUP($C20,'7. Service Costs'!$C$140:$S$150,'7. Service Costs'!S$2,FALSE)/12 -> 0
C21: S08 | D21: =VLOOKUP(C21,Services,2,FALSE) -> Additional Service 01 | E21: $ / month | F21: =VLOOKUP($C21,'7. Service Costs'!$C$140:$S$150,'7. Service Costs'!H$2,FALSE)/12 -> 0 | G21: =VLOOKUP($C21,'7. Service Costs'!$C$140:$S$150,'7. Service Costs'!I$2,FALSE)/12 -> 0 | H21: =VLOOKUP($C21,'7. Service Costs'!$C$140:$S$150,'7. Service Costs'!J$2,FALSE)/12 -> 0 | I21: =VLOOKUP($C21,'7. Service Costs'!$C$140:$S$150,'7. Service Costs'!K$2,FALSE)/12 -> 0 | J21: =VLOOKUP($C21,'7. Service Costs'!$C$140:$S$150,'7. Service Costs'!L$2,FALSE)/12 -> 0 | K21: =VLOOKUP($C21,'7. Service Costs'!$C$140:$S$150,'7. Service Costs'!M$2,FALSE)/12 -> 0 | L21: =VLOOKUP($C21,'7. Service Costs'!$C$140:$S$150,'7. Service Costs'!N$2,FALSE)/12 -> 0 | M21: =VLOOKUP($C21,'7. Service Costs'!$C$140:$S$150,'7. Service Costs'!O$2,FALSE)/12 -> 0 | N21: =VLOOKUP($C21,'7. Service Costs'!$C$140:$S$150,'7. Service Costs'!P$2,FALSE)/12 -> 0 | O21: =VLOOKUP($C21,'7. Service Costs'!$C$140:$S$150,'7. Service Costs'!Q$2,FALSE)/12 -> 0 | P21: =VLOOKUP($C21,'7. Service Costs'!$C$140:$S$150,'7. Service Costs'!R$2,FALSE)/12 -> 0 | Q21: =VLOOKUP($C21,'7. Service Costs'!$C$140:$S$150,'7. Service Costs'!S$2,FALSE)/12 -> 0
C24: Fixed Line Access Services | E24: Units | F24: Nominal Service Price
F27: Y01 | G27: Y02 | H27: Y03 | I27: Y04 | J27: Y05 | K27: Y06 | L27: Y07 | M27: Y08 | N27: Y09 | O27: Y10 | P27: Y11 | Q27: Y12
C28: Code | D28: Service | F28: =VLOOKUP(F27,Years,2,FALSE) -> 2009/2010 | G28: 2010/2011 | H28: 2011/2012 | I28: 2012/2013 | J28: 2013/2014 | K28: 2014/2015 | L28: 2015/2016 | M28: 2016/2017 | N28: 2017/2018 | O28: 2018/2019 | P28: 2019/2020 | Q28: 2020/2021
C30: S01 | D30: =VLOOKUP(C30,Services,2,FALSE) -> Unconditioned Local Loop Service Band 1-3 | E30: $ / month | F30: =VLOOKUP($C30,'7. Service Costs'!$C$158:$S$168,'7. Service Costs'!H$2,FALSE)/12 -> 0.0423893339 | G30: =VLOOKUP($C30,'7. Service Costs'!$C$158:$S$168,'7. Service Costs'!I$2,FALSE)/12 -> 0.0255038126 | H30: =VLOOKUP($C30,'7. Service Costs'!$C$158:$S$168,'7. Service Costs'!J$2,FALSE)/12 -> 0.02990500108 | I30: =VLOOKUP($C30,'7. Service Costs'!$C$158:$S$168,'7. Service Costs'!K$2,FALSE)/12 -> 0.03438362599 | J30: =VLOOKUP($C30,'7. Service Costs'!$C$158:$S$168,'7. Service Costs'!L$2,FALSE)/12 -> 0.0529224403 | K30: =VLOOKUP($C30,'7. Service Costs'!$C$158:$S$168,'7. Service Costs'!M$2,FALSE)/12 -> 48349.44527 | L30: =VLOOKUP($C30,'7. Service Costs'!$C$158:$S$168,'7. Service Costs'!N$2,FALSE)/12 -> 50211.10982 | M30: =VLOOKUP($C30,'7. Service Costs'!$C$158:$S$168,'7. Service Costs'!O$2,FALSE)/12 -> 52115.96581 | N30: =VLOOKUP($C30,'7. Service Costs'!$C$158:$S$168,'7. Service Costs'!P$2,FALSE)/12 -> 54060.90314 | O30: =VLOOKUP($C30,'7. Service Costs'!$C$158:$S$168,'7. Service Costs'!Q$2,FALSE)/12 -> 56045.99524 | P30: =VLOOKUP($C30,'7. Service Costs'!$C$158:$S$168,'7. Service Costs'!R$2,FALSE)/12 -> 0 | Q30: =VLOOKUP($C30,'7. Service Costs'!$C$158:$S$168,'7. Service Costs'!S$2,FALSE)/12 -> 0
C31: S02 | D31: Unconditioned Local Loop Service Band 4 | E31: $ / month | F31: =VLOOKUP($C31,'7. Service Costs'!$C$158:$S$168,'7. Service Costs'!H$2,FALSE)/12 -> 0 | G31: =VLOOKUP($C31,'7. Service Costs'!$C$158:$S$168,'7. Service Costs'!I$2,FALSE)/12 -> 0 | H31: =VLOOKUP($C31,'7. Service Costs'!$C$158:$S$168,'7. Service Costs'!J$2,FALSE)/12 -> 0 | I31: =VLOOKUP($C31,'7. Service Costs'!$C$158:$S$168,'7. Service Costs'!K$2,FALSE)/12 -> 0 | J31: =VLOOKUP($C31,'7. Service Costs'!$C$158:$S$168,'7. Service Costs'!L$2,FALSE)/12 -> 0 | K31: =VLOOKUP($C31,'7. Service Costs'!$C$158:$S$168,'7. Service Costs'!M$2,FALSE)/12 -> 48349.44527 | L31: =VLOOKUP($C31,'7. Service Costs'!$C$158:$S$168,'7. Service Costs'!N$2,FALSE)/12 -> 50211.10982 | M31: =VLOOKUP($C31,'7. Service Costs'!$C$158:$S$168,'7. Service Costs'!O$2,FALSE)/12 -> 52115.96581 | N31: =VLOOKUP($C31,'7. Service Costs'!$C$158:$S$168,'7. Service Costs'!P$2,FALSE)/12 -> 54060.90314 | O31: =VLOOKUP($C31,'7. Service Costs'!$C$158:$S$168,'7. Service Costs'!Q$2,FALSE)/12 -> 56045.99524 | P31: =VLOOKUP($C31,'7. Service Costs'!$C$158:$S$168,'7. Service Costs'!R$2,FALSE)/12 -> 0 | Q31: =VLOOKUP($C31,'7. Service Costs'!$C$158:$S$168,'7. Service Costs'!S$2,FALSE)/12 -> 0
C32: S03 | D32: Wholesale Line Rental | E32: $ / month | F32: =VLOOKUP($C32,'7. Service Costs'!$C$158:$S$168,'7. Service Costs'!H$2,FALSE)/12 -> 0.04692179862 | G32: =VLOOKUP($C32,'7. Service Costs'!$C$158:$S$168,'7. Service Costs'!I$2,FALSE)/12 -> 0.02314009937 | H32: =VLOOKUP($C32,'7. Service Costs'!$C$158:$S$168,'7. Service Costs'!J$2,FALSE)/12 -> 0.02892921256 | I32: =VLOOKUP($C32,'7. Service Costs'!$C$158:$S$168,'7. Service Costs'!K$2,FALSE)/12 -> 0.04251325348 | J32: =VLOOKUP($C32,'7. Service Costs'!$C$158:$S$168,'7. Service Costs'!L$2,FALSE)/12 -> 0.2133225229 | K32: =VLOOKUP($C32,'7. Service Costs'!$C$158:$S$168,'7. Service Costs'!M$2,FALSE)/12 -> 178434.1111 | L32: =VLOOKUP($C32,'7. Service Costs'!$C$158:$S$168,'7. Service Costs'!N$2,FALSE)/12 -> 185698.0988 | M32: =VLOOKUP($C32,'7. Service Costs'!$C$158:$S$168,'7. Service Costs'!O$2,FALSE)/12 -> 192939.3647 | N32: =VLOOKUP($C32,'7. Service Costs'!$C$158:$S$168,'7. Service Costs'!P$2,FALSE)/12 -> 200331.1537 | O32: =VLOOKUP($C32,'7. Service Costs'!$C$158:$S$168,'7. Service Costs'!Q$2,FALSE)/12 -> 207873.541 | P32: =VLOOKUP($C32,'7. Service Costs'!$C$158:$S$168,'7. Service Costs'!R$2,FALSE)/12 -> 0 | Q32: =VLOOKUP($C32,'7. Service Costs'!$C$158:$S$168,'7. Service Costs'!S$2,FALSE)/12 -> 0
C33: S04 | D33: Fixed Originating & Terminating Access Service | E33: ¢ / minute | F33: =VLOOKUP($C33,'7. Service Costs'!$C$158:$S$168,'7. Service Costs'!H$2,FALSE)*100 -> 139085305 | G33: =VLOOKUP($C33,'7. Service Costs'!$C$158:$S$168,'7. Service Costs'!I$2,FALSE)*100 -> 59002729.58 | H33: =VLOOKUP($C33,'7. Service Costs'!$C$158:$S$168,'7. Service Costs'!J$2,FALSE)*100 -> 74061189.24 | I33: =VLOOKUP($C33,'7. Service Costs'!$C$158:$S$168,'7. Service Costs'!K$2,FALSE)*100 -> 247624829.9 | J33: =VLOOKUP($C33,'7. Service Costs'!$C$158:$S$168,'7. Service Costs'!L$2,FALSE)*100 -> 342748996.9 | K33: =VLOOKUP($C33,'7. Service Costs'!$C$158:$S$168,'7. Service Costs'!M$2,FALSE)*100 -> 76332439.83 | L33: =VLOOKUP($C33,'7. Service Costs'!$C$158:$S$168,'7. Service Costs'!N$2,FALSE)*100 -> 114547549.2 | M33: =VLOOKUP($C33,'7. Service Costs'!$C$158:$S$168,'7. Service Costs'!O$2,FALSE)*100 -> 118638755.6 | N33: =VLOOKUP($C33,'7. Service Costs'!$C$158:$S$168,'7. Service Costs'!P$2,FALSE)*100 -> 122846734.3 | O33: =VLOOKUP($C33,'7. Service Costs'!$C$158:$S$168,'7. Service Costs'!Q$2,FALSE)*100 -> 127172327.2 | P33: =VLOOKUP($C33,'7. Service Costs'!$C$158:$S$168,'7. Service Costs'!R$2,FALSE)/12 -> 0 | Q33: =VLOOKUP($C33,'7. Service Costs'!$C$158:$S$168,'7. Service Costs'!S$2,FALSE)/12 -> 0
C34: S05 | D34: Local Carriage Service | E34: ¢ / call | F34: =VLOOKUP($C34,'7. Service Costs'!$C$158:$S$168,'7. Service Costs'!H$2,FALSE)*100 -> 0.038388583 | G34: =VLOOKUP($C34,'7. Service Costs'!$C$158:$S$168,'7. Service Costs'!I$2,FALSE)*100 -> 0.02166897903 | H34: =VLOOKUP($C34,'7. Service Costs'!$C$158:$S$168,'7. Service Costs'!J$2,FALSE)*100 -> 0.02529315677 | I34: =VLOOKUP($C34,'7. Service Costs'!$C$158:$S$168,'7. Service Costs'!K$2,FALSE)*100 -> 0.08078327173 | J34: =VLOOKUP($C34,'7. Service Costs'!$C$158:$S$168,'7. Service Costs'!L$2,FALSE)*100 -> 0.1131576126 | K34: =VLOOKUP($C34,'7. Service Costs'!$C$158:$S$168,'7. Service Costs'!M$2,FALSE)*100 -> 76332439.83 | L34: =VLOOKUP($C34,'7. Service Costs'!$C$158:$S$168,'7. Service Costs'!N$2,FALSE)*100 -> 114547549.2 | M34: =VLOOKUP($C34,'7. Service Costs'!$C$158:$S$168,'7. Service Costs'!O$2,FALSE)*100 -> 118638755.6 | N34: =VLOOKUP($C34,'7. Service Costs'!$C$158:$S$168,'7. Service Costs'!P$2,FALSE)*100 -> 122846734.3 | O34: =VLOOKUP($C34,'7. Service Costs'!$C$158:$S$168,'7. Service Costs'!Q$2,FALSE)*100 -> 127172327.2 | P34: =VLOOKUP($C34,'7. Service Costs'!$C$158:$S$168,'7. Service Costs'!R$2,FALSE)/12 -> 0 | Q34: =VLOOKUP($C34,'7. Service Costs'!$C$158:$S$168,'7. Service Costs'!S$2,FALSE)/12 -> 0
C35: S06 | D35: Line Sharing Service | E35: $ / month | F35: =VLOOKUP($C35,'7. Service Costs'!$C$158:$S$168,'7. Service Costs'!H$2,FALSE)/12 -> 0.1163991238 | G35: =VLOOKUP($C35,'7. Service Costs'!$C$158:$S$168,'7. Service Costs'!I$2,FALSE)/12 -> 0.2560912701 | H35: =VLOOKUP($C35,'7. Service Costs'!$C$158:$S$168,'7. Service Costs'!J$2,FALSE)/12 -> 0.2659332089 | I35: =VLOOKUP($C35,'7. Service Costs'!$C$158:$S$168,'7. Service Costs'!K$2,FALSE)/12 -> 0.2804720875 | J35: =VLOOKUP($C35,'7. Service Costs'!$C$158:$S$168,'7. Service Costs'!L$2,FALSE)/12 -> 0.285190409 | K35: =VLOOKUP($C35,'7. Service Costs'!$C$158:$S$168,'7. Service Costs'!M$2,FALSE)/12 -> 47275.24956 | L35: =VLOOKUP($C35,'7. Service Costs'!$C$158:$S$168,'7. Service Costs'!N$2,FALSE)/12 -> 49009.06179 | M35: =VLOOKUP($C35,'7. Service Costs'!$C$158:$S$168,'7. Service Costs'!O$2,FALSE)/12 -> 50855.06752 | N35: =VLOOKUP($C35,'7. Service Costs'!$C$158:$S$168,'7. Service Costs'!P$2,FALSE)/12 -> 52739.36568 | O35: =VLOOKUP($C35,'7. Service Costs'!$C$158:$S$168,'7. Service Costs'!Q$2,FALSE)/12 -> 54661.97568 | P35: =VLOOKUP($C35,'7. Service Costs'!$C$158:$S$168,'7. Service Costs'!R$2,FALSE)/12 -> 0 | Q35: =VLOOKUP($C35,'7. Service Costs'!$C$158:$S$168,'7. Service Costs'!S$2,FALSE)/12 -> 0
C36: S07 | D36: =VLOOKUP(C36,Services,2,FALSE) -> Wholesale ADSL | E36: $ / month | F36: =VLOOKUP($C36,'7. Service Costs'!$C$158:$S$168,'7. Service Costs'!H$2,FALSE)/12 -> 8057.67622 | G36: =VLOOKUP($C36,'7. Service Costs'!$C$158:$S$168,'7. Service Costs'!I$2,FALSE)/12 -> 8532.423518 | H36: =VLOOKUP($C36,'7. Service Costs'!$C$158:$S$168,'7. Service Costs'!J$2,FALSE)/12 -> 8716.58949 | I36: =VLOOKUP($C36,'7. Service Costs'!$C$158:$S$168,'7. Service Costs'!K$2,FALSE)/12 -> 11590.26431 | J36: =VLOOKUP($C36,'7. Service Costs'!$C$158:$S$168,'7. Service Costs'!L$2,FALSE)/12 -> 11386.73421 | K36: =VLOOKUP($C36,'7. Service Costs'!$C$158:$S$168,'7. Service Costs'!M$2,FALSE)/12 -> 48315.60196 | L36: =VLOOKUP($C36,'7. Service Costs'!$C$158:$S$168,'7. Service Costs'!N$2,FALSE)/12 -> 50998.34483 | M36: =VLOOKUP($C36,'7. Service Costs'!$C$158:$S$168,'7. Service Costs'!O$2,FALSE)/12 -> 52878.39333 | N36: =VLOOKUP($C36,'7. Service Costs'!$C$158:$S$168,'7. Service Costs'!P$2,FALSE)/12 -> 54798.39841 | O36: =VLOOKUP($C36,'7. Service Costs'!$C$158:$S$168,'7. Service Costs'!Q$2,FALSE)/12 -> 56758.32524 | P36: =VLOOKUP($C36,'7. Service Costs'!$C$158:$S$168,'7. Service Costs'!R$2,FALSE)/12 -> 0 | Q36: =VLOOKUP($C36,'7. Service Costs'!$C$158:$S$168,'7. Service Costs'!S$2,FALSE)/12 -> 0
C37: S08 | D37: =VLOOKUP(C37,Services,2,FALSE) -> Additional Service 01 | E37: $ / month | F37: =VLOOKUP($C37,'7. Service Costs'!$C$158:$S$168,'7. Service Costs'!H$2,FALSE)/12 -> 0 | G37: =VLOOKUP($C37,'7. Service Costs'!$C$158:$S$168,'7. Service Costs'!I$2,FALSE)/12 -> 0 | H37: =VLOOKUP($C37,'7. Service Costs'!$C$158:$S$168,'7. Service Costs'!J$2,FALSE)/12 -> 0 | I37: =VLOOKUP($C37,'7. Service Costs'!$C$158:$S$168,'7. Service Costs'!K$2,FALSE)/12 -> 0 | J37: =VLOOKUP($C37,'7. Service Costs'!$C$158:$S$168,'7. Service Costs'!L$2,FALSE)/12 -> 0 | K37: =VLOOKUP($C37,'7. Service Costs'!$C$158:$S$168,'7. Service Costs'!M$2,FALSE)/12 -> 0 | L37: =VLOOKUP($C37,'7. Service Costs'!$C$158:$S$168,'7. Service Costs'!N$2,FALSE)/12 -> 0 | M37: =VLOOKUP($C37,'7. Service Costs'!$C$158:$S$168,'7. Service Costs'!O$2,FALSE)/12 -> 0 | N37: =VLOOKUP($C37,'7. Service Costs'!$C$158:$S$168,'7. Service Costs'!P$2,FALSE)/12 -> 0 | O37: =VLOOKUP($C37,'7. Service Costs'!$C$158:$S$168,'7. Service Costs'!Q$2,FALSE)/12 -> 0 | P37: =VLOOKUP($C37,'7. Service Costs'!$C$158:$S$168,'7. Service Costs'!R$2,FALSE)/12 -> 0 | Q37: =VLOOKUP($C37,'7. Service Costs'!$C$158:$S$168,'7. Service Costs'!S$2,FALSE)/12 -> 0
B40: B.2 | C40: Uniform price change calculation for FY2016 to FY2019
B43: B.2.1 | C43: Price change
C46: Code | D46: Service | E46: Unit | F46: Current prices | G46: New prices | H46: Uniform price change | I46: -0.09415794555
C47: S01 | D47: =VLOOKUP(C47,Services,2,FALSE) -> Unconditioned Local Loop Service Band 1-3 | E47: $ / month | F47: 16.21 | G47: =F47*(1+$I$46) -> 14.6836997
C48: S02 | D48: Unconditioned Local Loop Service Band 4 | E48: $ / month | F48: 48.19 | G48: 43.6525286
C49: S03 | D49: Wholesale Line Rental | E49: $ / month | F49: 22.84 | G49: 20.68943252
C50: S04 | D50: Fixed Originating & Terminating Access Service | E50: ¢ / minute | F50: 0.95 | G50: 0.8605499517
C51: S05 | D51: Local Carriage Service | E51: ¢ / call | F51: 8.9 | G51: 8.061994285
C52: S06 | D52: Line Sharing Service | E52: $ / month | F52: 1.8 | G52: 1.630515698
C53: S07 | D53: Wholesale ADSL
D54: Zone 1 | E54: $ / month | F54: 24.44 | G54: =F54*(1+$I$46) -> 22.13877981
D55: Zone 2/3 | E55: $ / month | F55: 29.66 | G55: =F55*(1+$I$46) -> 26.86727533
D56: AGVC/VLAN | E56: $ / Mbps / month | F56: 32.31 | G56: =F56*(1+$I$46) -> 29.26775678 | AH56: FALSE
B59: B.2.2 | C59: Revenue summary
C62: Code | D62: Service | E62: Regulated revenue requirement ($m) | F62: Estimated revenue generated ($m) | G62: Difference
C63: S01 | D63: =VLOOKUP(C63,Services,2,FALSE) -> Unconditioned Local Loop Service Band 1-3 | E63: =J115 -> 12.57286866 | F63: =J128 -> 0.002114452757 | G63: =F63-E63 -> -12.5707542
C64: S02 | D64: Unconditioned Local Loop Service Band 4 | E64: 7.47445328 | F64: 0.002095321373 | G64: =F64-E64 -> -7.472357958
C65: S03 | D65: Wholesale Line Rental | E65: 14.36735149 | F65: 0.0009930927611 | G65: -14.3663584
C66: S04 | D66: Fixed Originating & Terminating Access Service | E66: 9.757299254 | F66: 3.442199807e-08 | G66: -9.757299219
C67: S05 | D67: Local Carriage Service | E67: 9.757299254 | F67: 3.224797714e-07 | G67: -9.757298931
C68: S06 | D68: Line Sharing Service | E68: 7.412431239 | F68: 7.82647535e-05 | G68: -7.412352974
C69: S07 | D69: Wholesale ADSL | E69: 7.510447133 | G69: -7.510447133
D70: Zone 1 | F70: =J135 -> 1.062661431e-05 | G70: 1.062661431e-05
D71: Zone 2/3 | F71: =J136 -> 0.001276732924 | G71: 0.001276732924
D72: AGVC/VLAN | F72: =J137 -> 0.001404852325 | G72: 0.001404852325
D86: Total | E86: =SUM(E63:E72) -> 68.8521503 | F86: =SUM(F63:F72) -> 0.00797370041 | G86: =SUM(G63:G72) -> -68.8441766
B89: B.2.3 | C89: Annual demand for each service
F91: Y07 | G91: Y08 | H91: Y09 | I91: Y10
C92: Code | D92: Service | E92: Unit | F92: =VLOOKUP(F91,Years,2,FALSE) -> 2015/2016 | G92: =VLOOKUP(G91,Years,2,FALSE) -> 2016/2017 | H92: =VLOOKUP(H91,Years,2,FALSE) -> 2017/2018 | I92: =VLOOKUP(I91,Years,2,FALSE) -> 2018/2019 | J92: Total
C93: S01 | D93: =VLOOKUP(C93,Services,2,FALSE) -> Unconditioned Local Loop Service Band 1-3 | E93: Lines | F93: ='5. Service Demand'!N12 -> 3 | G93: ='5. Service Demand'!O12 -> 3 | H93: ='5. Service Demand'!P12 -> 3 | I93: ='5. Service Demand'!Q12 -> 3 | J93: =SUM(F93:I93) -> 12
C94: S02 | D94: Unconditioned Local Loop Service Band 4 | E94: Lines | F94: ='5. Service Demand'!N13 -> 1 | G94: ='5. Service Demand'!O13 -> 1 | H94: ='5. Service Demand'!P13 -> 1 | I94: ='5. Service Demand'!Q13 -> 1 | J94: =SUM(F94:I94) -> 4
C95: S03 | D95: Wholesale Line Rental | E95: Lines | F95: ='5. Service Demand'!N14 -> 1 | G95: ='5. Service Demand'!O14 -> 1 | H95: ='5. Service Demand'!P14 -> 1 | I95: ='5. Service Demand'!Q14 -> 1 | J95: 4
C96: S04 | D96: Fixed Originating & Terminating Access Service | E96: Minutes | F96: ='5. Service Demand'!N15 -> 1 | G96: ='5. Service Demand'!O15 -> 1 | H96: ='5. Service Demand'!P15 -> 1 | I96: ='5. Service Demand'!Q15 -> 1 | J96: 4
C97: S05 | D97: Local Carriage Service | E97: Calls | F97: ='5. Service Demand'!N16/'5. Service Demand'!N71 -> 1 | G97: ='5. Service Demand'!O16/'5. Service Demand'!O71 -> 1 | H97: ='5. Service Demand'!P16/'5. Service Demand'!P71 -> 1 | I97: ='5. Service Demand'!Q16/'5. Service Demand'!Q71 -> 1 | J97: 4
C98: S06 | D98: Line Sharing Service | E98: Lines | F98: ='5. Service Demand'!N17 -> 1 | G98: ='5. Service Demand'!O17 -> 1 | H98: ='5. Service Demand'!P17 -> 1 | I98: ='5. Service Demand'!Q17 -> 1 | J98: 4
C99: S07 | D99: Wholesale ADSL | E99: SIO | F99: ='5. Service Demand'!N18 -> 1 | G99: ='5. Service Demand'!O18 -> 1 | H99: ='5. Service Demand'!P18 -> 1 | I99: ='5. Service Demand'!Q18 -> 1 | J99: 4
D100: Zone 1 | E100: SIO | F100: =F99*F103 -> 0.01 | G100: =G99*G103 -> 0.01 | H100: =H99*H103 -> 0.01 | I100: =I99*I103 -> 0.01 | J100: 0.04
D101: Zone 2/3 | E101: SIO | F101: =F99*(1-F103) -> 0.99 | G101: =G99*(1-G103) -> 0.99 | H101: =H99*(1-H103) -> 0.99 | I101: =I99*(1-I103) -> 0.99 | J101: 3.96
D102: AGVC/VLAN | E102: Mbps / SIO | F102: 1 | G102: 1 | H102: 1 | I102: 1
D103: Zone 1 proportion | F103: 0.01 | G103: 0.01 | H103: 0.01 | I103: 0.01
F106: Y07 | G106: Y08 | H106: Y09 | I106: Y10
F107: =VLOOKUP(F106,Years,2,FALSE) -> 2015/2016 | G107: =VLOOKUP(G106,Years,2,FALSE) -> 2016/2017 | H107: =VLOOKUP(H106,Years,2,FALSE) -> 2017/2018 | I107: =VLOOKUP(I106,Years,2,FALSE) -> 2018/2019
E108: Cumulative inflation index | F108: =VLOOKUP(F106,Inflation_Index,5,FALSE) -> 1.186087191 | G108: =VLOOKUP(G106,Inflation_Index,5,FALSE) -> 1.21573937 | H108: =VLOOKUP(H106,Inflation_Index,5,FALSE) -> 1.246132855 | I108: =VLOOKUP(I106,Inflation_Index,5,FALSE) -> 1.277286176
B111: B.2.4 | C111: Service revenue requirements (nominal $m)
F113: Y07 | G113: Y08 | H113: Y09 | I113: Y10
C114: Code | D114: Service | F114: =VLOOKUP(F113,Years,2,FALSE) -> 2015/2016 | G114: =VLOOKUP(G113,Years,2,FALSE) -> 2016/2017 | H114: =VLOOKUP(H113,Years,2,FALSE) -> 2017/2018 | I114: =VLOOKUP(I113,Years,2,FALSE) -> 2018/2019 | J114: Total
C115: S01 | D115: =VLOOKUP(C115,Services,2,FALSE) -> Unconditioned Local Loop Service Band 1-3 | F115: ='7. Service Costs'!N124*F$108 -> 2.993687144 | G115: ='7. Service Costs'!O124*G$108 -> 3.09191414 | H115: ='7. Service Costs'!P124*H$108 -> 3.192325368 | I115: ='7. Service Costs'!Q124*I$108 -> 3.294942005 | J115: =SUM(F115:I115) -> 12.57286866
C116: S02 | D116: Unconditioned Local Loop Service Band 4 | F116: ='7. Service Costs'!N125*F$108 -> 1.788620508 | G116: ='7. Service Costs'!O125*G$108 -> 1.84113096 | H116: ='7. Service Costs'!P125*H$108 -> 1.894863692 | I116: ='7. Service Costs'!Q125*I$108 -> 1.949838119 | J116: =SUM(F116:I116) -> 7.47445328
C117: S03 | D117: Wholesale Line Rental | F117: ='7. Service Costs'!N126*F$108 -> 3.414464376 | G117: ='7. Service Costs'!O126*G$108 -> 3.531011747 | H117: ='7. Service Costs'!P126*H$108 -> 3.650106699 | I117: ='7. Service Costs'!Q126*I$108 -> 3.771768668 | J117: 14.36735149
C118: S04 | D118: Fixed Originating & Terminating Access Service | F118: ='7. Service Costs'!N127*F$108 -> 2.331562682 | G118: ='7. Service Costs'!O127*G$108 -> 2.402126926 | H118: ='7. Service Costs'!P127*H$108 -> 2.474600197 | I118: ='7. Service Costs'!Q127*I$108 -> 2.549009448 | J118: 9.757299254
C119: S05 | D119: Local Carriage Service | F119: ='7. Service Costs'!N128*F$108 -> 2.331562682 | G119: ='7. Service Costs'!O128*G$108 -> 2.402126926 | H119: ='7. Service Costs'!P128*H$108 -> 2.474600197 | I119: ='7. Service Costs'!Q128*I$108 -> 2.549009448 | J119: 9.757299254
C120: S06 | D120: Line Sharing Service | F120: ='7. Service Costs'!N129*F$108 -> 1.774195932 | G120: ='7. Service Costs'!O129*G$108 -> 1.826000181 | H120: ='7. Service Costs'!P129*H$108 -> 1.879005243 | I120: ='7. Service Costs'!Q129*I$108 -> 1.933229884 | J120: 7.412431239
C121: S07 | D121: Wholesale ADSL | F121: ='7. Service Costs'!N130*F$108 -> 1.798067328 | G121: ='7. Service Costs'!O130*G$108 -> 1.85028009 | H121: ='7. Service Costs'!P130*H$108 -> 1.903713636 | I121: ='7. Service Costs'!Q130*I$108 -> 1.958386079 | J121: 7.510447133
B124: B.2.5 | C124: Estimated revenue generated (nominal $m)
F126: Y07 | G126: Y08 | H126: Y09 | I126: Y10
C127: Code | D127: Service | F127: =VLOOKUP(F126,Years,2,FALSE) -> 2015/2016 | G127: =VLOOKUP(G126,Years,2,FALSE) -> 2016/2017 | H127: =VLOOKUP(H126,Years,2,FALSE) -> 2017/2018 | I127: =VLOOKUP(I126,Years,2,FALSE) -> 2018/2019 | J127: Total
C128: S01 | D128: =VLOOKUP(C128,Services,2,FALSE) -> Unconditioned Local Loop Service Band 1-3 | F128: =$G47*F93*12/1000000 -> 0.0005286131893 | G128: 0.0005286131893 | H128: 0.0005286131893 | I128: 0.0005286131893 | J128: =SUM(F128:I128) -> 0.002114452757
C129: S02 | D129: Unconditioned Local Loop Service Band 4 | F129: 0.0005238303432 | G129: 0.0005238303432 | H129: 0.0005238303432 | I129: 0.0005238303432 | J129: =SUM(F129:I129) -> 0.002095321373
C130: S03 | D130: Wholesale Line Rental | F130: 0.0002482731903 | G130: 0.0002482731903 | H130: 0.0002482731903 | I130: 0.0002482731903 | J130: 0.0009930927611
C131: S04 | D131: Fixed Originating & Terminating Access Service | F131: =$G50*F96/100/1000000 -> 8.605499517e-09 | G131: 8.605499517e-09 | H131: 8.605499517e-09 | I131: 8.605499517e-09 | J131: 3.442199807e-08
C132: S05 | D132: Local Carriage Service | F132: 8.061994285e-08 | G132: 8.061994285e-08 | H132: 8.061994285e-08 | I132: 8.061994285e-08 | J132: 3.224797714e-07
C133: S06 | D133: Line Sharing Service | F133: =$G52*F98*12/1000000 -> 1.956618838e-05 | G133: =$G52*G98*12/1000000 -> 1.956618838e-05 | H133: =$G52*H98*12/1000000 -> 1.956618838e-05 | I133: =$G52*I98*12/1000000 -> 1.956618838e-05 | J133: 7.82647535e-05
C134: S07 | D134: Wholesale ADSL
D135: Zone 1 | F135: =$G54*F100*12/1000000 -> 2.656653577e-06 | G135: 2.656653577e-06 | H135: 2.656653577e-06 | I135: 2.656653577e-06 | J135: 1.062661431e-05
D136: Zone 2/3 | F136: 0.000319183231 | G136: 0.000319183231 | H136: 0.000319183231 | I136: 0.000319183231 | J136: 0.001276732924
D137: AGVC/VLAN | F137: =$G56*F102*F99*12/1000000 -> 0.0003512130814 | G137: =$G56*G102*G99*12/1000000 -> 0.0003512130814 | H137: =$G56*H102*H99*12/1000000 -> 0.0003512130814 | I137: =$G56*I102*I99*12/1000000 -> 0.0003512130814 | J137: 0.001404852325

Sheet C. Revenue Disaggregate
A1: C. | B1: Revenue Disaggregate
C2: 1 | D2: 2 | E2: 3 | F2: 4 | G2: 5 | H2: 6 | I2: 7 | J2: 8 | K2: 9 | L2: 10 | M2: 11 | N2: 12 | O2: 13 | P2: 14 | Q2: 15 | R2: 16 | S2: 17
B3: C.0 | C3: Purpose
C4: To disaggregate the revenue requirement into individual building blocks for each declared service.
C5: All dollar values are in millions.
B7: C.1 | C7: Summary of inputs for calculations
B9: C.1.1 | C9: Operating Costs and Overheads allocated to each Asset Class
H10: Y01 | I10: Y02 | J10: Y03 | K10: Y04 | L10: Y05 | M10: Y06 | N10: Y07 | O10: Y08 | P10: Y09 | Q10: Y10 | R10: Y11 | S10: Y12
C11: Code | D11: Asset Class | H11: =VLOOKUP(H10,FYears,2,FALSE) -> 2009/2010 | I11: 2010/2011 | J11: 2011/2012 | K11: 2012/2013 | L11: 2013/2014 | M11: 2014/2015 | N11: 2015/2016 | O11: 2016/2017 | P11: 2017/2018 | Q11: 2018/2019 | R11: 2019/2020 | S11: 2020/2021 | T11: Total
C12: CAN Asset Class
C13: CA01 | D13: =VLOOKUP(C13,CAN_AC,2,FALSE) -> Ducts and pipes | H13: =VLOOKUP($C13,'3. Additions, Disposals & Opex'!$C$12:$S$53,H$2,FALSE) -> 0.515638954 | I13: =VLOOKUP($C13,'3. Additions, Disposals & Opex'!$C$12:$S$53,I$2,FALSE) -> 0.515638954 | J13: =VLOOKUP($C13,'3. Additions, Disposals & Opex'!$C$12:$S$53,J$2,FALSE) -> 0.515638954 | K13: =VLOOKUP($C13,'3. Additions, Disposals & Opex'!$C$12:$S$53,K$2,FALSE) -> 0.515638954 | L13: =VLOOKUP($C13,'3. Additions, Disposals & Opex'!$C$12:$S$53,L$2,FALSE) -> 0.515638954 | M13: =VLOOKUP($C13,'3. Additions, Disposals & Opex'!$C$12:$S$53,M$2,FALSE) -> 1 | N13: =VLOOKUP($C13,'3. Additions, Disposals & Opex'!$C$12:$S$53,N$2,FALSE) -> 1 | O13: =VLOOKUP($C13,'3. Additions, Disposals & Opex'!$C$12:$S$53,O$2,FALSE) -> 1 | P13: =VLOOKUP($C13,'3. Additions, Disposals & Opex'!$C$12:$S$53,P$2,FALSE) -> 1 | Q13: =VLOOKUP($C13,'3. Additions, Disposals & Opex'!$C$12:$S$53,Q$2,FALSE) -> 1 | R13: =VLOOKUP($C13,'3. Additions, Disposals & Opex'!$C$12:$S$53,R$2,FALSE) -> 0 | S13: =VLOOKUP($C13,'3. Additions, Disposals & Opex'!$C$12:$S$53,S$2,FALSE) -> 0 | T13: =SUM(OFFSET(H13,0,0,1,Model_period)) -> 7.57819477
C14: CA02 | D14: Copper cables | H14: =VLOOKUP($C14,'3. Additions, Disposals & Opex'!$C$12:$S$53,H$2,FALSE) -> 0.4980407272 | I14: =VLOOKUP($C14,'3. Additions, Disposals & Opex'!$C$12:$S$53,I$2,FALSE) -> 0.4980407272 | J14: =VLOOKUP($C14,'3. Additions, Disposals & Opex'!$C$12:$S$53,J$2,FALSE) -> 0.4980407272 | K14: =VLOOKUP($C14,'3. Additions, Disposals & Opex'!$C$12:$S$53,K$2,FALSE) -> 0.4980407272 | L14: =VLOOKUP($C14,'3. Additions, Disposals & Opex'!$C$12:$S$53,L$2,FALSE) -> 0.4980407272 | M14: =VLOOKUP($C14,'3. Additions, Disposals & Opex'!$C$12:$S$53,M$2,FALSE) -> 1 | N14: =VLOOKUP($C14,'3. Additions, Disposals & Opex'!$C$12:$S$53,N$2,FALSE) -> 1 | O14: =VLOOKUP($C14,'3. Additions, Disposals & Opex'!$C$12:$S$53,O$2,FALSE) -> 1 | P14: =VLOOKUP($C14,'3. Additions, Disposals & Opex'!$C$12:$S$53,P$2,FALSE) -> 1 | Q14: =VLOOKUP($C14,'3. Additions, Disposals & Opex'!$C$12:$S$53,Q$2,FALSE) -> 1 | R14: =VLOOKUP($C14,'3. Additions, Disposals & Opex'!$C$12:$S$53,R$2,FALSE) -> 0 | S14: =VLOOKUP($C14,'3. Additions, Disposals & Opex'!$C$12:$S$53,S$2,FALSE) -> 0 | T14: 7.490203636
C15: CA03 | D15: Other cables | H15: =VLOOKUP($C15,'3. Additions, Disposals & Opex'!$C$12:$S$53,H$2,FALSE) -> 0.002085015855 | I15: =VLOOKUP($C15,'3. Additions, Disposals & Opex'!$C$12:$S$53,I$2,FALSE) -> 0.002085015855 | J15: =VLOOKUP($C15,'3. Additions, Disposals & Opex'!$C$12:$S$53,J$2,FALSE) -> 0.002085015855 | K15: =VLOOKUP($C15,'3. Additions, Disposals & Opex'!$C$12:$S$53,K$2,FALSE) -> 0.002085015855 | L15: =VLOOKUP($C15,'3. Additions, Disposals & Opex'!$C$12:$S$53,L$2,FALSE) -> 0.002085015855 | M15: =VLOOKUP($C15,'3. Additions, Disposals & Opex'!$C$12:$S$53,M$2,FALSE) -> 1 | N15: =VLOOKUP($C15,'3. Additions, Disposals & Opex'!$C$12:$S$53,N$2,FALSE) -> 1 | O15: =VLOOKUP($C15,'3. Additions, Disposals & Opex'!$C$12:$S$53,O$2,FALSE) -> 1 | P15: =VLOOKUP($C15,'3. Additions, Disposals & Opex'!$C$12:$S$53,P$2,FALSE) -> 1 | Q15: =VLOOKUP($C15,'3. Additions, Disposals & Opex'!$C$12:$S$53,Q$2,FALSE) -> 1 | R15: =VLOOKUP($C15,'3. Additions, Disposals & Opex'!$C$12:$S$53,R$2,FALSE) -> 0 | S15: =VLOOKUP($C15,'3. Additions, Disposals & Opex'!$C$12:$S$53,S$2,FALSE) -> 0 | T15: 5.010425079
C16: CA04 | D16: Pair gain systems | H16: =VLOOKUP($C16,'3. Additions, Disposals & Opex'!$C$12:$S$53,H$2,FALSE) -> 0.1676905703 | I16: =VLOOKUP($C16,'3. Additions, Disposals & Opex'!$C$12:$S$53,I$2,FALSE) -> 0.1676905703 | J16: =VLOOKUP($C16,'3. Additions, Disposals & Opex'!$C$12:$S$53,J$2,FALSE) -> 0.1676905703 | K16: =VLOOKUP($C16,'3. Additions, Disposals & Opex'!$C$12:$S$53,K$2,FALSE) -> 0.1676905703 | L16: =VLOOKUP($C16,'3. Additions, Disposals & Opex'!$C$12:$S$53,L$2,FALSE) -> 0.1676905703 | M16: =VLOOKUP($C16,'3. Additions, Disposals & Opex'!$C$12:$S$53,M$2,FALSE) -> 1 | N16: =VLOOKUP($C16,'3. Additions, Disposals & Opex'!$C$12:$S$53,N$2,FALSE) -> 1 | O16: =VLOOKUP($C16,'3. Additions, Disposals & Opex'!$C$12:$S$53,O$2,FALSE) -> 1 | P16: =VLOOKUP($C16,'3. Additions, Disposals & Opex'!$C$12:$S$53,P$2,FALSE) -> 1 | Q16: =VLOOKUP($C16,'3. Additions, Disposals & Opex'!$C$12:$S$53,Q$2,FALSE) -> 1 | R16: =VLOOKUP($C16,'3. Additions, Disposals & Opex'!$C$12:$S$53,R$2,FALSE) -> 0 | S16: =VLOOKUP($C16,'3. Additions, Disposals & Opex'!$C$12:$S$53,S$2,FALSE) -> 0 | T16: 5.838452851
C17: CA05 | D17: CAN Radio Bearer Equipment | H17: =VLOOKUP($C17,'3. Additions, Disposals & Opex'!$C$12:$S$53,H$2,FALSE) -> 0.06311216585 | I17: =VLOOKUP($C17,'3. Additions, Disposals & Opex'!$C$12:$S$53,I$2,FALSE) -> 0.06311216585 | J17: =VLOOKUP($C17,'3. Additions, Disposals & Opex'!$C$12:$S$53,J$2,FALSE) -> 0.06311216585 | K17: =VLOOKUP($C17,'3. Additions, Disposals & Opex'!$C$12:$S$53,K$2,FALSE) -> 0.06311216585 | L17: =VLOOKUP($C17,'3. Additions, Disposals & Opex'!$C$12:$S$53,L$2,FALSE) -> 0.06311216585 | M17: =VLOOKUP($C17,'3. Additions, Disposals & Opex'!$C$12:$S$53,M$2,FALSE) -> 1 | N17: =VLOOKUP($C17,'3. Additions, Disposals & Opex'!$C$12:$S$53,N$2,FALSE) -> 1 | O17: =VLOOKUP($C17,'3. Additions, Disposals & Opex'!$C$12:$S$53,O$2,FALSE) -> 1 | P17: =VLOOKUP($C17,'3. Additions, Disposals & Opex'!$C$12:$S$53,P$2,FALSE) -> 1 | Q17: =VLOOKUP($C17,'3. Additions, Disposals & Opex'!$C$12:$S$53,Q$2,FALSE) -> 1 | R17: =VLOOKUP($C17,'3. Additions, Disposals & Opex'!$C$12:$S$53,R$2,FALSE) -> 0 | S17: =VLOOKUP($C17,'3. Additions, Disposals & Opex'!$C$12:$S$53,S$2,FALSE) -> 0 | T17: 5.315560829
C18: CA06 | D18: Other CAN assets | H18: =VLOOKUP($C18,'3. Additions, Disposals & Opex'!$C$12:$S$53,H$2,FALSE) -> 0.0001562917511 | I18: =VLOOKUP($C18,'3. Additions, Disposals & Opex'!$C$12:$S$53,I$2,FALSE) -> 0.0001562917511 | J18: =VLOOKUP($C18,'3. Additions, Disposals & Opex'!$C$12:$S$53,J$2,FALSE) -> 0.0001562917511 | K18: =VLOOKUP($C18,'3. Additions, Disposals & Opex'!$C$12:$S$53,K$2,FALSE) -> 0.0001562917511 | L18: =VLOOKUP($C18,'3. Additions, Disposals & Opex'!$C$12:$S$53,L$2,FALSE) -> 0.0001562917511 | M18: =VLOOKUP($C18,'3. Additions, Disposals & Opex'!$C$12:$S$53,M$2,FALSE) -> 1 | N18: =VLOOKUP($C18,'3. Additions, Disposals & Opex'!$C$12:$S$53,N$2,FALSE) -> 1 | O18: =VLOOKUP($C18,'3. Additions, Disposals & Opex'!$C$12:$S$53,O$2,FALSE) -> 1 | P18: =VLOOKUP($C18,'3. Additions, Disposals & Opex'!$C$12:$S$53,P$2,FALSE) -> 1 | Q18: =VLOOKUP($C18,'3. Additions, Disposals & Opex'!$C$12:$S$53,Q$2,FALSE) -> 1 | R18: =VLOOKUP($C18,'3. Additions, Disposals & Opex'!$C$12:$S$53,R$2,FALSE) -> 0 | S18: =VLOOKUP($C18,'3. Additions, Disposals & Opex'!$C$12:$S$53,S$2,FALSE) -> 0 | T18: 5.000781459
C19: CA07 | D19: Other Communications Plant and Equipment | H19: =VLOOKUP($C19,'3. Additions, Disposals & Opex'!$C$12:$S$53,H$2,FALSE) -> 0.001626498815 | I19: =VLOOKUP($C19,'3. Additions, Disposals & Opex'!$C$12:$S$53,I$2,FALSE) -> 0.001626498815 | J19: =VLOOKUP($C19,'3. Additions, Disposals & Opex'!$C$12:$S$53,J$2,FALSE) -> 0.001626498815 | K19: =VLOOKUP($C19,'3. Additions, Disposals & Opex'!$C$12:$S$53,K$2,FALSE) -> 0.001626498815 | L19: =VLOOKUP($C19,'3. Additions, Disposals & Opex'!$C$12:$S$53,L$2,FALSE) -> 0.001626498815 | M19: =VLOOKUP($C19,'3. Additions, Disposals & Opex'!$C$12:$S$53,M$2,FALSE) -> 1 | N19: =VLOOKUP($C19,'3. Additions, Disposals & Opex'!$C$12:$S$53,N$2,FALSE) -> 1 | O19: =VLOOKUP($C19,'3. Additions, Disposals & Opex'!$C$12:$S$53,O$2,FALSE) -> 1 | P19: =VLOOKUP($C19,'3. Additions, Disposals & Opex'!$C$12:$S$53,P$2,FALSE) -> 1 | Q19: =VLOOKUP($C19,'3. Additions, Disposals & Opex'!$C$12:$S$53,Q$2,FALSE) -> 1 | R19: =VLOOKUP($C19,'3. Additions, Disposals & Opex'!$C$12:$S$53,R$2,FALSE) -> 0 | S19: =VLOOKUP($C19,'3. Additions, Disposals & Opex'!$C$12:$S$53,S$2,FALSE) -> 0 | T19: 5.008132494
C20: CA08 | D20: Network Land | H20: =VLOOKUP($C20,'3. Additions, Disposals & Opex'!$C$12:$S$53,H$2,FALSE) -> 0.005208371587 | I20: =VLOOKUP($C20,'3. Additions, Disposals & Opex'!$C$12:$S$53,I$2,FALSE) -> 0.005208371587 | J20: =VLOOKUP($C20,'3. Additions, Disposals & Opex'!$C$12:$S$53,J$2,FALSE) -> 0.005208371587 | K20: =VLOOKUP($C20,'3. Additions, Disposals & Opex'!$C$12:$S$53,K$2,FALSE) -> 0.005208371587 | L20: =VLOOKUP($C20,'3. Additions, Disposals & Opex'!$C$12:$S$53,L$2,FALSE) -> 0.005208371587 | M20: =VLOOKUP($C20,'3. Additions, Disposals & Opex'!$C$12:$S$53,M$2,FALSE) -> 1 | N20: =VLOOKUP($C20,'3. Additions, Disposals & Opex'!$C$12:$S$53,N$2,FALSE) -> 1 | O20: =VLOOKUP($C20,'3. Additions, Disposals & Opex'!$C$12:$S$53,O$2,FALSE) -> 1 | P20: =VLOOKUP($C20,'3. Additions, Disposals & Opex'!$C$12:$S$53,P$2,FALSE) -> 1 | Q20: =VLOOKUP($C20,'3. Additions, Disposals & Opex'!$C$12:$S$53,Q$2,FALSE) -> 1 | R20: =VLOOKUP($C20,'3. Additions, Disposals & Opex'!$C$12:$S$53,R$2,FALSE) -> 0 | S20: =VLOOKUP($C20,'3. Additions, Disposals & Opex'!$C$12:$S$53,S$2,FALSE) -> 0 | T20: 5.026041858
C21: CA09 | D21: Network Buildings/Support | H21: =VLOOKUP($C21,'3. Additions, Disposals & Opex'!$C$12:$S$53,H$2,FALSE) -> 0.04644140463 | I21: =VLOOKUP($C21,'3. Additions, Disposals & Opex'!$C$12:$S$53,I$2,FALSE) -> 0.04644140463 | J21: =VLOOKUP($C21,'3. Additions, Disposals & Opex'!$C$12:$S$53,J$2,FALSE) -> 0.04644140463 | K21: =VLOOKUP($C21,'3. Additions, Disposals & Opex'!$C$12:$S$53,K$2,FALSE) -> 0.04644140463 | L21: =VLOOKUP($C21,'3. Additions, Disposals & Opex'!$C$12:$S$53,L$2,FALSE) -> 0.04644140463 | M21: =VLOOKUP($C21,'3. Additions, Disposals & Opex'!$C$12:$S$53,M$2,FALSE) -> 1 | N21: =VLOOKUP($C21,'3. Additions, Disposals & Opex'!$C$12:$S$53,N$2,FALSE) -> 1 | O21: =VLOOKUP($C21,'3. Additions, Disposals & Opex'!$C$12:$S$53,O$2,FALSE) -> 1 | P21: =VLOOKUP($C21,'3. Additions, Disposals & Opex'!$C$12:$S$53,P$2,FALSE) -> 1 | Q21: =VLOOKUP($C21,'3. Additions, Disposals & Opex'!$C$12:$S$53,Q$2,FALSE) -> 1 | R21: =VLOOKUP($C21,'3. Additions, Disposals & Opex'!$C$12:$S$53,R$2,FALSE) -> 0 | S21: =VLOOKUP($C21,'3. Additions, Disposals & Opex'!$C$12:$S$53,S$2,FALSE) -> 0 | T21: 5.232207023
C22: CA10 | D22: Indirect Capital Assets | H22: =VLOOKUP($C22,'3. Additions, Disposals & Opex'!$C$12:$S$53,H$2,FALSE) -> 0 | I22: =VLOOKUP($C22,'3. Additions, Disposals & Opex'!$C$12:$S$53,I$2,FALSE) -> 0 | J22: =VLOOKUP($C22,'3. Additions, Disposals & Opex'!$C$12:$S$53,J$2,FALSE) -> 0 | K22: =VLOOKUP($C22,'3. Additions, Disposals & Opex'!$C$12:$S$53,K$2,FALSE) -> 0 | L22: =VLOOKUP($C22,'3. Additions, Disposals & Opex'!$C$12:$S$53,L$2,FALSE) -> 0 | M22: =VLOOKUP($C22,'3. Additions, Disposals & Opex'!$C$12:$S$53,M$2,FALSE) -> 1 | N22: =VLOOKUP($C22,'3. Additions, Disposals & Opex'!$C$12:$S$53,N$2,FALSE) -> 1 | O22: =VLOOKUP($C22,'3. Additions, Disposals & Opex'!$C$12:$S$53,O$2,FALSE) -> 1 | P22: =VLOOKUP($C22,'3. Additions, Disposals & Opex'!$C$12:$S$53,P$2,FALSE) -> 1 | Q22: =VLOOKUP($C22,'3. Additions, Disposals & Opex'!$C$12:$S$53,Q$2,FALSE) -> 1 | R22: =VLOOKUP($C22,'3. Additions, Disposals & Opex'!$C$12:$S$53,R$2,FALSE) -> 0 | S22: =VLOOKUP($C22,'3. Additions, Disposals & Opex'!$C$12:$S$53,S$2,FALSE) -> 0 | T22: 5
C23: CA11 | D23: Spare CAN Asset Class 11 | H23: =VLOOKUP($C23,'3. Additions, Disposals & Opex'!$C$12:$S$53,H$2,FALSE) -> 0 | I23: =VLOOKUP($C23,'3. Additions, Disposals & Opex'!$C$12:$S$53,I$2,FALSE) -> 0 | J23: =VLOOKUP($C23,'3. Additions, Disposals & Opex'!$C$12:$S$53,J$2,FALSE) -> 0 | K23: =VLOOKUP($C23,'3. Additions, Disposals & Opex'!$C$12:$S$53,K$2,FALSE) -> 0 | L23: =VLOOKUP($C23,'3. Additions, Disposals & Opex'!$C$12:$S$53,L$2,FALSE) -> 0 | M23: =VLOOKUP($C23,'3. Additions, Disposals & Opex'!$C$12:$S$53,M$2,FALSE) -> 0 | N23: =VLOOKUP($C23,'3. Additions, Disposals & Opex'!$C$12:$S$53,N$2,FALSE) -> 0 | O23: =VLOOKUP($C23,'3. Additions, Disposals & Opex'!$C$12:$S$53,O$2,FALSE) -> 0 | P23: =VLOOKUP($C23,'3. Additions, Disposals & Opex'!$C$12:$S$53,P$2,FALSE) -> 0 | Q23: =VLOOKUP($C23,'3. Additions, Disposals & Opex'!$C$12:$S$53,Q$2,FALSE) -> 0 | R23: =VLOOKUP($C23,'3. Additions, Disposals & Opex'!$C$12:$S$53,R$2,FALSE) -> 0 | S23: =VLOOKUP($C23,'3. Additions, Disposals & Opex'!$C$12:$S$53,S$2,FALSE) -> 0 | T23: 0
C24: CA12 | D24: Spare CAN Asset Class 12 | H24: =VLOOKUP($C24,'3. Additions, Disposals & Opex'!$C$12:$S$53,H$2,FALSE) -> 0 | I24: =VLOOKUP($C24,'3. Additions, Disposals & Opex'!$C$12:$S$53,I$2,FALSE) -> 0 | J24: =VLOOKUP($C24,'3. Additions, Disposals & Opex'!$C$12:$S$53,J$2,FALSE) -> 0 | K24: =VLOOKUP($C24,'3. Additions, Disposals & Opex'!$C$12:$S$53,K$2,FALSE) -> 0 | L24: =VLOOKUP($C24,'3. Additions, Disposals & Opex'!$C$12:$S$53,L$2,FALSE) -> 0 | M24: =VLOOKUP($C24,'3. Additions, Disposals & Opex'!$C$12:$S$53,M$2,FALSE) -> 0 | N24: =VLOOKUP($C24,'3. Additions, Disposals & Opex'!$C$12:$S$53,N$2,FALSE) -> 0 | O24: =VLOOKUP($C24,'3. Additions, Disposals & Opex'!$C$12:$S$53,O$2,FALSE) -> 0 | P24: =VLOOKUP($C24,'3. Additions, Disposals & Opex'!$C$12:$S$53,P$2,FALSE) -> 0 | Q24: =VLOOKUP($C24,'3. Additions, Disposals & Opex'!$C$12:$S$53,Q$2,FALSE) -> 0 | R24: =VLOOKUP($C24,'3. Additions, Disposals & Opex'!$C$12:$S$53,R$2,FALSE) -> 0 | S24: =VLOOKUP($C24,'3. Additions, Disposals & Opex'!$C$12:$S$53,S$2,FALSE) -> 0 | T24: 0
C25: CA13 | D25: Spare CAN Asset Class 13 | H25: =VLOOKUP($C25,'3. Additions, Disposals & Opex'!$C$12:$S$53,H$2,FALSE) -> 0 | I25: =VLOOKUP($C25,'3. Additions, Disposals & Opex'!$C$12:$S$53,I$2,FALSE) -> 0 | J25: =VLOOKUP($C25,'3. Additions, Disposals & Opex'!$C$12:$S$53,J$2,FALSE) -> 0 | K25: =VLOOKUP($C25,'3. Additions, Disposals & Opex'!$C$12:$S$53,K$2,FALSE) -> 0 | L25: =VLOOKUP($C25,'3. Additions, Disposals & Opex'!$C$12:$S$53,L$2,FALSE) -> 0 | M25: =VLOOKUP($C25,'3. Additions, Disposals & Opex'!$C$12:$S$53,M$2,FALSE) -> 0 | N25: =VLOOKUP($C25,'3. Additions, Disposals & Opex'!$C$12:$S$53,N$2,FALSE) -> 0 | O25: =VLOOKUP($C25,'3. Additions, Disposals & Opex'!$C$12:$S$53,O$2,FALSE) -> 0 | P25: =VLOOKUP($C25,'3. Additions, Disposals & Opex'!$C$12:$S$53,P$2,FALSE) -> 0 | Q25: =VLOOKUP($C25,'3. Additions, Disposals & Opex'!$C$12:$S$53,Q$2,FALSE) -> 0 | R25: =VLOOKUP($C25,'3. Additions, Disposals & Opex'!$C$12:$S$53,R$2,FALSE) -> 0 | S25: =VLOOKUP($C25,'3. Additions, Disposals & Opex'!$C$12:$S$53,S$2,FALSE) -> 0 | T25: 0
C26: CA14 | D26: Spare CAN Asset Class 14 | H26: =VLOOKUP($C26,'3. Additions, Disposals & Opex'!$C$12:$S$53,H$2,FALSE) -> 0 | I26: =VLOOKUP($C26,'3. Additions, Disposals & Opex'!$C$12:$S$53,I$2,FALSE) -> 0 | J26: =VLOOKUP($C26,'3. Additions, Disposals & Opex'!$C$12:$S$53,J$2,FALSE) -> 0 | K26: =VLOOKUP($C26,'3. Additions, Disposals & Opex'!$C$12:$S$53,K$2,FALSE) -> 0 | L26: =VLOOKUP($C26,'3. Additions, Disposals & Opex'!$C$12:$S$53,L$2,FALSE) -> 0 | M26: =VLOOKUP($C26,'3. Additions, Disposals & Opex'!$C$12:$S$53,M$2,FALSE) -> 0 | N26: =VLOOKUP($C26,'3. Additions, Disposals & Opex'!$C$12:$S$53,N$2,FALSE) -> 0 | O26: =VLOOKUP($C26,'3. Additions, Disposals & Opex'!$C$12:$S$53,O$2,FALSE) -> 0 | P26: =VLOOKUP($C26,'3. Additions, Disposals & Opex'!$C$12:$S$53,P$2,FALSE) -> 0 | Q26: =VLOOKUP($C26,'3. Additions, Disposals & Opex'!$C$12:$S$53,Q$2,FALSE) -> 0 | R26: =VLOOKUP($C26,'3. Additions, Disposals & Opex'!$C$12:$S$53,R$2,FALSE) -> 0 | S26: =VLOOKUP($C26,'3. Additions, Disposals & Opex'!$C$12:$S$53,S$2,FALSE) -> 0 | T26: 0
C27: CA15 | D27: Spare CAN Asset Class 15 | H27: =VLOOKUP($C27,'3. Additions, Disposals & Opex'!$C$12:$S$53,H$2,FALSE) -> 0 | I27: =VLOOKUP($C27,'3. Additions, Disposals & Opex'!$C$12:$S$53,I$2,FALSE) -> 0 | J27: =VLOOKUP($C27,'3. Additions, Disposals & Opex'!$C$12:$S$53,J$2,FALSE) -> 0 | K27: =VLOOKUP($C27,'3. Additions, Disposals & Opex'!$C$12:$S$53,K$2,FALSE) -> 0 | L27: =VLOOKUP($C27,'3. Additions, Disposals & Opex'!$C$12:$S$53,L$2,FALSE) -> 0 | M27: =VLOOKUP($C27,'3. Additions, Disposals & Opex'!$C$12:$S$53,M$2,FALSE) -> 0 | N27: =VLOOKUP($C27,'3. Additions, Disposals & Opex'!$C$12:$S$53,N$2,FALSE) -> 0 | O27: =VLOOKUP($C27,'3. Additions, Disposals & Opex'!$C$12:$S$53,O$2,FALSE) -> 0 | P27: =VLOOKUP($C27,'3. Additions, Disposals & Opex'!$C$12:$S$53,P$2,FALSE) -> 0 | Q27: =VLOOKUP($C27,'3. Additions, Disposals & Opex'!$C$12:$S$53,Q$2,FALSE) -> 0 | R27: =VLOOKUP($C27,'3. Additions, Disposals & Opex'!$C$12:$S$53,R$2,FALSE) -> 0 | S27: =VLOOKUP($C27,'3. Additions, Disposals & Opex'!$C$12:$S$53,S$2,FALSE) -> 0 | T27: 0
C28: CA16 | D28: Spare CAN Asset Class 16 | H28: =VLOOKUP($C28,'3. Additions, Disposals & Opex'!$C$12:$S$53,H$2,FALSE) -> 0 | I28: =VLOOKUP($C28,'3. Additions, Disposals & Opex'!$C$12:$S$53,I$2,FALSE) -> 0 | J28: =VLOOKUP($C28,'3. Additions, Disposals & Opex'!$C$12:$S$53,J$2,FALSE) -> 0 | K28: =VLOOKUP($C28,'3. Additions, Disposals & Opex'!$C$12:$S$53,K$2,FALSE) -> 0 | L28: =VLOOKUP($C28,'3. Additions, Disposals & Opex'!$C$12:$S$53,L$2,FALSE) -> 0 | M28: =VLOOKUP($C28,'3. Additions, Disposals & Opex'!$C$12:$S$53,M$2,FALSE) -> 0 | N28: =VLOOKUP($C28,'3. Additions, Disposals & Opex'!$C$12:$S$53,N$2,FALSE) -> 0 | O28: =VLOOKUP($C28,'3. Additions, Disposals & Opex'!$C$12:$S$53,O$2,FALSE) -> 0 | P28: =VLOOKUP($C28,'3. Additions, Disposals & Opex'!$C$12:$S$53,P$2,FALSE) -> 0 | Q28: =VLOOKUP($C28,'3. Additions, Disposals & Opex'!$C$12:$S$53,Q$2,FALSE) -> 0 | R28: =VLOOKUP($C28,'3. Additions, Disposals & Opex'!$C$12:$S$53,R$2,FALSE) -> 0 | S28: =VLOOKUP($C28,'3. Additions, Disposals & Opex'!$C$12:$S$53,S$2,FALSE) -> 0 | T28: 0
C29: CA17 | D29: Spare CAN Asset Class 17 | H29: =VLOOKUP($C29,'3. Additions, Disposals & Opex'!$C$12:$S$53,H$2,FALSE) -> 0 | I29: =VLOOKUP($C29,'3. Additions, Disposals & Opex'!$C$12:$S$53,I$2,FALSE) -> 0 | J29: =VLOOKUP($C29,'3. Additions, Disposals & Opex'!$C$12:$S$53,J$2,FALSE) -> 0 | K29: =VLOOKUP($C29,'3. Additions, Disposals & Opex'!$C$12:$S$53,K$2,FALSE) -> 0 | L29: =VLOOKUP($C29,'3. Additions, Disposals & Opex'!$C$12:$S$53,L$2,FALSE) -> 0 | M29: =VLOOKUP($C29,'3. Additions, Disposals & Opex'!$C$12:$S$53,M$2,FALSE) -> 0 | N29: =VLOOKUP($C29,'3. Additions, Disposals & Opex'!$C$12:$S$53,N$2,FALSE) -> 0 | O29: =VLOOKUP($C29,'3. Additions, Disposals & Opex'!$C$12:$S$53,O$2,FALSE) -> 0 | P29: =VLOOKUP($C29,'3. Additions, Disposals & Opex'!$C$12:$S$53,P$2,FALSE) -> 0 | Q29: =VLOOKUP($C29,'3. Additions, Disposals & Opex'!$C$12:$S$53,Q$2,FALSE) -> 0 | R29: =VLOOKUP($C29,'3. Additions, Disposals & Opex'!$C$12:$S$53,R$2,FALSE) -> 0 | S29: =VLOOKUP($C29,'3. Additions, Disposals & Opex'!$C$12:$S$53,S$2,FALSE) -> 0 | T29: 0
C30: CA18 | D30: Spare CAN Asset Class 18 | H30: =VLOOKUP($C30,'3. Additions, Disposals & Opex'!$C$12:$S$53,H$2,FALSE) -> 0 | I30: =VLOOKUP($C30,'3. Additions, Disposals & Opex'!$C$12:$S$53,I$2,FALSE) -> 0 | J30: =VLOOKUP($C30,'3. Additions, Disposals & Opex'!$C$12:$S$53,J$2,FALSE) -> 0 | K30: =VLOOKUP($C30,'3. Additions, Disposals & Opex'!$C$12:$S$53,K$2,FALSE) -> 0 | L30: =VLOOKUP($C30,'3. Additions, Disposals & Opex'!$C$12:$S$53,L$2,FALSE) -> 0 | M30: =VLOOKUP($C30,'3. Additions, Disposals & Opex'!$C$12:$S$53,M$2,FALSE) -> 0 | N30: =VLOOKUP($C30,'3. Additions, Disposals & Opex'!$C$12:$S$53,N$2,FALSE) -> 0 | O30: =VLOOKUP($C30,'3. Additions, Disposals & Opex'!$C$12:$S$53,O$2,FALSE) -> 0 | P30: =VLOOKUP($C30,'3. Additions, Disposals & Opex'!$C$12:$S$53,P$2,FALSE) -> 0 | Q30: =VLOOKUP($C30,'3. Additions, Disposals & Opex'!$C$12:$S$53,Q$2,FALSE) -> 0 | R30: =VLOOKUP($C30,'3. Additions, Disposals & Opex'!$C$12:$S$53,R$2,FALSE) -> 0 | S30: =VLOOKUP($C30,'3. Additions, Disposals & Opex'!$C$12:$S$53,S$2,FALSE) -> 0 | T30: 0
C31: CA19 | D31: Spare CAN Asset Class 19 | H31: =VLOOKUP($C31,'3. Additions, Disposals & Opex'!$C$12:$S$53,H$2,FALSE) -> 0 | I31: =VLOOKUP($C31,'3. Additions, Disposals & Opex'!$C$12:$S$53,I$2,FALSE) -> 0 | J31: =VLOOKUP($C31,'3. Additions, Disposals & Opex'!$C$12:$S$53,J$2,FALSE) -> 0 | K31: =VLOOKUP($C31,'3. Additions, Disposals & Opex'!$C$12:$S$53,K$2,FALSE) -> 0 | L31: =VLOOKUP($C31,'3. Additions, Disposals & Opex'!$C$12:$S$53,L$2,FALSE) -> 0 | M31: =VLOOKUP($C31,'3. Additions, Disposals & Opex'!$C$12:$S$53,M$2,FALSE) -> 0 | N31: =VLOOKUP($C31,'3. Additions, Disposals & Opex'!$C$12:$S$53,N$2,FALSE) -> 0 | O31: =VLOOKUP($C31,'3. Additions, Disposals & Opex'!$C$12:$S$53,O$2,FALSE) -> 0 | P31: =VLOOKUP($C31,'3. Additions, Disposals & Opex'!$C$12:$S$53,P$2,FALSE) -> 0 | Q31: =VLOOKUP($C31,'3. Additions, Disposals & Opex'!$C$12:$S$53,Q$2,FALSE) -> 0 | R31: =VLOOKUP($C31,'3. Additions, Disposals & Opex'!$C$12:$S$53,R$2,FALSE) -> 0 | S31: =VLOOKUP($C31,'3. Additions, Disposals & Opex'!$C$12:$S$53,S$2,FALSE) -> 0 | T31: 0
C32: CA20 | D32: Spare CAN Asset Class 20 | H32: =VLOOKUP($C32,'3. Additions, Disposals & Opex'!$C$12:$S$53,H$2,FALSE) -> 0 | I32: =VLOOKUP($C32,'3. Additions, Disposals & Opex'!$C$12:$S$53,I$2,FALSE) -> 0 | J32: =VLOOKUP($C32,'3. Additions, Disposals & Opex'!$C$12:$S$53,J$2,FALSE) -> 0 | K32: =VLOOKUP($C32,'3. Additions, Disposals & Opex'!$C$12:$S$53,K$2,FALSE) -> 0 | L32: =VLOOKUP($C32,'3. Additions, Disposals & Opex'!$C$12:$S$53,L$2,FALSE) -> 0 | M32: =VLOOKUP($C32,'3. Additions, Disposals & Opex'!$C$12:$S$53,M$2,FALSE) -> 0 | N32: =VLOOKUP($C32,'3. Additions, Disposals & Opex'!$C$12:$S$53,N$2,FALSE) -> 0 | O32: =VLOOKUP($C32,'3. Additions, Disposals & Opex'!$C$12:$S$53,O$2,FALSE) -> 0 | P32: =VLOOKUP($C32,'3. Additions, Disposals & Opex'!$C$12:$S$53,P$2,FALSE) -> 0 | Q32: =VLOOKUP($C32,'3. Additions, Disposals & Opex'!$C$12:$S$53,Q$2,FALSE) -> 0 | R32: =VLOOKUP($C32,'3. Additions, Disposals & Opex'!$C$12:$S$53,R$2,FALSE) -> 0 | S32: =VLOOKUP($C32,'3. Additions, Disposals & Opex'!$C$12:$S$53,S$2,FALSE) -> 0 | T32: 0
D33: Total | H33: =SUM(H13:H32) -> 1.3 | I33: =SUM(I13:I32) -> 1.3 | J33: 1.3 | K33: 1.3 | L33: 1.3 | M33: 10 | N33: 10 | O33: 10 | P33: 10 | Q33: 10 | R33: 0 | S33: 0 | T33: 56.5
C34: Core Asset Class
C35: CO01 | D35: =VLOOKUP(C35,Core_AC,2,FALSE) -> Switching Equipment - Local | H35: =VLOOKUP($C35,'3. Additions, Disposals & Opex'!$C$12:$S$53,H$2,FALSE) -> 0.4068919708 | I35: =VLOOKUP($C35,'3. Additions, Disposals & Opex'!$C$12:$S$53,I$2,FALSE) -> 0.4068919708 | J35: =VLOOKUP($C35,'3. Additions, Disposals & Opex'!$C$12:$S$53,J$2,FALSE) -> 0.4068919708 | K35: =VLOOKUP($C35,'3. Additions, Disposals & Opex'!$C$12:$S$53,K$2,FALSE) -> 0.4068919708 | L35: =VLOOKUP($C35,'3. Additions, Disposals & Opex'!$C$12:$S$53,L$2,FALSE) -> 0.4068919708 | M35: =VLOOKUP($C35,'3. Additions, Disposals & Opex'!$C$12:$S$53,M$2,FALSE) -> 1 | N35: =VLOOKUP($C35,'3. Additions, Disposals & Opex'!$C$12:$S$53,N$2,FALSE) -> 1 | O35: =VLOOKUP($C35,'3. Additions, Disposals & Opex'!$C$12:$S$53,O$2,FALSE) -> 1 | P35: =VLOOKUP($C35,'3. Additions, Disposals & Opex'!$C$12:$S$53,P$2,FALSE) -> 1 | Q35: =VLOOKUP($C35,'3. Additions, Disposals & Opex'!$C$12:$S$53,Q$2,FALSE) -> 1 | R35: =VLOOKUP($C35,'3. Additions, Disposals & Opex'!$C$12:$S$53,R$2,FALSE) -> 0 | S35: =VLOOKUP($C35,'3. Additions, Disposals & Opex'!$C$12:$S$53,S$2,FALSE) -> 0 | T35: =SUM(OFFSET(H35,0,0,1,Model_period)) -> 7.034459854
C36: CO02 | D36: Switching Equipment - Trunk | H36: =VLOOKUP($C36,'3. Additions, Disposals & Opex'!$C$12:$S$53,H$2,FALSE) -> 0.01112674703 | I36: =VLOOKUP($C36,'3. Additions, Disposals & Opex'!$C$12:$S$53,I$2,FALSE) -> 0.01112674703 | J36: =VLOOKUP($C36,'3. Additions, Disposals & Opex'!$C$12:$S$53,J$2,FALSE) -> 0.01112674703 | K36: =VLOOKUP($C36,'3. Additions, Disposals & Opex'!$C$12:$S$53,K$2,FALSE) -> 0.01112674703 | L36: =VLOOKUP($C36,'3. Additions, Disposals & Opex'!$C$12:$S$53,L$2,FALSE) -> 0.01112674703 | M36: =VLOOKUP($C36,'3. Additions, Disposals & Opex'!$C$12:$S$53,M$2,FALSE) -> 1 | N36: =VLOOKUP($C36,'3. Additions, Disposals & Opex'!$C$12:$S$53,N$2,FALSE) -> 1 | O36: =VLOOKUP($C36,'3. Additions, Disposals & Opex'!$C$12:$S$53,O$2,FALSE) -> 1 | P36: =VLOOKUP($C36,'3. Additions, Disposals & Opex'!$C$12:$S$53,P$2,FALSE) -> 1 | Q36: =VLOOKUP($C36,'3. Additions, Disposals & Opex'!$C$12:$S$53,Q$2,FALSE) -> 1 | R36: =VLOOKUP($C36,'3. Additions, Disposals & Opex'!$C$12:$S$53,R$2,FALSE) -> 0 | S36: =VLOOKUP($C36,'3. Additions, Disposals & Opex'!$C$12:$S$53,S$2,FALSE) -> 0 | T36: =SUM(OFFSET(H36,0,0,1,Model_period)) -> 5.055633735
C37: CO03 | D37: Switching Equipment - Other | H37: =VLOOKUP($C37,'3. Additions, Disposals & Opex'!$C$12:$S$53,H$2,FALSE) -> 0.001134468034 | I37: =VLOOKUP($C37,'3. Additions, Disposals & Opex'!$C$12:$S$53,I$2,FALSE) -> 0.001134468034 | J37: =VLOOKUP($C37,'3. Additions, Disposals & Opex'!$C$12:$S$53,J$2,FALSE) -> 0.001134468034 | K37: =VLOOKUP($C37,'3. Additions, Disposals & Opex'!$C$12:$S$53,K$2,FALSE) -> 0.001134468034 | L37: =VLOOKUP($C37,'3. Additions, Disposals & Opex'!$C$12:$S$53,L$2,FALSE) -> 0.001134468034 | M37: =VLOOKUP($C37,'3. Additions, Disposals & Opex'!$C$12:$S$53,M$2,FALSE) -> 1 | N37: =VLOOKUP($C37,'3. Additions, Disposals & Opex'!$C$12:$S$53,N$2,FALSE) -> 1 | O37: =VLOOKUP($C37,'3. Additions, Disposals & Opex'!$C$12:$S$53,O$2,FALSE) -> 1 | P37: =VLOOKUP($C37,'3. Additions, Disposals & Opex'!$C$12:$S$53,P$2,FALSE) -> 1 | Q37: =VLOOKUP($C37,'3. Additions, Disposals & Opex'!$C$12:$S$53,Q$2,FALSE) -> 1 | R37: =VLOOKUP($C37,'3. Additions, Disposals & Opex'!$C$12:$S$53,R$2,FALSE) -> 0 | S37: =VLOOKUP($C37,'3. Additions, Disposals & Opex'!$C$12:$S$53,S$2,FALSE) -> 0 | T37: 5.00567234
C38: CO04 | D38: Inter-exchange Cables | H38: =VLOOKUP($C38,'3. Additions, Disposals & Opex'!$C$12:$S$53,H$2,FALSE) -> 0.2622245147 | I38: =VLOOKUP($C38,'3. Additions, Disposals & Opex'!$C$12:$S$53,I$2,FALSE) -> 0.2622245147 | J38: =VLOOKUP($C38,'3. Additions, Disposals & Opex'!$C$12:$S$53,J$2,FALSE) -> 0.2622245147 | K38: =VLOOKUP($C38,'3. Additions, Disposals & Opex'!$C$12:$S$53,K$2,FALSE) -> 0.2622245147 | L38: =VLOOKUP($C38,'3. Additions, Disposals & Opex'!$C$12:$S$53,L$2,FALSE) -> 0.2622245147 | M38: =VLOOKUP($C38,'3. Additions, Disposals & Opex'!$C$12:$S$53,M$2,FALSE) -> 1 | N38: =VLOOKUP($C38,'3. Additions, Disposals & Opex'!$C$12:$S$53,N$2,FALSE) -> 1 | O38: =VLOOKUP($C38,'3. Additions, Disposals & Opex'!$C$12:$S$53,O$2,FALSE) -> 1 | P38: =VLOOKUP($C38,'3. Additions, Disposals & Opex'!$C$12:$S$53,P$2,FALSE) -> 1 | Q38: =VLOOKUP($C38,'3. Additions, Disposals & Opex'!$C$12:$S$53,Q$2,FALSE) -> 1 | R38: =VLOOKUP($C38,'3. Additions, Disposals & Opex'!$C$12:$S$53,R$2,FALSE) -> 0 | S38: =VLOOKUP($C38,'3. Additions, Disposals & Opex'!$C$12:$S$53,S$2,FALSE) -> 0 | T38: 6.311122574
C39: CO05 | D39: Transmission Equipment | H39: =VLOOKUP($C39,'3. Additions, Disposals & Opex'!$C$12:$S$53,H$2,FALSE) -> 0.30672134 | I39: =VLOOKUP($C39,'3. Additions, Disposals & Opex'!$C$12:$S$53,I$2,FALSE) -> 0.30672134 | J39: =VLOOKUP($C39,'3. Additions, Disposals & Opex'!$C$12:$S$53,J$2,FALSE) -> 0.30672134 | K39: =VLOOKUP($C39,'3. Additions, Disposals & Opex'!$C$12:$S$53,K$2,FALSE) -> 0.30672134 | L39: =VLOOKUP($C39,'3. Additions, Disposals & Opex'!$C$12:$S$53,L$2,FALSE) -> 0.30672134 | M39: =VLOOKUP($C39,'3. Additions, Disposals & Opex'!$C$12:$S$53,M$2,FALSE) -> 1 | N39: =VLOOKUP($C39,'3. Additions, Disposals & Opex'!$C$12:$S$53,N$2,FALSE) -> 1 | O39: =VLOOKUP($C39,'3. Additions, Disposals & Opex'!$C$12:$S$53,O$2,FALSE) -> 1 | P39: =VLOOKUP($C39,'3. Additions, Disposals & Opex'!$C$12:$S$53,P$2,FALSE) -> 1 | Q39: =VLOOKUP($C39,'3. Additions, Disposals & Opex'!$C$12:$S$53,Q$2,FALSE) -> 1 | R39: =VLOOKUP($C39,'3. Additions, Disposals & Opex'!$C$12:$S$53,R$2,FALSE) -> 0 | S39: =VLOOKUP($C39,'3. Additions, Disposals & Opex'!$C$12:$S$53,S$2,FALSE) -> 0 | T39: 6.5336067
C40: CO06 | D40: Core Radio Bearer Equipment | H40: =VLOOKUP($C40,'3. Additions, Disposals & Opex'!$C$12:$S$53,H$2,FALSE) -> 0.03925005165 | I40: =VLOOKUP($C40,'3. Additions, Disposals & Opex'!$C$12:$S$53,I$2,FALSE) -> 0.03925005165 | J40: =VLOOKUP($C40,'3. Additions, Disposals & Opex'!$C$12:$S$53,J$2,FALSE) -> 0.03925005165 | K40: =VLOOKUP($C40,'3. Additions, Disposals & Opex'!$C$12:$S$53,K$2,FALSE) -> 0.03925005165 | L40: =VLOOKUP($C40,'3. Additions, Disposals & Opex'!$C$12:$S$53,L$2,FALSE) -> 0.03925005165 | M40: =VLOOKUP($C40,'3. Additions, Disposals & Opex'!$C$12:$S$53,M$2,FALSE) -> 1 | N40: =VLOOKUP($C40,'3. Additions, Disposals & Opex'!$C$12:$S$53,N$2,FALSE) -> 1 | O40: =VLOOKUP($C40,'3. Additions, Disposals & Opex'!$C$12:$S$53,O$2,FALSE) -> 1 | P40: =VLOOKUP($C40,'3. Additions, Disposals & Opex'!$C$12:$S$53,P$2,FALSE) -> 1 | Q40: =VLOOKUP($C40,'3. Additions, Disposals & Opex'!$C$12:$S$53,Q$2,FALSE) -> 1 | R40: =VLOOKUP($C40,'3. Additions, Disposals & Opex'!$C$12:$S$53,R$2,FALSE) -> 0 | S40: =VLOOKUP($C40,'3. Additions, Disposals & Opex'!$C$12:$S$53,S$2,FALSE) -> 0 | T40: 5.196250258
C41: CO07 | D41: Other Communications Plant and Equipment | H41: =VLOOKUP($C41,'3. Additions, Disposals & Opex'!$C$12:$S$53,H$2,FALSE) -> 0.002166340551 | I41: =VLOOKUP($C41,'3. Additions, Disposals & Opex'!$C$12:$S$53,I$2,FALSE) -> 0.002166340551 | J41: =VLOOKUP($C41,'3. Additions, Disposals & Opex'!$C$12:$S$53,J$2,FALSE) -> 0.002166340551 | K41: =VLOOKUP($C41,'3. Additions, Disposals & Opex'!$C$12:$S$53,K$2,FALSE) -> 0.002166340551 | L41: =VLOOKUP($C41,'3. Additions, Disposals & Opex'!$C$12:$S$53,L$2,FALSE) -> 0.002166340551 | M41: =VLOOKUP($C41,'3. Additions, Disposals & Opex'!$C$12:$S$53,M$2,FALSE) -> 1 | N41: =VLOOKUP($C41,'3. Additions, Disposals & Opex'!$C$12:$S$53,N$2,FALSE) -> 1 | O41: =VLOOKUP($C41,'3. Additions, Disposals & Opex'!$C$12:$S$53,O$2,FALSE) -> 1 | P41: =VLOOKUP($C41,'3. Additions, Disposals & Opex'!$C$12:$S$53,P$2,FALSE) -> 1 | Q41: =VLOOKUP($C41,'3. Additions, Disposals & Opex'!$C$12:$S$53,Q$2,FALSE) -> 1 | R41: =VLOOKUP($C41,'3. Additions, Disposals & Opex'!$C$12:$S$53,R$2,FALSE) -> 0 | S41: =VLOOKUP($C41,'3. Additions, Disposals & Opex'!$C$12:$S$53,S$2,FALSE) -> 0 | T41: 5.010831703
C42: CO08 | D42: Network Land | H42: =VLOOKUP($C42,'3. Additions, Disposals & Opex'!$C$12:$S$53,H$2,FALSE) -> 0.04347977679 | I42: =VLOOKUP($C42,'3. Additions, Disposals & Opex'!$C$12:$S$53,I$2,FALSE) -> 0.04347977679 | J42: =VLOOKUP($C42,'3. Additions, Disposals & Opex'!$C$12:$S$53,J$2,FALSE) -> 0.04347977679 | K42: =VLOOKUP($C42,'3. Additions, Disposals & Opex'!$C$12:$S$53,K$2,FALSE) -> 0.04347977679 | L42: =VLOOKUP($C42,'3. Additions, Disposals & Opex'!$C$12:$S$53,L$2,FALSE) -> 0.04347977679 | M42: =VLOOKUP($C42,'3. Additions, Disposals & Opex'!$C$12:$S$53,M$2,FALSE) -> 1 | N42: =VLOOKUP($C42,'3. Additions, Disposals & Opex'!$C$12:$S$53,N$2,FALSE) -> 1 | O42: =VLOOKUP($C42,'3. Additions, Disposals & Opex'!$C$12:$S$53,O$2,FALSE) -> 1 | P42: =VLOOKUP($C42,'3. Additions, Disposals & Opex'!$C$12:$S$53,P$2,FALSE) -> 1 | Q42: =VLOOKUP($C42,'3. Additions, Disposals & Opex'!$C$12:$S$53,Q$2,FALSE) -> 1 | R42: =VLOOKUP($C42,'3. Additions, Disposals & Opex'!$C$12:$S$53,R$2,FALSE) -> 0 | S42: =VLOOKUP($C42,'3. Additions, Disposals & Opex'!$C$12:$S$53,S$2,FALSE) -> 0 | T42: 5.217398884
C43: CO09 | D43: Network Buildings/Support | H43: =VLOOKUP($C43,'3. Additions, Disposals & Opex'!$C$12:$S$53,H$2,FALSE) -> 0.2270047904 | I43: =VLOOKUP($C43,'3. Additions, Disposals & Opex'!$C$12:$S$53,I$2,FALSE) -> 0.2270047904 | J43: =VLOOKUP($C43,'3. Additions, Disposals & Opex'!$C$12:$S$53,J$2,FALSE) -> 0.2270047904 | K43: =VLOOKUP($C43,'3. Additions, Disposals & Opex'!$C$12:$S$53,K$2,FALSE) -> 0.2270047904 | L43: =VLOOKUP($C43,'3. Additions, Disposals & Opex'!$C$12:$S$53,L$2,FALSE) -> 0.2270047904 | M43: =VLOOKUP($C43,'3. Additions, Disposals & Opex'!$C$12:$S$53,M$2,FALSE) -> 1 | N43: =VLOOKUP($C43,'3. Additions, Disposals & Opex'!$C$12:$S$53,N$2,FALSE) -> 1 | O43: =VLOOKUP($C43,'3. Additions, Disposals & Opex'!$C$12:$S$53,O$2,FALSE) -> 1 | P43: =VLOOKUP($C43,'3. Additions, Disposals & Opex'!$C$12:$S$53,P$2,FALSE) -> 1 | Q43: =VLOOKUP($C43,'3. Additions, Disposals & Opex'!$C$12:$S$53,Q$2,FALSE) -> 1 | R43: =VLOOKUP($C43,'3. Additions, Disposals & Opex'!$C$12:$S$53,R$2,FALSE) -> 0 | S43: =VLOOKUP($C43,'3. Additions, Disposals & Opex'!$C$12:$S$53,S$2,FALSE) -> 0 | T43: 6.135023952
C44: CO10 | D44: Indirect Capital Assets | H44: =VLOOKUP($C44,'3. Additions, Disposals & Opex'!$C$12:$S$53,H$2,FALSE) -> 0 | I44: =VLOOKUP($C44,'3. Additions, Disposals & Opex'!$C$12:$S$53,I$2,FALSE) -> 0 | J44: =VLOOKUP($C44,'3. Additions, Disposals & Opex'!$C$12:$S$53,J$2,FALSE) -> 0 | K44: =VLOOKUP($C44,'3. Additions, Disposals & Opex'!$C$12:$S$53,K$2,FALSE) -> 0 | L44: =VLOOKUP($C44,'3. Additions, Disposals & Opex'!$C$12:$S$53,L$2,FALSE) -> 0 | M44: =VLOOKUP($C44,'3. Additions, Disposals & Opex'!$C$12:$S$53,M$2,FALSE) -> 1 | N44: =VLOOKUP($C44,'3. Additions, Disposals & Opex'!$C$12:$S$53,N$2,FALSE) -> 1 | O44: =VLOOKUP($C44,'3. Additions, Disposals & Opex'!$C$12:$S$53,O$2,FALSE) -> 1 | P44: =VLOOKUP($C44,'3. Additions, Disposals & Opex'!$C$12:$S$53,P$2,FALSE) -> 1 | Q44: =VLOOKUP($C44,'3. Additions, Disposals & Opex'!$C$12:$S$53,Q$2,FALSE) -> 1 | R44: =VLOOKUP($C44,'3. Additions, Disposals & Opex'!$C$12:$S$53,R$2,FALSE) -> 0 | S44: =VLOOKUP($C44,'3. Additions, Disposals & Opex'!$C$12:$S$53,S$2,FALSE) -> 0 | T44: 5
C45: CO11 | D45: LSS equipment | H45: =VLOOKUP($C45,'3. Additions, Disposals & Opex'!$C$12:$S$53,H$2,FALSE) -> 1 | I45: =VLOOKUP($C45,'3. Additions, Disposals & Opex'!$C$12:$S$53,I$2,FALSE) -> 1 | J45: =VLOOKUP($C45,'3. Additions, Disposals & Opex'!$C$12:$S$53,J$2,FALSE) -> 1 | K45: =VLOOKUP($C45,'3. Additions, Disposals & Opex'!$C$12:$S$53,K$2,FALSE) -> 1 | L45: =VLOOKUP($C45,'3. Additions, Disposals & Opex'!$C$12:$S$53,L$2,FALSE) -> 1 | M45: =VLOOKUP($C45,'3. Additions, Disposals & Opex'!$C$12:$S$53,M$2,FALSE) -> 1 | N45: =VLOOKUP($C45,'3. Additions, Disposals & Opex'!$C$12:$S$53,N$2,FALSE) -> 1 | O45: =VLOOKUP($C45,'3. Additions, Disposals & Opex'!$C$12:$S$53,O$2,FALSE) -> 1 | P45: =VLOOKUP($C45,'3. Additions, Disposals & Opex'!$C$12:$S$53,P$2,FALSE) -> 1 | Q45: =VLOOKUP($C45,'3. Additions, Disposals & Opex'!$C$12:$S$53,Q$2,FALSE) -> 1 | R45: =VLOOKUP($C45,'3. Additions, Disposals & Opex'!$C$12:$S$53,R$2,FALSE) -> 0 | S45: =VLOOKUP($C45,'3. Additions, Disposals & Opex'!$C$12:$S$53,S$2,FALSE) -> 0 | T45: 10
C46: CO12 | D46: Data Equipment | H46: =VLOOKUP($C46,'3. Additions, Disposals & Opex'!$C$12:$S$53,H$2,FALSE) -> 1 | I46: =VLOOKUP($C46,'3. Additions, Disposals & Opex'!$C$12:$S$53,I$2,FALSE) -> 1 | J46: =VLOOKUP($C46,'3. Additions, Disposals & Opex'!$C$12:$S$53,J$2,FALSE) -> 1 | K46: =VLOOKUP($C46,'3. Additions, Disposals & Opex'!$C$12:$S$53,K$2,FALSE) -> 1 | L46: =VLOOKUP($C46,'3. Additions, Disposals & Opex'!$C$12:$S$53,L$2,FALSE) -> 1 | M46: =VLOOKUP($C46,'3. Additions, Disposals & Opex'!$C$12:$S$53,M$2,FALSE) -> 1 | N46: =VLOOKUP($C46,'3. Additions, Disposals & Opex'!$C$12:$S$53,N$2,FALSE) -> 1 | O46: =VLOOKUP($C46,'3. Additions, Disposals & Opex'!$C$12:$S$53,O$2,FALSE) -> 1 | P46: =VLOOKUP($C46,'3. Additions, Disposals & Opex'!$C$12:$S$53,P$2,FALSE) -> 1 | Q46: =VLOOKUP($C46,'3. Additions, Disposals & Opex'!$C$12:$S$53,Q$2,FALSE) -> 1 | R46: =VLOOKUP($C46,'3. Additions, Disposals & Opex'!$C$12:$S$53,R$2,FALSE) -> 0 | S46: =VLOOKUP($C46,'3. Additions, Disposals & Opex'!$C$12:$S$53,S$2,FALSE) -> 0 | T46: 10
C47: CO13 | D47: Spare Core Asset Class 13 | H47: =VLOOKUP($C47,'3. Additions, Disposals & Opex'!$C$12:$S$53,H$2,FALSE) -> 0 | I47: =VLOOKUP($C47,'3. Additions, Disposals & Opex'!$C$12:$S$53,I$2,FALSE) -> 0 | J47: =VLOOKUP($C47,'3. Additions, Disposals & Opex'!$C$12:$S$53,J$2,FALSE) -> 0 | K47: =VLOOKUP($C47,'3. Additions, Disposals & Opex'!$C$12:$S$53,K$2,FALSE) -> 0 | L47: =VLOOKUP($C47,'3. Additions, Disposals & Opex'!$C$12:$S$53,L$2,FALSE) -> 0 | M47: =VLOOKUP($C47,'3. Additions, Disposals & Opex'!$C$12:$S$53,M$2,FALSE) -> 0 | N47: =VLOOKUP($C47,'3. Additions, Disposals & Opex'!$C$12:$S$53,N$2,FALSE) -> 0 | O47: =VLOOKUP($C47,'3. Additions, Disposals & Opex'!$C$12:$S$53,O$2,FALSE) -> 0 | P47: =VLOOKUP($C47,'3. Additions, Disposals & Opex'!$C$12:$S$53,P$2,FALSE) -> 0 | Q47: =VLOOKUP($C47,'3. Additions, Disposals & Opex'!$C$12:$S$53,Q$2,FALSE) -> 0 | R47: =VLOOKUP($C47,'3. Additions, Disposals & Opex'!$C$12:$S$53,R$2,FALSE) -> 0 | S47: =VLOOKUP($C47,'3. Additions, Disposals & Opex'!$C$12:$S$53,S$2,FALSE) -> 0 | T47: 0
C48: CO14 | D48: Spare Core Asset Class 14 | H48: =VLOOKUP($C48,'3. Additions, Disposals & Opex'!$C$12:$S$53,H$2,FALSE) -> 0 | I48: =VLOOKUP($C48,'3. Additions, Disposals & Opex'!$C$12:$S$53,I$2,FALSE) -> 0 | J48: =VLOOKUP($C48,'3. Additions, Disposals & Opex'!$C$12:$S$53,J$2,FALSE) -> 0 | K48: =VLOOKUP($C48,'3. Additions, Disposals & Opex'!$C$12:$S$53,K$2,FALSE) -> 0 | L48: =VLOOKUP($C48,'3. Additions, Disposals & Opex'!$C$12:$S$53,L$2,FALSE) -> 0 | M48: =VLOOKUP($C48,'3. Additions, Disposals & Opex'!$C$12:$S$53,M$2,FALSE) -> 0 | N48: =VLOOKUP($C48,'3. Additions, Disposals & Opex'!$C$12:$S$53,N$2,FALSE) -> 0 | O48: =VLOOKUP($C48,'3. Additions, Disposals & Opex'!$C$12:$S$53,O$2,FALSE) -> 0 | P48: =VLOOKUP($C48,'3. Additions, Disposals & Opex'!$C$12:$S$53,P$2,FALSE) -> 0 | Q48: =VLOOKUP($C48,'3. Additions, Disposals & Opex'!$C$12:$S$53,Q$2,FALSE) -> 0 | R48: =VLOOKUP($C48,'3. Additions, Disposals & Opex'!$C$12:$S$53,R$2,FALSE) -> 0 | S48: =VLOOKUP($C48,'3. Additions, Disposals & Opex'!$C$12:$S$53,S$2,FALSE) -> 0 | T48: 0
C49: CO15 | D49: Spare Core Asset Class 15 | H49: =VLOOKUP($C49,'3. Additions, Disposals & Opex'!$C$12:$S$53,H$2,FALSE) -> 0 | I49: =VLOOKUP($C49,'3. Additions, Disposals & Opex'!$C$12:$S$53,I$2,FALSE) -> 0 | J49: =VLOOKUP($C49,'3. Additions, Disposals & Opex'!$C$12:$S$53,J$2,FALSE) -> 0 | K49: =VLOOKUP($C49,'3. Additions, Disposals & Opex'!$C$12:$S$53,K$2,FALSE) -> 0 | L49: =VLOOKUP($C49,'3. Additions, Disposals & Opex'!$C$12:$S$53,L$2,FALSE) -> 0 | M49: =VLOOKUP($C49,'3. Additions, Disposals & Opex'!$C$12:$S$53,M$2,FALSE) -> 0 | N49: =VLOOKUP($C49,'3. Additions, Disposals & Opex'!$C$12:$S$53,N$2,FALSE) -> 0 | O49: =VLOOKUP($C49,'3. Additions, Disposals & Opex'!$C$12:$S$53,O$2,FALSE) -> 0 | P49: =VLOOKUP($C49,'3. Additions, Disposals & Opex'!$C$12:$S$53,P$2,FALSE) -> 0 | Q49: =VLOOKUP($C49,'3. Additions, Disposals & Opex'!$C$12:$S$53,Q$2,FALSE) -> 0 | R49: =VLOOKUP($C49,'3. Additions, Disposals & Opex'!$C$12:$S$53,R$2,FALSE) -> 0 | S49: =VLOOKUP($C49,'3. Additions, Disposals & Opex'!$C$12:$S$53,S$2,FALSE) -> 0 | T49: 0
C50: CO16 | D50: Spare Core Asset Class 16 | H50: =VLOOKUP($C50,'3. Additions, Disposals & Opex'!$C$12:$S$53,H$2,FALSE) -> 0 | I50: =VLOOKUP($C50,'3. Additions, Disposals & Opex'!$C$12:$S$53,I$2,FALSE) -> 0 | J50: =VLOOKUP($C50,'3. Additions, Disposals & Opex'!$C$12:$S$53,J$2,FALSE) -> 0 | K50: =VLOOKUP($C50,'3. Additions, Disposals & Opex'!$C$12:$S$53,K$2,FALSE) -> 0 | L50: =VLOOKUP($C50,'3. Additions, Disposals & Opex'!$C$12:$S$53,L$2,FALSE) -> 0 | M50: =VLOOKUP($C50,'3. Additions, Disposals & Opex'!$C$12:$S$53,M$2,FALSE) -> 0 | N50: =VLOOKUP($C50,'3. Additions, Disposals & Opex'!$C$12:$S$53,N$2,FALSE) -> 0 | O50: =VLOOKUP($C50,'3. Additions, Disposals & Opex'!$C$12:$S$53,O$2,FALSE) -> 0 | P50: =VLOOKUP($C50,'3. Additions, Disposals & Opex'!$C$12:$S$53,P$2,FALSE) -> 0 | Q50: =VLOOKUP($C50,'3. Additions, Disposals & Opex'!$C$12:$S$53,Q$2,FALSE) -> 0 | R50: =VLOOKUP($C50,'3. Additions, Disposals & Opex'!$C$12:$S$53,R$2,FALSE) -> 0 | S50: =VLOOKUP($C50,'3. Additions, Disposals & Opex'!$C$12:$S$53,S$2,FALSE) -> 0 | T50: 0
C51: CO17 | D51: Spare Core Asset Class 17 | H51: =VLOOKUP($C51,'3. Additions, Disposals & Opex'!$C$12:$S$53,H$2,FALSE) -> 0 | I51: =VLOOKUP($C51,'3. Additions, Disposals & Opex'!$C$12:$S$53,I$2,FALSE) -> 0 | J51: =VLOOKUP($C51,'3. Additions, Disposals & Opex'!$C$12:$S$53,J$2,FALSE) -> 0 | K51: =VLOOKUP($C51,'3. Additions, Disposals & Opex'!$C$12:$S$53,K$2,FALSE) -> 0 | L51: =VLOOKUP($C51,'3. Additions, Disposals & Opex'!$C$12:$S$53,L$2,FALSE) -> 0 | M51: =VLOOKUP($C51,'3. Additions, Disposals & Opex'!$C$12:$S$53,M$2,FALSE) -> 0 | N51: =VLOOKUP($C51,'3. Additions, Disposals & Opex'!$C$12:$S$53,N$2,FALSE) -> 0 | O51: =VLOOKUP($C51,'3. Additions, Disposals & Opex'!$C$12:$S$53,O$2,FALSE) -> 0 | P51: =VLOOKUP($C51,'3. Additions, Disposals & Opex'!$C$12:$S$53,P$2,FALSE) -> 0 | Q51: =VLOOKUP($C51,'3. Additions, Disposals & Opex'!$C$12:$S$53,Q$2,FALSE) -> 0 | R51: =VLOOKUP($C51,'3. Additions, Disposals & Opex'!$C$12:$S$53,R$2,FALSE) -> 0 | S51: =VLOOKUP($C51,'3. Additions, Disposals & Opex'!$C$12:$S$53,S$2,FALSE) -> 0 | T51: 0
C52: CO18 | D52: Spare Core Asset Class 18 | H52: =VLOOKUP($C52,'3. Additions, Disposals & Opex'!$C$12:$S$53,H$2,FALSE) -> 0 | I52: =VLOOKUP($C52,'3. Additions, Disposals & Opex'!$C$12:$S$53,I$2,FALSE) -> 0 | J52: =VLOOKUP($C52,'3. Additions, Disposals & Opex'!$C$12:$S$53,J$2,FALSE) -> 0 | K52: =VLOOKUP($C52,'3. Additions, Disposals & Opex'!$C$12:$S$53,K$2,FALSE) -> 0 | L52: =VLOOKUP($C52,'3. Additions, Disposals & Opex'!$C$12:$S$53,L$2,FALSE) -> 0 | M52: =VLOOKUP($C52,'3. Additions, Disposals & Opex'!$C$12:$S$53,M$2,FALSE) -> 0 | N52: =VLOOKUP($C52,'3. Additions, Disposals & Opex'!$C$12:$S$53,N$2,FALSE) -> 0 | O52: =VLOOKUP($C52,'3. Additions, Disposals & Opex'!$C$12:$S$53,O$2,FALSE) -> 0 | P52: =VLOOKUP($C52,'3. Additions, Disposals & Opex'!$C$12:$S$53,P$2,FALSE) -> 0 | Q52: =VLOOKUP($C52,'3. Additions, Disposals & Opex'!$C$12:$S$53,Q$2,FALSE) -> 0 | R52: =VLOOKUP($C52,'3. Additions, Disposals & Opex'!$C$12:$S$53,R$2,FALSE) -> 0 | S52: =VLOOKUP($C52,'3. Additions, Disposals & Opex'!$C$12:$S$53,S$2,FALSE) -> 0 | T52: 0
C53: CO19 | D53: Spare Core Asset Class 19 | H53: =VLOOKUP($C53,'3. Additions, Disposals & Opex'!$C$12:$S$53,H$2,FALSE) -> 0 | I53: =VLOOKUP($C53,'3. Additions, Disposals & Opex'!$C$12:$S$53,I$2,FALSE) -> 0 | J53: =VLOOKUP($C53,'3. Additions, Disposals & Opex'!$C$12:$S$53,J$2,FALSE) -> 0 | K53: =VLOOKUP($C53,'3. Additions, Disposals & Opex'!$C$12:$S$53,K$2,FALSE) -> 0 | L53: =VLOOKUP($C53,'3. Additions, Disposals & Opex'!$C$12:$S$53,L$2,FALSE) -> 0 | M53: =VLOOKUP($C53,'3. Additions, Disposals & Opex'!$C$12:$S$53,M$2,FALSE) -> 0 | N53: =VLOOKUP($C53,'3. Additions, Disposals & Opex'!$C$12:$S$53,N$2,FALSE) -> 0 | O53: =VLOOKUP($C53,'3. Additions, Disposals & Opex'!$C$12:$S$53,O$2,FALSE) -> 0 | P53: =VLOOKUP($C53,'3. Additions, Disposals & Opex'!$C$12:$S$53,P$2,FALSE) -> 0 | Q53: =VLOOKUP($C53,'3. Additions, Disposals & Opex'!$C$12:$S$53,Q$2,FALSE) -> 0 | R53: =VLOOKUP($C53,'3. Additions, Disposals & Opex'!$C$12:$S$53,R$2,FALSE) -> 0 | S53: =VLOOKUP($C53,'3. Additions, Disposals & Opex'!$C$12:$S$53,S$2,FALSE) -> 0 | T53: 0
C54: CO20 | D54: Spare Core Asset Class 20 | H54: =VLOOKUP($C54,'3. Additions, Disposals & Opex'!$C$12:$S$53,H$2,FALSE) -> 0 | I54: =VLOOKUP($C54,'3. Additions, Disposals & Opex'!$C$12:$S$53,I$2,FALSE) -> 0 | J54: =VLOOKUP($C54,'3. Additions, Disposals & Opex'!$C$12:$S$53,J$2,FALSE) -> 0 | K54: =VLOOKUP($C54,'3. Additions, Disposals & Opex'!$C$12:$S$53,K$2,FALSE) -> 0 | L54: =VLOOKUP($C54,'3. Additions, Disposals & Opex'!$C$12:$S$53,L$2,FALSE) -> 0 | M54: =VLOOKUP($C54,'3. Additions, Disposals & Opex'!$C$12:$S$53,M$2,FALSE) -> 0 | N54: =VLOOKUP($C54,'3. Additions, Disposals & Opex'!$C$12:$S$53,N$2,FALSE) -> 0 | O54: =VLOOKUP($C54,'3. Additions, Disposals & Opex'!$C$12:$S$53,O$2,FALSE) -> 0 | P54: =VLOOKUP($C54,'3. Additions, Disposals & Opex'!$C$12:$S$53,P$2,FALSE) -> 0 | Q54: =VLOOKUP($C54,'3. Additions, Disposals & Opex'!$C$12:$S$53,Q$2,FALSE) -> 0 | R54: =VLOOKUP($C54,'3. Additions, Disposals & Opex'!$C$12:$S$53,R$2,FALSE) -> 0 | S54: =VLOOKUP($C54,'3. Additions, Disposals & Opex'!$C$12:$S$53,S$2,FALSE) -> 0 | T54: 0
D55: Total | H55: =SUM(H35:H54) -> 3.3 | I55: =SUM(I35:I54) -> 3.3 | J55: 3.3 | K55: 3.3 | L55: 3.3 | M55: 12 | N55: 12 | O55: 12 | P55: 12 | Q55: 12 | R55: 0 | S55: 0 | T55: 76.5
B58: C.1.2 | C58: Return on capital
H59: Y01 | I59: Y02 | J59: Y03 | K59: Y04 | L59: Y05 | M59: Y06 | N59: Y07 | O59: Y08 | P59: Y09 | Q59: Y10 | R59: Y11 | S59: Y12
C60: Code | D60: Asset Class | H60: =VLOOKUP(H59,FYears,2,FALSE) -> 2009/2010 | I60: 2010/2011 | J60: 2011/2012 | K60: 2012/2013 | L60: 2013/2014 | M60: 2014/2015 | N60: 2015/2016 | O60: 2016/2017 | P60: 2017/2018 | Q60: 2018/2019 | R60: 2019/2020 | S60: 2020/2021 | T60: Total
C61: CAN Asset Class
C62: CA01 | D62: =VLOOKUP(C62,CAN_AC,2,FALSE) -> Ducts and pipes | H62: =VLOOKUP($C62,'8. RAB Roll-Forward'!$C$212:$S$255,H$2,FALSE)*WACC -> 0.05841318677 | I62: =VLOOKUP($C62,'8. RAB Roll-Forward'!$C$212:$S$255,I$2,FALSE)*WACC -> 0.06021156972 | J62: =VLOOKUP($C62,'8. RAB Roll-Forward'!$C$212:$S$255,J$2,FALSE)*WACC -> 0.1187028089 | K62: =VLOOKUP($C62,'8. RAB Roll-Forward'!$C$212:$S$255,K$2,FALSE)*WACC -> 0.1753571729 | L62: =VLOOKUP($C62,'8. RAB Roll-Forward'!$C$212:$S$255,L$2,FALSE)*WACC -> 0.2302945362 | M62: =VLOOKUP($C62,'8. RAB Roll-Forward'!$C$212:$S$255,M$2,FALSE)*WACC_FY1519 -> 0.1657884496 | N62: =VLOOKUP($C62,'8. RAB Roll-Forward'!$C$212:$S$255,N$2,FALSE)*WACC_FY1519 -> 0.1949221325 | O62: =VLOOKUP($C62,'8. RAB Roll-Forward'!$C$212:$S$255,O$2,FALSE)*WACC_FY1519 -> 0.2230798795 | P62: =VLOOKUP($C62,'8. RAB Roll-Forward'!$C$212:$S$255,P$2,FALSE)*WACC_FY1519 -> 0.2502616908 | Q62: =VLOOKUP($C62,'8. RAB Roll-Forward'!$C$212:$S$255,Q$2,FALSE)*WACC_FY1519 -> 0.2764675663 | R62: =VLOOKUP($C62,'8. RAB Roll-Forward'!$C$212:$S$255,R$2,FALSE)*WACC -> 0.5159330343 | S62: =VLOOKUP($C62,'8. RAB Roll-Forward'!$C$212:$S$255,S$2,FALSE)*WACC -> 0.49899663 | T62: =SUM(OFFSET($H62,0,0,1,Model_period)) -> 1.753498993
C63: CA02 | D63: Copper cables | H63: =VLOOKUP($C63,'8. RAB Roll-Forward'!$C$212:$S$255,H$2,FALSE)*WACC -> 0.05841318677 | I63: =VLOOKUP($C63,'8. RAB Roll-Forward'!$C$212:$S$255,I$2,FALSE)*WACC -> 0.06021156972 | J63: =VLOOKUP($C63,'8. RAB Roll-Forward'!$C$212:$S$255,J$2,FALSE)*WACC -> 0.117412561 | K63: =VLOOKUP($C63,'8. RAB Roll-Forward'!$C$212:$S$255,K$2,FALSE)*WACC -> 0.1714864291 | L63: =VLOOKUP($C63,'8. RAB Roll-Forward'!$C$212:$S$255,L$2,FALSE)*WACC -> 0.222555546 | M63: =VLOOKUP($C63,'8. RAB Roll-Forward'!$C$212:$S$255,M$2,FALSE)*WACC_FY1519 -> 0.1582479644 | N63: =VLOOKUP($C63,'8. RAB Roll-Forward'!$C$212:$S$255,N$2,FALSE)*WACC_FY1519 -> 0.1821190367 | O63: =VLOOKUP($C63,'8. RAB Roll-Forward'!$C$212:$S$255,O$2,FALSE)*WACC_FY1519 -> 0.2041311366 | P63: =VLOOKUP($C63,'8. RAB Roll-Forward'!$C$212:$S$255,P$2,FALSE)*WACC_FY1519 -> 0.224334713 | Q63: =VLOOKUP($C63,'8. RAB Roll-Forward'!$C$212:$S$255,Q$2,FALSE)*WACC_FY1519 -> 0.242764106 | R63: =VLOOKUP($C63,'8. RAB Roll-Forward'!$C$212:$S$255,R$2,FALSE)*WACC -> 0.4436915005 | S63: =VLOOKUP($C63,'8. RAB Roll-Forward'!$C$212:$S$255,S$2,FALSE)*WACC -> 0.415056057 | T63: 1.641676249
C64: CA03 | D64: Other cables | H64: =VLOOKUP($C64,'8. RAB Roll-Forward'!$C$212:$S$255,H$2,FALSE)*WACC -> 0.05841318677 | I64: =VLOOKUP($C64,'8. RAB Roll-Forward'!$C$212:$S$255,I$2,FALSE)*WACC -> 0.06021156972 | J64: =VLOOKUP($C64,'8. RAB Roll-Forward'!$C$212:$S$255,J$2,FALSE)*WACC -> 0.117412561 | K64: =VLOOKUP($C64,'8. RAB Roll-Forward'!$C$212:$S$255,K$2,FALSE)*WACC -> 0.1714864291 | L64: =VLOOKUP($C64,'8. RAB Roll-Forward'!$C$212:$S$255,L$2,FALSE)*WACC -> 0.222555546 | M64: =VLOOKUP($C64,'8. RAB Roll-Forward'!$C$212:$S$255,M$2,FALSE)*WACC_FY1519 -> 0.1582479644 | N64: =VLOOKUP($C64,'8. RAB Roll-Forward'!$C$212:$S$255,N$2,FALSE)*WACC_FY1519 -> 0.1821190367 | O64: =VLOOKUP($C64,'8. RAB Roll-Forward'!$C$212:$S$255,O$2,FALSE)*WACC_FY1519 -> 0.2041311366 | P64: =VLOOKUP($C64,'8. RAB Roll-Forward'!$C$212:$S$255,P$2,FALSE)*WACC_FY1519 -> 0.224334713 | Q64: =VLOOKUP($C64,'8. RAB Roll-Forward'!$C$212:$S$255,Q$2,FALSE)*WACC_FY1519 -> 0.242764106 | R64: =VLOOKUP($C64,'8. RAB Roll-Forward'!$C$212:$S$255,R$2,FALSE)*WACC -> 0.4436915005 | S64: =VLOOKUP($C64,'8. RAB Roll-Forward'!$C$212:$S$255,S$2,FALSE)*WACC -> 0.4147939023 | T64: 1.641676249
C65: CA04 | D65: Pair gain systems | H65: =VLOOKUP($C65,'8. RAB Roll-Forward'!$C$212:$S$255,H$2,FALSE)*WACC -> 0.05841318677 | I65: =VLOOKUP($C65,'8. RAB Roll-Forward'!$C$212:$S$255,I$2,FALSE)*WACC -> 0.06021156972 | J65: =VLOOKUP($C65,'8. RAB Roll-Forward'!$C$212:$S$255,J$2,FALSE)*WACC -> 0.1154055086 | K65: =VLOOKUP($C65,'8. RAB Roll-Forward'!$C$212:$S$255,K$2,FALSE)*WACC -> 0.1654652722 | L65: =VLOOKUP($C65,'8. RAB Roll-Forward'!$C$212:$S$255,L$2,FALSE)*WACC -> 0.2105171169 | M65: =VLOOKUP($C65,'8. RAB Roll-Forward'!$C$212:$S$255,M$2,FALSE)*WACC_FY1519 -> 2.079213274 | N65: =VLOOKUP($C65,'8. RAB Roll-Forward'!$C$212:$S$255,N$2,FALSE)*WACC_FY1519 -> 0.1647038892 | O65: =VLOOKUP($C65,'8. RAB Roll-Forward'!$C$212:$S$255,O$2,FALSE)*WACC_FY1519 -> 0.1800113819 | P65: =VLOOKUP($C65,'8. RAB Roll-Forward'!$C$212:$S$255,P$2,FALSE)*WACC_FY1519 -> 0.1925213541 | Q65: =VLOOKUP($C65,'8. RAB Roll-Forward'!$C$212:$S$255,Q$2,FALSE)*WACC_FY1519 -> 0.202292928 | R65: =VLOOKUP($C65,'8. RAB Roll-Forward'!$C$212:$S$255,R$2,FALSE)*WACC -> 0.358075936 | S65: =VLOOKUP($C65,'8. RAB Roll-Forward'!$C$212:$S$255,S$2,FALSE)*WACC -> 0.3099598569 | T65: 3.428755482
C66: CA05 | D66: CAN Radio Bearer Equipment | H66: =VLOOKUP($C66,'8. RAB Roll-Forward'!$C$212:$S$255,H$2,FALSE)*WACC -> 0.05841318677 | I66: =VLOOKUP($C66,'8. RAB Roll-Forward'!$C$212:$S$255,I$2,FALSE)*WACC -> 0.06021156972 | J66: =VLOOKUP($C66,'8. RAB Roll-Forward'!$C$212:$S$255,J$2,FALSE)*WACC -> 0.1154055086 | K66: =VLOOKUP($C66,'8. RAB Roll-Forward'!$C$212:$S$255,K$2,FALSE)*WACC -> 0.1654652722 | L66: =VLOOKUP($C66,'8. RAB Roll-Forward'!$C$212:$S$255,L$2,FALSE)*WACC -> 0.2105171169 | M66: =VLOOKUP($C66,'8. RAB Roll-Forward'!$C$212:$S$255,M$2,FALSE)*WACC_FY1519 -> 0.1465183206 | N66: =VLOOKUP($C66,'8. RAB Roll-Forward'!$C$212:$S$255,N$2,FALSE)*WACC_FY1519 -> 0.1647038892 | O66: =VLOOKUP($C66,'8. RAB Roll-Forward'!$C$212:$S$255,O$2,FALSE)*WACC_FY1519 -> 0.1800113819 | P66: =VLOOKUP($C66,'8. RAB Roll-Forward'!$C$212:$S$255,P$2,FALSE)*WACC_FY1519 -> 0.1925213541 | Q66: =VLOOKUP($C66,'8. RAB Roll-Forward'!$C$212:$S$255,Q$2,FALSE)*WACC_FY1519 -> 0.202292928 | R66: =VLOOKUP($C66,'8. RAB Roll-Forward'!$C$212:$S$255,R$2,FALSE)*WACC -> 0.358075936 | S66: =VLOOKUP($C66,'8. RAB Roll-Forward'!$C$212:$S$255,S$2,FALSE)*WACC -> 0.3099598569 | T66: 1.496060528
C67: CA06 | D67: Other CAN assets | H67: =VLOOKUP($C67,'8. RAB Roll-Forward'!$C$212:$S$255,H$2,FALSE)*WACC -> 0.05841318677 | I67: =VLOOKUP($C67,'8. RAB Roll-Forward'!$C$212:$S$255,I$2,FALSE)*WACC -> 0.06021156972 | J67: =VLOOKUP($C67,'8. RAB Roll-Forward'!$C$212:$S$255,J$2,FALSE)*WACC -> 0.1154055086 | K67: =VLOOKUP($C67,'8. RAB Roll-Forward'!$C$212:$S$255,K$2,FALSE)*WACC -> 0.1654652722 | L67: =VLOOKUP($C67,'8. RAB Roll-Forward'!$C$212:$S$255,L$2,FALSE)*WACC -> 0.2105171169 | M67: =VLOOKUP($C67,'8. RAB Roll-Forward'!$C$212:$S$255,M$2,FALSE)*WACC_FY1519 -> 0.1465183206 | N67: =VLOOKUP($C67,'8. RAB Roll-Forward'!$C$212:$S$255,N$2,FALSE)*WACC_FY1519 -> 0.1647038892 | O67: =VLOOKUP($C67,'8. RAB Roll-Forward'!$C$212:$S$255,O$2,FALSE)*WACC_FY1519 -> 0.1493990502 | P67: =VLOOKUP($C67,'8. RAB Roll-Forward'!$C$212:$S$255,P$2,FALSE)*WACC_FY1519 -> 0.1343866257 | Q67: =VLOOKUP($C67,'8. RAB Roll-Forward'!$C$212:$S$255,Q$2,FALSE)*WACC_FY1519 -> 0.11961238 | R67: =VLOOKUP($C67,'8. RAB Roll-Forward'!$C$212:$S$255,R$2,FALSE)*WACC -> 0.1796250351 | S67: =VLOOKUP($C67,'8. RAB Roll-Forward'!$C$212:$S$255,S$2,FALSE)*WACC -> 0.09685589913 | T67: 1.32463292
C68: CA07 | D68: Other Communications Plant and Equipment | H68: =VLOOKUP($C68,'8. RAB Roll-Forward'!$C$212:$S$255,H$2,FALSE)*WACC -> 0.05841318677 | I68: =VLOOKUP($C68,'8. RAB Roll-Forward'!$C$212:$S$255,I$2,FALSE)*WACC -> 0.06021156972 | J68: =VLOOKUP($C68,'8. RAB Roll-Forward'!$C$212:$S$255,J$2,FALSE)*WACC -> 0.06021156972 | K68: =VLOOKUP($C68,'8. RAB Roll-Forward'!$C$212:$S$255,K$2,FALSE)*WACC -> 0.06009502514 | L68: =VLOOKUP($C68,'8. RAB Roll-Forward'!$C$212:$S$255,L$2,FALSE)*WACC -> 0.06009502514 | M68: =VLOOKUP($C68,'8. RAB Roll-Forward'!$C$212:$S$255,M$2,FALSE)*WACC_FY1519 -> 0.03514122571 | N68: =VLOOKUP($C68,'8. RAB Roll-Forward'!$C$212:$S$255,N$2,FALSE)*WACC_FY1519 -> 0.03415775226 | O68: =VLOOKUP($C68,'8. RAB Roll-Forward'!$C$212:$S$255,O$2,FALSE)*WACC_FY1519 -> 0.03415775226 | P68: =VLOOKUP($C68,'8. RAB Roll-Forward'!$C$212:$S$255,P$2,FALSE)*WACC_FY1519 -> 0.03415775226 | Q68: =VLOOKUP($C68,'8. RAB Roll-Forward'!$C$212:$S$255,Q$2,FALSE)*WACC_FY1519 -> 0.03415775226 | R68: =VLOOKUP($C68,'8. RAB Roll-Forward'!$C$212:$S$255,R$2,FALSE)*WACC -> 0.05841318677 | S68: =VLOOKUP($C68,'8. RAB Roll-Forward'!$C$212:$S$255,S$2,FALSE)*WACC -> 0 | T68: 0.4707986112
C69: CA08 | D69: Network Land | H69: =VLOOKUP($C69,'8. RAB Roll-Forward'!$C$212:$S$255,H$2,FALSE)*WACC -> 0.05841318677 | I69: =VLOOKUP($C69,'8. RAB Roll-Forward'!$C$212:$S$255,I$2,FALSE)*WACC -> 0.1201059653 | J69: =VLOOKUP($C69,'8. RAB Roll-Forward'!$C$212:$S$255,J$2,FALSE)*WACC -> 0.1818304342 | K69: =VLOOKUP($C69,'8. RAB Roll-Forward'!$C$212:$S$255,K$2,FALSE)*WACC -> 0.243471009 | L69: =VLOOKUP($C69,'8. RAB Roll-Forward'!$C$212:$S$255,L$2,FALSE)*WACC -> 0.3051452306 | M69: =VLOOKUP($C69,'8. RAB Roll-Forward'!$C$212:$S$255,M$2,FALSE)*WACC_FY1519 -> 0.2145219676 | N69: =VLOOKUP($C69,'8. RAB Roll-Forward'!$C$212:$S$255,N$2,FALSE)*WACC_FY1519 -> 0.2496265026 | O69: =VLOOKUP($C69,'8. RAB Roll-Forward'!$C$212:$S$255,O$2,FALSE)*WACC_FY1519 -> 0.284751731 | P69: =VLOOKUP($C69,'8. RAB Roll-Forward'!$C$212:$S$255,P$2,FALSE)*WACC_FY1519 -> 0.3198982555 | Q69: =VLOOKUP($C69,'8. RAB Roll-Forward'!$C$212:$S$255,Q$2,FALSE)*WACC_FY1519 -> 0.355066694 | R69: =VLOOKUP($C69,'8. RAB Roll-Forward'!$C$212:$S$255,R$2,FALSE)*WACC -> 0.6673798252 | S69: =VLOOKUP($C69,'8. RAB Roll-Forward'!$C$212:$S$255,S$2,FALSE)*WACC -> 0.6673147064 | T69: 2.332830977
C70: CA09 | D70: Network Buildings/Support | H70: =VLOOKUP($C70,'8. RAB Roll-Forward'!$C$212:$S$255,H$2,FALSE)*WACC -> 0.05841318677 | I70: =VLOOKUP($C70,'8. RAB Roll-Forward'!$C$212:$S$255,I$2,FALSE)*WACC -> 0.06021156972 | J70: =VLOOKUP($C70,'8. RAB Roll-Forward'!$C$212:$S$255,J$2,FALSE)*WACC -> 0.06021156972 | K70: =VLOOKUP($C70,'8. RAB Roll-Forward'!$C$212:$S$255,K$2,FALSE)*WACC -> 0.06009502514 | L70: =VLOOKUP($C70,'8. RAB Roll-Forward'!$C$212:$S$255,L$2,FALSE)*WACC -> 0.06009502514 | M70: =VLOOKUP($C70,'8. RAB Roll-Forward'!$C$212:$S$255,M$2,FALSE)*WACC_FY1519 -> 0.03514122571 | N70: =VLOOKUP($C70,'8. RAB Roll-Forward'!$C$212:$S$255,N$2,FALSE)*WACC_FY1519 -> 0.03415775226 | O70: =VLOOKUP($C70,'8. RAB Roll-Forward'!$C$212:$S$255,O$2,FALSE)*WACC_FY1519 -> 0.03415775226 | P70: =VLOOKUP($C70,'8. RAB Roll-Forward'!$C$212:$S$255,P$2,FALSE)*WACC_FY1519 -> 0.03415775226 | Q70: =VLOOKUP($C70,'8. RAB Roll-Forward'!$C$212:$S$255,Q$2,FALSE)*WACC_FY1519 -> 0.03415775226 | R70: =VLOOKUP($C70,'8. RAB Roll-Forward'!$C$212:$S$255,R$2,FALSE)*WACC -> 0.05841318677 | S70: =VLOOKUP($C70,'8. RAB Roll-Forward'!$C$212:$S$255,S$2,FALSE)*WACC -> 0 | T70: 0.4707986112
C71: CA10 | D71: Indirect Capital Assets | H71: =VLOOKUP($C71,'8. RAB Roll-Forward'!$C$212:$S$255,H$2,FALSE)*WACC -> 0.05841318677 | I71: =VLOOKUP($C71,'8. RAB Roll-Forward'!$C$212:$S$255,I$2,FALSE)*WACC -> 0.1069421191 | J71: =VLOOKUP($C71,'8. RAB Roll-Forward'!$C$212:$S$255,J$2,FALSE)*WACC -> 0.1494498945 | K71: =VLOOKUP($C71,'8. RAB Roll-Forward'!$C$212:$S$255,K$2,FALSE)*WACC -> 0.1858199684 | L71: =VLOOKUP($C71,'8. RAB Roll-Forward'!$C$212:$S$255,L$2,FALSE)*WACC -> 0.2161805397 | M71: =VLOOKUP($C71,'8. RAB Roll-Forward'!$C$212:$S$255,M$2,FALSE)*WACC_FY1519 -> 0.1406534988 | N71: =VLOOKUP($C71,'8. RAB Roll-Forward'!$C$212:$S$255,N$2,FALSE)*WACC_FY1519 -> 0.157227008 | O71: =VLOOKUP($C71,'8. RAB Roll-Forward'!$C$212:$S$255,O$2,FALSE)*WACC_FY1519 -> 0.139642765 | P71: =VLOOKUP($C71,'8. RAB Roll-Forward'!$C$212:$S$255,P$2,FALSE)*WACC_FY1519 -> 0.122058522 | Q71: =VLOOKUP($C71,'8. RAB Roll-Forward'!$C$212:$S$255,Q$2,FALSE)*WACC_FY1519 -> 0.104474279 | R71: =VLOOKUP($C71,'8. RAB Roll-Forward'!$C$212:$S$255,R$2,FALSE)*WACC -> 0.1485906879 | S71: =VLOOKUP($C71,'8. RAB Roll-Forward'!$C$212:$S$255,S$2,FALSE)*WACC -> 0.0601066796 | T71: 1.380861781
C72: CA11 | D72: Spare CAN Asset Class 11 | H72: =VLOOKUP($C72,'8. RAB Roll-Forward'!$C$212:$S$255,H$2,FALSE)*WACC -> 0 | I72: =VLOOKUP($C72,'8. RAB Roll-Forward'!$C$212:$S$255,I$2,FALSE)*WACC -> 0 | J72: =VLOOKUP($C72,'8. RAB Roll-Forward'!$C$212:$S$255,J$2,FALSE)*WACC -> 0 | K72: =VLOOKUP($C72,'8. RAB Roll-Forward'!$C$212:$S$255,K$2,FALSE)*WACC -> 0 | L72: =VLOOKUP($C72,'8. RAB Roll-Forward'!$C$212:$S$255,L$2,FALSE)*WACC -> 0 | M72: =VLOOKUP($C72,'8. RAB Roll-Forward'!$C$212:$S$255,M$2,FALSE)*WACC_FY1519 -> 0 | N72: =VLOOKUP($C72,'8. RAB Roll-Forward'!$C$212:$S$255,N$2,FALSE)*WACC_FY1519 -> 0 | O72: =VLOOKUP($C72,'8. RAB Roll-Forward'!$C$212:$S$255,O$2,FALSE)*WACC_FY1519 -> 0 | P72: =VLOOKUP($C72,'8. RAB Roll-Forward'!$C$212:$S$255,P$2,FALSE)*WACC_FY1519 -> 0 | Q72: =VLOOKUP($C72,'8. RAB Roll-Forward'!$C$212:$S$255,Q$2,FALSE)*WACC_FY1519 -> 0 | R72: =VLOOKUP($C72,'8. RAB Roll-Forward'!$C$212:$S$255,R$2,FALSE)*WACC -> 0 | S72: =VLOOKUP($C72,'8. RAB Roll-Forward'!$C$212:$S$255,S$2,FALSE)*WACC -> 0 | T72: 0
C73: CA12 | D73: Spare CAN Asset Class 12 | H73: =VLOOKUP($C73,'8. RAB Roll-Forward'!$C$212:$S$255,H$2,FALSE)*WACC -> 0 | I73: =VLOOKUP($C73,'8. RAB Roll-Forward'!$C$212:$S$255,I$2,FALSE)*WACC -> 0 | J73: =VLOOKUP($C73,'8. RAB Roll-Forward'!$C$212:$S$255,J$2,FALSE)*WACC -> 0 | K73: =VLOOKUP($C73,'8. RAB Roll-Forward'!$C$212:$S$255,K$2,FALSE)*WACC -> 0 | L73: =VLOOKUP($C73,'8. RAB Roll-Forward'!$C$212:$S$255,L$2,FALSE)*WACC -> 0 | M73: =VLOOKUP($C73,'8. RAB Roll-Forward'!$C$212:$S$255,M$2,FALSE)*WACC_FY1519 -> 0 | N73: =VLOOKUP($C73,'8. RAB Roll-Forward'!$C$212:$S$255,N$2,FALSE)*WACC_FY1519 -> 0 | O73: =VLOOKUP($C73,'8. RAB Roll-Forward'!$C$212:$S$255,O$2,FALSE)*WACC_FY1519 -> 0 | P73: =VLOOKUP($C73,'8. RAB Roll-Forward'!$C$212:$S$255,P$2,FALSE)*WACC_FY1519 -> 0 | Q73: =VLOOKUP($C73,'8. RAB Roll-Forward'!$C$212:$S$255,Q$2,FALSE)*WACC_FY1519 -> 0 | R73: =VLOOKUP($C73,'8. RAB Roll-Forward'!$C$212:$S$255,R$2,FALSE)*WACC -> 0 | S73: =VLOOKUP($C73,'8. RAB Roll-Forward'!$C$212:$S$255,S$2,FALSE)*WACC -> 0 | T73: 0
C74: CA13 | D74: Spare CAN Asset Class 13 | H74: =VLOOKUP($C74,'8. RAB Roll-Forward'!$C$212:$S$255,H$2,FALSE)*WACC -> 0 | I74: =VLOOKUP($C74,'8. RAB Roll-Forward'!$C$212:$S$255,I$2,FALSE)*WACC -> 0 | J74: =VLOOKUP($C74,'8. RAB Roll-Forward'!$C$212:$S$255,J$2,FALSE)*WACC -> 0 | K74: =VLOOKUP($C74,'8. RAB Roll-Forward'!$C$212:$S$255,K$2,FALSE)*WACC -> 0 | L74: =VLOOKUP($C74,'8. RAB Roll-Forward'!$C$212:$S$255,L$2,FALSE)*WACC -> 0 | M74: =VLOOKUP($C74,'8. RAB Roll-Forward'!$C$212:$S$255,M$2,FALSE)*WACC_FY1519 -> 0 | N74: =VLOOKUP($C74,'8. RAB Roll-Forward'!$C$212:$S$255,N$2,FALSE)*WACC_FY1519 -> 0 | O74: =VLOOKUP($C74,'8. RAB Roll-Forward'!$C$212:$S$255,O$2,FALSE)*WACC_FY1519 -> 0 | P74: =VLOOKUP($C74,'8. RAB Roll-Forward'!$C$212:$S$255,P$2,FALSE)*WACC_FY1519 -> 0 | Q74: =VLOOKUP($C74,'8. RAB Roll-Forward'!$C$212:$S$255,Q$2,FALSE)*WACC_FY1519 -> 0 | R74: =VLOOKUP($C74,'8. RAB Roll-Forward'!$C$212:$S$255,R$2,FALSE)*WACC -> 0 | S74: =VLOOKUP($C74,'8. RAB Roll-Forward'!$C$212:$S$255,S$2,FALSE)*WACC -> 0 | T74: 0
C75: CA14 | D75: Spare CAN Asset Class 14 | H75: =VLOOKUP($C75,'8. RAB Roll-Forward'!$C$212:$S$255,H$2,FALSE)*WACC -> 0 | I75: =VLOOKUP($C75,'8. RAB Roll-Forward'!$C$212:$S$255,I$2,FALSE)*WACC -> 0 | J75: =VLOOKUP($C75,'8. RAB Roll-Forward'!$C$212:$S$255,J$2,FALSE)*WACC -> 0 | K75: =VLOOKUP($C75,'8. RAB Roll-Forward'!$C$212:$S$255,K$2,FALSE)*WACC -> 0 | L75: =VLOOKUP($C75,'8. RAB Roll-Forward'!$C$212:$S$255,L$2,FALSE)*WACC -> 0 | M75: =VLOOKUP($C75,'8. RAB Roll-Forward'!$C$212:$S$255,M$2,FALSE)*WACC_FY1519 -> 0 | N75: =VLOOKUP($C75,'8. RAB Roll-Forward'!$C$212:$S$255,N$2,FALSE)*WACC_FY1519 -> 0 | O75: =VLOOKUP($C75,'8. RAB Roll-Forward'!$C$212:$S$255,O$2,FALSE)*WACC_FY1519 -> 0 | P75: =VLOOKUP($C75,'8. RAB Roll-Forward'!$C$212:$S$255,P$2,FALSE)*WACC_FY1519 -> 0 | Q75: =VLOOKUP($C75,'8. RAB Roll-Forward'!$C$212:$S$255,Q$2,FALSE)*WACC_FY1519 -> 0 | R75: =VLOOKUP($C75,'8. RAB Roll-Forward'!$C$212:$S$255,R$2,FALSE)*WACC -> 0 | S75: =VLOOKUP($C75,'8. RAB Roll-Forward'!$C$212:$S$255,S$2,FALSE)*WACC -> 0 | T75: 0
C76: CA15 | D76: Spare CAN Asset Class 15 | H76: =VLOOKUP($C76,'8. RAB Roll-Forward'!$C$212:$S$255,H$2,FALSE)*WACC -> 0 | I76: =VLOOKUP($C76,'8. RAB Roll-Forward'!$C$212:$S$255,I$2,FALSE)*WACC -> 0 | J76: =VLOOKUP($C76,'8. RAB Roll-Forward'!$C$212:$S$255,J$2,FALSE)*WACC -> 0 | K76: =VLOOKUP($C76,'8. RAB Roll-Forward'!$C$212:$S$255,K$2,FALSE)*WACC -> 0 | L76: =VLOOKUP($C76,'8. RAB Roll-Forward'!$C$212:$S$255,L$2,FALSE)*WACC -> 0 | M76: =VLOOKUP($C76,'8. RAB Roll-Forward'!$C$212:$S$255,M$2,FALSE)*WACC_FY1519 -> 0 | N76: =VLOOKUP($C76,'8. RAB Roll-Forward'!$C$212:$S$255,N$2,FALSE)*WACC_FY1519 -> 0 | O76: =VLOOKUP($C76,'8. RAB Roll-Forward'!$C$212:$S$255,O$2,FALSE)*WACC_FY1519 -> 0 | P76: =VLOOKUP($C76,'8. RAB Roll-Forward'!$C$212:$S$255,P$2,FALSE)*WACC_FY1519 -> 0 | Q76: =VLOOKUP($C76,'8. RAB Roll-Forward'!$C$212:$S$255,Q$2,FALSE)*WACC_FY1519 -> 0 | R76: =VLOOKUP($C76,'8. RAB Roll-Forward'!$C$212:$S$255,R$2,FALSE)*WACC -> 0 | S76: =VLOOKUP($C76,'8. RAB Roll-Forward'!$C$212:$S$255,S$2,FALSE)*WACC -> 0 | T76: 0
C77: CA16 | D77: Spare CAN Asset Class 16 | H77: =VLOOKUP($C77,'8. RAB Roll-Forward'!$C$212:$S$255,H$2,FALSE)*WACC -> 0 | I77: =VLOOKUP($C77,'8. RAB Roll-Forward'!$C$212:$S$255,I$2,FALSE)*WACC -> 0 | J77: =VLOOKUP($C77,'8. RAB Roll-Forward'!$C$212:$S$255,J$2,FALSE)*WACC -> 0 | K77: =VLOOKUP($C77,'8. RAB Roll-Forward'!$C$212:$S$255,K$2,FALSE)*WACC -> 0 | L77: =VLOOKUP($C77,'8. RAB Roll-Forward'!$C$212:$S$255,L$2,FALSE)*WACC -> 0 | M77: =VLOOKUP($C77,'8. RAB Roll-Forward'!$C$212:$S$255,M$2,FALSE)*WACC_FY1519 -> 0 | N77: =VLOOKUP($C77,'8. RAB Roll-Forward'!$C$212:$S$255,N$2,FALSE)*WACC_FY1519 -> 0 | O77: =VLOOKUP($C77,'8. RAB Roll-Forward'!$C$212:$S$255,O$2,FALSE)*WACC_FY1519 -> 0 | P77: =VLOOKUP($C77,'8. RAB Roll-Forward'!$C$212:$S$255,P$2,FALSE)*WACC_FY1519 -> 0 | Q77: =VLOOKUP($C77,'8. RAB Roll-Forward'!$C$212:$S$255,Q$2,FALSE)*WACC_FY1519 -> 0 | R77: =VLOOKUP($C77,'8. RAB Roll-Forward'!$C$212:$S$255,R$2,FALSE)*WACC -> 0 | S77: =VLOOKUP($C77,'8. RAB Roll-Forward'!$C$212:$S$255,S$2,FALSE)*WACC -> 0 | T77: 0
C78: CA17 | D78: Spare CAN Asset Class 17 | H78: =VLOOKUP($C78,'8. RAB Roll-Forward'!$C$212:$S$255,H$2,FALSE)*WACC -> 0 | I78: =VLOOKUP($C78,'8. RAB Roll-Forward'!$C$212:$S$255,I$2,FALSE)*WACC -> 0 | J78: =VLOOKUP($C78,'8. RAB Roll-Forward'!$C$212:$S$255,J$2,FALSE)*WACC -> 0 | K78: =VLOOKUP($C78,'8. RAB Roll-Forward'!$C$212:$S$255,K$2,FALSE)*WACC -> 0 | L78: =VLOOKUP($C78,'8. RAB Roll-Forward'!$C$212:$S$255,L$2,FALSE)*WACC -> 0 | M78: =VLOOKUP($C78,'8. RAB Roll-Forward'!$C$212:$S$255,M$2,FALSE)*WACC_FY1519 -> 0 | N78: =VLOOKUP($C78,'8. RAB Roll-Forward'!$C$212:$S$255,N$2,FALSE)*WACC_FY1519 -> 0 | O78: =VLOOKUP($C78,'8. RAB Roll-Forward'!$C$212:$S$255,O$2,FALSE)*WACC_FY1519 -> 0 | P78: =VLOOKUP($C78,'8. RAB Roll-Forward'!$C$212:$S$255,P$2,FALSE)*WACC_FY1519 -> 0 | Q78: =VLOOKUP($C78,'8. RAB Roll-Forward'!$C$212:$S$255,Q$2,FALSE)*WACC_FY1519 -> 0 | R78: =VLOOKUP($C78,'8. RAB Roll-Forward'!$C$212:$S$255,R$2,FALSE)*WACC -> 0 | S78: =VLOOKUP($C78,'8. RAB Roll-Forward'!$C$212:$S$255,S$2,FALSE)*WACC -> 0 | T78: 0
C79: CA18 | D79: Spare CAN Asset Class 18 | H79: =VLOOKUP($C79,'8. RAB Roll-Forward'!$C$212:$S$255,H$2,FALSE)*WACC -> 0 | I79: =VLOOKUP($C79,'8. RAB Roll-Forward'!$C$212:$S$255,I$2,FALSE)*WACC -> 0 | J79: =VLOOKUP($C79,'8. RAB Roll-Forward'!$C$212:$S$255,J$2,FALSE)*WACC -> 0 | K79: =VLOOKUP($C79,'8. RAB Roll-Forward'!$C$212:$S$255,K$2,FALSE)*WACC -> 0 | L79: =VLOOKUP($C79,'8. RAB Roll-Forward'!$C$212:$S$255,L$2,FALSE)*WACC -> 0 | M79: =VLOOKUP($C79,'8. RAB Roll-Forward'!$C$212:$S$255,M$2,FALSE)*WACC_FY1519 -> 0 | N79: =VLOOKUP($C79,'8. RAB Roll-Forward'!$C$212:$S$255,N$2,FALSE)*WACC_FY1519 -> 0 | O79: =VLOOKUP($C79,'8. RAB Roll-Forward'!$C$212:$S$255,O$2,FALSE)*WACC_FY1519 -> 0 | P79: =VLOOKUP($C79,'8. RAB Roll-Forward'!$C$212:$S$255,P$2,FALSE)*WACC_FY1519 -> 0 | Q79: =VLOOKUP($C79,'8. RAB Roll-Forward'!$C$212:$S$255,Q$2,FALSE)*WACC_FY1519 -> 0 | R79: =VLOOKUP($C79,'8. RAB Roll-Forward'!$C$212:$S$255,R$2,FALSE)*WACC -> 0 | S79: =VLOOKUP($C79,'8. RAB Roll-Forward'!$C$212:$S$255,S$2,FALSE)*WACC -> 0 | T79: 0
C80: CA19 | D80: Spare CAN Asset Class 19 | H80: =VLOOKUP($C80,'8. RAB Roll-Forward'!$C$212:$S$255,H$2,FALSE)*WACC -> 0 | I80: =VLOOKUP($C80,'8. RAB Roll-Forward'!$C$212:$S$255,I$2,FALSE)*WACC -> 0 | J80: =VLOOKUP($C80,'8. RAB Roll-Forward'!$C$212:$S$255,J$2,FALSE)*WACC -> 0 | K80: =VLOOKUP($C80,'8. RAB Roll-Forward'!$C$212:$S$255,K$2,FALSE)*WACC -> 0 | L80: =VLOOKUP($C80,'8. RAB Roll-Forward'!$C$212:$S$255,L$2,FALSE)*WACC -> 0 | M80: =VLOOKUP($C80,'8. RAB Roll-Forward'!$C$212:$S$255,M$2,FALSE)*WACC_FY1519 -> 0 | N80: =VLOOKUP($C80,'8. RAB Roll-Forward'!$C$212:$S$255,N$2,FALSE)*WACC_FY1519 -> 0 | O80: =VLOOKUP($C80,'8. RAB Roll-Forward'!$C$212:$S$255,O$2,FALSE)*WACC_FY1519 -> 0 | P80: =VLOOKUP($C80,'8. RAB Roll-Forward'!$C$212:$S$255,P$2,FALSE)*WACC_FY1519 -> 0 | Q80: =VLOOKUP($C80,'8. RAB Roll-Forward'!$C$212:$S$255,Q$2,FALSE)*WACC_FY1519 -> 0 | R80: =VLOOKUP($C80,'8. RAB Roll-Forward'!$C$212:$S$255,R$2,FALSE)*WACC -> 0 | S80: =VLOOKUP($C80,'8. RAB Roll-Forward'!$C$212:$S$255,S$2,FALSE)*WACC -> 0 | T80: 0
C81: CA20 | D81: Spare CAN Asset Class 20 | H81: =VLOOKUP($C81,'8. RAB Roll-Forward'!$C$212:$S$255,H$2,FALSE)*WACC -> 0 | I81: =VLOOKUP($C81,'8. RAB Roll-Forward'!$C$212:$S$255,I$2,FALSE)*WACC -> 0 | J81: =VLOOKUP($C81,'8. RAB Roll-Forward'!$C$212:$S$255,J$2,FALSE)*WACC -> 0 | K81: =VLOOKUP($C81,'8. RAB Roll-Forward'!$C$212:$S$255,K$2,FALSE)*WACC -> 0 | L81: =VLOOKUP($C81,'8. RAB Roll-Forward'!$C$212:$S$255,L$2,FALSE)*WACC -> 0 | M81: =VLOOKUP($C81,'8. RAB Roll-Forward'!$C$212:$S$255,M$2,FALSE)*WACC_FY1519 -> 0 | N81: =VLOOKUP($C81,'8. RAB Roll-Forward'!$C$212:$S$255,N$2,FALSE)*WACC_FY1519 -> 0 | O81: =VLOOKUP($C81,'8. RAB Roll-Forward'!$C$212:$S$255,O$2,FALSE)*WACC_FY1519 -> 0 | P81: =VLOOKUP($C81,'8. RAB Roll-Forward'!$C$212:$S$255,P$2,FALSE)*WACC_FY1519 -> 0 | Q81: =VLOOKUP($C81,'8. RAB Roll-Forward'!$C$212:$S$255,Q$2,FALSE)*WACC_FY1519 -> 0 | R81: =VLOOKUP($C81,'8. RAB Roll-Forward'!$C$212:$S$255,R$2,FALSE)*WACC -> 0 | S81: =VLOOKUP($C81,'8. RAB Roll-Forward'!$C$212:$S$255,S$2,FALSE)*WACC -> 0 | T81: 0
D82: Total | H82: =SUM(H62:H81) -> 0.5841318677 | I82: =SUM(I62:I81) -> 0.7087406422 | J82: 1.151447925 | K82: 1.564206875 | L82: 1.9484728 | M82: 3.279992212 | N82: 1.528440889 | O82: 1.633473967 | P82: 1.728632733 | Q82: 1.814050492 | R82: 3.231889829 | S82: 2.773043588 | T82: 15.9415904
C83: Core Asset Class
C84: CO01 | D84: =VLOOKUP(C84,Core_AC,2,FALSE) -> Switching Equipment - Local | H84: =VLOOKUP($C84,'8. RAB Roll-Forward'!$C$212:$S$255,H$2,FALSE)*WACC -> 0.05841318677 | I84: =VLOOKUP($C84,'8. RAB Roll-Forward'!$C$212:$S$255,I$2,FALSE)*WACC -> 0.06021156972 | J84: =VLOOKUP($C84,'8. RAB Roll-Forward'!$C$212:$S$255,J$2,FALSE)*WACC -> 0.1181930813 | K84: =VLOOKUP($C84,'8. RAB Roll-Forward'!$C$212:$S$255,K$2,FALSE)*WADSL_WACC -> 0.111988916 | L84: =VLOOKUP($C84,'8. RAB Roll-Forward'!$C$212:$S$255,L$2,FALSE)*WADSL_WACC -> 3.676593964 | M84: =VLOOKUP($C84,'8. RAB Roll-Forward'!$C$212:$S$255,M$2,FALSE)*WACC_FY1519 -> 3.638252041 | N84: =VLOOKUP($C84,'8. RAB Roll-Forward'!$C$212:$S$255,N$2,FALSE)*WACC_FY1519 -> 0.1904389325 | O84: =VLOOKUP($C84,'8. RAB Roll-Forward'!$C$212:$S$255,O$2,FALSE)*WACC_FY1519 -> 0.2142712275 | P84: =VLOOKUP($C84,'8. RAB Roll-Forward'!$C$212:$S$255,P$2,FALSE)*WACC_FY1519 -> 0.2343074218 | Q84: =VLOOKUP($C84,'8. RAB Roll-Forward'!$C$212:$S$255,Q$2,FALSE)*WACC_FY1519 -> 0.2505482489 | R84: =VLOOKUP($C84,'8. RAB Roll-Forward'!$C$212:$S$255,R$2,FALSE)*WACC -> 0.4497469358 | S84: =VLOOKUP($C84,'8. RAB Roll-Forward'!$C$212:$S$255,S$2,FALSE)*WACC -> 0.4069137808 | T84: =SUM(OFFSET($H84,0,0,1,Model_period)) -> 8.55321859
C85: CO02 | D85: Switching Equipment - Trunk | H85: =VLOOKUP($C85,'8. RAB Roll-Forward'!$C$212:$S$255,H$2,FALSE)*WACC -> 0.05841318677 | I85: =VLOOKUP($C85,'8. RAB Roll-Forward'!$C$212:$S$255,I$2,FALSE)*WACC -> 0.06021156972 | J85: =VLOOKUP($C85,'8. RAB Roll-Forward'!$C$212:$S$255,J$2,FALSE)*WACC -> 0.1180146767 | K85: =VLOOKUP($C85,'8. RAB Roll-Forward'!$C$212:$S$255,K$2,FALSE)*WADSL_WACC -> 0.1116441037 | L85: =VLOOKUP($C85,'8. RAB Roll-Forward'!$C$212:$S$255,L$2,FALSE)*WADSL_WACC -> 0.1457084416 | M85: =VLOOKUP($C85,'8. RAB Roll-Forward'!$C$212:$S$255,M$2,FALSE)*WACC_FY1519 -> 0.1617668575 | N85: =VLOOKUP($C85,'8. RAB Roll-Forward'!$C$212:$S$255,N$2,FALSE)*WACC_FY1519 -> 0.1888909126 | O85: =VLOOKUP($C85,'8. RAB Roll-Forward'!$C$212:$S$255,O$2,FALSE)*WACC_FY1519 -> 0.1818572154 | P85: =VLOOKUP($C85,'8. RAB Roll-Forward'!$C$212:$S$255,P$2,FALSE)*WACC_FY1519 -> 0.1748235182 | Q85: =VLOOKUP($C85,'8. RAB Roll-Forward'!$C$212:$S$255,Q$2,FALSE)*WACC_FY1519 -> 0.167789821 | R85: =VLOOKUP($C85,'8. RAB Roll-Forward'!$C$212:$S$255,R$2,FALSE)*WACC -> 0.2749091161 | S85: =VLOOKUP($C85,'8. RAB Roll-Forward'!$C$212:$S$255,S$2,FALSE)*WACC -> 0.2044676008 | T85: 1.369120303
C86: CO03 | D86: Switching Equipment - Other | H86: =VLOOKUP($C86,'8. RAB Roll-Forward'!$C$212:$S$255,H$2,FALSE)*WACC -> 0.05841318677 | I86: =VLOOKUP($C86,'8. RAB Roll-Forward'!$C$212:$S$255,I$2,FALSE)*WACC -> 0.06021156972 | J86: =VLOOKUP($C86,'8. RAB Roll-Forward'!$C$212:$S$255,J$2,FALSE)*WACC -> 0.117412561 | K86: =VLOOKUP($C86,'8. RAB Roll-Forward'!$C$212:$S$255,K$2,FALSE)*WADSL_WACC -> 0.1104803622 | L86: =VLOOKUP($C86,'8. RAB Roll-Forward'!$C$212:$S$255,L$2,FALSE)*WADSL_WACC -> 0.1433817093 | M86: =VLOOKUP($C86,'8. RAB Roll-Forward'!$C$212:$S$255,M$2,FALSE)*WACC_FY1519 -> 0.1582479644 | N86: =VLOOKUP($C86,'8. RAB Roll-Forward'!$C$212:$S$255,N$2,FALSE)*WACC_FY1519 -> 0.1836135951 | O86: =VLOOKUP($C86,'8. RAB Roll-Forward'!$C$212:$S$255,O$2,FALSE)*WACC_FY1519 -> 0.2072713383 | P86: =VLOOKUP($C86,'8. RAB Roll-Forward'!$C$212:$S$255,P$2,FALSE)*WACC_FY1519 -> 0.2292211938 | Q86: =VLOOKUP($C86,'8. RAB Roll-Forward'!$C$212:$S$255,Q$2,FALSE)*WACC_FY1519 -> 0.2494631617 | R86: =VLOOKUP($C86,'8. RAB Roll-Forward'!$C$212:$S$255,R$2,FALSE)*WACC -> 0.4583021984 | S86: =VLOOKUP($C86,'8. RAB Roll-Forward'!$C$212:$S$255,S$2,FALSE)*WACC -> 0.428663491 | T86: 1.517716642
C87: CO04 | D87: Inter-exchange Cables | H87: =VLOOKUP($C87,'8. RAB Roll-Forward'!$C$212:$S$255,H$2,FALSE)*WACC -> 0.05841318677 | I87: =VLOOKUP($C87,'8. RAB Roll-Forward'!$C$212:$S$255,I$2,FALSE)*WACC -> 0.06021156972 | J87: =VLOOKUP($C87,'8. RAB Roll-Forward'!$C$212:$S$255,J$2,FALSE)*WACC -> 0.1188386245 | K87: =VLOOKUP($C87,'8. RAB Roll-Forward'!$C$212:$S$255,K$2,FALSE)*WADSL_WACC -> 0.1132365922 | L87: =VLOOKUP($C87,'8. RAB Roll-Forward'!$C$212:$S$255,L$2,FALSE)*WADSL_WACC -> 0.1488923909 | M87: =VLOOKUP($C87,'8. RAB Roll-Forward'!$C$212:$S$255,M$2,FALSE)*WACC_FY1519 -> 0.1665821849 | N87: =VLOOKUP($C87,'8. RAB Roll-Forward'!$C$212:$S$255,N$2,FALSE)*WACC_FY1519 -> 0.1961125048 | O87: =VLOOKUP($C87,'8. RAB Roll-Forward'!$C$212:$S$255,O$2,FALSE)*WACC_FY1519 -> 0.1914850724 | P87: =VLOOKUP($C87,'8. RAB Roll-Forward'!$C$212:$S$255,P$2,FALSE)*WACC_FY1519 -> 0.1868576401 | Q87: =VLOOKUP($C87,'8. RAB Roll-Forward'!$C$212:$S$255,Q$2,FALSE)*WACC_FY1519 -> 0.1822302077 | R87: =VLOOKUP($C87,'8. RAB Roll-Forward'!$C$212:$S$255,R$2,FALSE)*WACC -> 0.3037185822 | S87: =VLOOKUP($C87,'8. RAB Roll-Forward'!$C$212:$S$255,S$2,FALSE)*WACC -> 0.2373920214 | T87: 1.422859974
C88: CO05 | D88: Transmission Equipment | H88: =VLOOKUP($C88,'8. RAB Roll-Forward'!$C$212:$S$255,H$2,FALSE)*WACC -> 0.05841318677 | I88: =VLOOKUP($C88,'8. RAB Roll-Forward'!$C$212:$S$255,I$2,FALSE)*WACC -> 0.06021156972 | J88: =VLOOKUP($C88,'8. RAB Roll-Forward'!$C$212:$S$255,J$2,FALSE)*WACC -> 0.06021156972 | K88: =VLOOKUP($C88,'8. RAB Roll-Forward'!$C$212:$S$255,K$2,FALSE)*WADSL_WACC -> 0.03871630062 | L88: =VLOOKUP($C88,'8. RAB Roll-Forward'!$C$212:$S$255,L$2,FALSE)*WADSL_WACC -> 0.03871630062 | M88: =VLOOKUP($C88,'8. RAB Roll-Forward'!$C$212:$S$255,M$2,FALSE)*WACC_FY1519 -> 0.03514122571 | N88: =VLOOKUP($C88,'8. RAB Roll-Forward'!$C$212:$S$255,N$2,FALSE)*WACC_FY1519 -> 0.03415775226 | O88: =VLOOKUP($C88,'8. RAB Roll-Forward'!$C$212:$S$255,O$2,FALSE)*WACC_FY1519 -> 0.03415775226 | P88: =VLOOKUP($C88,'8. RAB Roll-Forward'!$C$212:$S$255,P$2,FALSE)*WACC_FY1519 -> 0.03415775226 | Q88: =VLOOKUP($C88,'8. RAB Roll-Forward'!$C$212:$S$255,Q$2,FALSE)*WACC_FY1519 -> 0.03415775226 | R88: =VLOOKUP($C88,'8. RAB Roll-Forward'!$C$212:$S$255,R$2,FALSE)*WACC -> 0.05841318677 | S88: =VLOOKUP($C88,'8. RAB Roll-Forward'!$C$212:$S$255,S$2,FALSE)*WACC -> 0 | T88: 0.4280411622
C89: CO06 | D89: Core Radio Bearer Equipment | H89: =VLOOKUP($C89,'8. RAB Roll-Forward'!$C$212:$S$255,H$2,FALSE)*WACC -> 0.05841318677 | I89: =VLOOKUP($C89,'8. RAB Roll-Forward'!$C$212:$S$255,I$2,FALSE)*WACC -> 0.06021156972 | J89: =VLOOKUP($C89,'8. RAB Roll-Forward'!$C$212:$S$255,J$2,FALSE)*WACC -> 0.1166599163 | K89: =VLOOKUP($C89,'8. RAB Roll-Forward'!$C$212:$S$255,K$2,FALSE)*WADSL_WACC -> 0.1090256853 | L89: =VLOOKUP($C89,'8. RAB Roll-Forward'!$C$212:$S$255,L$2,FALSE)*WADSL_WACC -> 0.140473294 | M89: =VLOOKUP($C89,'8. RAB Roll-Forward'!$C$212:$S$255,M$2,FALSE)*WACC_FY1519 -> 0.153849348 | N89: =VLOOKUP($C89,'8. RAB Roll-Forward'!$C$212:$S$255,N$2,FALSE)*WACC_FY1519 -> 0.1770169484 | O89: =VLOOKUP($C89,'8. RAB Roll-Forward'!$C$212:$S$255,O$2,FALSE)*WACC_FY1519 -> 0.1980496892 | P89: =VLOOKUP($C89,'8. RAB Roll-Forward'!$C$212:$S$255,P$2,FALSE)*WACC_FY1519 -> 0.2169475706 | Q89: =VLOOKUP($C89,'8. RAB Roll-Forward'!$C$212:$S$255,Q$2,FALSE)*WACC_FY1519 -> 0.2337105924 | R89: =VLOOKUP($C89,'8. RAB Roll-Forward'!$C$212:$S$255,R$2,FALSE)*WACC -> 0.4246842109 | S89: =VLOOKUP($C89,'8. RAB Roll-Forward'!$C$212:$S$255,S$2,FALSE)*WACC -> 0.3876358266 | T89: 1.464357801
C90: CO07 | D90: Other Communications Plant and Equipment | H90: =VLOOKUP($C90,'8. RAB Roll-Forward'!$C$212:$S$255,H$2,FALSE)*WACC -> 0.05841318677 | I90: =VLOOKUP($C90,'8. RAB Roll-Forward'!$C$212:$S$255,I$2,FALSE)*WACC -> 0.06021156972 | J90: =VLOOKUP($C90,'8. RAB Roll-Forward'!$C$212:$S$255,J$2,FALSE)*WACC -> 0.06021156972 | K90: =VLOOKUP($C90,'8. RAB Roll-Forward'!$C$212:$S$255,K$2,FALSE)*WADSL_WACC -> 0.03871630062 | L90: =VLOOKUP($C90,'8. RAB Roll-Forward'!$C$212:$S$255,L$2,FALSE)*WADSL_WACC -> 0.03871630062 | M90: =VLOOKUP($C90,'8. RAB Roll-Forward'!$C$212:$S$255,M$2,FALSE)*WACC_FY1519 -> 0.03514122571 | N90: =VLOOKUP($C90,'8. RAB Roll-Forward'!$C$212:$S$255,N$2,FALSE)*WACC_FY1519 -> 0.03415775226 | O90: =VLOOKUP($C90,'8. RAB Roll-Forward'!$C$212:$S$255,O$2,FALSE)*WACC_FY1519 -> 0.03415775226 | P90: =VLOOKUP($C90,'8. RAB Roll-Forward'!$C$212:$S$255,P$2,FALSE)*WACC_FY1519 -> 0.03415775226 | Q90: =VLOOKUP($C90,'8. RAB Roll-Forward'!$C$212:$S$255,Q$2,FALSE)*WACC_FY1519 -> 0.03415775226 | R90: =VLOOKUP($C90,'8. RAB Roll-Forward'!$C$212:$S$255,R$2,FALSE)*WACC -> 0.05841318677 | S90: =VLOOKUP($C90,'8. RAB Roll-Forward'!$C$212:$S$255,S$2,FALSE)*WACC -> 0 | T90: 0.4280411622
C91: CO08 | D91: Network Land | H91: =VLOOKUP($C91,'8. RAB Roll-Forward'!$C$212:$S$255,H$2,FALSE)*WACC -> 0.05841318677 | I91: =VLOOKUP($C91,'8. RAB Roll-Forward'!$C$212:$S$255,I$2,FALSE)*WACC -> 0.1201059653 | J91: =VLOOKUP($C91,'8. RAB Roll-Forward'!$C$212:$S$255,J$2,FALSE)*WACC -> 0.1818304342 | K91: =VLOOKUP($C91,'8. RAB Roll-Forward'!$C$212:$S$255,K$2,FALSE)*WADSL_WACC -> 0.1568565244 | L91: =VLOOKUP($C91,'8. RAB Roll-Forward'!$C$212:$S$255,L$2,FALSE)*WADSL_WACC -> 0.1965902245 | M91: =VLOOKUP($C91,'8. RAB Roll-Forward'!$C$212:$S$255,M$2,FALSE)*WACC_FY1519 -> 0.2145219676 | N91: =VLOOKUP($C91,'8. RAB Roll-Forward'!$C$212:$S$255,N$2,FALSE)*WACC_FY1519 -> 0.2496265026 | O91: =VLOOKUP($C91,'8. RAB Roll-Forward'!$C$212:$S$255,O$2,FALSE)*WACC_FY1519 -> 0.284751731 | P91: =VLOOKUP($C91,'8. RAB Roll-Forward'!$C$212:$S$255,P$2,FALSE)*WACC_FY1519 -> 0.3198982555 | Q91: =VLOOKUP($C91,'8. RAB Roll-Forward'!$C$212:$S$255,Q$2,FALSE)*WACC_FY1519 -> 0.355066694 | R91: =VLOOKUP($C91,'8. RAB Roll-Forward'!$C$212:$S$255,R$2,FALSE)*WACC -> 0.6673798252 | S91: =VLOOKUP($C91,'8. RAB Roll-Forward'!$C$212:$S$255,S$2,FALSE)*WACC -> 0.6673147064 | T91: 2.137661486
C92: CO09 | D92: Network Buildings/Support | H92: =VLOOKUP($C92,'8. RAB Roll-Forward'!$C$212:$S$255,H$2,FALSE)*WACC -> 0.05841318677 | I92: =VLOOKUP($C92,'8. RAB Roll-Forward'!$C$212:$S$255,I$2,FALSE)*WACC -> 0.06021156972 | J92: =VLOOKUP($C92,'8. RAB Roll-Forward'!$C$212:$S$255,J$2,FALSE)*WACC -> 0.06021156972 | K92: =VLOOKUP($C92,'8. RAB Roll-Forward'!$C$212:$S$255,K$2,FALSE)*WADSL_WACC -> 0.03871630062 | L92: =VLOOKUP($C92,'8. RAB Roll-Forward'!$C$212:$S$255,L$2,FALSE)*WADSL_WACC -> 0.03871630062 | M92: =VLOOKUP($C92,'8. RAB Roll-Forward'!$C$212:$S$255,M$2,FALSE)*WACC_FY1519 -> 0.03514122571 | N92: =VLOOKUP($C92,'8. RAB Roll-Forward'!$C$212:$S$255,N$2,FALSE)*WACC_FY1519 -> 0.03415775226 | O92: =VLOOKUP($C92,'8. RAB Roll-Forward'!$C$212:$S$255,O$2,FALSE)*WACC_FY1519 -> 0.03415775226 | P92: =VLOOKUP($C92,'8. RAB Roll-Forward'!$C$212:$S$255,P$2,FALSE)*WACC_FY1519 -> 0.03415775226 | Q92: =VLOOKUP($C92,'8. RAB Roll-Forward'!$C$212:$S$255,Q$2,FALSE)*WACC_FY1519 -> 0.03415775226 | R92: =VLOOKUP($C92,'8. RAB Roll-Forward'!$C$212:$S$255,R$2,FALSE)*WACC -> 0.05841318677 | S92: =VLOOKUP($C92,'8. RAB Roll-Forward'!$C$212:$S$255,S$2,FALSE)*WACC -> 0 | T92: 0.4280411622
C93: CO10 | D93: Indirect Capital Assets | H93: =VLOOKUP($C93,'8. RAB Roll-Forward'!$C$212:$S$255,H$2,FALSE)*WACC -> 0.05841318677 | I93: =VLOOKUP($C93,'8. RAB Roll-Forward'!$C$212:$S$255,I$2,FALSE)*WACC -> 0.1069421191 | J93: =VLOOKUP($C93,'8. RAB Roll-Forward'!$C$212:$S$255,J$2,FALSE)*WACC -> 0.1494498945 | K93: =VLOOKUP($C93,'8. RAB Roll-Forward'!$C$212:$S$255,K$2,FALSE)*WADSL_WACC -> 0.1197147641 | L93: =VLOOKUP($C93,'8. RAB Roll-Forward'!$C$212:$S$255,L$2,FALSE)*WADSL_WACC -> 0.1392746029 | M93: =VLOOKUP($C93,'8. RAB Roll-Forward'!$C$212:$S$255,M$2,FALSE)*WACC_FY1519 -> 0.1406534988 | N93: =VLOOKUP($C93,'8. RAB Roll-Forward'!$C$212:$S$255,N$2,FALSE)*WACC_FY1519 -> 0.157227008 | O93: =VLOOKUP($C93,'8. RAB Roll-Forward'!$C$212:$S$255,O$2,FALSE)*WACC_FY1519 -> 0.139642765 | P93: =VLOOKUP($C93,'8. RAB Roll-Forward'!$C$212:$S$255,P$2,FALSE)*WACC_FY1519 -> 0.122058522 | Q93: =VLOOKUP($C93,'8. RAB Roll-Forward'!$C$212:$S$255,Q$2,FALSE)*WACC_FY1519 -> 0.104474279 | R93: =VLOOKUP($C93,'8. RAB Roll-Forward'!$C$212:$S$255,R$2,FALSE)*WACC -> 0.1485906879 | S93: =VLOOKUP($C93,'8. RAB Roll-Forward'!$C$212:$S$255,S$2,FALSE)*WACC -> 0.0601066796 | T93: 1.23785064
C94: CO11 | D94: LSS equipment | H94: =VLOOKUP($C94,'8. RAB Roll-Forward'!$C$212:$S$255,H$2,FALSE)*WACC -> 0 | I94: =VLOOKUP($C94,'8. RAB Roll-Forward'!$C$212:$S$255,I$2,FALSE)*WACC -> 0.06021156972 | J94: =VLOOKUP($C94,'8. RAB Roll-Forward'!$C$212:$S$255,J$2,FALSE)*WACC -> 0.06021156972 | K94: =VLOOKUP($C94,'8. RAB Roll-Forward'!$C$212:$S$255,K$2,FALSE)*WADSL_WACC -> 0.03871630062 | L94: =VLOOKUP($C94,'8. RAB Roll-Forward'!$C$212:$S$255,L$2,FALSE)*WADSL_WACC -> 0.03871630062 | M94: =VLOOKUP($C94,'8. RAB Roll-Forward'!$C$212:$S$255,M$2,FALSE)*WACC_FY1519 -> 0.03514122571 | N94: =VLOOKUP($C94,'8. RAB Roll-Forward'!$C$212:$S$255,N$2,FALSE)*WACC_FY1519 -> 0.03415775226 | O94: =VLOOKUP($C94,'8. RAB Roll-Forward'!$C$212:$S$255,O$2,FALSE)*WACC_FY1519 -> 0.03415775226 | P94: =VLOOKUP($C94,'8. RAB Roll-Forward'!$C$212:$S$255,P$2,FALSE)*WACC_FY1519 -> 0.03415775226 | Q94: =VLOOKUP($C94,'8. RAB Roll-Forward'!$C$212:$S$255,Q$2,FALSE)*WACC_FY1519 -> 0.03415775226 | R94: =VLOOKUP($C94,'8. RAB Roll-Forward'!$C$212:$S$255,R$2,FALSE)*WACC -> 0.05841318677 | S94: =VLOOKUP($C94,'8. RAB Roll-Forward'!$C$212:$S$255,S$2,FALSE)*WACC -> 0 | T94: 0.3696279754
C95: CO12 | D95: Data Equipment | H95: =VLOOKUP($C95,'8. RAB Roll-Forward'!$C$212:$S$255,H$2,FALSE)*WACC -> 0.05841318677 | I95: =VLOOKUP($C95,'8. RAB Roll-Forward'!$C$212:$S$255,I$2,FALSE)*WACC -> 0.06021156972 | J95: =VLOOKUP($C95,'8. RAB Roll-Forward'!$C$212:$S$255,J$2,FALSE)*WACC -> 0.1103878778 | K95: =VLOOKUP($C95,'8. RAB Roll-Forward'!$C$212:$S$255,K$2,FALSE)*WADSL_WACC -> 0.09690337757 | L95: =VLOOKUP($C95,'8. RAB Roll-Forward'!$C$212:$S$255,L$2,FALSE)*WADSL_WACC -> 0.1162364999 | M95: =VLOOKUP($C95,'8. RAB Roll-Forward'!$C$212:$S$255,M$2,FALSE)*WACC_FY1519 -> 0.1171942113 | N95: =VLOOKUP($C95,'8. RAB Roll-Forward'!$C$212:$S$255,N$2,FALSE)*WACC_FY1519 -> 0.1220448919 | O95: =VLOOKUP($C95,'8. RAB Roll-Forward'!$C$212:$S$255,O$2,FALSE)*WACC_FY1519 -> 0.1212026138 | P95: =VLOOKUP($C95,'8. RAB Roll-Forward'!$C$212:$S$255,P$2,FALSE)*WACC_FY1519 -> 0.1205356063 | Q95: =VLOOKUP($C95,'8. RAB Roll-Forward'!$C$212:$S$255,Q$2,FALSE)*WACC_FY1519 -> 0.1200438696 | R95: =VLOOKUP($C95,'8. RAB Roll-Forward'!$C$212:$S$255,R$2,FALSE)*WACC -> 0.2047264601 | S95: =VLOOKUP($C95,'8. RAB Roll-Forward'!$C$212:$S$255,S$2,FALSE)*WACC -> 0.1460329669 | T95: 1.043173705
C96: CO13 | D96: Spare Core Asset Class 13 | H96: =VLOOKUP($C96,'8. RAB Roll-Forward'!$C$212:$S$255,H$2,FALSE)*WACC -> 0 | I96: =VLOOKUP($C96,'8. RAB Roll-Forward'!$C$212:$S$255,I$2,FALSE)*WACC -> 0 | J96: =VLOOKUP($C96,'8. RAB Roll-Forward'!$C$212:$S$255,J$2,FALSE)*WACC -> 0 | K96: =VLOOKUP($C96,'8. RAB Roll-Forward'!$C$212:$S$255,K$2,FALSE)*WACC -> 0 | L96: =VLOOKUP($C96,'8. RAB Roll-Forward'!$C$212:$S$255,L$2,FALSE)*WACC -> 0 | M96: =VLOOKUP($C96,'8. RAB Roll-Forward'!$C$212:$S$255,M$2,FALSE)*WACC_FY1519 -> 0 | N96: =VLOOKUP($C96,'8. RAB Roll-Forward'!$C$212:$S$255,N$2,FALSE)*WACC_FY1519 -> 0 | O96: =VLOOKUP($C96,'8. RAB Roll-Forward'!$C$212:$S$255,O$2,FALSE)*WACC_FY1519 -> 0 | P96: =VLOOKUP($C96,'8. RAB Roll-Forward'!$C$212:$S$255,P$2,FALSE)*WACC_FY1519 -> 0 | Q96: =VLOOKUP($C96,'8. RAB Roll-Forward'!$C$212:$S$255,Q$2,FALSE)*WACC_FY1519 -> 0 | R96: =VLOOKUP($C96,'8. RAB Roll-Forward'!$C$212:$S$255,R$2,FALSE)*WACC -> 0 | S96: =VLOOKUP($C96,'8. RAB Roll-Forward'!$C$212:$S$255,S$2,FALSE)*WACC -> 0 | T96: 0
C97: CO14 | D97: Spare Core Asset Class 14 | H97: =VLOOKUP($C97,'8. RAB Roll-Forward'!$C$212:$S$255,H$2,FALSE)*WACC -> 0 | I97: =VLOOKUP($C97,'8. RAB Roll-Forward'!$C$212:$S$255,I$2,FALSE)*WACC -> 0 | J97: =VLOOKUP($C97,'8. RAB Roll-Forward'!$C$212:$S$255,J$2,FALSE)*WACC -> 0 | K97: =VLOOKUP($C97,'8. RAB Roll-Forward'!$C$212:$S$255,K$2,FALSE)*WACC -> 0 | L97: =VLOOKUP($C97,'8. RAB Roll-Forward'!$C$212:$S$255,L$2,FALSE)*WACC -> 0 | M97: =VLOOKUP($C97,'8. RAB Roll-Forward'!$C$212:$S$255,M$2,FALSE)*WACC_FY1519 -> 0 | N97: =VLOOKUP($C97,'8. RAB Roll-Forward'!$C$212:$S$255,N$2,FALSE)*WACC_FY1519 -> 0 | O97: =VLOOKUP($C97,'8. RAB Roll-Forward'!$C$212:$S$255,O$2,FALSE)*WACC_FY1519 -> 0 | P97: =VLOOKUP($C97,'8. RAB Roll-Forward'!$C$212:$S$255,P$2,FALSE)*WACC_FY1519 -> 0 | Q97: =VLOOKUP($C97,'8. RAB Roll-Forward'!$C$212:$S$255,Q$2,FALSE)*WACC_FY1519 -> 0 | R97: =VLOOKUP($C97,'8. RAB Roll-Forward'!$C$212:$S$255,R$2,FALSE)*WACC -> 0 | S97: =VLOOKUP($C97,'8. RAB Roll-Forward'!$C$212:$S$255,S$2,FALSE)*WACC -> 0 | T97: 0
C98: CO15 | D98: Spare Core Asset Class 15 | H98: =VLOOKUP($C98,'8. RAB Roll-Forward'!$C$212:$S$255,H$2,FALSE)*WACC -> 0 | I98: =VLOOKUP($C98,'8. RAB Roll-Forward'!$C$212:$S$255,I$2,FALSE)*WACC -> 0 | J98: =VLOOKUP($C98,'8. RAB Roll-Forward'!$C$212:$S$255,J$2,FALSE)*WACC -> 0 | K98: =VLOOKUP($C98,'8. RAB Roll-Forward'!$C$212:$S$255,K$2,FALSE)*WACC -> 0 | L98: =VLOOKUP($C98,'8. RAB Roll-Forward'!$C$212:$S$255,L$2,FALSE)*WACC -> 0 | M98: =VLOOKUP($C98,'8. RAB Roll-Forward'!$C$212:$S$255,M$2,FALSE)*WACC_FY1519 -> 0 | N98: =VLOOKUP($C98,'8. RAB Roll-Forward'!$C$212:$S$255,N$2,FALSE)*WACC_FY1519 -> 0 | O98: =VLOOKUP($C98,'8. RAB Roll-Forward'!$C$212:$S$255,O$2,FALSE)*WACC_FY1519 -> 0 | P98: =VLOOKUP($C98,'8. RAB Roll-Forward'!$C$212:$S$255,P$2,FALSE)*WACC_FY1519 -> 0 | Q98: =VLOOKUP($C98,'8. RAB Roll-Forward'!$C$212:$S$255,Q$2,FALSE)*WACC_FY1519 -> 0 | R98: =VLOOKUP($C98,'8. RAB Roll-Forward'!$C$212:$S$255,R$2,FALSE)*WACC -> 0 | S98: =VLOOKUP($C98,'8. RAB Roll-Forward'!$C$212:$S$255,S$2,FALSE)*WACC -> 0 | T98: 0
C99: CO16 | D99: Spare Core Asset Class 16 | H99: =VLOOKUP($C99,'8. RAB Roll-Forward'!$C$212:$S$255,H$2,FALSE)*WACC -> 0 | I99: =VLOOKUP($C99,'8. RAB Roll-Forward'!$C$212:$S$255,I$2,FALSE)*WACC -> 0 | J99: =VLOOKUP($C99,'8. RAB Roll-Forward'!$C$212:$S$255,J$2,FALSE)*WACC -> 0 | K99: =VLOOKUP($C99,'8. RAB Roll-Forward'!$C$212:$S$255,K$2,FALSE)*WACC -> 0 | L99: =VLOOKUP($C99,'8. RAB Roll-Forward'!$C$212:$S$255,L$2,FALSE)*WACC -> 0 | M99: =VLOOKUP($C99,'8. RAB Roll-Forward'!$C$212:$S$255,M$2,FALSE)*WACC_FY1519 -> 0 | N99: =VLOOKUP($C99,'8. RAB Roll-Forward'!$C$212:$S$255,N$2,FALSE)*WACC_FY1519 -> 0 | O99: =VLOOKUP($C99,'8. RAB Roll-Forward'!$C$212:$S$255,O$2,FALSE)*WACC_FY1519 -> 0 | P99: =VLOOKUP($C99,'8. RAB Roll-Forward'!$C$212:$S$255,P$2,FALSE)*WACC_FY1519 -> 0 | Q99: =VLOOKUP($C99,'8. RAB Roll-Forward'!$C$212:$S$255,Q$2,FALSE)*WACC_FY1519 -> 0 | R99: =VLOOKUP($C99,'8. RAB Roll-Forward'!$C$212:$S$255,R$2,FALSE)*WACC -> 0 | S99: =VLOOKUP($C99,'8. RAB Roll-Forward'!$C$212:$S$255,S$2,FALSE)*WACC -> 0 | T99: 0
C100: CO17 | D100: Spare Core Asset Class 17 | H100: =VLOOKUP($C100,'8. RAB Roll-Forward'!$C$212:$S$255,H$2,FALSE)*WACC -> 0 | I100: =VLOOKUP($C100,'8. RAB Roll-Forward'!$C$212:$S$255,I$2,FALSE)*WACC -> 0 | J100: =VLOOKUP($C100,'8. RAB Roll-Forward'!$C$212:$S$255,J$2,FALSE)*WACC -> 0 | K100: =VLOOKUP($C100,'8. RAB Roll-Forward'!$C$212:$S$255,K$2,FALSE)*WACC -> 0 | L100: =VLOOKUP($C100,'8. RAB Roll-Forward'!$C$212:$S$255,L$2,FALSE)*WACC -> 0 | M100: =VLOOKUP($C100,'8. RAB Roll-Forward'!$C$212:$S$255,M$2,FALSE)*WACC_FY1519 -> 0 | N100: =VLOOKUP($C100,'8. RAB Roll-Forward'!$C$212:$S$255,N$2,FALSE)*WACC_FY1519 -> 0 | O100: =VLOOKUP($C100,'8. RAB Roll-Forward'!$C$212:$S$255,O$2,FALSE)*WACC_FY1519 -> 0 | P100: =VLOOKUP($C100,'8. RAB Roll-Forward'!$C$212:$S$255,P$2,FALSE)*WACC_FY1519 -> 0 | Q100: =VLOOKUP($C100,'8. RAB Roll-Forward'!$C$212:$S$255,Q$2,FALSE)*WACC_FY1519 -> 0 | R100: =VLOOKUP($C100,'8. RAB Roll-Forward'!$C$212:$S$255,R$2,FALSE)*WACC -> 0 | S100: =VLOOKUP($C100,'8. RAB Roll-Forward'!$C$212:$S$255,S$2,FALSE)*WACC -> 0 | T100: 0
C101: CO18 | D101: Spare Core Asset Class 18 | H101: =VLOOKUP($C101,'8. RAB Roll-Forward'!$C$212:$S$255,H$2,FALSE)*WACC -> 0 | I101: =VLOOKUP($C101,'8. RAB Roll-Forward'!$C$212:$S$255,I$2,FALSE)*WACC -> 0 | J101: =VLOOKUP($C101,'8. RAB Roll-Forward'!$C$212:$S$255,J$2,FALSE)*WACC -> 0 | K101: =VLOOKUP($C101,'8. RAB Roll-Forward'!$C$212:$S$255,K$2,FALSE)*WACC -> 0 | L101: =VLOOKUP($C101,'8. RAB Roll-Forward'!$C$212:$S$255,L$2,FALSE)*WACC -> 0 | M101: =VLOOKUP($C101,'8. RAB Roll-Forward'!$C$212:$S$255,M$2,FALSE)*WACC_FY1519 -> 0 | N101: =VLOOKUP($C101,'8. RAB Roll-Forward'!$C$212:$S$255,N$2,FALSE)*WACC_FY1519 -> 0 | O101: =VLOOKUP($C101,'8. RAB Roll-Forward'!$C$212:$S$255,O$2,FALSE)*WACC_FY1519 -> 0 | P101: =VLOOKUP($C101,'8. RAB Roll-Forward'!$C$212:$S$255,P$2,FALSE)*WACC_FY1519 -> 0 | Q101: =VLOOKUP($C101,'8. RAB Roll-Forward'!$C$212:$S$255,Q$2,FALSE)*WACC_FY1519 -> 0 | R101: =VLOOKUP($C101,'8. RAB Roll-Forward'!$C$212:$S$255,R$2,FALSE)*WACC -> 0 | S101: =VLOOKUP($C101,'8. RAB Roll-Forward'!$C$212:$S$255,S$2,FALSE)*WACC -> 0 | T101: 0
C102: CO19 | D102: Spare Core Asset Class 19 | H102: =VLOOKUP($C102,'8. RAB Roll-Forward'!$C$212:$S$255,H$2,FALSE)*WACC -> 0 | I102: =VLOOKUP($C102,'8. RAB Roll-Forward'!$C$212:$S$255,I$2,FALSE)*WACC -> 0 | J102: =VLOOKUP($C102,'8. RAB Roll-Forward'!$C$212:$S$255,J$2,FALSE)*WACC -> 0 | K102: =VLOOKUP($C102,'8. RAB Roll-Forward'!$C$212:$S$255,K$2,FALSE)*WACC -> 0 | L102: =VLOOKUP($C102,'8. RAB Roll-Forward'!$C$212:$S$255,L$2,FALSE)*WACC -> 0 | M102: =VLOOKUP($C102,'8. RAB Roll-Forward'!$C$212:$S$255,M$2,FALSE)*WACC_FY1519 -> 0 | N102: =VLOOKUP($C102,'8. RAB Roll-Forward'!$C$212:$S$255,N$2,FALSE)*WACC_FY1519 -> 0 | O102: =VLOOKUP($C102,'8. RAB Roll-Forward'!$C$212:$S$255,O$2,FALSE)*WACC_FY1519 -> 0 | P102: =VLOOKUP($C102,'8. RAB Roll-Forward'!$C$212:$S$255,P$2,FALSE)*WACC_FY1519 -> 0 | Q102: =VLOOKUP($C102,'8. RAB Roll-Forward'!$C$212:$S$255,Q$2,FALSE)*WACC_FY1519 -> 0 | R102: =VLOOKUP($C102,'8. RAB Roll-Forward'!$C$212:$S$255,R$2,FALSE)*WACC -> 0 | S102: =VLOOKUP($C102,'8. RAB Roll-Forward'!$C$212:$S$255,S$2,FALSE)*WACC -> 0 | T102: 0
C103: CO20 | D103: Spare Core Asset Class 20 | H103: =VLOOKUP($C103,'8. RAB Roll-Forward'!$C$212:$S$255,H$2,FALSE)*WACC -> 0 | I103: =VLOOKUP($C103,'8. RAB Roll-Forward'!$C$212:$S$255,I$2,FALSE)*WACC -> 0 | J103: =VLOOKUP($C103,'8. RAB Roll-Forward'!$C$212:$S$255,J$2,FALSE)*WACC -> 0 | K103: =VLOOKUP($C103,'8. RAB Roll-Forward'!$C$212:$S$255,K$2,FALSE)*WACC -> 0 | L103: =VLOOKUP($C103,'8. RAB Roll-Forward'!$C$212:$S$255,L$2,FALSE)*WACC -> 0 | M103: =VLOOKUP($C103,'8. RAB Roll-Forward'!$C$212:$S$255,M$2,FALSE)*WACC_FY1519 -> 0 | N103: =VLOOKUP($C103,'8. RAB Roll-Forward'!$C$212:$S$255,N$2,FALSE)*WACC_FY1519 -> 0 | O103: =VLOOKUP($C103,'8. RAB Roll-Forward'!$C$212:$S$255,O$2,FALSE)*WACC_FY1519 -> 0 | P103: =VLOOKUP($C103,'8. RAB Roll-Forward'!$C$212:$S$255,P$2,FALSE)*WACC_FY1519 -> 0 | Q103: =VLOOKUP($C103,'8. RAB Roll-Forward'!$C$212:$S$255,Q$2,FALSE)*WACC_FY1519 -> 0 | R103: =VLOOKUP($C103,'8. RAB Roll-Forward'!$C$212:$S$255,R$2,FALSE)*WACC -> 0 | S103: =VLOOKUP($C103,'8. RAB Roll-Forward'!$C$212:$S$255,S$2,FALSE)*WACC -> 0 | T103: 0
D104: Total | H104: =SUM(H84:H103) -> 0.6425450545 | I104: =SUM(I84:I103) -> 0.8291637816 | J104: 1.271633345 | K104: 1.084715528 | L104: 4.862016329 | M104: 4.891632977 | N104: 1.601602305 | O104: 1.675162662 | P104: 1.741280737 | Q104: 1.799957883 | R104: 3.165710764 | S104: 2.538527073 | T104: 20.3997106
B107: C.1.3 | C107: Return of capital (Depreciation)
H108: Y01 | I108: Y02 | J108: Y03 | K108: Y04 | L108: Y05 | M108: Y06 | N108: Y07 | O108: Y08 | P108: Y09 | Q108: Y10 | R108: Y11 | S108: Y12
C109: Code | D109: Asset Class | H109: =VLOOKUP(H108,FYears,2,FALSE) -> 2009/2010 | I109: 2010/2011 | J109: 2011/2012 | K109: 2012/2013 | L109: 2013/2014 | M109: 2014/2015 | N109: 2015/2016 | O109: 2016/2017 | P109: 2017/2018 | Q109: 2018/2019 | R109: 2019/2020 | S109: 2020/2021 | T109: Total
C110: CAN Asset Class
C111: CA01 | D111: =VLOOKUP(C111,CAN_AC,2,FALSE) -> Ducts and pipes | H111: =VLOOKUP($C111,'8. RAB Roll-Forward'!$C$262:$S$305,H$2,FALSE) -> 1 | I111: =VLOOKUP($C111,'8. RAB Roll-Forward'!$C$262:$S$305,I$2,FALSE) -> 0.02945106505 | J111: =VLOOKUP($C111,'8. RAB Roll-Forward'!$C$262:$S$305,J$2,FALSE) -> 0.0589021301 | K111: =VLOOKUP($C111,'8. RAB Roll-Forward'!$C$262:$S$305,K$2,FALSE) -> 0.08829619013 | L111: =VLOOKUP($C111,'8. RAB Roll-Forward'!$C$262:$S$305,L$2,FALSE) -> 0.1176902502 | M111: =VLOOKUP($C111,'8. RAB Roll-Forward'!$C$262:$S$305,M$2,FALSE) -> 0.1470843102 | N111: =VLOOKUP($C111,'8. RAB Roll-Forward'!$C$262:$S$305,N$2,FALSE) -> 0.1756557387 | O111: =VLOOKUP($C111,'8. RAB Roll-Forward'!$C$262:$S$305,O$2,FALSE) -> 0.2042271673 | P111: =VLOOKUP($C111,'8. RAB Roll-Forward'!$C$262:$S$305,P$2,FALSE) -> 0.2327985959 | Q111: =VLOOKUP($C111,'8. RAB Roll-Forward'!$C$262:$S$305,Q$2,FALSE) -> 0.2613700245 | R111: =VLOOKUP($C111,'8. RAB Roll-Forward'!$C$262:$S$305,R$2,FALSE) -> 0.289941453 | S111: =VLOOKUP($C111,'8. RAB Roll-Forward'!$C$262:$S$305,S$2,FALSE) -> 0.289941453 | T111: =SUM(OFFSET($H111,0,0,1,Model_period)) -> 2.315475472
C112: CA02 | D112: Copper cables | H112: =VLOOKUP($C112,'8. RAB Roll-Forward'!$C$262:$S$305,H$2,FALSE) -> 1 | I112: =VLOOKUP($C112,'8. RAB Roll-Forward'!$C$262:$S$305,I$2,FALSE) -> 0.05153936384 | J112: =VLOOKUP($C112,'8. RAB Roll-Forward'!$C$262:$S$305,J$2,FALSE) -> 0.1030787277 | K112: =VLOOKUP($C112,'8. RAB Roll-Forward'!$C$262:$S$305,K$2,FALSE) -> 0.1545183327 | L112: =VLOOKUP($C112,'8. RAB Roll-Forward'!$C$262:$S$305,L$2,FALSE) -> 0.2059579378 | M112: =VLOOKUP($C112,'8. RAB Roll-Forward'!$C$262:$S$305,M$2,FALSE) -> 0.2573975428 | N112: =VLOOKUP($C112,'8. RAB Roll-Forward'!$C$262:$S$305,N$2,FALSE) -> 0.3052376899 | O112: =VLOOKUP($C112,'8. RAB Roll-Forward'!$C$262:$S$305,O$2,FALSE) -> 0.3522103926 | P112: =VLOOKUP($C112,'8. RAB Roll-Forward'!$C$262:$S$305,P$2,FALSE) -> 0.3987029251 | Q112: =VLOOKUP($C112,'8. RAB Roll-Forward'!$C$262:$S$305,Q$2,FALSE) -> 0.444710182 | R112: =VLOOKUP($C112,'8. RAB Roll-Forward'!$C$262:$S$305,R$2,FALSE) -> 0.4902222453 | S112: =VLOOKUP($C112,'8. RAB Roll-Forward'!$C$262:$S$305,S$2,FALSE) -> 0.4653069441 | T112: 3.273353094
C113: CA03 | D113: Other cables | H113: =VLOOKUP($C113,'8. RAB Roll-Forward'!$C$262:$S$305,H$2,FALSE) -> 1 | I113: =VLOOKUP($C113,'8. RAB Roll-Forward'!$C$262:$S$305,I$2,FALSE) -> 0.05153936384 | J113: =VLOOKUP($C113,'8. RAB Roll-Forward'!$C$262:$S$305,J$2,FALSE) -> 0.1030787277 | K113: =VLOOKUP($C113,'8. RAB Roll-Forward'!$C$262:$S$305,K$2,FALSE) -> 0.1545183327 | L113: =VLOOKUP($C113,'8. RAB Roll-Forward'!$C$262:$S$305,L$2,FALSE) -> 0.2059579378 | M113: =VLOOKUP($C113,'8. RAB Roll-Forward'!$C$262:$S$305,M$2,FALSE) -> 0.2573975428 | N113: =VLOOKUP($C113,'8. RAB Roll-Forward'!$C$262:$S$305,N$2,FALSE) -> 0.3052376899 | O113: =VLOOKUP($C113,'8. RAB Roll-Forward'!$C$262:$S$305,O$2,FALSE) -> 0.3522103926 | P113: =VLOOKUP($C113,'8. RAB Roll-Forward'!$C$262:$S$305,P$2,FALSE) -> 0.3987029251 | Q113: =VLOOKUP($C113,'8. RAB Roll-Forward'!$C$262:$S$305,Q$2,FALSE) -> 0.444710182 | R113: =VLOOKUP($C113,'8. RAB Roll-Forward'!$C$262:$S$305,R$2,FALSE) -> 0.494710182 | S113: =VLOOKUP($C113,'8. RAB Roll-Forward'!$C$262:$S$305,S$2,FALSE) -> 0.494710182 | T113: 3.273353094
C114: CA04 | D114: Pair gain systems | H114: =VLOOKUP($C114,'8. RAB Roll-Forward'!$C$262:$S$305,H$2,FALSE) -> 1 | I114: =VLOOKUP($C114,'8. RAB Roll-Forward'!$C$262:$S$305,I$2,FALSE) -> 0.08589893973 | J114: =VLOOKUP($C114,'8. RAB Roll-Forward'!$C$262:$S$305,J$2,FALSE) -> 0.1717978795 | K114: =VLOOKUP($C114,'8. RAB Roll-Forward'!$C$262:$S$305,K$2,FALSE) -> 0.2575305545 | L114: =VLOOKUP($C114,'8. RAB Roll-Forward'!$C$262:$S$305,L$2,FALSE) -> 15 | M114: =VLOOKUP($C114,'8. RAB Roll-Forward'!$C$262:$S$305,M$2,FALSE) -> 0.4289959047 | N114: =VLOOKUP($C114,'8. RAB Roll-Forward'!$C$262:$S$305,N$2,FALSE) -> 0.5086625861 | O114: =VLOOKUP($C114,'8. RAB Roll-Forward'!$C$262:$S$305,O$2,FALSE) -> 0.5868658598 | P114: =VLOOKUP($C114,'8. RAB Roll-Forward'!$C$262:$S$305,P$2,FALSE) -> 0.6641485254 | Q114: =VLOOKUP($C114,'8. RAB Roll-Forward'!$C$262:$S$305,Q$2,FALSE) -> 0.7403861357 | R114: =VLOOKUP($C114,'8. RAB Roll-Forward'!$C$262:$S$305,R$2,FALSE) -> 0.823719469 | S114: =VLOOKUP($C114,'8. RAB Roll-Forward'!$C$262:$S$305,S$2,FALSE) -> 0.823719469 | T114: 19.44428639
C115: CA05 | D115: CAN Radio Bearer Equipment | H115: =VLOOKUP($C115,'8. RAB Roll-Forward'!$C$262:$S$305,H$2,FALSE) -> 1 | I115: =VLOOKUP($C115,'8. RAB Roll-Forward'!$C$262:$S$305,I$2,FALSE) -> 0.08589893973 | J115: =VLOOKUP($C115,'8. RAB Roll-Forward'!$C$262:$S$305,J$2,FALSE) -> 0.1717978795 | K115: =VLOOKUP($C115,'8. RAB Roll-Forward'!$C$262:$S$305,K$2,FALSE) -> 0.2575305545 | L115: =VLOOKUP($C115,'8. RAB Roll-Forward'!$C$262:$S$305,L$2,FALSE) -> 0.3432632296 | M115: =VLOOKUP($C115,'8. RAB Roll-Forward'!$C$262:$S$305,M$2,FALSE) -> 0.4289959047 | N115: =VLOOKUP($C115,'8. RAB Roll-Forward'!$C$262:$S$305,N$2,FALSE) -> 0.5086625861 | O115: =VLOOKUP($C115,'8. RAB Roll-Forward'!$C$262:$S$305,O$2,FALSE) -> 0.5868658598 | P115: =VLOOKUP($C115,'8. RAB Roll-Forward'!$C$262:$S$305,P$2,FALSE) -> 0.6641485254 | Q115: =VLOOKUP($C115,'8. RAB Roll-Forward'!$C$262:$S$305,Q$2,FALSE) -> 0.7403861357 | R115: =VLOOKUP($C115,'8. RAB Roll-Forward'!$C$262:$S$305,R$2,FALSE) -> 0.823719469 | S115: =VLOOKUP($C115,'8. RAB Roll-Forward'!$C$262:$S$305,S$2,FALSE) -> 0.823719469 | T115: 4.787549615
C116: CA06 | D116: Other CAN assets | H116: =VLOOKUP($C116,'8. RAB Roll-Forward'!$C$262:$S$305,H$2,FALSE) -> 1 | I116: =VLOOKUP($C116,'8. RAB Roll-Forward'!$C$262:$S$305,I$2,FALSE) -> 0.08589893973 | J116: =VLOOKUP($C116,'8. RAB Roll-Forward'!$C$262:$S$305,J$2,FALSE) -> 0.1717978795 | K116: =VLOOKUP($C116,'8. RAB Roll-Forward'!$C$262:$S$305,K$2,FALSE) -> 0.2575305545 | L116: =VLOOKUP($C116,'8. RAB Roll-Forward'!$C$262:$S$305,L$2,FALSE) -> 0.3432632296 | M116: =VLOOKUP($C116,'8. RAB Roll-Forward'!$C$262:$S$305,M$2,FALSE) -> 0.4289959047 | N116: =VLOOKUP($C116,'8. RAB Roll-Forward'!$C$262:$S$305,N$2,FALSE) -> 1.425329253 | O116: =VLOOKUP($C116,'8. RAB Roll-Forward'!$C$262:$S$305,O$2,FALSE) -> 1.422190577 | P116: =VLOOKUP($C116,'8. RAB Roll-Forward'!$C$262:$S$305,P$2,FALSE) -> 1.419435021 | Q116: =VLOOKUP($C116,'8. RAB Roll-Forward'!$C$262:$S$305,Q$2,FALSE) -> 1.416959775 | R116: =VLOOKUP($C116,'8. RAB Roll-Forward'!$C$262:$S$305,R$2,FALSE) -> 1.416959775 | S116: =VLOOKUP($C116,'8. RAB Roll-Forward'!$C$262:$S$305,S$2,FALSE) -> 0.4148721729 | T116: 7.971401134
C117: CA07 | D117: Other Communications Plant and Equipment | H117: =VLOOKUP($C117,'8. RAB Roll-Forward'!$C$262:$S$305,H$2,FALSE) -> 1 | I117: =VLOOKUP($C117,'8. RAB Roll-Forward'!$C$262:$S$305,I$2,FALSE) -> 1.030787277 | J117: =VLOOKUP($C117,'8. RAB Roll-Forward'!$C$262:$S$305,J$2,FALSE) -> 1.030787277 | K117: =VLOOKUP($C117,'8. RAB Roll-Forward'!$C$262:$S$305,K$2,FALSE) -> 1.028792101 | L117: =VLOOKUP($C117,'8. RAB Roll-Forward'!$C$262:$S$305,L$2,FALSE) -> 1.028792101 | M117: =VLOOKUP($C117,'8. RAB Roll-Forward'!$C$262:$S$305,M$2,FALSE) -> 1.028792101 | N117: =VLOOKUP($C117,'8. RAB Roll-Forward'!$C$262:$S$305,N$2,FALSE) -> 1 | O117: =VLOOKUP($C117,'8. RAB Roll-Forward'!$C$262:$S$305,O$2,FALSE) -> 1 | P117: =VLOOKUP($C117,'8. RAB Roll-Forward'!$C$262:$S$305,P$2,FALSE) -> 1 | Q117: =VLOOKUP($C117,'8. RAB Roll-Forward'!$C$262:$S$305,Q$2,FALSE) -> 1 | R117: =VLOOKUP($C117,'8. RAB Roll-Forward'!$C$262:$S$305,R$2,FALSE) -> 1 | S117: =VLOOKUP($C117,'8. RAB Roll-Forward'!$C$262:$S$305,S$2,FALSE) -> 0 | T117: 10.14795086
C118: CA08 | D118: Network Land | H118: =VLOOKUP($C118,'8. RAB Roll-Forward'!$C$262:$S$305,H$2,FALSE) -> 0.0001 | I118: =VLOOKUP($C118,'8. RAB Roll-Forward'!$C$262:$S$305,I$2,FALSE) -> 0.0002030787277 | J118: =VLOOKUP($C118,'8. RAB Roll-Forward'!$C$262:$S$305,J$2,FALSE) -> 0.0003061574554 | K118: =VLOOKUP($C118,'8. RAB Roll-Forward'!$C$262:$S$305,K$2,FALSE) -> 0.0004090366654 | L118: =VLOOKUP($C118,'8. RAB Roll-Forward'!$C$262:$S$305,L$2,FALSE) -> 0.0005119158755 | M118: =VLOOKUP($C118,'8. RAB Roll-Forward'!$C$262:$S$305,M$2,FALSE) -> 0.0006147950856 | N118: =VLOOKUP($C118,'8. RAB Roll-Forward'!$C$262:$S$305,N$2,FALSE) -> 0.0007147950856 | O118: =VLOOKUP($C118,'8. RAB Roll-Forward'!$C$262:$S$305,O$2,FALSE) -> 0.0008147950856 | P118: =VLOOKUP($C118,'8. RAB Roll-Forward'!$C$262:$S$305,P$2,FALSE) -> 0.0009147950856 | Q118: =VLOOKUP($C118,'8. RAB Roll-Forward'!$C$262:$S$305,Q$2,FALSE) -> 0.001014795086 | R118: =VLOOKUP($C118,'8. RAB Roll-Forward'!$C$262:$S$305,R$2,FALSE) -> 0.001114795086 | S118: =VLOOKUP($C118,'8. RAB Roll-Forward'!$C$262:$S$305,S$2,FALSE) -> 0.001114795086 | T118: 0.005604164152
C119: CA09 | D119: Network Buildings/Support | H119: =VLOOKUP($C119,'8. RAB Roll-Forward'!$C$262:$S$305,H$2,FALSE) -> 1 | I119: =VLOOKUP($C119,'8. RAB Roll-Forward'!$C$262:$S$305,I$2,FALSE) -> 1.030787277 | J119: =VLOOKUP($C119,'8. RAB Roll-Forward'!$C$262:$S$305,J$2,FALSE) -> 1.030787277 | K119: =VLOOKUP($C119,'8. RAB Roll-Forward'!$C$262:$S$305,K$2,FALSE) -> 1.028792101 | L119: =VLOOKUP($C119,'8. RAB Roll-Forward'!$C$262:$S$305,L$2,FALSE) -> 1.028792101 | M119: =VLOOKUP($C119,'8. RAB Roll-Forward'!$C$262:$S$305,M$2,FALSE) -> 1.028792101 | N119: =VLOOKUP($C119,'8. RAB Roll-Forward'!$C$262:$S$305,N$2,FALSE) -> 1 | O119: =VLOOKUP($C119,'8. RAB Roll-Forward'!$C$262:$S$305,O$2,FALSE) -> 1 | P119: =VLOOKUP($C119,'8. RAB Roll-Forward'!$C$262:$S$305,P$2,FALSE) -> 1 | Q119: =VLOOKUP($C119,'8. RAB Roll-Forward'!$C$262:$S$305,Q$2,FALSE) -> 1 | R119: =VLOOKUP($C119,'8. RAB Roll-Forward'!$C$262:$S$305,R$2,FALSE) -> 1 | S119: =VLOOKUP($C119,'8. RAB Roll-Forward'!$C$262:$S$305,S$2,FALSE) -> 0 | T119: 10.14795086
C120: CA10 | D120: Indirect Capital Assets | H120: =VLOOKUP($C120,'8. RAB Roll-Forward'!$C$262:$S$305,H$2,FALSE) -> 0.2 | I120: =VLOOKUP($C120,'8. RAB Roll-Forward'!$C$262:$S$305,I$2,FALSE) -> 0.3030787277 | J120: =VLOOKUP($C120,'8. RAB Roll-Forward'!$C$262:$S$305,J$2,FALSE) -> 0.4061574554 | K120: =VLOOKUP($C120,'8. RAB Roll-Forward'!$C$262:$S$305,K$2,FALSE) -> 0.5090366654 | L120: =VLOOKUP($C120,'8. RAB Roll-Forward'!$C$262:$S$305,L$2,FALSE) -> 0.6119158755 | M120: =VLOOKUP($C120,'8. RAB Roll-Forward'!$C$262:$S$305,M$2,FALSE) -> 0.5147950856 | N120: =VLOOKUP($C120,'8. RAB Roll-Forward'!$C$262:$S$305,N$2,FALSE) -> 1.514795086 | O120: =VLOOKUP($C120,'8. RAB Roll-Forward'!$C$262:$S$305,O$2,FALSE) -> 1.514795086 | P120: =VLOOKUP($C120,'8. RAB Roll-Forward'!$C$262:$S$305,P$2,FALSE) -> 1.514795086 | Q120: =VLOOKUP($C120,'8. RAB Roll-Forward'!$C$262:$S$305,Q$2,FALSE) -> 1.514795086 | R120: =VLOOKUP($C120,'8. RAB Roll-Forward'!$C$262:$S$305,R$2,FALSE) -> 1.514795086 | S120: =VLOOKUP($C120,'8. RAB Roll-Forward'!$C$262:$S$305,S$2,FALSE) -> 0.4117163579 | T120: 8.604164152
C121: CA11 | D121: Spare CAN Asset Class 11 | H121: =VLOOKUP($C121,'8. RAB Roll-Forward'!$C$262:$S$305,H$2,FALSE) -> 0 | I121: =VLOOKUP($C121,'8. RAB Roll-Forward'!$C$262:$S$305,I$2,FALSE) -> 0 | J121: =VLOOKUP($C121,'8. RAB Roll-Forward'!$C$262:$S$305,J$2,FALSE) -> 0 | K121: =VLOOKUP($C121,'8. RAB Roll-Forward'!$C$262:$S$305,K$2,FALSE) -> 0 | L121: =VLOOKUP($C121,'8. RAB Roll-Forward'!$C$262:$S$305,L$2,FALSE) -> 0 | M121: =VLOOKUP($C121,'8. RAB Roll-Forward'!$C$262:$S$305,M$2,FALSE) -> 0 | N121: =VLOOKUP($C121,'8. RAB Roll-Forward'!$C$262:$S$305,N$2,FALSE) -> 0 | O121: =VLOOKUP($C121,'8. RAB Roll-Forward'!$C$262:$S$305,O$2,FALSE) -> 0 | P121: =VLOOKUP($C121,'8. RAB Roll-Forward'!$C$262:$S$305,P$2,FALSE) -> 0 | Q121: =VLOOKUP($C121,'8. RAB Roll-Forward'!$C$262:$S$305,Q$2,FALSE) -> 0 | R121: =VLOOKUP($C121,'8. RAB Roll-Forward'!$C$262:$S$305,R$2,FALSE) -> 0 | S121: =VLOOKUP($C121,'8. RAB Roll-Forward'!$C$262:$S$305,S$2,FALSE) -> 0 | T121: 0
C122: CA12 | D122: Spare CAN Asset Class 12 | H122: =VLOOKUP($C122,'8. RAB Roll-Forward'!$C$262:$S$305,H$2,FALSE) -> 0 | I122: =VLOOKUP($C122,'8. RAB Roll-Forward'!$C$262:$S$305,I$2,FALSE) -> 0 | J122: =VLOOKUP($C122,'8. RAB Roll-Forward'!$C$262:$S$305,J$2,FALSE) -> 0 | K122: =VLOOKUP($C122,'8. RAB Roll-Forward'!$C$262:$S$305,K$2,FALSE) -> 0 | L122: =VLOOKUP($C122,'8. RAB Roll-Forward'!$C$262:$S$305,L$2,FALSE) -> 0 | M122: =VLOOKUP($C122,'8. RAB Roll-Forward'!$C$262:$S$305,M$2,FALSE) -> 0 | N122: =VLOOKUP($C122,'8. RAB Roll-Forward'!$C$262:$S$305,N$2,FALSE) -> 0 | O122: =VLOOKUP($C122,'8. RAB Roll-Forward'!$C$262:$S$305,O$2,FALSE) -> 0 | P122: =VLOOKUP($C122,'8. RAB Roll-Forward'!$C$262:$S$305,P$2,FALSE) -> 0 | Q122: =VLOOKUP($C122,'8. RAB Roll-Forward'!$C$262:$S$305,Q$2,FALSE) -> 0 | R122: =VLOOKUP($C122,'8. RAB Roll-Forward'!$C$262:$S$305,R$2,FALSE) -> 0 | S122: =VLOOKUP($C122,'8. RAB Roll-Forward'!$C$262:$S$305,S$2,FALSE) -> 0 | T122: 0
C123: CA13 | D123: Spare CAN Asset Class 13 | H123: =VLOOKUP($C123,'8. RAB Roll-Forward'!$C$262:$S$305,H$2,FALSE) -> 0 | I123: =VLOOKUP($C123,'8. RAB Roll-Forward'!$C$262:$S$305,I$2,FALSE) -> 0 | J123: =VLOOKUP($C123,'8. RAB Roll-Forward'!$C$262:$S$305,J$2,FALSE) -> 0 | K123: =VLOOKUP($C123,'8. RAB Roll-Forward'!$C$262:$S$305,K$2,FALSE) -> 0 | L123: =VLOOKUP($C123,'8. RAB Roll-Forward'!$C$262:$S$305,L$2,FALSE) -> 0 | M123: =VLOOKUP($C123,'8. RAB Roll-Forward'!$C$262:$S$305,M$2,FALSE) -> 0 | N123: =VLOOKUP($C123,'8. RAB Roll-Forward'!$C$262:$S$305,N$2,FALSE) -> 0 | O123: =VLOOKUP($C123,'8. RAB Roll-Forward'!$C$262:$S$305,O$2,FALSE) -> 0 | P123: =VLOOKUP($C123,'8. RAB Roll-Forward'!$C$262:$S$305,P$2,FALSE) -> 0 | Q123: =VLOOKUP($C123,'8. RAB Roll-Forward'!$C$262:$S$305,Q$2,FALSE) -> 0 | R123: =VLOOKUP($C123,'8. RAB Roll-Forward'!$C$262:$S$305,R$2,FALSE) -> 0 | S123: =VLOOKUP($C123,'8. RAB Roll-Forward'!$C$262:$S$305,S$2,FALSE) -> 0 | T123: 0
C124: CA14 | D124: Spare CAN Asset Class 14 | H124: =VLOOKUP($C124,'8. RAB Roll-Forward'!$C$262:$S$305,H$2,FALSE) -> 0 | I124: =VLOOKUP($C124,'8. RAB Roll-Forward'!$C$262:$S$305,I$2,FALSE) -> 0 | J124: =VLOOKUP($C124,'8. RAB Roll-Forward'!$C$262:$S$305,J$2,FALSE) -> 0 | K124: =VLOOKUP($C124,'8. RAB Roll-Forward'!$C$262:$S$305,K$2,FALSE) -> 0 | L124: =VLOOKUP($C124,'8. RAB Roll-Forward'!$C$262:$S$305,L$2,FALSE) -> 0 | M124: =VLOOKUP($C124,'8. RAB Roll-Forward'!$C$262:$S$305,M$2,FALSE) -> 0 | N124: =VLOOKUP($C124,'8. RAB Roll-Forward'!$C$262:$S$305,N$2,FALSE) -> 0 | O124: =VLOOKUP($C124,'8. RAB Roll-Forward'!$C$262:$S$305,O$2,FALSE) -> 0 | P124: =VLOOKUP($C124,'8. RAB Roll-Forward'!$C$262:$S$305,P$2,FALSE) -> 0 | Q124: =VLOOKUP($C124,'8. RAB Roll-Forward'!$C$262:$S$305,Q$2,FALSE) -> 0 | R124: =VLOOKUP($C124,'8. RAB Roll-Forward'!$C$262:$S$305,R$2,FALSE) -> 0 | S124: =VLOOKUP($C124,'8. RAB Roll-Forward'!$C$262:$S$305,S$2,FALSE) -> 0 | T124: 0
C125: CA15 | D125: Spare CAN Asset Class 15 | H125: =VLOOKUP($C125,'8. RAB Roll-Forward'!$C$262:$S$305,H$2,FALSE) -> 0 | I125: =VLOOKUP($C125,'8. RAB Roll-Forward'!$C$262:$S$305,I$2,FALSE) -> 0 | J125: =VLOOKUP($C125,'8. RAB Roll-Forward'!$C$262:$S$305,J$2,FALSE) -> 0 | K125: =VLOOKUP($C125,'8. RAB Roll-Forward'!$C$262:$S$305,K$2,FALSE) -> 0 | L125: =VLOOKUP($C125,'8. RAB Roll-Forward'!$C$262:$S$305,L$2,FALSE) -> 0 | M125: =VLOOKUP($C125,'8. RAB Roll-Forward'!$C$262:$S$305,M$2,FALSE) -> 0 | N125: =VLOOKUP($C125,'8. RAB Roll-Forward'!$C$262:$S$305,N$2,FALSE) -> 0 | O125: =VLOOKUP($C125,'8. RAB Roll-Forward'!$C$262:$S$305,O$2,FALSE) -> 0 | P125: =VLOOKUP($C125,'8. RAB Roll-Forward'!$C$262:$S$305,P$2,FALSE) -> 0 | Q125: =VLOOKUP($C125,'8. RAB Roll-Forward'!$C$262:$S$305,Q$2,FALSE) -> 0 | R125: =VLOOKUP($C125,'8. RAB Roll-Forward'!$C$262:$S$305,R$2,FALSE) -> 0 | S125: =VLOOKUP($C125,'8. RAB Roll-Forward'!$C$262:$S$305,S$2,FALSE) -> 0 | T125: 0
C126: CA16 | D126: Spare CAN Asset Class 16 | H126: =VLOOKUP($C126,'8. RAB Roll-Forward'!$C$262:$S$305,H$2,FALSE) -> 0 | I126: =VLOOKUP($C126,'8. RAB Roll-Forward'!$C$262:$S$305,I$2,FALSE) -> 0 | J126: =VLOOKUP($C126,'8. RAB Roll-Forward'!$C$262:$S$305,J$2,FALSE) -> 0 | K126: =VLOOKUP($C126,'8. RAB Roll-Forward'!$C$262:$S$305,K$2,FALSE) -> 0 | L126: =VLOOKUP($C126,'8. RAB Roll-Forward'!$C$262:$S$305,L$2,FALSE) -> 0 | M126: =VLOOKUP($C126,'8. RAB Roll-Forward'!$C$262:$S$305,M$2,FALSE) -> 0 | N126: =VLOOKUP($C126,'8. RAB Roll-Forward'!$C$262:$S$305,N$2,FALSE) -> 0 | O126: =VLOOKUP($C126,'8. RAB Roll-Forward'!$C$262:$S$305,O$2,FALSE) -> 0 | P126: =VLOOKUP($C126,'8. RAB Roll-Forward'!$C$262:$S$305,P$2,FALSE) -> 0 | Q126: =VLOOKUP($C126,'8. RAB Roll-Forward'!$C$262:$S$305,Q$2,FALSE) -> 0 | R126: =VLOOKUP($C126,'8. RAB Roll-Forward'!$C$262:$S$305,R$2,FALSE) -> 0 | S126: =VLOOKUP($C126,'8. RAB Roll-Forward'!$C$262:$S$305,S$2,FALSE) -> 0 | T126: 0
C127: CA17 | D127: Spare CAN Asset Class 17 | H127: =VLOOKUP($C127,'8. RAB Roll-Forward'!$C$262:$S$305,H$2,FALSE) -> 0 | I127: =VLOOKUP($C127,'8. RAB Roll-Forward'!$C$262:$S$305,I$2,FALSE) -> 0 | J127: =VLOOKUP($C127,'8. RAB Roll-Forward'!$C$262:$S$305,J$2,FALSE) -> 0 | K127: =VLOOKUP($C127,'8. RAB Roll-Forward'!$C$262:$S$305,K$2,FALSE) -> 0 | L127: =VLOOKUP($C127,'8. RAB Roll-Forward'!$C$262:$S$305,L$2,FALSE) -> 0 | M127: =VLOOKUP($C127,'8. RAB Roll-Forward'!$C$262:$S$305,M$2,FALSE) -> 0 | N127: =VLOOKUP($C127,'8. RAB Roll-Forward'!$C$262:$S$305,N$2,FALSE) -> 0 | O127: =VLOOKUP($C127,'8. RAB Roll-Forward'!$C$262:$S$305,O$2,FALSE) -> 0 | P127: =VLOOKUP($C127,'8. RAB Roll-Forward'!$C$262:$S$305,P$2,FALSE) -> 0 | Q127: =VLOOKUP($C127,'8. RAB Roll-Forward'!$C$262:$S$305,Q$2,FALSE) -> 0 | R127: =VLOOKUP($C127,'8. RAB Roll-Forward'!$C$262:$S$305,R$2,FALSE) -> 0 | S127: =VLOOKUP($C127,'8. RAB Roll-Forward'!$C$262:$S$305,S$2,FALSE) -> 0 | T127: 0
C128: CA18 | D128: Spare CAN Asset Class 18 | H128: =VLOOKUP($C128,'8. RAB Roll-Forward'!$C$262:$S$305,H$2,FALSE) -> 0 | I128: =VLOOKUP($C128,'8. RAB Roll-Forward'!$C$262:$S$305,I$2,FALSE) -> 0 | J128: =VLOOKUP($C128,'8. RAB Roll-Forward'!$C$262:$S$305,J$2,FALSE) -> 0 | K128: =VLOOKUP($C128,'8. RAB Roll-Forward'!$C$262:$S$305,K$2,FALSE) -> 0 | L128: =VLOOKUP($C128,'8. RAB Roll-Forward'!$C$262:$S$305,L$2,FALSE) -> 0 | M128: =VLOOKUP($C128,'8. RAB Roll-Forward'!$C$262:$S$305,M$2,FALSE) -> 0 | N128: =VLOOKUP($C128,'8. RAB Roll-Forward'!$C$262:$S$305,N$2,FALSE) -> 0 | O128: =VLOOKUP($C128,'8. RAB Roll-Forward'!$C$262:$S$305,O$2,FALSE) -> 0 | P128: =VLOOKUP($C128,'8. RAB Roll-Forward'!$C$262:$S$305,P$2,FALSE) -> 0 | Q128: =VLOOKUP($C128,'8. RAB Roll-Forward'!$C$262:$S$305,Q$2,FALSE) -> 0 | R128: =VLOOKUP($C128,'8. RAB Roll-Forward'!$C$262:$S$305,R$2,FALSE) -> 0 | S128: =VLOOKUP($C128,'8. RAB Roll-Forward'!$C$262:$S$305,S$2,FALSE) -> 0 | T128: 0
C129: CA19 | D129: Spare CAN Asset Class 19 | H129: =VLOOKUP($C129,'8. RAB Roll-Forward'!$C$262:$S$305,H$2,FALSE) -> 0 | I129: =VLOOKUP($C129,'8. RAB Roll-Forward'!$C$262:$S$305,I$2,FALSE) -> 0 | J129: =VLOOKUP($C129,'8. RAB Roll-Forward'!$C$262:$S$305,J$2,FALSE) -> 0 | K129: =VLOOKUP($C129,'8. RAB Roll-Forward'!$C$262:$S$305,K$2,FALSE) -> 0 | L129: =VLOOKUP($C129,'8. RAB Roll-Forward'!$C$262:$S$305,L$2,FALSE) -> 0 | M129: =VLOOKUP($C129,'8. RAB Roll-Forward'!$C$262:$S$305,M$2,FALSE) -> 0 | N129: =VLOOKUP($C129,'8. RAB Roll-Forward'!$C$262:$S$305,N$2,FALSE) -> 0 | O129: =VLOOKUP($C129,'8. RAB Roll-Forward'!$C$262:$S$305,O$2,FALSE) -> 0 | P129: =VLOOKUP($C129,'8. RAB Roll-Forward'!$C$262:$S$305,P$2,FALSE) -> 0 | Q129: =VLOOKUP($C129,'8. RAB Roll-Forward'!$C$262:$S$305,Q$2,FALSE) -> 0 | R129: =VLOOKUP($C129,'8. RAB Roll-Forward'!$C$262:$S$305,R$2,FALSE) -> 0 | S129: =VLOOKUP($C129,'8. RAB Roll-Forward'!$C$262:$S$305,S$2,FALSE) -> 0 | T129: 0
C130: CA20 | D130: Spare CAN Asset Class 20 | H130: =VLOOKUP($C130,'8. RAB Roll-Forward'!$C$262:$S$305,H$2,FALSE) -> 0 | I130: =VLOOKUP($C130,'8. RAB Roll-Forward'!$C$262:$S$305,I$2,FALSE) -> 0 | J130: =VLOOKUP($C130,'8. RAB Roll-Forward'!$C$262:$S$305,J$2,FALSE) -> 0 | K130: =VLOOKUP($C130,'8. RAB Roll-Forward'!$C$262:$S$305,K$2,FALSE) -> 0 | L130: =VLOOKUP($C130,'8. RAB Roll-Forward'!$C$262:$S$305,L$2,FALSE) -> 0 | M130: =VLOOKUP($C130,'8. RAB Roll-Forward'!$C$262:$S$305,M$2,FALSE) -> 0 | N130: =VLOOKUP($C130,'8. RAB Roll-Forward'!$C$262:$S$305,N$2,FALSE) -> 0 | O130: =VLOOKUP($C130,'8. RAB Roll-Forward'!$C$262:$S$305,O$2,FALSE) -> 0 | P130: =VLOOKUP($C130,'8. RAB Roll-Forward'!$C$262:$S$305,P$2,FALSE) -> 0 | Q130: =VLOOKUP($C130,'8. RAB Roll-Forward'!$C$262:$S$305,Q$2,FALSE) -> 0 | R130: =VLOOKUP($C130,'8. RAB Roll-Forward'!$C$262:$S$305,R$2,FALSE) -> 0 | S130: =VLOOKUP($C130,'8. RAB Roll-Forward'!$C$262:$S$305,S$2,FALSE) -> 0 | T130: 0
D131: Total | H131: =SUM(H111:H130) -> 8.2001 | I131: =SUM(I111:I130) -> 2.755082972 | J131: 3.24849139 | K131: 3.736954423 | L131: 18.88614458 | M131: 4.521861192 | N131: 6.744295424 | O131: 7.02018013 | P131: 7.293646399 | Q131: 7.564332316 | R131: 7.855182474 | S131: 3.725100843 | T131: 69.97108882
C132: Core Asset Class
C133: CO01 | D133: =VLOOKUP(C133,Core_AC,2,FALSE) -> Switching Equipment - Local | H133: =VLOOKUP($C133,'8. RAB Roll-Forward'!$C$262:$S$305,H$2,FALSE) -> 1 | I133: =VLOOKUP($C133,'8. RAB Roll-Forward'!$C$262:$S$305,I$2,FALSE) -> 0.03817730655 | J133: =VLOOKUP($C133,'8. RAB Roll-Forward'!$C$262:$S$305,J$2,FALSE) -> 0.0763546131 | K133: =VLOOKUP($C133,'8. RAB Roll-Forward'!$C$262:$S$305,K$2,FALSE) -> 8 | L133: =VLOOKUP($C133,'8. RAB Roll-Forward'!$C$262:$S$305,L$2,FALSE) -> 8 | M133: =VLOOKUP($C133,'8. RAB Roll-Forward'!$C$262:$S$305,M$2,FALSE) -> 0.1906648465 | N133: =VLOOKUP($C133,'8. RAB Roll-Forward'!$C$262:$S$305,N$2,FALSE) -> 0.3017600142 | O133: =VLOOKUP($C133,'8. RAB Roll-Forward'!$C$262:$S$305,O$2,FALSE) -> 0.4128357354 | P133: =VLOOKUP($C133,'8. RAB Roll-Forward'!$C$262:$S$305,P$2,FALSE) -> 0.5239010905 | Q133: =VLOOKUP($C133,'8. RAB Roll-Forward'!$C$262:$S$305,Q$2,FALSE) -> 0.6349556179 | R133: =VLOOKUP($C133,'8. RAB Roll-Forward'!$C$262:$S$305,R$2,FALSE) -> 0.7332788597 | S133: =VLOOKUP($C133,'8. RAB Roll-Forward'!$C$262:$S$305,S$2,FALSE) -> 0.6963557264 | T133: =SUM(OFFSET($H133,0,0,1,Model_period)) -> 19.17864922
C134: CO02 | D134: Switching Equipment - Trunk | H134: =VLOOKUP($C134,'8. RAB Roll-Forward'!$C$262:$S$305,H$2,FALSE) -> 1 | I134: =VLOOKUP($C134,'8. RAB Roll-Forward'!$C$262:$S$305,I$2,FALSE) -> 0.04123149107 | J134: =VLOOKUP($C134,'8. RAB Roll-Forward'!$C$262:$S$305,J$2,FALSE) -> 0.08246298214 | K134: =VLOOKUP($C134,'8. RAB Roll-Forward'!$C$262:$S$305,K$2,FALSE) -> 0.1236146662 | L134: =VLOOKUP($C134,'8. RAB Roll-Forward'!$C$262:$S$305,L$2,FALSE) -> 0.1647663502 | M134: =VLOOKUP($C134,'8. RAB Roll-Forward'!$C$262:$S$305,M$2,FALSE) -> 0.2059180342 | N134: =VLOOKUP($C134,'8. RAB Roll-Forward'!$C$262:$S$305,N$2,FALSE) -> 1.205918034 | O134: =VLOOKUP($C134,'8. RAB Roll-Forward'!$C$262:$S$305,O$2,FALSE) -> 1.205918034 | P134: =VLOOKUP($C134,'8. RAB Roll-Forward'!$C$262:$S$305,P$2,FALSE) -> 1.205918034 | Q134: =VLOOKUP($C134,'8. RAB Roll-Forward'!$C$262:$S$305,Q$2,FALSE) -> 1.205918034 | R134: =VLOOKUP($C134,'8. RAB Roll-Forward'!$C$262:$S$305,R$2,FALSE) -> 1.205918034 | S134: =VLOOKUP($C134,'8. RAB Roll-Forward'!$C$262:$S$305,S$2,FALSE) -> 0.2059180342 | T134: 6.441665661
C135: CO03 | D135: Switching Equipment - Other | H135: =VLOOKUP($C135,'8. RAB Roll-Forward'!$C$262:$S$305,H$2,FALSE) -> 1 | I135: =VLOOKUP($C135,'8. RAB Roll-Forward'!$C$262:$S$305,I$2,FALSE) -> 0.05153936384 | J135: =VLOOKUP($C135,'8. RAB Roll-Forward'!$C$262:$S$305,J$2,FALSE) -> 0.1030787277 | K135: =VLOOKUP($C135,'8. RAB Roll-Forward'!$C$262:$S$305,K$2,FALSE) -> 0.1545183327 | L135: =VLOOKUP($C135,'8. RAB Roll-Forward'!$C$262:$S$305,L$2,FALSE) -> 0.2059579378 | M135: =VLOOKUP($C135,'8. RAB Roll-Forward'!$C$262:$S$305,M$2,FALSE) -> 0.2573975428 | N135: =VLOOKUP($C135,'8. RAB Roll-Forward'!$C$262:$S$305,N$2,FALSE) -> 0.3073975428 | O135: =VLOOKUP($C135,'8. RAB Roll-Forward'!$C$262:$S$305,O$2,FALSE) -> 0.3573975428 | P135: =VLOOKUP($C135,'8. RAB Roll-Forward'!$C$262:$S$305,P$2,FALSE) -> 0.4073975428 | Q135: =VLOOKUP($C135,'8. RAB Roll-Forward'!$C$262:$S$305,Q$2,FALSE) -> 0.4573975428 | R135: =VLOOKUP($C135,'8. RAB Roll-Forward'!$C$262:$S$305,R$2,FALSE) -> 0.5073975428 | S135: =VLOOKUP($C135,'8. RAB Roll-Forward'!$C$262:$S$305,S$2,FALSE) -> 0.5073975428 | T135: 3.302082076
C136: CO04 | D136: Inter-exchange Cables | H136: =VLOOKUP($C136,'8. RAB Roll-Forward'!$C$262:$S$305,H$2,FALSE) -> 1 | I136: =VLOOKUP($C136,'8. RAB Roll-Forward'!$C$262:$S$305,I$2,FALSE) -> 0.02712598097 | J136: =VLOOKUP($C136,'8. RAB Roll-Forward'!$C$262:$S$305,J$2,FALSE) -> 0.05425196194 | K136: =VLOOKUP($C136,'8. RAB Roll-Forward'!$C$262:$S$305,K$2,FALSE) -> 0.08132543827 | L136: =VLOOKUP($C136,'8. RAB Roll-Forward'!$C$262:$S$305,L$2,FALSE) -> 0.1083989146 | M136: =VLOOKUP($C136,'8. RAB Roll-Forward'!$C$262:$S$305,M$2,FALSE) -> 0.135472391 | N136: =VLOOKUP($C136,'8. RAB Roll-Forward'!$C$262:$S$305,N$2,FALSE) -> 1.135472391 | O136: =VLOOKUP($C136,'8. RAB Roll-Forward'!$C$262:$S$305,O$2,FALSE) -> 1.135472391 | P136: =VLOOKUP($C136,'8. RAB Roll-Forward'!$C$262:$S$305,P$2,FALSE) -> 1.135472391 | Q136: =VLOOKUP($C136,'8. RAB Roll-Forward'!$C$262:$S$305,Q$2,FALSE) -> 1.135472391 | R136: =VLOOKUP($C136,'8. RAB Roll-Forward'!$C$262:$S$305,R$2,FALSE) -> 1.135472391 | S136: =VLOOKUP($C136,'8. RAB Roll-Forward'!$C$262:$S$305,S$2,FALSE) -> 0.135472391 | T136: 5.948464251
C137: CO05 | D137: Transmission Equipment | H137: =VLOOKUP($C137,'8. RAB Roll-Forward'!$C$262:$S$305,H$2,FALSE) -> 1 | I137: =VLOOKUP($C137,'8. RAB Roll-Forward'!$C$262:$S$305,I$2,FALSE) -> 1.030787277 | J137: =VLOOKUP($C137,'8. RAB Roll-Forward'!$C$262:$S$305,J$2,FALSE) -> 1.030787277 | K137: =VLOOKUP($C137,'8. RAB Roll-Forward'!$C$262:$S$305,K$2,FALSE) -> 1.028792101 | L137: =VLOOKUP($C137,'8. RAB Roll-Forward'!$C$262:$S$305,L$2,FALSE) -> 1.028792101 | M137: =VLOOKUP($C137,'8. RAB Roll-Forward'!$C$262:$S$305,M$2,FALSE) -> 1.028792101 | N137: =VLOOKUP($C137,'8. RAB Roll-Forward'!$C$262:$S$305,N$2,FALSE) -> 1 | O137: =VLOOKUP($C137,'8. RAB Roll-Forward'!$C$262:$S$305,O$2,FALSE) -> 1 | P137: =VLOOKUP($C137,'8. RAB Roll-Forward'!$C$262:$S$305,P$2,FALSE) -> 1 | Q137: =VLOOKUP($C137,'8. RAB Roll-Forward'!$C$262:$S$305,Q$2,FALSE) -> 1 | R137: =VLOOKUP($C137,'8. RAB Roll-Forward'!$C$262:$S$305,R$2,FALSE) -> 1 | S137: =VLOOKUP($C137,'8. RAB Roll-Forward'!$C$262:$S$305,S$2,FALSE) -> 0 | T137: 10.14795086
C138: CO06 | D138: Core Radio Bearer Equipment | H138: =VLOOKUP($C138,'8. RAB Roll-Forward'!$C$262:$S$305,H$2,FALSE) -> 1 | I138: =VLOOKUP($C138,'8. RAB Roll-Forward'!$C$262:$S$305,I$2,FALSE) -> 0.0644242048 | J138: =VLOOKUP($C138,'8. RAB Roll-Forward'!$C$262:$S$305,J$2,FALSE) -> 0.1288484096 | K138: =VLOOKUP($C138,'8. RAB Roll-Forward'!$C$262:$S$305,K$2,FALSE) -> 0.1931479159 | L138: =VLOOKUP($C138,'8. RAB Roll-Forward'!$C$262:$S$305,L$2,FALSE) -> 0.2574474222 | M138: =VLOOKUP($C138,'8. RAB Roll-Forward'!$C$262:$S$305,M$2,FALSE) -> 0.3217469285 | N138: =VLOOKUP($C138,'8. RAB Roll-Forward'!$C$262:$S$305,N$2,FALSE) -> 0.3842469285 | O138: =VLOOKUP($C138,'8. RAB Roll-Forward'!$C$262:$S$305,O$2,FALSE) -> 0.4467469285 | P138: =VLOOKUP($C138,'8. RAB Roll-Forward'!$C$262:$S$305,P$2,FALSE) -> 0.5092469285 | Q138: =VLOOKUP($C138,'8. RAB Roll-Forward'!$C$262:$S$305,Q$2,FALSE) -> 0.5717469285 | R138: =VLOOKUP($C138,'8. RAB Roll-Forward'!$C$262:$S$305,R$2,FALSE) -> 0.6342469285 | S138: =VLOOKUP($C138,'8. RAB Roll-Forward'!$C$262:$S$305,S$2,FALSE) -> 0.6342469285 | T138: 3.877602595
C139: CO07 | D139: Other Communications Plant and Equipment | H139: =VLOOKUP($C139,'8. RAB Roll-Forward'!$C$262:$S$305,H$2,FALSE) -> 1 | I139: =VLOOKUP($C139,'8. RAB Roll-Forward'!$C$262:$S$305,I$2,FALSE) -> 1.030787277 | J139: =VLOOKUP($C139,'8. RAB Roll-Forward'!$C$262:$S$305,J$2,FALSE) -> 1.030787277 | K139: =VLOOKUP($C139,'8. RAB Roll-Forward'!$C$262:$S$305,K$2,FALSE) -> 1.028792101 | L139: =VLOOKUP($C139,'8. RAB Roll-Forward'!$C$262:$S$305,L$2,FALSE) -> 1.028792101 | M139: =VLOOKUP($C139,'8. RAB Roll-Forward'!$C$262:$S$305,M$2,FALSE) -> 1.028792101 | N139: =VLOOKUP($C139,'8. RAB Roll-Forward'!$C$262:$S$305,N$2,FALSE) -> 1 | O139: =VLOOKUP($C139,'8. RAB Roll-Forward'!$C$262:$S$305,O$2,FALSE) -> 1 | P139: =VLOOKUP($C139,'8. RAB Roll-Forward'!$C$262:$S$305,P$2,FALSE) -> 1 | Q139: =VLOOKUP($C139,'8. RAB Roll-Forward'!$C$262:$S$305,Q$2,FALSE) -> 1 | R139: =VLOOKUP($C139,'8. RAB Roll-Forward'!$C$262:$S$305,R$2,FALSE) -> 1 | S139: =VLOOKUP($C139,'8. RAB Roll-Forward'!$C$262:$S$305,S$2,FALSE) -> 0 | T139: 10.14795086
C140: CO08 | D140: Network Land | H140: =VLOOKUP($C140,'8. RAB Roll-Forward'!$C$262:$S$305,H$2,FALSE) -> 0.0001 | I140: =VLOOKUP($C140,'8. RAB Roll-Forward'!$C$262:$S$305,I$2,FALSE) -> 0.0002030787277 | J140: =VLOOKUP($C140,'8. RAB Roll-Forward'!$C$262:$S$305,J$2,FALSE) -> 0.0003061574554 | K140: =VLOOKUP($C140,'8. RAB Roll-Forward'!$C$262:$S$305,K$2,FALSE) -> 0.0004090366654 | L140: =VLOOKUP($C140,'8. RAB Roll-Forward'!$C$262:$S$305,L$2,FALSE) -> 0.0005119158755 | M140: =VLOOKUP($C140,'8. RAB Roll-Forward'!$C$262:$S$305,M$2,FALSE) -> 0.0006147950856 | N140: =VLOOKUP($C140,'8. RAB Roll-Forward'!$C$262:$S$305,N$2,FALSE) -> 0.0007147950856 | O140: =VLOOKUP($C140,'8. RAB Roll-Forward'!$C$262:$S$305,O$2,FALSE) -> 0.0008147950856 | P140: =VLOOKUP($C140,'8. RAB Roll-Forward'!$C$262:$S$305,P$2,FALSE) -> 0.0009147950856 | Q140: =VLOOKUP($C140,'8. RAB Roll-Forward'!$C$262:$S$305,Q$2,FALSE) -> 0.001014795086 | R140: =VLOOKUP($C140,'8. RAB Roll-Forward'!$C$262:$S$305,R$2,FALSE) -> 0.001114795086 | S140: =VLOOKUP($C140,'8. RAB Roll-Forward'!$C$262:$S$305,S$2,FALSE) -> 0.001114795086 | T140: 0.005604164152
C141: CO09 | D141: Network Buildings/Support | H141: =VLOOKUP($C141,'8. RAB Roll-Forward'!$C$262:$S$305,H$2,FALSE) -> 1 | I141: =VLOOKUP($C141,'8. RAB Roll-Forward'!$C$262:$S$305,I$2,FALSE) -> 1.030787277 | J141: =VLOOKUP($C141,'8. RAB Roll-Forward'!$C$262:$S$305,J$2,FALSE) -> 1.030787277 | K141: =VLOOKUP($C141,'8. RAB Roll-Forward'!$C$262:$S$305,K$2,FALSE) -> 1.028792101 | L141: =VLOOKUP($C141,'8. RAB Roll-Forward'!$C$262:$S$305,L$2,FALSE) -> 1.028792101 | M141: =VLOOKUP($C141,'8. RAB Roll-Forward'!$C$262:$S$305,M$2,FALSE) -> 1.028792101 | N141: =VLOOKUP($C141,'8. RAB Roll-Forward'!$C$262:$S$305,N$2,FALSE) -> 1 | O141: =VLOOKUP($C141,'8. RAB Roll-Forward'!$C$262:$S$305,O$2,FALSE) -> 1 | P141: =VLOOKUP($C141,'8. RAB Roll-Forward'!$C$262:$S$305,P$2,FALSE) -> 1 | Q141: =VLOOKUP($C141,'8. RAB Roll-Forward'!$C$262:$S$305,Q$2,FALSE) -> 1 | R141: =VLOOKUP($C141,'8. RAB Roll-Forward'!$C$262:$S$305,R$2,FALSE) -> 1 | S141: =VLOOKUP($C141,'8. RAB Roll-Forward'!$C$262:$S$305,S$2,FALSE) -> 0 | T141: 10.14795086
C142: CO10 | D142: Indirect Capital Assets | H142: =VLOOKUP($C142,'8. RAB Roll-Forward'!$C$262:$S$305,H$2,FALSE) -> 0.2 | I142: =VLOOKUP($C142,'8. RAB Roll-Forward'!$C$262:$S$305,I$2,FALSE) -> 0.3030787277 | J142: =VLOOKUP($C142,'8. RAB Roll-Forward'!$C$262:$S$305,J$2,FALSE) -> 0.4061574554 | K142: =VLOOKUP($C142,'8. RAB Roll-Forward'!$C$262:$S$305,K$2,FALSE) -> 0.5090366654 | L142: =VLOOKUP($C142,'8. RAB Roll-Forward'!$C$262:$S$305,L$2,FALSE) -> 0.6119158755 | M142: =VLOOKUP($C142,'8. RAB Roll-Forward'!$C$262:$S$305,M$2,FALSE) -> 0.5147950856 | N142: =VLOOKUP($C142,'8. RAB Roll-Forward'!$C$262:$S$305,N$2,FALSE) -> 1.514795086 | O142: =VLOOKUP($C142,'8. RAB Roll-Forward'!$C$262:$S$305,O$2,FALSE) -> 1.514795086 | P142: =VLOOKUP($C142,'8. RAB Roll-Forward'!$C$262:$S$305,P$2,FALSE) -> 1.514795086 | Q142: =VLOOKUP($C142,'8. RAB Roll-Forward'!$C$262:$S$305,Q$2,FALSE) -> 1.514795086 | R142: =VLOOKUP($C142,'8. RAB Roll-Forward'!$C$262:$S$305,R$2,FALSE) -> 1.514795086 | S142: =VLOOKUP($C142,'8. RAB Roll-Forward'!$C$262:$S$305,S$2,FALSE) -> 0.4117163579 | T142: 8.604164152
C143: CO11 | D143: LSS equipment | H143: =VLOOKUP($C143,'8. RAB Roll-Forward'!$C$262:$S$305,H$2,FALSE) -> 0 | I143: =VLOOKUP($C143,'8. RAB Roll-Forward'!$C$262:$S$305,I$2,FALSE) -> 1.030787277 | J143: =VLOOKUP($C143,'8. RAB Roll-Forward'!$C$262:$S$305,J$2,FALSE) -> 1.030787277 | K143: =VLOOKUP($C143,'8. RAB Roll-Forward'!$C$262:$S$305,K$2,FALSE) -> 1.028792101 | L143: =VLOOKUP($C143,'8. RAB Roll-Forward'!$C$262:$S$305,L$2,FALSE) -> 1.028792101 | M143: =VLOOKUP($C143,'8. RAB Roll-Forward'!$C$262:$S$305,M$2,FALSE) -> 1.028792101 | N143: =VLOOKUP($C143,'8. RAB Roll-Forward'!$C$262:$S$305,N$2,FALSE) -> 1 | O143: =VLOOKUP($C143,'8. RAB Roll-Forward'!$C$262:$S$305,O$2,FALSE) -> 1 | P143: =VLOOKUP($C143,'8. RAB Roll-Forward'!$C$262:$S$305,P$2,FALSE) -> 1 | Q143: =VLOOKUP($C143,'8. RAB Roll-Forward'!$C$262:$S$305,Q$2,FALSE) -> 1 | R143: =VLOOKUP($C143,'8. RAB Roll-Forward'!$C$262:$S$305,R$2,FALSE) -> 1 | S143: =VLOOKUP($C143,'8. RAB Roll-Forward'!$C$262:$S$305,S$2,FALSE) -> 0 | T143: 9.147950856
C144: CO12 | D144: Data Equipment | H144: =VLOOKUP($C144,'8. RAB Roll-Forward'!$C$262:$S$305,H$2,FALSE) -> 1 | I144: =VLOOKUP($C144,'8. RAB Roll-Forward'!$C$262:$S$305,I$2,FALSE) -> 0.1717978795 | J144: =VLOOKUP($C144,'8. RAB Roll-Forward'!$C$262:$S$305,J$2,FALSE) -> 0.3435957589 | K144: =VLOOKUP($C144,'8. RAB Roll-Forward'!$C$262:$S$305,K$2,FALSE) -> 0.5150611091 | L144: =VLOOKUP($C144,'8. RAB Roll-Forward'!$C$262:$S$305,L$2,FALSE) -> 0.6865264592 | M144: =VLOOKUP($C144,'8. RAB Roll-Forward'!$C$262:$S$305,M$2,FALSE) -> 0.8579918094 | N144: =VLOOKUP($C144,'8. RAB Roll-Forward'!$C$262:$S$305,N$2,FALSE) -> 1.024658476 | O144: =VLOOKUP($C144,'8. RAB Roll-Forward'!$C$262:$S$305,O$2,FALSE) -> 1.019527263 | P144: =VLOOKUP($C144,'8. RAB Roll-Forward'!$C$262:$S$305,P$2,FALSE) -> 1.01439605 | Q144: =VLOOKUP($C144,'8. RAB Roll-Forward'!$C$262:$S$305,Q$2,FALSE) -> 1.009597367 | R144: =VLOOKUP($C144,'8. RAB Roll-Forward'!$C$262:$S$305,R$2,FALSE) -> 1.004798683 | S144: =VLOOKUP($C144,'8. RAB Roll-Forward'!$C$262:$S$305,S$2,FALSE) -> 0.8333333333 | T144: 7.643152173
C145: CO13 | D145: Spare Core Asset Class 13 | H145: =VLOOKUP($C145,'8. RAB Roll-Forward'!$C$262:$S$305,H$2,FALSE) -> 0 | I145: =VLOOKUP($C145,'8. RAB Roll-Forward'!$C$262:$S$305,I$2,FALSE) -> 0 | J145: =VLOOKUP($C145,'8. RAB Roll-Forward'!$C$262:$S$305,J$2,FALSE) -> 0 | K145: =VLOOKUP($C145,'8. RAB Roll-Forward'!$C$262:$S$305,K$2,FALSE) -> 0 | L145: =VLOOKUP($C145,'8. RAB Roll-Forward'!$C$262:$S$305,L$2,FALSE) -> 0 | M145: =VLOOKUP($C145,'8. RAB Roll-Forward'!$C$262:$S$305,M$2,FALSE) -> 0 | N145: =VLOOKUP($C145,'8. RAB Roll-Forward'!$C$262:$S$305,N$2,FALSE) -> 0 | O145: =VLOOKUP($C145,'8. RAB Roll-Forward'!$C$262:$S$305,O$2,FALSE) -> 0 | P145: =VLOOKUP($C145,'8. RAB Roll-Forward'!$C$262:$S$305,P$2,FALSE) -> 0 | Q145: =VLOOKUP($C145,'8. RAB Roll-Forward'!$C$262:$S$305,Q$2,FALSE) -> 0 | R145: =VLOOKUP($C145,'8. RAB Roll-Forward'!$C$262:$S$305,R$2,FALSE) -> 0 | S145: =VLOOKUP($C145,'8. RAB Roll-Forward'!$C$262:$S$305,S$2,FALSE) -> 0 | T145: 0
C146: CO14 | D146: Spare Core Asset Class 14 | H146: =VLOOKUP($C146,'8. RAB Roll-Forward'!$C$262:$S$305,H$2,FALSE) -> 0 | I146: =VLOOKUP($C146,'8. RAB Roll-Forward'!$C$262:$S$305,I$2,FALSE) -> 0 | J146: =VLOOKUP($C146,'8. RAB Roll-Forward'!$C$262:$S$305,J$2,FALSE) -> 0 | K146: =VLOOKUP($C146,'8. RAB Roll-Forward'!$C$262:$S$305,K$2,FALSE) -> 0 | L146: =VLOOKUP($C146,'8. RAB Roll-Forward'!$C$262:$S$305,L$2,FALSE) -> 0 | M146: =VLOOKUP($C146,'8. RAB Roll-Forward'!$C$262:$S$305,M$2,FALSE) -> 0 | N146: =VLOOKUP($C146,'8. RAB Roll-Forward'!$C$262:$S$305,N$2,FALSE) -> 0 | O146: =VLOOKUP($C146,'8. RAB Roll-Forward'!$C$262:$S$305,O$2,FALSE) -> 0 | P146: =VLOOKUP($C146,'8. RAB Roll-Forward'!$C$262:$S$305,P$2,FALSE) -> 0 | Q146: =VLOOKUP($C146,'8. RAB Roll-Forward'!$C$262:$S$305,Q$2,FALSE) -> 0 | R146: =VLOOKUP($C146,'8. RAB Roll-Forward'!$C$262:$S$305,R$2,FALSE) -> 0 | S146: =VLOOKUP($C146,'8. RAB Roll-Forward'!$C$262:$S$305,S$2,FALSE) -> 0 | T146: 0
C147: CO15 | D147: Spare Core Asset Class 15 | H147: =VLOOKUP($C147,'8. RAB Roll-Forward'!$C$262:$S$305,H$2,FALSE) -> 0 | I147: =VLOOKUP($C147,'8. RAB Roll-Forward'!$C$262:$S$305,I$2,FALSE) -> 0 | J147: =VLOOKUP($C147,'8. RAB Roll-Forward'!$C$262:$S$305,J$2,FALSE) -> 0 | K147: =VLOOKUP($C147,'8. RAB Roll-Forward'!$C$262:$S$305,K$2,FALSE) -> 0 | L147: =VLOOKUP($C147,'8. RAB Roll-Forward'!$C$262:$S$305,L$2,FALSE) -> 0 | M147: =VLOOKUP($C147,'8. RAB Roll-Forward'!$C$262:$S$305,M$2,FALSE) -> 0 | N147: =VLOOKUP($C147,'8. RAB Roll-Forward'!$C$262:$S$305,N$2,FALSE) -> 0 | O147: =VLOOKUP($C147,'8. RAB Roll-Forward'!$C$262:$S$305,O$2,FALSE) -> 0 | P147: =VLOOKUP($C147,'8. RAB Roll-Forward'!$C$262:$S$305,P$2,FALSE) -> 0 | Q147: =VLOOKUP($C147,'8. RAB Roll-Forward'!$C$262:$S$305,Q$2,FALSE) -> 0 | R147: =VLOOKUP($C147,'8. RAB Roll-Forward'!$C$262:$S$305,R$2,FALSE) -> 0 | S147: =VLOOKUP($C147,'8. RAB Roll-Forward'!$C$262:$S$305,S$2,FALSE) -> 0 | T147: 0
C148: CO16 | D148: Spare Core Asset Class 16 | H148: =VLOOKUP($C148,'8. RAB Roll-Forward'!$C$262:$S$305,H$2,FALSE) -> 0 | I148: =VLOOKUP($C148,'8. RAB Roll-Forward'!$C$262:$S$305,I$2,FALSE) -> 0 | J148: =VLOOKUP($C148,'8. RAB Roll-Forward'!$C$262:$S$305,J$2,FALSE) -> 0 | K148: =VLOOKUP($C148,'8. RAB Roll-Forward'!$C$262:$S$305,K$2,FALSE) -> 0 | L148: =VLOOKUP($C148,'8. RAB Roll-Forward'!$C$262:$S$305,L$2,FALSE) -> 0 | M148: =VLOOKUP($C148,'8. RAB Roll-Forward'!$C$262:$S$305,M$2,FALSE) -> 0 | N148: =VLOOKUP($C148,'8. RAB Roll-Forward'!$C$262:$S$305,N$2,FALSE) -> 0 | O148: =VLOOKUP($C148,'8. RAB Roll-Forward'!$C$262:$S$305,O$2,FALSE) -> 0 | P148: =VLOOKUP($C148,'8. RAB Roll-Forward'!$C$262:$S$305,P$2,FALSE) -> 0 | Q148: =VLOOKUP($C148,'8. RAB Roll-Forward'!$C$262:$S$305,Q$2,FALSE) -> 0 | R148: =VLOOKUP($C148,'8. RAB Roll-Forward'!$C$262:$S$305,R$2,FALSE) -> 0 | S148: =VLOOKUP($C148,'8. RAB Roll-Forward'!$C$262:$S$305,S$2,FALSE) -> 0 | T148: 0
C149: CO17 | D149: Spare Core Asset Class 17 | H149: =VLOOKUP($C149,'8. RAB Roll-Forward'!$C$262:$S$305,H$2,FALSE) -> 0 | I149: =VLOOKUP($C149,'8. RAB Roll-Forward'!$C$262:$S$305,I$2,FALSE) -> 0 | J149: =VLOOKUP($C149,'8. RAB Roll-Forward'!$C$262:$S$305,J$2,FALSE) -> 0 | K149: =VLOOKUP($C149,'8. RAB Roll-Forward'!$C$262:$S$305,K$2,FALSE) -> 0 | L149: =VLOOKUP($C149,'8. RAB Roll-Forward'!$C$262:$S$305,L$2,FALSE) -> 0 | M149: =VLOOKUP($C149,'8. RAB Roll-Forward'!$C$262:$S$305,M$2,FALSE) -> 0 | N149: =VLOOKUP($C149,'8. RAB Roll-Forward'!$C$262:$S$305,N$2,FALSE) -> 0 | O149: =VLOOKUP($C149,'8. RAB Roll-Forward'!$C$262:$S$305,O$2,FALSE) -> 0 | P149: =VLOOKUP($C149,'8. RAB Roll-Forward'!$C$262:$S$305,P$2,FALSE) -> 0 | Q149: =VLOOKUP($C149,'8. RAB Roll-Forward'!$C$262:$S$305,Q$2,FALSE) -> 0 | R149: =VLOOKUP($C149,'8. RAB Roll-Forward'!$C$262:$S$305,R$2,FALSE) -> 0 | S149: =VLOOKUP($C149,'8. RAB Roll-Forward'!$C$262:$S$305,S$2,FALSE) -> 0 | T149: 0
C150: CO18 | D150: Spare Core Asset Class 18 | H150: =VLOOKUP($C150,'8. RAB Roll-Forward'!$C$262:$S$305,H$2,FALSE) -> 0 | I150: =VLOOKUP($C150,'8. RAB Roll-Forward'!$C$262:$S$305,I$2,FALSE) -> 0 | J150: =VLOOKUP($C150,'8. RAB Roll-Forward'!$C$262:$S$305,J$2,FALSE) -> 0 | K150: =VLOOKUP($C150,'8. RAB Roll-Forward'!$C$262:$S$305,K$2,FALSE) -> 0 | L150: =VLOOKUP($C150,'8. RAB Roll-Forward'!$C$262:$S$305,L$2,FALSE) -> 0 | M150: =VLOOKUP($C150,'8. RAB Roll-Forward'!$C$262:$S$305,M$2,FALSE) -> 0 | N150: =VLOOKUP($C150,'8. RAB Roll-Forward'!$C$262:$S$305,N$2,FALSE) -> 0 | O150: =VLOOKUP($C150,'8. RAB Roll-Forward'!$C$262:$S$305,O$2,FALSE) -> 0 | P150: =VLOOKUP($C150,'8. RAB Roll-Forward'!$C$262:$S$305,P$2,FALSE) -> 0 | Q150: =VLOOKUP($C150,'8. RAB Roll-Forward'!$C$262:$S$305,Q$2,FALSE) -> 0 | R150: =VLOOKUP($C150,'8. RAB Roll-Forward'!$C$262:$S$305,R$2,FALSE) -> 0 | S150: =VLOOKUP($C150,'8. RAB Roll-Forward'!$C$262:$S$305,S$2,FALSE) -> 0 | T150: 0
C151: CO19 | D151: Spare Core Asset Class 19 | H151: =VLOOKUP($C151,'8. RAB Roll-Forward'!$C$262:$S$305,H$2,FALSE) -> 0 | I151: =VLOOKUP($C151,'8. RAB Roll-Forward'!$C$262:$S$305,I$2,FALSE) -> 0 | J151: =VLOOKUP($C151,'8. RAB Roll-Forward'!$C$262:$S$305,J$2,FALSE) -> 0 | K151: =VLOOKUP($C151,'8. RAB Roll-Forward'!$C$262:$S$305,K$2,FALSE) -> 0 | L151: =VLOOKUP($C151,'8. RAB Roll-Forward'!$C$262:$S$305,L$2,FALSE) -> 0 | M151: =VLOOKUP($C151,'8. RAB Roll-Forward'!$C$262:$S$305,M$2,FALSE) -> 0 | N151: =VLOOKUP($C151,'8. RAB Roll-Forward'!$C$262:$S$305,N$2,FALSE) -> 0 | O151: =VLOOKUP($C151,'8. RAB Roll-Forward'!$C$262:$S$305,O$2,FALSE) -> 0 | P151: =VLOOKUP($C151,'8. RAB Roll-Forward'!$C$262:$S$305,P$2,FALSE) -> 0 | Q151: =VLOOKUP($C151,'8. RAB Roll-Forward'!$C$262:$S$305,Q$2,FALSE) -> 0 | R151: =VLOOKUP($C151,'8. RAB Roll-Forward'!$C$262:$S$305,R$2,FALSE) -> 0 | S151: =VLOOKUP($C151,'8. RAB Roll-Forward'!$C$262:$S$305,S$2,FALSE) -> 0 | T151: 0
C152: CO20 | D152: Spare Core Asset Class 20 | H152: =VLOOKUP($C152,'8. RAB Roll-Forward'!$C$262:$S$305,H$2,FALSE) -> 0 | I152: =VLOOKUP($C152,'8. RAB Roll-Forward'!$C$262:$S$305,I$2,FALSE) -> 0 | J152: =VLOOKUP($C152,'8. RAB Roll-Forward'!$C$262:$S$305,J$2,FALSE) -> 0 | K152: =VLOOKUP($C152,'8. RAB Roll-Forward'!$C$262:$S$305,K$2,FALSE) -> 0 | L152: =VLOOKUP($C152,'8. RAB Roll-Forward'!$C$262:$S$305,L$2,FALSE) -> 0 | M152: =VLOOKUP($C152,'8. RAB Roll-Forward'!$C$262:$S$305,M$2,FALSE) -> 0 | N152: =VLOOKUP($C152,'8. RAB Roll-Forward'!$C$262:$S$305,N$2,FALSE) -> 0 | O152: =VLOOKUP($C152,'8. RAB Roll-Forward'!$C$262:$S$305,O$2,FALSE) -> 0 | P152: =VLOOKUP($C152,'8. RAB Roll-Forward'!$C$262:$S$305,P$2,FALSE) -> 0 | Q152: =VLOOKUP($C152,'8. RAB Roll-Forward'!$C$262:$S$305,Q$2,FALSE) -> 0 | R152: =VLOOKUP($C152,'8. RAB Roll-Forward'!$C$262:$S$305,R$2,FALSE) -> 0 | S152: =VLOOKUP($C152,'8. RAB Roll-Forward'!$C$262:$S$305,S$2,FALSE) -> 0 | T152: 0
D153: Total | H153: =SUM(H133:H152) -> 9.2001 | I153: =SUM(I133:I152) -> 4.82072714 | J153: 5.318205173 | K153: 13.69228157 | L153: 14.15069328 | M153: 6.599769836 | N153: 9.874963267 | O153: 10.09350778 | P153: 10.31204192 | Q153: 10.53089776 | R153: 10.73702232 | S153: 3.425555109 | T153: 94.59318772
B156: C.1.4 | C156: Tax Allowance
H157: Y01 | I157: Y02 | J157: Y03 | K157: Y04 | L157: Y05 | M157: Y06 | N157: Y07 | O157: Y08 | P157: Y09 | Q157: Y10 | R157: Y11 | S157: Y12
C158: Code | D158: Asset Class | H158: =VLOOKUP(H157,FYears,2,FALSE) -> 2009/2010 | I158: 2010/2011 | J158: 2011/2012 | K158: 2012/2013 | L158: 2013/2014 | M158: 2014/2015 | N158: 2015/2016 | O158: 2016/2017 | P158: 2017/2018 | Q158: 2018/2019 | R158: 2019/2020 | S158: 2020/2021 | T158: Total
C159: CAN Asset Class
C160: CA01 | D160: =VLOOKUP(C160,CAN_AC,2,FALSE) -> Ducts and pipes | H160: =VLOOKUP($C160,'6. Revenue Requirement'!$C$181:$S$224,H$2,FALSE) -> 0.009938902432 | I160: =VLOOKUP($C160,'6. Revenue Requirement'!$C$181:$S$224,I$2,FALSE) -> 0.007327634298 | J160: =VLOOKUP($C160,'6. Revenue Requirement'!$C$181:$S$224,J$2,FALSE) -> 0.0141030121 | K160: =VLOOKUP($C160,'6. Revenue Requirement'!$C$181:$S$224,K$2,FALSE) -> 0.02091618318 | L160: =VLOOKUP($C160,'6. Revenue Requirement'!$C$181:$S$224,L$2,FALSE) -> 0.3701712591 | M160: =VLOOKUP($C160,'6. Revenue Requirement'!$C$181:$S$224,M$2,FALSE) -> 0.01765886446 | N160: =VLOOKUP($C160,'6. Revenue Requirement'!$C$181:$S$224,N$2,FALSE) -> 0.02685247592 | O160: =VLOOKUP($C160,'6. Revenue Requirement'!$C$181:$S$224,O$2,FALSE) -> 0.03189972847 | P160: =VLOOKUP($C160,'6. Revenue Requirement'!$C$181:$S$224,P$2,FALSE) -> 0.03716944725 | Q160: =VLOOKUP($C160,'6. Revenue Requirement'!$C$181:$S$224,Q$2,FALSE) -> 0.04267060234 | R160: =VLOOKUP($C160,'6. Revenue Requirement'!$C$181:$S$224,R$2,FALSE) -> 0.07485370876 | S160: =VLOOKUP($C160,'6. Revenue Requirement'!$C$181:$S$224,S$2,FALSE) -> 0.07216175898 | T160: =SUM(OFFSET($H160,0,0,1,Model_period)) -> 0.5787081096
C161: CA02 | D161: Copper cables | H161: =VLOOKUP($C161,'6. Revenue Requirement'!$C$181:$S$224,H$2,FALSE) -> 0.009938902432 | I161: =VLOOKUP($C161,'6. Revenue Requirement'!$C$181:$S$224,I$2,FALSE) -> 0.007327634298 | J161: =VLOOKUP($C161,'6. Revenue Requirement'!$C$181:$S$224,J$2,FALSE) -> 0.01394971849 | K161: =VLOOKUP($C161,'6. Revenue Requirement'!$C$181:$S$224,K$2,FALSE) -> 0.02045449014 | L161: =VLOOKUP($C161,'6. Revenue Requirement'!$C$181:$S$224,L$2,FALSE) -> 0.3577317467 | M161: =VLOOKUP($C161,'6. Revenue Requirement'!$C$181:$S$224,M$2,FALSE) -> 0.01685569387 | N161: =VLOOKUP($C161,'6. Revenue Requirement'!$C$181:$S$224,N$2,FALSE) -> 0.02508872126 | O161: =VLOOKUP($C161,'6. Revenue Requirement'!$C$181:$S$224,O$2,FALSE) -> 0.02919011721 | P161: =VLOOKUP($C161,'6. Revenue Requirement'!$C$181:$S$224,P$2,FALSE) -> 0.03331871233 | Q161: =VLOOKUP($C161,'6. Revenue Requirement'!$C$181:$S$224,Q$2,FALSE) -> 0.03746873736 | R161: =VLOOKUP($C161,'6. Revenue Requirement'!$C$181:$S$224,R$2,FALSE) -> 0.06437260682 | S161: =VLOOKUP($C161,'6. Revenue Requirement'!$C$181:$S$224,S$2,FALSE) -> 0.06002280045 | T161: 0.5513244741
C162: CA03 | D162: Other cables | H162: =VLOOKUP($C162,'6. Revenue Requirement'!$C$181:$S$224,H$2,FALSE) -> 0.009938902432 | I162: =VLOOKUP($C162,'6. Revenue Requirement'!$C$181:$S$224,I$2,FALSE) -> 0.007327634298 | J162: =VLOOKUP($C162,'6. Revenue Requirement'!$C$181:$S$224,J$2,FALSE) -> 0.01394971849 | K162: =VLOOKUP($C162,'6. Revenue Requirement'!$C$181:$S$224,K$2,FALSE) -> 0.02045449014 | L162: =VLOOKUP($C162,'6. Revenue Requirement'!$C$181:$S$224,L$2,FALSE) -> 0.3577317467 | M162: =VLOOKUP($C162,'6. Revenue Requirement'!$C$181:$S$224,M$2,FALSE) -> 0.01685569387 | N162: =VLOOKUP($C162,'6. Revenue Requirement'!$C$181:$S$224,N$2,FALSE) -> 0.02508872126 | O162: =VLOOKUP($C162,'6. Revenue Requirement'!$C$181:$S$224,O$2,FALSE) -> 0.02919011721 | P162: =VLOOKUP($C162,'6. Revenue Requirement'!$C$181:$S$224,P$2,FALSE) -> 0.03331871233 | Q162: =VLOOKUP($C162,'6. Revenue Requirement'!$C$181:$S$224,Q$2,FALSE) -> 0.03746873736 | R162: =VLOOKUP($C162,'6. Revenue Requirement'!$C$181:$S$224,R$2,FALSE) -> 0.06437260682 | S162: =VLOOKUP($C162,'6. Revenue Requirement'!$C$181:$S$224,S$2,FALSE) -> 0.05998488928 | T162: 0.5513244741
C163: CA04 | D163: Pair gain systems | H163: =VLOOKUP($C163,'6. Revenue Requirement'!$C$181:$S$224,H$2,FALSE) -> 0.009938902432 | I163: =VLOOKUP($C163,'6. Revenue Requirement'!$C$181:$S$224,I$2,FALSE) -> 0.007327634298 | J163: =VLOOKUP($C163,'6. Revenue Requirement'!$C$181:$S$224,J$2,FALSE) -> 0.01371126176 | K163: =VLOOKUP($C163,'6. Revenue Requirement'!$C$181:$S$224,K$2,FALSE) -> 0.01973630097 | L163: =VLOOKUP($C163,'6. Revenue Requirement'!$C$181:$S$224,L$2,FALSE) -> 0.3383813942 | M163: =VLOOKUP($C163,'6. Revenue Requirement'!$C$181:$S$224,M$2,FALSE) -> 0.221466245 | N163: =VLOOKUP($C163,'6. Revenue Requirement'!$C$181:$S$224,N$2,FALSE) -> 0.02268961027 | O163: =VLOOKUP($C163,'6. Revenue Requirement'!$C$181:$S$224,O$2,FALSE) -> 0.02574106736 | P163: =VLOOKUP($C163,'6. Revenue Requirement'!$C$181:$S$224,P$2,FALSE) -> 0.02859371841 | Q163: =VLOOKUP($C163,'6. Revenue Requirement'!$C$181:$S$224,Q$2,FALSE) -> 0.03122232818 | R163: =VLOOKUP($C163,'6. Revenue Requirement'!$C$181:$S$224,R$2,FALSE) -> 0.05195114492 | S163: =VLOOKUP($C163,'6. Revenue Requirement'!$C$181:$S$224,S$2,FALSE) -> 0.04482444798 | T163: 0.7188084629
C164: CA05 | D164: CAN Radio Bearer Equipment | H164: =VLOOKUP($C164,'6. Revenue Requirement'!$C$181:$S$224,H$2,FALSE) -> 0.009938902432 | I164: =VLOOKUP($C164,'6. Revenue Requirement'!$C$181:$S$224,I$2,FALSE) -> 0.007327634298 | J164: =VLOOKUP($C164,'6. Revenue Requirement'!$C$181:$S$224,J$2,FALSE) -> 0.01371126176 | K164: =VLOOKUP($C164,'6. Revenue Requirement'!$C$181:$S$224,K$2,FALSE) -> 0.01973630097 | L164: =VLOOKUP($C164,'6. Revenue Requirement'!$C$181:$S$224,L$2,FALSE) -> 0.3383813942 | M164: =VLOOKUP($C164,'6. Revenue Requirement'!$C$181:$S$224,M$2,FALSE) -> 0.0156063174 | N164: =VLOOKUP($C164,'6. Revenue Requirement'!$C$181:$S$224,N$2,FALSE) -> 0.02268961027 | O164: =VLOOKUP($C164,'6. Revenue Requirement'!$C$181:$S$224,O$2,FALSE) -> 0.02574106736 | P164: =VLOOKUP($C164,'6. Revenue Requirement'!$C$181:$S$224,P$2,FALSE) -> 0.02859371841 | Q164: =VLOOKUP($C164,'6. Revenue Requirement'!$C$181:$S$224,Q$2,FALSE) -> 0.03122232818 | R164: =VLOOKUP($C164,'6. Revenue Requirement'!$C$181:$S$224,R$2,FALSE) -> 0.05195114492 | S164: =VLOOKUP($C164,'6. Revenue Requirement'!$C$181:$S$224,S$2,FALSE) -> 0.04482444798 | T164: 0.5129485353
C165: CA06 | D165: Other CAN assets | H165: =VLOOKUP($C165,'6. Revenue Requirement'!$C$181:$S$224,H$2,FALSE) -> 0.009938902432 | I165: =VLOOKUP($C165,'6. Revenue Requirement'!$C$181:$S$224,I$2,FALSE) -> 0.007327634298 | J165: =VLOOKUP($C165,'6. Revenue Requirement'!$C$181:$S$224,J$2,FALSE) -> 0.01371126176 | K165: =VLOOKUP($C165,'6. Revenue Requirement'!$C$181:$S$224,K$2,FALSE) -> 0.01973630097 | L165: =VLOOKUP($C165,'6. Revenue Requirement'!$C$181:$S$224,L$2,FALSE) -> 0.3383813942 | M165: =VLOOKUP($C165,'6. Revenue Requirement'!$C$181:$S$224,M$2,FALSE) -> 0.0156063174 | N165: =VLOOKUP($C165,'6. Revenue Requirement'!$C$181:$S$224,N$2,FALSE) -> 0.02268961027 | O165: =VLOOKUP($C165,'6. Revenue Requirement'!$C$181:$S$224,O$2,FALSE) -> 0.02136359919 | P165: =VLOOKUP($C165,'6. Revenue Requirement'!$C$181:$S$224,P$2,FALSE) -> 0.0199594136 | Q165: =VLOOKUP($C165,'6. Revenue Requirement'!$C$181:$S$224,Q$2,FALSE) -> 0.01846123352 | R165: =VLOOKUP($C165,'6. Revenue Requirement'!$C$181:$S$224,R$2,FALSE) -> 0.0260607466 | S165: =VLOOKUP($C165,'6. Revenue Requirement'!$C$181:$S$224,S$2,FALSE) -> 0.01400669189 | T165: 0.4871756677
C166: CA07 | D166: Other Communications Plant and Equipment | H166: =VLOOKUP($C166,'6. Revenue Requirement'!$C$181:$S$224,H$2,FALSE) -> 0.009938902432 | I166: =VLOOKUP($C166,'6. Revenue Requirement'!$C$181:$S$224,I$2,FALSE) -> 0.007327634298 | J166: =VLOOKUP($C166,'6. Revenue Requirement'!$C$181:$S$224,J$2,FALSE) -> 0.00715370179 | K166: =VLOOKUP($C166,'6. Revenue Requirement'!$C$181:$S$224,K$2,FALSE) -> 0.007167990526 | L166: =VLOOKUP($C166,'6. Revenue Requirement'!$C$181:$S$224,L$2,FALSE) -> 0.09659565307 | M166: =VLOOKUP($C166,'6. Revenue Requirement'!$C$181:$S$224,M$2,FALSE) -> 0.003743048103 | N166: =VLOOKUP($C166,'6. Revenue Requirement'!$C$181:$S$224,N$2,FALSE) -> 0.004705572469 | O166: =VLOOKUP($C166,'6. Revenue Requirement'!$C$181:$S$224,O$2,FALSE) -> 0.004884452263 | P166: =VLOOKUP($C166,'6. Revenue Requirement'!$C$181:$S$224,P$2,FALSE) -> 0.005073188656 | Q166: =VLOOKUP($C166,'6. Revenue Requirement'!$C$181:$S$224,Q$2,FALSE) -> 0.005271981386 | R166: =VLOOKUP($C166,'6. Revenue Requirement'!$C$181:$S$224,R$2,FALSE) -> 0.008474827894 | S166: =VLOOKUP($C166,'6. Revenue Requirement'!$C$181:$S$224,S$2,FALSE) -> 0 | T166: 0.151862125
C167: CA08 | D167: Network Land | H167: =VLOOKUP($C167,'6. Revenue Requirement'!$C$181:$S$224,H$2,FALSE) -> 0.009938902432 | I167: =VLOOKUP($C167,'6. Revenue Requirement'!$C$181:$S$224,I$2,FALSE) -> 0.0146166691 | J167: =VLOOKUP($C167,'6. Revenue Requirement'!$C$181:$S$224,J$2,FALSE) -> 0.02160316877 | K167: =VLOOKUP($C167,'6. Revenue Requirement'!$C$181:$S$224,K$2,FALSE) -> 0.02904063826 | L167: =VLOOKUP($C167,'6. Revenue Requirement'!$C$181:$S$224,L$2,FALSE) -> 0.4904849073 | M167: =VLOOKUP($C167,'6. Revenue Requirement'!$C$181:$S$224,M$2,FALSE) -> 0.02284968801 | N167: =VLOOKUP($C167,'6. Revenue Requirement'!$C$181:$S$224,N$2,FALSE) -> 0.03438855078 | O167: =VLOOKUP($C167,'6. Revenue Requirement'!$C$181:$S$224,O$2,FALSE) -> 0.04071861129 | P167: =VLOOKUP($C167,'6. Revenue Requirement'!$C$181:$S$224,P$2,FALSE) -> 0.0475120315 | Q167: =VLOOKUP($C167,'6. Revenue Requirement'!$C$181:$S$224,Q$2,FALSE) -> 0.05480176176 | R167: =VLOOKUP($C167,'6. Revenue Requirement'!$C$181:$S$224,R$2,FALSE) -> 0.09682623857 | S167: =VLOOKUP($C167,'6. Revenue Requirement'!$C$181:$S$224,S$2,FALSE) -> 0.09650286217 | T167: 0.7659549292
C168: CA09 | D168: Network Buildings/Support | H168: =VLOOKUP($C168,'6. Revenue Requirement'!$C$181:$S$224,H$2,FALSE) -> 0.009938902432 | I168: =VLOOKUP($C168,'6. Revenue Requirement'!$C$181:$S$224,I$2,FALSE) -> 0.007327634298 | J168: =VLOOKUP($C168,'6. Revenue Requirement'!$C$181:$S$224,J$2,FALSE) -> 0.00715370179 | K168: =VLOOKUP($C168,'6. Revenue Requirement'!$C$181:$S$224,K$2,FALSE) -> 0.007167990526 | L168: =VLOOKUP($C168,'6. Revenue Requirement'!$C$181:$S$224,L$2,FALSE) -> 0.09659565307 | M168: =VLOOKUP($C168,'6. Revenue Requirement'!$C$181:$S$224,M$2,FALSE) -> 0.003743048103 | N168: =VLOOKUP($C168,'6. Revenue Requirement'!$C$181:$S$224,N$2,FALSE) -> 0.004705572469 | O168: =VLOOKUP($C168,'6. Revenue Requirement'!$C$181:$S$224,O$2,FALSE) -> 0.004884452263 | P168: =VLOOKUP($C168,'6. Revenue Requirement'!$C$181:$S$224,P$2,FALSE) -> 0.005073188656 | Q168: =VLOOKUP($C168,'6. Revenue Requirement'!$C$181:$S$224,Q$2,FALSE) -> 0.005271981386 | R168: =VLOOKUP($C168,'6. Revenue Requirement'!$C$181:$S$224,R$2,FALSE) -> 0.008474827894 | S168: =VLOOKUP($C168,'6. Revenue Requirement'!$C$181:$S$224,S$2,FALSE) -> 0 | T168: 0.151862125
C169: CA10 | D169: Indirect Capital Assets | H169: =VLOOKUP($C169,'6. Revenue Requirement'!$C$181:$S$224,H$2,FALSE) -> 0.009938902432 | I169: =VLOOKUP($C169,'6. Revenue Requirement'!$C$181:$S$224,I$2,FALSE) -> 0.01301465389 | J169: =VLOOKUP($C169,'6. Revenue Requirement'!$C$181:$S$224,J$2,FALSE) -> 0.01775605557 | K169: =VLOOKUP($C169,'6. Revenue Requirement'!$C$181:$S$224,K$2,FALSE) -> 0.02216416034 | L169: =VLOOKUP($C169,'6. Revenue Requirement'!$C$181:$S$224,L$2,FALSE) -> 0.3474846772 | M169: =VLOOKUP($C169,'6. Revenue Requirement'!$C$181:$S$224,M$2,FALSE) -> 0.01498162916 | N169: =VLOOKUP($C169,'6. Revenue Requirement'!$C$181:$S$224,N$2,FALSE) -> 0.02165959501 | O169: =VLOOKUP($C169,'6. Revenue Requirement'!$C$181:$S$224,O$2,FALSE) -> 0.01996848079 | P169: =VLOOKUP($C169,'6. Revenue Requirement'!$C$181:$S$224,P$2,FALSE) -> 0.01812841503 | Q169: =VLOOKUP($C169,'6. Revenue Requirement'!$C$181:$S$224,Q$2,FALSE) -> 0.01612478626 | R169: =VLOOKUP($C169,'6. Revenue Requirement'!$C$181:$S$224,R$2,FALSE) -> 0.02155815452 | S169: =VLOOKUP($C169,'6. Revenue Requirement'!$C$181:$S$224,S$2,FALSE) -> 0.008692250539 | T169: 0.5012213557
C170: CA11 | D170: Spare CAN Asset Class 11 | H170: =VLOOKUP($C170,'6. Revenue Requirement'!$C$181:$S$224,H$2,FALSE) -> 0 | I170: =VLOOKUP($C170,'6. Revenue Requirement'!$C$181:$S$224,I$2,FALSE) -> 0 | J170: =VLOOKUP($C170,'6. Revenue Requirement'!$C$181:$S$224,J$2,FALSE) -> 0 | K170: =VLOOKUP($C170,'6. Revenue Requirement'!$C$181:$S$224,K$2,FALSE) -> 0 | L170: =VLOOKUP($C170,'6. Revenue Requirement'!$C$181:$S$224,L$2,FALSE) -> 0 | M170: =VLOOKUP($C170,'6. Revenue Requirement'!$C$181:$S$224,M$2,FALSE) -> 0 | N170: =VLOOKUP($C170,'6. Revenue Requirement'!$C$181:$S$224,N$2,FALSE) -> 0 | O170: =VLOOKUP($C170,'6. Revenue Requirement'!$C$181:$S$224,O$2,FALSE) -> 0 | P170: =VLOOKUP($C170,'6. Revenue Requirement'!$C$181:$S$224,P$2,FALSE) -> 0 | Q170: =VLOOKUP($C170,'6. Revenue Requirement'!$C$181:$S$224,Q$2,FALSE) -> 0 | R170: =VLOOKUP($C170,'6. Revenue Requirement'!$C$181:$S$224,R$2,FALSE) -> 0 | S170: =VLOOKUP($C170,'6. Revenue Requirement'!$C$181:$S$224,S$2,FALSE) -> 0 | T170: 0
C171: CA12 | D171: Spare CAN Asset Class 12 | H171: =VLOOKUP($C171,'6. Revenue Requirement'!$C$181:$S$224,H$2,FALSE) -> 0 | I171: =VLOOKUP($C171,'6. Revenue Requirement'!$C$181:$S$224,I$2,FALSE) -> 0 | J171: =VLOOKUP($C171,'6. Revenue Requirement'!$C$181:$S$224,J$2,FALSE) -> 0 | K171: =VLOOKUP($C171,'6. Revenue Requirement'!$C$181:$S$224,K$2,FALSE) -> 0 | L171: =VLOOKUP($C171,'6. Revenue Requirement'!$C$181:$S$224,L$2,FALSE) -> 0 | M171: =VLOOKUP($C171,'6. Revenue Requirement'!$C$181:$S$224,M$2,FALSE) -> 0 | N171: =VLOOKUP($C171,'6. Revenue Requirement'!$C$181:$S$224,N$2,FALSE) -> 0 | O171: =VLOOKUP($C171,'6. Revenue Requirement'!$C$181:$S$224,O$2,FALSE) -> 0 | P171: =VLOOKUP($C171,'6. Revenue Requirement'!$C$181:$S$224,P$2,FALSE) -> 0 | Q171: =VLOOKUP($C171,'6. Revenue Requirement'!$C$181:$S$224,Q$2,FALSE) -> 0 | R171: =VLOOKUP($C171,'6. Revenue Requirement'!$C$181:$S$224,R$2,FALSE) -> 0 | S171: =VLOOKUP($C171,'6. Revenue Requirement'!$C$181:$S$224,S$2,FALSE) -> 0 | T171: 0
C172: CA13 | D172: Spare CAN Asset Class 13 | H172: =VLOOKUP($C172,'6. Revenue Requirement'!$C$181:$S$224,H$2,FALSE) -> 0 | I172: =VLOOKUP($C172,'6. Revenue Requirement'!$C$181:$S$224,I$2,FALSE) -> 0 | J172: =VLOOKUP($C172,'6. Revenue Requirement'!$C$181:$S$224,J$2,FALSE) -> 0 | K172: =VLOOKUP($C172,'6. Revenue Requirement'!$C$181:$S$224,K$2,FALSE) -> 0 | L172: =VLOOKUP($C172,'6. Revenue Requirement'!$C$181:$S$224,L$2,FALSE) -> 0 | M172: =VLOOKUP($C172,'6. Revenue Requirement'!$C$181:$S$224,M$2,FALSE) -> 0 | N172: =VLOOKUP($C172,'6. Revenue Requirement'!$C$181:$S$224,N$2,FALSE) -> 0 | O172: =VLOOKUP($C172,'6. Revenue Requirement'!$C$181:$S$224,O$2,FALSE) -> 0 | P172: =VLOOKUP($C172,'6. Revenue Requirement'!$C$181:$S$224,P$2,FALSE) -> 0 | Q172: =VLOOKUP($C172,'6. Revenue Requirement'!$C$181:$S$224,Q$2,FALSE) -> 0 | R172: =VLOOKUP($C172,'6. Revenue Requirement'!$C$181:$S$224,R$2,FALSE) -> 0 | S172: =VLOOKUP($C172,'6. Revenue Requirement'!$C$181:$S$224,S$2,FALSE) -> 0 | T172: 0
C173: CA14 | D173: Spare CAN Asset Class 14 | H173: =VLOOKUP($C173,'6. Revenue Requirement'!$C$181:$S$224,H$2,FALSE) -> 0 | I173: =VLOOKUP($C173,'6. Revenue Requirement'!$C$181:$S$224,I$2,FALSE) -> 0 | J173: =VLOOKUP($C173,'6. Revenue Requirement'!$C$181:$S$224,J$2,FALSE) -> 0 | K173: =VLOOKUP($C173,'6. Revenue Requirement'!$C$181:$S$224,K$2,FALSE) -> 0 | L173: =VLOOKUP($C173,'6. Revenue Requirement'!$C$181:$S$224,L$2,FALSE) -> 0 | M173: =VLOOKUP($C173,'6. Revenue Requirement'!$C$181:$S$224,M$2,FALSE) -> 0 | N173: =VLOOKUP($C173,'6. Revenue Requirement'!$C$181:$S$224,N$2,FALSE) -> 0 | O173: =VLOOKUP($C173,'6. Revenue Requirement'!$C$181:$S$224,O$2,FALSE) -> 0 | P173: =VLOOKUP($C173,'6. Revenue Requirement'!$C$181:$S$224,P$2,FALSE) -> 0 | Q173: =VLOOKUP($C173,'6. Revenue Requirement'!$C$181:$S$224,Q$2,FALSE) -> 0 | R173: =VLOOKUP($C173,'6. Revenue Requirement'!$C$181:$S$224,R$2,FALSE) -> 0 | S173: =VLOOKUP($C173,'6. Revenue Requirement'!$C$181:$S$224,S$2,FALSE) -> 0 | T173: 0
C174: CA15 | D174: Spare CAN Asset Class 15 | H174: =VLOOKUP($C174,'6. Revenue Requirement'!$C$181:$S$224,H$2,FALSE) -> 0 | I174: =VLOOKUP($C174,'6. Revenue Requirement'!$C$181:$S$224,I$2,FALSE) -> 0 | J174: =VLOOKUP($C174,'6. Revenue Requirement'!$C$181:$S$224,J$2,FALSE) -> 0 | K174: =VLOOKUP($C174,'6. Revenue Requirement'!$C$181:$S$224,K$2,FALSE) -> 0 | L174: =VLOOKUP($C174,'6. Revenue Requirement'!$C$181:$S$224,L$2,FALSE) -> 0 | M174: =VLOOKUP($C174,'6. Revenue Requirement'!$C$181:$S$224,M$2,FALSE) -> 0 | N174: =VLOOKUP($C174,'6. Revenue Requirement'!$C$181:$S$224,N$2,FALSE) -> 0 | O174: =VLOOKUP($C174,'6. Revenue Requirement'!$C$181:$S$224,O$2,FALSE) -> 0 | P174: =VLOOKUP($C174,'6. Revenue Requirement'!$C$181:$S$224,P$2,FALSE) -> 0 | Q174: =VLOOKUP($C174,'6. Revenue Requirement'!$C$181:$S$224,Q$2,FALSE) -> 0 | R174: =VLOOKUP($C174,'6. Revenue Requirement'!$C$181:$S$224,R$2,FALSE) -> 0 | S174: =VLOOKUP($C174,'6. Revenue Requirement'!$C$181:$S$224,S$2,FALSE) -> 0 | T174: 0
C175: CA16 | D175: Spare CAN Asset Class 16 | H175: =VLOOKUP($C175,'6. Revenue Requirement'!$C$181:$S$224,H$2,FALSE) -> 0 | I175: =VLOOKUP($C175,'6. Revenue Requirement'!$C$181:$S$224,I$2,FALSE) -> 0 | J175: =VLOOKUP($C175,'6. Revenue Requirement'!$C$181:$S$224,J$2,FALSE) -> 0 | K175: =VLOOKUP($C175,'6. Revenue Requirement'!$C$181:$S$224,K$2,FALSE) -> 0 | L175: =VLOOKUP($C175,'6. Revenue Requirement'!$C$181:$S$224,L$2,FALSE) -> 0 | M175: =VLOOKUP($C175,'6. Revenue Requirement'!$C$181:$S$224,M$2,FALSE) -> 0 | N175: =VLOOKUP($C175,'6. Revenue Requirement'!$C$181:$S$224,N$2,FALSE) -> 0 | O175: =VLOOKUP($C175,'6. Revenue Requirement'!$C$181:$S$224,O$2,FALSE) -> 0 | P175: =VLOOKUP($C175,'6. Revenue Requirement'!$C$181:$S$224,P$2,FALSE) -> 0 | Q175: =VLOOKUP($C175,'6. Revenue Requirement'!$C$181:$S$224,Q$2,FALSE) -> 0 | R175: =VLOOKUP($C175,'6. Revenue Requirement'!$C$181:$S$224,R$2,FALSE) -> 0 | S175: =VLOOKUP($C175,'6. Revenue Requirement'!$C$181:$S$224,S$2,FALSE) -> 0 | T175: 0
C176: CA17 | D176: Spare CAN Asset Class 17 | H176: =VLOOKUP($C176,'6. Revenue Requirement'!$C$181:$S$224,H$2,FALSE) -> 0 | I176: =VLOOKUP($C176,'6. Revenue Requirement'!$C$181:$S$224,I$2,FALSE) -> 0 | J176: =VLOOKUP($C176,'6. Revenue Requirement'!$C$181:$S$224,J$2,FALSE) -> 0 | K176: =VLOOKUP($C176,'6. Revenue Requirement'!$C$181:$S$224,K$2,FALSE) -> 0 | L176: =VLOOKUP($C176,'6. Revenue Requirement'!$C$181:$S$224,L$2,FALSE) -> 0 | M176: =VLOOKUP($C176,'6. Revenue Requirement'!$C$181:$S$224,M$2,FALSE) -> 0 | N176: =VLOOKUP($C176,'6. Revenue Requirement'!$C$181:$S$224,N$2,FALSE) -> 0 | O176: =VLOOKUP($C176,'6. Revenue Requirement'!$C$181:$S$224,O$2,FALSE) -> 0 | P176: =VLOOKUP($C176,'6. Revenue Requirement'!$C$181:$S$224,P$2,FALSE) -> 0 | Q176: =VLOOKUP($C176,'6. Revenue Requirement'!$C$181:$S$224,Q$2,FALSE) -> 0 | R176: =VLOOKUP($C176,'6. Revenue Requirement'!$C$181:$S$224,R$2,FALSE) -> 0 | S176: =VLOOKUP($C176,'6. Revenue Requirement'!$C$181:$S$224,S$2,FALSE) -> 0 | T176: 0
C177: CA18 | D177: Spare CAN Asset Class 18 | H177: =VLOOKUP($C177,'6. Revenue Requirement'!$C$181:$S$224,H$2,FALSE) -> 0 | I177: =VLOOKUP($C177,'6. Revenue Requirement'!$C$181:$S$224,I$2,FALSE) -> 0 | J177: =VLOOKUP($C177,'6. Revenue Requirement'!$C$181:$S$224,J$2,FALSE) -> 0 | K177: =VLOOKUP($C177,'6. Revenue Requirement'!$C$181:$S$224,K$2,FALSE) -> 0 | L177: =VLOOKUP($C177,'6. Revenue Requirement'!$C$181:$S$224,L$2,FALSE) -> 0 | M177: =VLOOKUP($C177,'6. Revenue Requirement'!$C$181:$S$224,M$2,FALSE) -> 0 | N177: =VLOOKUP($C177,'6. Revenue Requirement'!$C$181:$S$224,N$2,FALSE) -> 0 | O177: =VLOOKUP($C177,'6. Revenue Requirement'!$C$181:$S$224,O$2,FALSE) -> 0 | P177: =VLOOKUP($C177,'6. Revenue Requirement'!$C$181:$S$224,P$2,FALSE) -> 0 | Q177: =VLOOKUP($C177,'6. Revenue Requirement'!$C$181:$S$224,Q$2,FALSE) -> 0 | R177: =VLOOKUP($C177,'6. Revenue Requirement'!$C$181:$S$224,R$2,FALSE) -> 0 | S177: =VLOOKUP($C177,'6. Revenue Requirement'!$C$181:$S$224,S$2,FALSE) -> 0 | T177: 0
C178: CA19 | D178: Spare CAN Asset Class 19 | H178: =VLOOKUP($C178,'6. Revenue Requirement'!$C$181:$S$224,H$2,FALSE) -> 0 | I178: =VLOOKUP($C178,'6. Revenue Requirement'!$C$181:$S$224,I$2,FALSE) -> 0 | J178: =VLOOKUP($C178,'6. Revenue Requirement'!$C$181:$S$224,J$2,FALSE) -> 0 | K178: =VLOOKUP($C178,'6. Revenue Requirement'!$C$181:$S$224,K$2,FALSE) -> 0 | L178: =VLOOKUP($C178,'6. Revenue Requirement'!$C$181:$S$224,L$2,FALSE) -> 0 | M178: =VLOOKUP($C178,'6. Revenue Requirement'!$C$181:$S$224,M$2,FALSE) -> 0 | N178: =VLOOKUP($C178,'6. Revenue Requirement'!$C$181:$S$224,N$2,FALSE) -> 0 | O178: =VLOOKUP($C178,'6. Revenue Requirement'!$C$181:$S$224,O$2,FALSE) -> 0 | P178: =VLOOKUP($C178,'6. Revenue Requirement'!$C$181:$S$224,P$2,FALSE) -> 0 | Q178: =VLOOKUP($C178,'6. Revenue Requirement'!$C$181:$S$224,Q$2,FALSE) -> 0 | R178: =VLOOKUP($C178,'6. Revenue Requirement'!$C$181:$S$224,R$2,FALSE) -> 0 | S178: =VLOOKUP($C178,'6. Revenue Requirement'!$C$181:$S$224,S$2,FALSE) -> 0 | T178: 0
C179: CA20 | D179: Spare CAN Asset Class 20 | H179: =VLOOKUP($C179,'6. Revenue Requirement'!$C$181:$S$224,H$2,FALSE) -> 0 | I179: =VLOOKUP($C179,'6. Revenue Requirement'!$C$181:$S$224,I$2,FALSE) -> 0 | J179: =VLOOKUP($C179,'6. Revenue Requirement'!$C$181:$S$224,J$2,FALSE) -> 0 | K179: =VLOOKUP($C179,'6. Revenue Requirement'!$C$181:$S$224,K$2,FALSE) -> 0 | L179: =VLOOKUP($C179,'6. Revenue Requirement'!$C$181:$S$224,L$2,FALSE) -> 0 | M179: =VLOOKUP($C179,'6. Revenue Requirement'!$C$181:$S$224,M$2,FALSE) -> 0 | N179: =VLOOKUP($C179,'6. Revenue Requirement'!$C$181:$S$224,N$2,FALSE) -> 0 | O179: =VLOOKUP($C179,'6. Revenue Requirement'!$C$181:$S$224,O$2,FALSE) -> 0 | P179: =VLOOKUP($C179,'6. Revenue Requirement'!$C$181:$S$224,P$2,FALSE) -> 0 | Q179: =VLOOKUP($C179,'6. Revenue Requirement'!$C$181:$S$224,Q$2,FALSE) -> 0 | R179: =VLOOKUP($C179,'6. Revenue Requirement'!$C$181:$S$224,R$2,FALSE) -> 0 | S179: =VLOOKUP($C179,'6. Revenue Requirement'!$C$181:$S$224,S$2,FALSE) -> 0 | T179: 0
D180: Total | H180: =SUM(H160:H179) -> 0.09938902432 | I180: =SUM(I160:I179) -> 0.08625239737 | J180: 0.1368028623 | K180: 0.186574846 | L180: 3.131939826 | M180: 0.3493665454 | N180: 0.21055804 | O180: 0.2335816934 | P180: 0.2567405462 | Q180: 0.2799844777 | R180: 0.4688960077 | S180: 0.4010201493 | T180: 4.971190259
C181: Core Asset Class
C182: CO01 | D182: =VLOOKUP(C182,Core_AC,2,FALSE) -> Switching Equipment - Local | H182: =VLOOKUP($C182,'6. Revenue Requirement'!$C$181:$S$224,H$2,FALSE) -> 0.0100191797 | I182: =VLOOKUP($C182,'6. Revenue Requirement'!$C$181:$S$224,I$2,FALSE) -> 0.02230902536 | J182: =VLOOKUP($C182,'6. Revenue Requirement'!$C$181:$S$224,J$2,FALSE) -> 0.03325415897 | K182: =VLOOKUP($C182,'6. Revenue Requirement'!$C$181:$S$224,K$2,FALSE) -> 0.1965673274 | L182: =VLOOKUP($C182,'6. Revenue Requirement'!$C$181:$S$224,L$2,FALSE) -> 1.729093962 | M182: =VLOOKUP($C182,'6. Revenue Requirement'!$C$181:$S$224,M$2,FALSE) -> 0.5269630809 | N182: =VLOOKUP($C182,'6. Revenue Requirement'!$C$181:$S$224,N$2,FALSE) -> 0.05041833479 | O182: =VLOOKUP($C182,'6. Revenue Requirement'!$C$181:$S$224,O$2,FALSE) -> 0.05631475572 | P182: =VLOOKUP($C182,'6. Revenue Requirement'!$C$181:$S$224,P$2,FALSE) -> 0.06144668734 | Q182: =VLOOKUP($C182,'6. Revenue Requirement'!$C$181:$S$224,Q$2,FALSE) -> 0.06586167245 | R182: =VLOOKUP($C182,'6. Revenue Requirement'!$C$181:$S$224,R$2,FALSE) -> 0.09204179234 | S182: =VLOOKUP($C182,'6. Revenue Requirement'!$C$181:$S$224,S$2,FALSE) -> 0.0554608216 | T182: =SUM(OFFSET($H182,0,0,1,Model_period)) -> 2.752248184
C183: CO02 | D183: Switching Equipment - Trunk | H183: =VLOOKUP($C183,'6. Revenue Requirement'!$C$181:$S$224,H$2,FALSE) -> 0.0100191797 | I183: =VLOOKUP($C183,'6. Revenue Requirement'!$C$181:$S$224,I$2,FALSE) -> 0.02230902536 | J183: =VLOOKUP($C183,'6. Revenue Requirement'!$C$181:$S$224,J$2,FALSE) -> 0.03320396401 | K183: =VLOOKUP($C183,'6. Revenue Requirement'!$C$181:$S$224,K$2,FALSE) -> 0.1959620993 | L183: =VLOOKUP($C183,'6. Revenue Requirement'!$C$181:$S$224,L$2,FALSE) -> 0.06852635591 | M183: =VLOOKUP($C183,'6. Revenue Requirement'!$C$181:$S$224,M$2,FALSE) -> 0.02343025185 | N183: =VLOOKUP($C183,'6. Revenue Requirement'!$C$181:$S$224,N$2,FALSE) -> 0.05000849954 | O183: =VLOOKUP($C183,'6. Revenue Requirement'!$C$181:$S$224,O$2,FALSE) -> 0.0477957063 | P183: =VLOOKUP($C183,'6. Revenue Requirement'!$C$181:$S$224,P$2,FALSE) -> 0.0458471438 | Q183: =VLOOKUP($C183,'6. Revenue Requirement'!$C$181:$S$224,Q$2,FALSE) -> 0.04410694657 | R183: =VLOOKUP($C183,'6. Revenue Requirement'!$C$181:$S$224,R$2,FALSE) -> 0.05626081194 | S183: =VLOOKUP($C183,'6. Revenue Requirement'!$C$181:$S$224,S$2,FALSE) -> 0.02786816683 | T183: 0.5412091724
C184: CO03 | D184: Switching Equipment - Other | H184: =VLOOKUP($C184,'6. Revenue Requirement'!$C$181:$S$224,H$2,FALSE) -> 0.0100191797 | I184: =VLOOKUP($C184,'6. Revenue Requirement'!$C$181:$S$224,I$2,FALSE) -> 0.02230902536 | J184: =VLOOKUP($C184,'6. Revenue Requirement'!$C$181:$S$224,J$2,FALSE) -> 0.03303455603 | K184: =VLOOKUP($C184,'6. Revenue Requirement'!$C$181:$S$224,K$2,FALSE) -> 0.1939194547 | L184: =VLOOKUP($C184,'6. Revenue Requirement'!$C$181:$S$224,L$2,FALSE) -> 0.06743209891 | M184: =VLOOKUP($C184,'6. Revenue Requirement'!$C$181:$S$224,M$2,FALSE) -> 0.02292057667 | N184: =VLOOKUP($C184,'6. Revenue Requirement'!$C$181:$S$224,N$2,FALSE) -> 0.04861134008 | O184: =VLOOKUP($C184,'6. Revenue Requirement'!$C$181:$S$224,O$2,FALSE) -> 0.0544750451 | P184: =VLOOKUP($C184,'6. Revenue Requirement'!$C$181:$S$224,P$2,FALSE) -> 0.06011283348 | Q184: =VLOOKUP($C184,'6. Revenue Requirement'!$C$181:$S$224,Q$2,FALSE) -> 0.06557643535 | R184: =VLOOKUP($C184,'6. Revenue Requirement'!$C$181:$S$224,R$2,FALSE) -> 0.09379264742 | S184: =VLOOKUP($C184,'6. Revenue Requirement'!$C$181:$S$224,S$2,FALSE) -> 0.05842522549 | T184: 0.5784105453
C185: CO04 | D185: Inter-exchange Cables | H185: =VLOOKUP($C185,'6. Revenue Requirement'!$C$181:$S$224,H$2,FALSE) -> 0.0100191797 | I185: =VLOOKUP($C185,'6. Revenue Requirement'!$C$181:$S$224,I$2,FALSE) -> 0.02230902536 | J185: =VLOOKUP($C185,'6. Revenue Requirement'!$C$181:$S$224,J$2,FALSE) -> 0.03343578545 | K185: =VLOOKUP($C185,'6. Revenue Requirement'!$C$181:$S$224,K$2,FALSE) -> 0.1987572973 | L185: =VLOOKUP($C185,'6. Revenue Requirement'!$C$181:$S$224,L$2,FALSE) -> 0.07002376022 | M185: =VLOOKUP($C185,'6. Revenue Requirement'!$C$181:$S$224,M$2,FALSE) -> 0.02412770209 | N185: =VLOOKUP($C185,'6. Revenue Requirement'!$C$181:$S$224,N$2,FALSE) -> 0.05192040197 | O185: =VLOOKUP($C185,'6. Revenue Requirement'!$C$181:$S$224,O$2,FALSE) -> 0.05032609933 | P185: =VLOOKUP($C185,'6. Revenue Requirement'!$C$181:$S$224,P$2,FALSE) -> 0.04900306998 | Q185: =VLOOKUP($C185,'6. Revenue Requirement'!$C$181:$S$224,Q$2,FALSE) -> 0.04790289417 | R185: =VLOOKUP($C185,'6. Revenue Requirement'!$C$181:$S$224,R$2,FALSE) -> 0.06215673849 | S185: =VLOOKUP($C185,'6. Revenue Requirement'!$C$181:$S$224,S$2,FALSE) -> 0.03235564182 | T185: 0.5578252156
C186: CO05 | D186: Transmission Equipment | H186: =VLOOKUP($C186,'6. Revenue Requirement'!$C$181:$S$224,H$2,FALSE) -> 0.0100191797 | I186: =VLOOKUP($C186,'6. Revenue Requirement'!$C$181:$S$224,I$2,FALSE) -> 0.02230902536 | J186: =VLOOKUP($C186,'6. Revenue Requirement'!$C$181:$S$224,J$2,FALSE) -> 0.01694079796 | K186: =VLOOKUP($C186,'6. Revenue Requirement'!$C$181:$S$224,K$2,FALSE) -> 0.06795636577 | L186: =VLOOKUP($C186,'6. Revenue Requirement'!$C$181:$S$224,L$2,FALSE) -> 0.01820819005 | M186: =VLOOKUP($C186,'6. Revenue Requirement'!$C$181:$S$224,M$2,FALSE) -> 0.005089842142 | N186: =VLOOKUP($C186,'6. Revenue Requirement'!$C$181:$S$224,N$2,FALSE) -> 0.009043198083 | O186: =VLOOKUP($C186,'6. Revenue Requirement'!$C$181:$S$224,O$2,FALSE) -> 0.008977339126 | P186: =VLOOKUP($C186,'6. Revenue Requirement'!$C$181:$S$224,P$2,FALSE) -> 0.008957807257 | Q186: =VLOOKUP($C186,'6. Revenue Requirement'!$C$181:$S$224,Q$2,FALSE) -> 0.008979055733 | R186: =VLOOKUP($C186,'6. Revenue Requirement'!$C$181:$S$224,R$2,FALSE) -> 0.01195439919 | S186: =VLOOKUP($C186,'6. Revenue Requirement'!$C$181:$S$224,S$2,FALSE) -> 0 | T186: 0.1764808012
C187: CO06 | D187: Core Radio Bearer Equipment | H187: =VLOOKUP($C187,'6. Revenue Requirement'!$C$181:$S$224,H$2,FALSE) -> 0.0100191797 | I187: =VLOOKUP($C187,'6. Revenue Requirement'!$C$181:$S$224,I$2,FALSE) -> 0.02230902536 | J187: =VLOOKUP($C187,'6. Revenue Requirement'!$C$181:$S$224,J$2,FALSE) -> 0.03282279605 | K187: =VLOOKUP($C187,'6. Revenue Requirement'!$C$181:$S$224,K$2,FALSE) -> 0.1913661488 | L187: =VLOOKUP($C187,'6. Revenue Requirement'!$C$181:$S$224,L$2,FALSE) -> 0.06606427767 | M187: =VLOOKUP($C187,'6. Revenue Requirement'!$C$181:$S$224,M$2,FALSE) -> 0.02228348269 | N187: =VLOOKUP($C187,'6. Revenue Requirement'!$C$181:$S$224,N$2,FALSE) -> 0.04686489075 | O187: =VLOOKUP($C187,'6. Revenue Requirement'!$C$181:$S$224,O$2,FALSE) -> 0.05205141165 | P187: =VLOOKUP($C187,'6. Revenue Requirement'!$C$181:$S$224,P$2,FALSE) -> 0.05689409852 | Q187: =VLOOKUP($C187,'6. Revenue Requirement'!$C$181:$S$224,Q$2,FALSE) -> 0.06143555404 | R187: =VLOOKUP($C187,'6. Revenue Requirement'!$C$181:$S$224,R$2,FALSE) -> 0.08691264539 | S187: =VLOOKUP($C187,'6. Revenue Requirement'!$C$181:$S$224,S$2,FALSE) -> 0.05283330876 | T187: 0.5621108652
C188: CO07 | D188: Other Communications Plant and Equipment | H188: =VLOOKUP($C188,'6. Revenue Requirement'!$C$181:$S$224,H$2,FALSE) -> 0.0100191797 | I188: =VLOOKUP($C188,'6. Revenue Requirement'!$C$181:$S$224,I$2,FALSE) -> 0.02230902536 | J188: =VLOOKUP($C188,'6. Revenue Requirement'!$C$181:$S$224,J$2,FALSE) -> 0.01694079796 | K188: =VLOOKUP($C188,'6. Revenue Requirement'!$C$181:$S$224,K$2,FALSE) -> 0.06795636577 | L188: =VLOOKUP($C188,'6. Revenue Requirement'!$C$181:$S$224,L$2,FALSE) -> 0.01820819005 | M188: =VLOOKUP($C188,'6. Revenue Requirement'!$C$181:$S$224,M$2,FALSE) -> 0.005089842142 | N188: =VLOOKUP($C188,'6. Revenue Requirement'!$C$181:$S$224,N$2,FALSE) -> 0.009043198083 | O188: =VLOOKUP($C188,'6. Revenue Requirement'!$C$181:$S$224,O$2,FALSE) -> 0.008977339126 | P188: =VLOOKUP($C188,'6. Revenue Requirement'!$C$181:$S$224,P$2,FALSE) -> 0.008957807257 | Q188: =VLOOKUP($C188,'6. Revenue Requirement'!$C$181:$S$224,Q$2,FALSE) -> 0.008979055733 | R188: =VLOOKUP($C188,'6. Revenue Requirement'!$C$181:$S$224,R$2,FALSE) -> 0.01195439919 | S188: =VLOOKUP($C188,'6. Revenue Requirement'!$C$181:$S$224,S$2,FALSE) -> 0 | T188: 0.1764808012
C189: CO08 | D189: Network Land | H189: =VLOOKUP($C189,'6. Revenue Requirement'!$C$181:$S$224,H$2,FALSE) -> 0.0100191797 | I189: =VLOOKUP($C189,'6. Revenue Requirement'!$C$181:$S$224,I$2,FALSE) -> 0.04450053433 | J189: =VLOOKUP($C189,'6. Revenue Requirement'!$C$181:$S$224,J$2,FALSE) -> 0.05115881654 | K189: =VLOOKUP($C189,'6. Revenue Requirement'!$C$181:$S$224,K$2,FALSE) -> 0.2753207093 | L189: =VLOOKUP($C189,'6. Revenue Requirement'!$C$181:$S$224,L$2,FALSE) -> 0.09245594523 | M189: =VLOOKUP($C189,'6. Revenue Requirement'!$C$181:$S$224,M$2,FALSE) -> 0.03107128249 | N189: =VLOOKUP($C189,'6. Revenue Requirement'!$C$181:$S$224,N$2,FALSE) -> 0.06608812818 | O189: =VLOOKUP($C189,'6. Revenue Requirement'!$C$181:$S$224,O$2,FALSE) -> 0.07483843891 | P189: =VLOOKUP($C189,'6. Revenue Requirement'!$C$181:$S$224,P$2,FALSE) -> 0.08389272495 | Q189: =VLOOKUP($C189,'6. Revenue Requirement'!$C$181:$S$224,Q$2,FALSE) -> 0.09333645875 | R189: =VLOOKUP($C189,'6. Revenue Requirement'!$C$181:$S$224,R$2,FALSE) -> 0.1365808867 | S189: =VLOOKUP($C189,'6. Revenue Requirement'!$C$181:$S$224,S$2,FALSE) -> 0.09095249074 | T189: 0.8226822184
C190: CO09 | D190: Network Buildings/Support | H190: =VLOOKUP($C190,'6. Revenue Requirement'!$C$181:$S$224,H$2,FALSE) -> 0.0100191797 | I190: =VLOOKUP($C190,'6. Revenue Requirement'!$C$181:$S$224,I$2,FALSE) -> 0.02230902536 | J190: =VLOOKUP($C190,'6. Revenue Requirement'!$C$181:$S$224,J$2,FALSE) -> 0.01694079796 | K190: =VLOOKUP($C190,'6. Revenue Requirement'!$C$181:$S$224,K$2,FALSE) -> 0.06795636577 | L190: =VLOOKUP($C190,'6. Revenue Requirement'!$C$181:$S$224,L$2,FALSE) -> 0.01820819005 | M190: =VLOOKUP($C190,'6. Revenue Requirement'!$C$181:$S$224,M$2,FALSE) -> 0.005089842142 | N190: =VLOOKUP($C190,'6. Revenue Requirement'!$C$181:$S$224,N$2,FALSE) -> 0.009043198083 | O190: =VLOOKUP($C190,'6. Revenue Requirement'!$C$181:$S$224,O$2,FALSE) -> 0.008977339126 | P190: =VLOOKUP($C190,'6. Revenue Requirement'!$C$181:$S$224,P$2,FALSE) -> 0.008957807257 | Q190: =VLOOKUP($C190,'6. Revenue Requirement'!$C$181:$S$224,Q$2,FALSE) -> 0.008979055733 | R190: =VLOOKUP($C190,'6. Revenue Requirement'!$C$181:$S$224,R$2,FALSE) -> 0.01195439919 | S190: =VLOOKUP($C190,'6. Revenue Requirement'!$C$181:$S$224,S$2,FALSE) -> 0 | T190: 0.1764808012
C191: CO10 | D191: Indirect Capital Assets | H191: =VLOOKUP($C191,'6. Revenue Requirement'!$C$181:$S$224,H$2,FALSE) -> 0.0100191797 | I191: =VLOOKUP($C191,'6. Revenue Requirement'!$C$181:$S$224,I$2,FALSE) -> 0.03962318968 | J191: =VLOOKUP($C191,'6. Revenue Requirement'!$C$181:$S$224,J$2,FALSE) -> 0.04204840499 | K191: =VLOOKUP($C191,'6. Revenue Requirement'!$C$181:$S$224,K$2,FALSE) -> 0.2101280382 | L191: =VLOOKUP($C191,'6. Revenue Requirement'!$C$181:$S$224,L$2,FALSE) -> 0.06550053591 | M191: =VLOOKUP($C191,'6. Revenue Requirement'!$C$181:$S$224,M$2,FALSE) -> 0.02037220077 | N191: =VLOOKUP($C191,'6. Revenue Requirement'!$C$181:$S$224,N$2,FALSE) -> 0.04162554277 | O191: =VLOOKUP($C191,'6. Revenue Requirement'!$C$181:$S$224,O$2,FALSE) -> 0.0367009061 | P191: =VLOOKUP($C191,'6. Revenue Requirement'!$C$181:$S$224,P$2,FALSE) -> 0.03200962131 | Q191: =VLOOKUP($C191,'6. Revenue Requirement'!$C$181:$S$224,Q$2,FALSE) -> 0.02746317635 | R191: =VLOOKUP($C191,'6. Revenue Requirement'!$C$181:$S$224,R$2,FALSE) -> 0.03040944172 | S191: =VLOOKUP($C191,'6. Revenue Requirement'!$C$181:$S$224,S$2,FALSE) -> 0.00819231491 | T191: 0.5254907958
C192: CO11 | D192: LSS equipment | H192: =VLOOKUP($C192,'6. Revenue Requirement'!$C$181:$S$224,H$2,FALSE) -> 0 | I192: =VLOOKUP($C192,'6. Revenue Requirement'!$C$181:$S$224,I$2,FALSE) -> 0.02230902536 | J192: =VLOOKUP($C192,'6. Revenue Requirement'!$C$181:$S$224,J$2,FALSE) -> 0.01694079796 | K192: =VLOOKUP($C192,'6. Revenue Requirement'!$C$181:$S$224,K$2,FALSE) -> 0.06795636577 | L192: =VLOOKUP($C192,'6. Revenue Requirement'!$C$181:$S$224,L$2,FALSE) -> 0.01820819005 | M192: =VLOOKUP($C192,'6. Revenue Requirement'!$C$181:$S$224,M$2,FALSE) -> 0.005089842142 | N192: =VLOOKUP($C192,'6. Revenue Requirement'!$C$181:$S$224,N$2,FALSE) -> 0.009043198083 | O192: =VLOOKUP($C192,'6. Revenue Requirement'!$C$181:$S$224,O$2,FALSE) -> 0.008977339126 | P192: =VLOOKUP($C192,'6. Revenue Requirement'!$C$181:$S$224,P$2,FALSE) -> 0.008957807257 | Q192: =VLOOKUP($C192,'6. Revenue Requirement'!$C$181:$S$224,Q$2,FALSE) -> 0.008979055733 | R192: =VLOOKUP($C192,'6. Revenue Requirement'!$C$181:$S$224,R$2,FALSE) -> 0.01195439919 | S192: =VLOOKUP($C192,'6. Revenue Requirement'!$C$181:$S$224,S$2,FALSE) -> 0 | T192: 0.1664616215
C193: CO12 | D193: Data Equipment | H193: =VLOOKUP($C193,'6. Revenue Requirement'!$C$181:$S$224,H$2,FALSE) -> 0.0100191797 | I193: =VLOOKUP($C193,'6. Revenue Requirement'!$C$181:$S$224,I$2,FALSE) -> 0.02230902536 | J193: =VLOOKUP($C193,'6. Revenue Requirement'!$C$181:$S$224,J$2,FALSE) -> 0.0310581296 | K193: =VLOOKUP($C193,'6. Revenue Requirement'!$C$181:$S$224,K$2,FALSE) -> 0.1700886 | L193: =VLOOKUP($C193,'6. Revenue Requirement'!$C$181:$S$224,L$2,FALSE) -> 0.0546657673 | M193: =VLOOKUP($C193,'6. Revenue Requirement'!$C$181:$S$224,M$2,FALSE) -> 0.01697436625 | N193: =VLOOKUP($C193,'6. Revenue Requirement'!$C$181:$S$224,N$2,FALSE) -> 0.03231114635 | O193: =VLOOKUP($C193,'6. Revenue Requirement'!$C$181:$S$224,O$2,FALSE) -> 0.03185446626 | P193: =VLOOKUP($C193,'6. Revenue Requirement'!$C$181:$S$224,P$2,FALSE) -> 0.03161023949 | Q193: =VLOOKUP($C193,'6. Revenue Requirement'!$C$181:$S$224,Q$2,FALSE) -> 0.03155595801 | R193: =VLOOKUP($C193,'6. Revenue Requirement'!$C$181:$S$224,R$2,FALSE) -> 0.04189776256 | S193: =VLOOKUP($C193,'6. Revenue Requirement'!$C$181:$S$224,S$2,FALSE) -> 0.01990374548 | T193: 0.4324468783
C194: CO13 | D194: Spare Core Asset Class 13 | H194: =VLOOKUP($C194,'6. Revenue Requirement'!$C$181:$S$224,H$2,FALSE) -> 0 | I194: =VLOOKUP($C194,'6. Revenue Requirement'!$C$181:$S$224,I$2,FALSE) -> 0 | J194: =VLOOKUP($C194,'6. Revenue Requirement'!$C$181:$S$224,J$2,FALSE) -> 0 | K194: =VLOOKUP($C194,'6. Revenue Requirement'!$C$181:$S$224,K$2,FALSE) -> 0 | L194: =VLOOKUP($C194,'6. Revenue Requirement'!$C$181:$S$224,L$2,FALSE) -> 0 | M194: =VLOOKUP($C194,'6. Revenue Requirement'!$C$181:$S$224,M$2,FALSE) -> 0 | N194: =VLOOKUP($C194,'6. Revenue Requirement'!$C$181:$S$224,N$2,FALSE) -> 0 | O194: =VLOOKUP($C194,'6. Revenue Requirement'!$C$181:$S$224,O$2,FALSE) -> 0 | P194: =VLOOKUP($C194,'6. Revenue Requirement'!$C$181:$S$224,P$2,FALSE) -> 0 | Q194: =VLOOKUP($C194,'6. Revenue Requirement'!$C$181:$S$224,Q$2,FALSE) -> 0 | R194: =VLOOKUP($C194,'6. Revenue Requirement'!$C$181:$S$224,R$2,FALSE) -> 0 | S194: =VLOOKUP($C194,'6. Revenue Requirement'!$C$181:$S$224,S$2,FALSE) -> 0 | T194: 0
C195: CO14 | D195: Spare Core Asset Class 14 | H195: =VLOOKUP($C195,'6. Revenue Requirement'!$C$181:$S$224,H$2,FALSE) -> 0 | I195: =VLOOKUP($C195,'6. Revenue Requirement'!$C$181:$S$224,I$2,FALSE) -> 0 | J195: =VLOOKUP($C195,'6. Revenue Requirement'!$C$181:$S$224,J$2,FALSE) -> 0 | K195: =VLOOKUP($C195,'6. Revenue Requirement'!$C$181:$S$224,K$2,FALSE) -> 0 | L195: =VLOOKUP($C195,'6. Revenue Requirement'!$C$181:$S$224,L$2,FALSE) -> 0 | M195: =VLOOKUP($C195,'6. Revenue Requirement'!$C$181:$S$224,M$2,FALSE) -> 0 | N195: =VLOOKUP($C195,'6. Revenue Requirement'!$C$181:$S$224,N$2,FALSE) -> 0 | O195: =VLOOKUP($C195,'6. Revenue Requirement'!$C$181:$S$224,O$2,FALSE) -> 0 | P195: =VLOOKUP($C195,'6. Revenue Requirement'!$C$181:$S$224,P$2,FALSE) -> 0 | Q195: =VLOOKUP($C195,'6. Revenue Requirement'!$C$181:$S$224,Q$2,FALSE) -> 0 | R195: =VLOOKUP($C195,'6. Revenue Requirement'!$C$181:$S$224,R$2,FALSE) -> 0 | S195: =VLOOKUP($C195,'6. Revenue Requirement'!$C$181:$S$224,S$2,FALSE) -> 0 | T195: 0
C196: CO15 | D196: Spare Core Asset Class 15 | H196: =VLOOKUP($C196,'6. Revenue Requirement'!$C$181:$S$224,H$2,FALSE) -> 0 | I196: =VLOOKUP($C196,'6. Revenue Requirement'!$C$181:$S$224,I$2,FALSE) -> 0 | J196: =VLOOKUP($C196,'6. Revenue Requirement'!$C$181:$S$224,J$2,FALSE) -> 0 | K196: =VLOOKUP($C196,'6. Revenue Requirement'!$C$181:$S$224,K$2,FALSE) -> 0 | L196: =VLOOKUP($C196,'6. Revenue Requirement'!$C$181:$S$224,L$2,FALSE) -> 0 | M196: =VLOOKUP($C196,'6. Revenue Requirement'!$C$181:$S$224,M$2,FALSE) -> 0 | N196: =VLOOKUP($C196,'6. Revenue Requirement'!$C$181:$S$224,N$2,FALSE) -> 0 | O196: =VLOOKUP($C196,'6. Revenue Requirement'!$C$181:$S$224,O$2,FALSE) -> 0 | P196: =VLOOKUP($C196,'6. Revenue Requirement'!$C$181:$S$224,P$2,FALSE) -> 0 | Q196: =VLOOKUP($C196,'6. Revenue Requirement'!$C$181:$S$224,Q$2,FALSE) -> 0 | R196: =VLOOKUP($C196,'6. Revenue Requirement'!$C$181:$S$224,R$2,FALSE) -> 0 | S196: =VLOOKUP($C196,'6. Revenue Requirement'!$C$181:$S$224,S$2,FALSE) -> 0 | T196: 0
C197: CO16 | D197: Spare Core Asset Class 16 | H197: =VLOOKUP($C197,'6. Revenue Requirement'!$C$181:$S$224,H$2,FALSE) -> 0 | I197: =VLOOKUP($C197,'6. Revenue Requirement'!$C$181:$S$224,I$2,FALSE) -> 0 | J197: =VLOOKUP($C197,'6. Revenue Requirement'!$C$181:$S$224,J$2,FALSE) -> 0 | K197: =VLOOKUP($C197,'6. Revenue Requirement'!$C$181:$S$224,K$2,FALSE) -> 0 | L197: =VLOOKUP($C197,'6. Revenue Requirement'!$C$181:$S$224,L$2,FALSE) -> 0 | M197: =VLOOKUP($C197,'6. Revenue Requirement'!$C$181:$S$224,M$2,FALSE) -> 0 | N197: =VLOOKUP($C197,'6. Revenue Requirement'!$C$181:$S$224,N$2,FALSE) -> 0 | O197: =VLOOKUP($C197,'6. Revenue Requirement'!$C$181:$S$224,O$2,FALSE) -> 0 | P197: =VLOOKUP($C197,'6. Revenue Requirement'!$C$181:$S$224,P$2,FALSE) -> 0 | Q197: =VLOOKUP($C197,'6. Revenue Requirement'!$C$181:$S$224,Q$2,FALSE) -> 0 | R197: =VLOOKUP($C197,'6. Revenue Requirement'!$C$181:$S$224,R$2,FALSE) -> 0 | S197: =VLOOKUP($C197,'6. Revenue Requirement'!$C$181:$S$224,S$2,FALSE) -> 0 | T197: 0
C198: CO17 | D198: Spare Core Asset Class 17 | H198: =VLOOKUP($C198,'6. Revenue Requirement'!$C$181:$S$224,H$2,FALSE) -> 0 | I198: =VLOOKUP($C198,'6. Revenue Requirement'!$C$181:$S$224,I$2,FALSE) -> 0 | J198: =VLOOKUP($C198,'6. Revenue Requirement'!$C$181:$S$224,J$2,FALSE) -> 0 | K198: =VLOOKUP($C198,'6. Revenue Requirement'!$C$181:$S$224,K$2,FALSE) -> 0 | L198: =VLOOKUP($C198,'6. Revenue Requirement'!$C$181:$S$224,L$2,FALSE) -> 0 | M198: =VLOOKUP($C198,'6. Revenue Requirement'!$C$181:$S$224,M$2,FALSE) -> 0 | N198: =VLOOKUP($C198,'6. Revenue Requirement'!$C$181:$S$224,N$2,FALSE) -> 0 | O198: =VLOOKUP($C198,'6. Revenue Requirement'!$C$181:$S$224,O$2,FALSE) -> 0 | P198: =VLOOKUP($C198,'6. Revenue Requirement'!$C$181:$S$224,P$2,FALSE) -> 0 | Q198: =VLOOKUP($C198,'6. Revenue Requirement'!$C$181:$S$224,Q$2,FALSE) -> 0 | R198: =VLOOKUP($C198,'6. Revenue Requirement'!$C$181:$S$224,R$2,FALSE) -> 0 | S198: =VLOOKUP($C198,'6. Revenue Requirement'!$C$181:$S$224,S$2,FALSE) -> 0 | T198: 0
C199: CO18 | D199: Spare Core Asset Class 18 | H199: =VLOOKUP($C199,'6. Revenue Requirement'!$C$181:$S$224,H$2,FALSE) -> 0 | I199: =VLOOKUP($C199,'6. Revenue Requirement'!$C$181:$S$224,I$2,FALSE) -> 0 | J199: =VLOOKUP($C199,'6. Revenue Requirement'!$C$181:$S$224,J$2,FALSE) -> 0 | K199: =VLOOKUP($C199,'6. Revenue Requirement'!$C$181:$S$224,K$2,FALSE) -> 0 | L199: =VLOOKUP($C199,'6. Revenue Requirement'!$C$181:$S$224,L$2,FALSE) -> 0 | M199: =VLOOKUP($C199,'6. Revenue Requirement'!$C$181:$S$224,M$2,FALSE) -> 0 | N199: =VLOOKUP($C199,'6. Revenue Requirement'!$C$181:$S$224,N$2,FALSE) -> 0 | O199: =VLOOKUP($C199,'6. Revenue Requirement'!$C$181:$S$224,O$2,FALSE) -> 0 | P199: =VLOOKUP($C199,'6. Revenue Requirement'!$C$181:$S$224,P$2,FALSE) -> 0 | Q199: =VLOOKUP($C199,'6. Revenue Requirement'!$C$181:$S$224,Q$2,FALSE) -> 0 | R199: =VLOOKUP($C199,'6. Revenue Requirement'!$C$181:$S$224,R$2,FALSE) -> 0 | S199: =VLOOKUP($C199,'6. Revenue Requirement'!$C$181:$S$224,S$2,FALSE) -> 0 | T199: 0
C200: CO19 | D200: Spare Core Asset Class 19 | H200: =VLOOKUP($C200,'6. Revenue Requirement'!$C$181:$S$224,H$2,FALSE) -> 0 | I200: =VLOOKUP($C200,'6. Revenue Requirement'!$C$181:$S$224,I$2,FALSE) -> 0 | J200: =VLOOKUP($C200,'6. Revenue Requirement'!$C$181:$S$224,J$2,FALSE) -> 0 | K200: =VLOOKUP($C200,'6. Revenue Requirement'!$C$181:$S$224,K$2,FALSE) -> 0 | L200: =VLOOKUP($C200,'6. Revenue Requirement'!$C$181:$S$224,L$2,FALSE) -> 0 | M200: =VLOOKUP($C200,'6. Revenue Requirement'!$C$181:$S$224,M$2,FALSE) -> 0 | N200: =VLOOKUP($C200,'6. Revenue Requirement'!$C$181:$S$224,N$2,FALSE) -> 0 | O200: =VLOOKUP($C200,'6. Revenue Requirement'!$C$181:$S$224,O$2,FALSE) -> 0 | P200: =VLOOKUP($C200,'6. Revenue Requirement'!$C$181:$S$224,P$2,FALSE) -> 0 | Q200: =VLOOKUP($C200,'6. Revenue Requirement'!$C$181:$S$224,Q$2,FALSE) -> 0 | R200: =VLOOKUP($C200,'6. Revenue Requirement'!$C$181:$S$224,R$2,FALSE) -> 0 | S200: =VLOOKUP($C200,'6. Revenue Requirement'!$C$181:$S$224,S$2,FALSE) -> 0 | T200: 0
C201: CO20 | D201: Spare Core Asset Class 20 | H201: =VLOOKUP($C201,'6. Revenue Requirement'!$C$181:$S$224,H$2,FALSE) -> 0 | I201: =VLOOKUP($C201,'6. Revenue Requirement'!$C$181:$S$224,I$2,FALSE) -> 0 | J201: =VLOOKUP($C201,'6. Revenue Requirement'!$C$181:$S$224,J$2,FALSE) -> 0 | K201: =VLOOKUP($C201,'6. Revenue Requirement'!$C$181:$S$224,K$2,FALSE) -> 0 | L201: =VLOOKUP($C201,'6. Revenue Requirement'!$C$181:$S$224,L$2,FALSE) -> 0 | M201: =VLOOKUP($C201,'6. Revenue Requirement'!$C$181:$S$224,M$2,FALSE) -> 0 | N201: =VLOOKUP($C201,'6. Revenue Requirement'!$C$181:$S$224,N$2,FALSE) -> 0 | O201: =VLOOKUP($C201,'6. Revenue Requirement'!$C$181:$S$224,O$2,FALSE) -> 0 | P201: =VLOOKUP($C201,'6. Revenue Requirement'!$C$181:$S$224,P$2,FALSE) -> 0 | Q201: =VLOOKUP($C201,'6. Revenue Requirement'!$C$181:$S$224,Q$2,FALSE) -> 0 | R201: =VLOOKUP($C201,'6. Revenue Requirement'!$C$181:$S$224,R$2,FALSE) -> 0 | S201: =VLOOKUP($C201,'6. Revenue Requirement'!$C$181:$S$224,S$2,FALSE) -> 0 | T201: 0
D202: Total | H202: =SUM(H182:H201) -> 0.1102109767 | I202: =SUM(I182:I201) -> 0.3072139776 | J202: 0.3577798035 | K202: 1.903935138 | L202: 2.286595463 | M202: 0.7085023123 | N202: 0.4240210768 | O202: 0.4402661859 | P202: 0.4566476479 | Q202: 0.4731553186 | R202: 0.6478703233 | S202: 0.3459917156 | T202: 7.468327901
B205: C.2 | C205: Calculation of Revenue Requirement by Service
B208: C.2.1 | C208: Revenue Requirement Allocated to Services
H210: Y01 | I210: Y02 | J210: Y03 | K210: Y04 | L210: Y05 | M210: Y06 | N210: Y07 | O210: Y08 | P210: Y09 | Q210: Y10 | R210: Y11 | S210: Y12
C211: Code | D211: Service | E211: Building Block | H211: =VLOOKUP(H210,FYears,2,FALSE) -> 2009/2010 | I211: 2010/2011 | J211: 2011/2012 | K211: 2012/2013 | L211: 2013/2014 | M211: 2014/2015 | N211: 2015/2016 | O211: 2016/2017 | P211: 2017/2018 | Q211: 2018/2019 | R211: 2019/2020 | S211: 2020/2021 | T211: Total
C212: S01 | D212: ULLS Band 1-3 | E212: Operating expenditure | H212: =H639 -> 0.06402067413 | I212: =I639 -> 0.07682480896 | J212: 0.08450728985 | K212: 0.08873265435 | L212: 0.09316928706 | M212: 1.749998746 | N212: 1.756430488 | O212: 1.755061409 | P212: 1.753776014 | Q212: =Q639 -> 1.75257309 | T212: =SUM(OFFSET($H212,0,0,1,Model_period)) -> 9.175094461
E213: Return on capital | H213: =H640 -> 0.02487136663 | I213: 0.03851464951 | J213: 0.06551559787 | K213: 0.09181833216 | L213: 0.1193378877 | M213: 0.2662929255 | N213: 0.09757443146 | O213: 0.1004219382 | P213: 0.1026228722 | Q213: 0.104187882 | T213: 1.011157883
... 515 more rows

Sheet Cost Allocation
B2: Cost Allocation
F3: 5 | G3: 6 | H3: 7 | I3: 8 | J3: 9 | K3: 10
B4: Purpose
B5: Calculate allocators per Asset Class, Service and year
F7: 5 | G7: 6 | H7: 7 | I7: 8 | J7: 9 | K7: 10
B8: Allocation Calculations for Wholesale Regulated Services
A10: FY2014 | E10: S01 | F10: S02 | G10: S03 | H10: S04 | I10: S05 | J10: S06 | K10: S07 | L10: S08 | M10: S09 | N10: S10
B11: FY2014 | D11: ULLS | E11: ULLS13 | F11: ULLS4 | G11: WLR | H11: FOTAS | I11: LCS | J11: LSS | K11: WADSL | L11: TEBA | M11: AS1 | N11: AS2 | O11: Total | P11: Other Fixed Line Services | Q11: Other Services | R11: Total
B12: CAN Asset Class
B13: CA01 | C13: Ducts and pipes | D13: =SUM(E13:F13) -> 0.006666666667 | E13: =SUM(AE323:AG323) -> 0.005 | F13: =AH323 -> 0.001666666667 | G13: =SUM(S323:V323,AI323:AL323)*F305 -> 0.006666666667 | H13: =H323 -> 0 | I13: =I323 -> 0 | J13: =N323 -> 0 | K13: =Q323 -> 0 | L13: 0 | M13: 0 | N13: 0 | O13: =SUM(E13:N13) -> 0.01333333333 | P13: =SUM($C323:$AP323)-(O13-L13) -> 0.02666666667 | Q13: =SUM($G296:$J296) -> 0.04 | R13: =SUM(O13:Q13) -> 0.08
B14: CA02 | C14: Copper cables | D14: 0.006666666667 | E14: =SUM(AE383:AG383) -> 0.005 | F14: =AH383 -> 0.001666666667 | G14: =SUM(S383:V383,AI383:AL383)*F365 -> 0.006666666667 | H14: =H383 -> 0 | I14: =I383 -> 0 | J14: =N383 -> 0 | K14: =Q383 -> 0 | L14: 0 | M14: 0 | N14: 0 | O14: =SUM(E14:N14) -> 0.01333333333 | P14: =SUM($C$383:$AP$383)-O14 -> 0.02666666667 | Q14: 0 | R14: 0.04
B15: CA03 | C15: Other cables | D15: 0.1212121212 | E15: =SUM(AE406:AG406) -> 0.09090909091 | F15: =AH406 -> 0.0303030303 | G15: =MAX(O406,SUM(AI406:AL406)) -> 0.1212121212 | H15: =H406 -> 0 | I15: =I406 -> 0 | J15: =N406 -> 0.0303030303 | K15: =Q406 -> 0.0303030303 | L15: 0 | M15: 0 | N15: 0 | O15: 0.303030303 | P15: =SUM($C$406:$AP$406)-O15 -> 0.696969697 | Q15: 0 | R15: 1
B16: CA04 | C16: Pair gain systems | D16: 0.1212121212 | E16: =SUM(AE429:AG429) -> 0.09090909091 | F16: =AH429 -> 0.0303030303 | G16: =MAX(O429,SUM(AI429:AL429)) -> 0.1212121212 | H16: =H429 -> 0 | I16: =I429 -> 0 | J16: =N429 -> 0.0303030303 | K16: =Q429 -> 0.0303030303 | L16: 0 | M16: 0 | N16: 0 | O16: 0.303030303 | P16: =SUM($C$429:$AP$429)-O16 -> 0.696969697 | Q16: 0 | R16: 1
B17: CA05 | C17: CAN Radio Bearer Equipment | D17: 0.1212121212 | E17: =SUM(AE452:AG452) -> 0.09090909091 | F17: =AH452 -> 0.0303030303 | G17: =MAX(O452,SUM(AI452:AL452)) -> 0.1212121212 | H17: =H452 -> 0 | I17: =I452 -> 0 | J17: =N452 -> 0.0303030303 | K17: =Q452 -> 0.0303030303 | L17: 0 | M17: 0 | N17: 0 | O17: 0.303030303 | P17: =SUM($C$452:$AP$452)-O17 -> 0.696969697 | Q17: 0 | R17: 1
B18: CA06 | C18: Other CAN assets | D18: 0.1212121212 | E18: =SUM(AE475:AG475) -> 0.09090909091 | F18: =AH475 -> 0.0303030303 | G18: =MAX(O475,SUM(AI475:AL475)) -> 0.1212121212 | H18: =H475 -> 0 | I18: =I475 -> 0 | J18: =N475 -> 0.0303030303 | K18: =Q475 -> 0.0303030303 | L18: 0 | M18: 0 | N18: 0 | O18: 0.303030303 | P18: =SUM($C$475:$AP$475)-O18 -> 0.696969697 | Q18: 0 | R18: 1
B19: CA07 | C19: Other Communications Plant and Equipment | D19: 0.1212121212 | E19: =SUM(AE498:AG498) -> 0.09090909091 | F19: =AH498 -> 0.0303030303 | G19: =MAX(O498,SUM(AI498:AL498)) -> 0.1212121212 | H19: =H498 -> 0 | I19: =I498 -> 0 | J19: =N498 -> 0.0303030303 | K19: =Q498 -> 0.0303030303 | L19: 0 | M19: 0 | N19: 0 | O19: 0.303030303 | P19: =SUM($C$498:$AP$498)-O19 -> 0.696969697 | Q19: 0 | R19: 1
B20: CA08 | C20: Network Land | D20: 0.006666666667 | E20: =SUM(AE539:AG539) -> 0.005 | F20: =AH539 -> 0.001666666667 | G20: =MAX(O539,SUM(AI539:AL539)) -> 0.006666666667 | H20: =H539 -> 0 | I20: =I539 -> 0 | J20: =N539 -> 0 | K20: =Q539 -> 0 | L20: 0 | M20: 0 | N20: 0 | O20: 0.01333333333 | P20: =SUM($C$539:$AP$539)-O20 -> 0.02666666667 | Q20: 0 | R20: 0.04
B21: CA09 | C21: Network Buildings/Support | D21: 0.006666666667 | E21: =SUM(AE580:AG580) -> 0.005 | F21: =AH580 -> 0.001666666667 | G21: =MAX(O580,SUM(AI580:AL580)) -> 0.006666666667 | H21: =H580 -> 0 | I21: =I580 -> 0 | J21: =N580 -> 0 | K21: =Q580 -> 0 | L21: 0 | M21: 0 | N21: 0 | O21: 0.01333333333 | P21: =SUM($C$580:$AP$580)-O21 -> 0.02666666667 | Q21: 0 | R21: 0.04
B22: CA10 | C22: Indirect Capital Assets | D22: 0.09957177382 | E22: =E1106 -> 0.07467883036 | F22: 0.02489294345 | G22: 0.09957177382 | H22: 0 | I22: 0 | J22: 0.02457807067 | K22: 0.02457807067 | L22: 0 | M22: 0 | N22: 0 | O22: 0.248299689 | P22: =P1106 -> 0.57033359 | Q22: =Q1106 -> 0.002048559583 | R22: 0.8206818386
B23: CA11 | C23: Spare CAN Asset Class 11
B24: CA12 | C24: Spare CAN Asset Class 12
B25: CA13 | C25: Spare CAN Asset Class 13
B26: CA14 | C26: Spare CAN Asset Class 14
B27: CA15 | C27: Spare CAN Asset Class 15
B28: CA16 | C28: Spare CAN Asset Class 16
B29: CA17 | C29: Spare CAN Asset Class 17
B30: CA18 | C30: Spare CAN Asset Class 18
B31: CA19 | C31: Spare CAN Asset Class 19
B32: CA20 | C32: Spare CAN Asset Class 20
B33: Core Asset Class
B34: CO01 | C34: Switching Equipment - Local | E34: =SUM(AE643:AG643) -> 0.0009090909091 | F34: =AH643 -> 0.000303030303 | G34: =MAX(O643,SUM(AI643:AL643)) -> 0.001212121212 | H34: =H643 -> 0.001428571429 | I34: =I643 -> 0.001428571429 | J34: =N643 -> 0.000303030303 | K34: =Q643 -> 0.000303030303 | L34: 0 | M34: 0 | N34: 0 | O34: =SUM(E34:N34) -> 0.005887445887 | P34: =SUM($C$643:$AP$643)-O34 -> 0.01411255411 | Q34: 0 | R34: =SUM(O34:Q34) -> 0.02
B35: CO02 | C35: Switching Equipment - Trunk | E35: =SUM(AE666:AG666) -> 0 | F35: =AH666 -> 0 | G35: =MAX(O666,SUM(AI666:AL666)) -> 0 | H35: =H666 -> 0.1428571429 | I35: =I666 -> 0.1428571429 | J35: =N666 -> 0 | K35: =Q666 -> 0 | L35: 0 | M35: 0 | N35: 0 | O35: =SUM(E35:N35) -> 0.2857142857 | P35: =SUM($C$666:$AP$666)-O35 -> 0.7142857143 | Q35: 0 | R35: 1
B36: CO03 | C36: Switching Equipment - Other | E36: =SUM(AE689:AG689) -> 0 | F36: =AH689 -> 0 | G36: =MAX(O689,SUM(AI689:AL689)) -> 0 | H36: =H689 -> 0.1428571429 | I36: =I689 -> 0.1428571429 | J36: =N689 -> 0 | K36: =Q689 -> 0 | L36: 0 | M36: 0 | N36: 0 | O36: 0.2857142857 | P36: =SUM($C$689:$AP$689)-O36 -> 0.7142857143 | Q36: 0 | R36: 1
B37: CO04 | C37: Inter-exchange Cables | E37: =SUM(AE742:AG742) -> 0 | F37: =AH742 -> 0 | G37: =MAX(O742,SUM(AI742:AL742)) -> 0 | H37: =H742 -> 0.001429142857 | I37: =I742 -> 0.001429142857 | J37: =N742 -> 0 | K37: =Q742 -> 0.005002 | L37: 0 | M37: 0 | N37: 0 | O37: 0.007860285714 | P37: =SUM($C$742:$AP$742)-O37 -> 0.02215171429 | Q37: =SUM($F$713,$G$713*(1-SUM($C$815:$AP$815))) -> 0.019988 | R37: 0.05
B38: CO05 | C38: Transmission Equipment | E38: =SUM(AE815:AG815) -> 0 | F38: =AH815 -> 0 | G38: =MAX(O815,SUM(AI815:AL815)) -> 0 | H38: =H815 -> 5.714285714e-05 | I38: =I815 -> 5.714285714e-05 | J38: =N815 -> 0 | K38: =Q815 -> 0.0002 | L38: 0 | M38: 0 | N38: 0 | O38: 0.0003142857143 | P38: =SUM($C$815:$AP$815)-O38 -> 0.0008857142857 | Q38: =$U$766 -> 0.0388 | R38: 0.04
B39: CO06 | C39: Core Radio Bearer Equipment | E39: =SUM(AE888:AG888) -> 0 | F39: =AH888 -> 0 | G39: =MAX(O888,SUM(AI888:AL888)) -> 0 | H39: =H888 -> 5.714285714e-05 | I39: =I888 -> 5.714285714e-05 | J39: =N888 -> 0 | K39: =Q888 -> 0.0002 | L39: 0 | M39: 0 | N39: 0 | O39: 0.0003142857143 | P39: =SUM($C$888:$AP$888)-O39 -> 0.0008857142857 | Q39: =$U$839 -> 0.0388 | R39: 0.04
B40: CO07 | C40: Other Communications Plant and Equipment | E40: =E$1107*INDEX(FLS_TPA_alloc,MATCH($B$11,$B$910:$B$915,0)) -> 0.009566608949 | F40: 0.00318886965 | G40: 0.0127554786 | H40: 0.007177911148 | I40: 0.007177911148 | J40: 0.00318886965 | K40: 0.003364367555 | L40: =INDEX(TEBA_TPA_Alloc,MATCH($B$11,$B$910:$B$915,0)) -> 1 | M40: =M$1107*INDEX(FLS_TPA_alloc,MATCH($B$11,$B$910:$B$915,0)) -> 0 | N40: 0 | O40: 1.046420017 | P40: =P$1107*INDEX(FLS_TPA_alloc,MATCH($B$11,$B$910:$B$915,0)) -> 0.1097600514 | Q40: =Q$1107*INDEX(FLS_TPA_alloc,MATCH($B$11,$B$910:$B$915,0))+INDEX(Other_TPA_alloc,MATCH($B$11,$B$910:$B$915,0)) -> 1.004500062 | R40: 2.16068013
B41: CO08 | C41: Network Land | E41: 0.009566608949 | F41: 0.00318886965 | G41: 0.0127554786 | H41: 0.007177911148 | I41: 0.007177911148 | J41: 0.00318886965 | K41: 0.003364367555 | L41: =INDEX(TEBA_TPA_Alloc,MATCH($B$11,$B$910:$B$915,0)) -> 1 | M41: 0 | N41: 0 | O41: 1.046420017 | P41: =P$1107*INDEX(FLS_TPA_alloc,MATCH($B$11,$B$910:$B$915,0)) -> 0.1097600514 | Q41: =Q$1107*INDEX(FLS_TPA_alloc,MATCH($B$11,$B$910:$B$915,0))+INDEX(Other_TPA_alloc,MATCH($B$11,$B$910:$B$915,0)) -> 1.004500062 | R41: =SUM(O41:Q41) -> 2.16068013
B42: CO09 | C42: Network Buildings/Support | E42: 0.009566608949 | F42: 0.00318886965 | G42: 0.0127554786 | H42: 0.007177911148 | I42: 0.007177911148 | J42: 0.00318886965 | K42: 0.003364367555 | L42: =INDEX(TEBA_TPA_Alloc,MATCH($B$11,$B$910:$B$915,0)) -> 1 | M42: 0 | N42: 0 | O42: 1.046420017 | P42: =P$1107*INDEX(FLS_TPA_alloc,MATCH($B$11,$B$910:$B$915,0)) -> 0.1097600514 | Q42: =Q$1107*INDEX(FLS_TPA_alloc,MATCH($B$11,$B$910:$B$915,0))+INDEX(Other_TPA_alloc,MATCH($B$11,$B$910:$B$915,0)) -> 1.004500062 | R42: =SUM(O42:Q42) -> 2.16068013
B43: CO10 | C43: Indirect Capital Assets | E43: =E1108 -> 0.009566608949 | F43: 0.00318886965 | G43: 0.0127554786 | H43: 0.007177911148 | I43: 0.007177911148 | J43: 0.00318886965 | K43: 0.003364367555 | L43: 0.1259923075 | M43: 0 | N43: 0 | O43: 0.1724123242 | P43: =P1108 -> 0.1097600514 | Q43: =Q1108 -> 0.1304923697 | R43: =SUM(O43:Q43) -> 0.4126647452
B44: CO11 | C44: LSS equipment | E44: =SUM(AE972:AG972) -> 0.075 | F44: =AH972 -> 0.025 | G44: =O972 -> 0.025 | H44: =H972 -> 0.025 | I44: =I972 -> 0.025 | J44: =N972 -> 0.025 | K44: =Q972 -> 0.025 | L44: 0 | M44: 0 | N44: 0 | O44: 0.225 | P44: =SUM($C$972:$AP$972)-O44 -> 0.775 | Q44: 0 | R44: =SUM(O44:Q44) -> 1
B45: CO12 | C45: Data Equipment | E45: =SUM(AE995:AG995) -> 0.09090909091 | F45: =AH995 -> 0.0303030303 | G45: =MAX(O995,SUM(AI995:AL995)) -> 0.1212121212 | H45: =H995 -> 0 | I45: =I995 -> 0 | J45: =N995 -> 0.0303030303 | K45: =Q995 -> 0.0303030303 | L45: 0 | M45: 0 | N45: 0 | O45: 0.303030303 | P45: =SUM($C$995:$AP$995)-O45 -> 0.696969697 | Q45: 0 | R45: =SUM(O45:Q45) -> 1
B46: CO13 | C46: Spare Core Asset Class 13
B47: CO14 | C47: Spare Core Asset Class 14
B48: CO15 | C48: Spare Core Asset Class 15
B49: CO16 | C49: Spare Core Asset Class 16
B50: CO17 | C50: Spare Core Asset Class 17
B51: CO18 | C51: Spare Core Asset Class 18
B52: CO19 | C52: Spare Core Asset Class 19
B53: CO20 | C53: Spare Core Asset Class 20
A55: FY2015 Allocations | E55: S01 | F55: S02 | G55: S03 | H55: S04 | I55: S05 | J55: S06 | K55: S07 | L55: S08 | M55: S09 | N55: S10
B56: FY2015 | D56: ULLS | E56: ULLS13 | F56: ULLS4 | G56: WLR | H56: FOTAS | I56: LCS | J56: LSS | K56: WADSL | L56: TEBA | M56: AS1 | N56: AS2 | O56: Total | P56: Other Fixed Line Services | Q56: Other Services | R56: Total
B57: CAN Asset Class
B58: CA01 | C58: Ducts and pipes | D58: =SUM(E58:F58) -> 0.006666666667 | E58: =SUM(AE324:AG324) -> 0.005 | F58: =AH324 -> 0.001666666667 | G58: =SUM(S324:V324,AI324:AL324)*F306 -> 0.006666666667 | H58: =H324 -> 0 | I58: =I324 -> 0 | J58: =N324 -> 0 | K58: =Q324 -> 0 | L58: 0 | M58: 0 | N58: 0 | O58: =SUM(E58:N58) -> 0.01333333333 | P58: =SUM($C324:$AP324)-(O58-L58) -> 0.02666666667 | Q58: =SUM($G297:$J297) -> 0.04 | R58: =SUM(O58:Q58) -> 0.08
B59: CA02 | C59: Copper cables | D59: =SUM(E59:F59) -> 0.006666666667 | E59: =SUM(AE384:AG384) -> 0.005 | F59: =AH384 -> 0.001666666667 | G59: =SUM(S384:V384,AI384:AL384)*F366 -> 0.006666666667 | H59: =H384 -> 0 | I59: =I384 -> 0 | J59: =N384 -> 0 | K59: =Q384 -> 0 | L59: 0 | M59: 0 | N59: 0 | O59: =SUM(E59:N59) -> 0.01333333333 | P59: =SUM($C$384:$AP$384)-O59 -> 0.02666666667 | Q59: 0 | R59: 0.04
B60: CA03 | C60: Other cables | D60: 0.1212121212 | E60: =SUM(AE407:AG407) -> 0.09090909091 | F60: =AH407 -> 0.0303030303 | G60: =MAX(O407,SUM(AI407:AL407)) -> 0.1212121212 | H60: =H407 -> 0 | I60: =I407 -> 0 | J60: =N407 -> 0.0303030303 | K60: =Q407 -> 0.0303030303 | L60: 0 | M60: 0 | N60: 0 | O60: 0.303030303 | P60: =SUM($C$407:$AP$407)-O60 -> 0.696969697 | Q60: 0 | R60: 1
B61: CA04 | C61: Pair gain systems | D61: 0.1212121212 | E61: =SUM(AE430:AG430) -> 0.09090909091 | F61: =AH430 -> 0.0303030303 | G61: =MAX(O430,SUM(AI430:AL430)) -> 0.1212121212 | H61: =H430 -> 0 | I61: =I430 -> 0 | J61: =N430 -> 0.0303030303 | K61: =Q430 -> 0.0303030303 | L61: 0 | M61: 0 | N61: 0 | O61: 0.303030303 | P61: =SUM($C$430:$AP$430)-O61 -> 0.696969697 | Q61: 0 | R61: 1
B62: CA05 | C62: CAN Radio Bearer Equipment | D62: 0.1212121212 | E62: =SUM(AE453:AG453) -> 0.09090909091 | F62: =AH453 -> 0.0303030303 | G62: =MAX(O453,SUM(AI453:AL453)) -> 0.1212121212 | H62: =H453 -> 0 | I62: =I453 -> 0 | J62: =N453 -> 0.0303030303 | K62: =Q453 -> 0.0303030303 | L62: 0 | M62: 0 | N62: 0 | O62: 0.303030303 | P62: =SUM($C$453:$AP$453)-O62 -> 0.696969697 | Q62: 0 | R62: 1
B63: CA06 | C63: Other CAN assets | D63: 0.1212121212 | E63: =SUM(AE476:AG476) -> 0.09090909091 | F63: =AH476 -> 0.0303030303 | G63: =MAX(O476,SUM(AI476:AL476)) -> 0.1212121212 | H63: =H476 -> 0 | I63: =I476 -> 0 | J63: =N476 -> 0.0303030303 | K63: =Q476 -> 0.0303030303 | L63: 0 | M63: 0 | N63: 0 | O63: 0.303030303 | P63: =SUM($C$476:$AP$476)-O63 -> 0.696969697 | Q63: 0 | R63: 1
B64: CA07 | C64: Other Communications Plant and Equipment | D64: 0.1212121212 | E64: =SUM(AE499:AG499) -> 0.09090909091 | F64: =AH499 -> 0.0303030303 | G64: =MAX(O499,SUM(AI499:AL499)) -> 0.1212121212 | H64: =H499 -> 0 | I64: =I499 -> 0 | J64: =N499 -> 0.0303030303 | K64: =Q499 -> 0.0303030303 | L64: 0 | M64: 0 | N64: 0 | O64: 0.303030303 | P64: =SUM($C$499:$AP$499)-O64 -> 0.696969697 | Q64: 0 | R64: 1
B65: CA08 | C65: Network Land | D65: 0.006666666667 | E65: =SUM(AE540:AG540) -> 0.005 | F65: =AH540 -> 0.001666666667 | G65: =MAX(O540,SUM(AI540:AL540)) -> 0.006666666667 | H65: =H540 -> 0 | I65: =I540 -> 0 | J65: =N540 -> 0 | K65: =Q540 -> 0 | L65: 0 | M65: 0 | N65: 0 | O65: 0.01333333333 | P65: =SUM($C$540:$AP$540)-O65 -> 0.02666666667 | Q65: 0 | R65: 0.04
B66: CA09 | C66: Network Buildings/Support | D66: 0.006666666667 | E66: =SUM(AE581:AG581) -> 0.005 | F66: =AH581 -> 0.001666666667 | G66: =MAX(O581,SUM(AI581:AL581)) -> 0.006666666667 | H66: =H581 -> 0 | I66: =I581 -> 0 | J66: =N581 -> 0 | K66: =Q581 -> 0 | L66: 0 | M66: 0 | N66: 0 | O66: 0.01333333333 | P66: =SUM($C$581:$AP$581)-O66 -> 0.02666666667 | Q66: 0 | R66: 0.04
B67: CA10 | C67: Indirect Capital Assets | D67: 0.07903322609 | E67: =E1163 -> 0.05927491957 | F67: 0.01975830652 | G67: 0.07903322609 | H67: 0 | I67: 0 | J67: 0.01914459244 | K67: 0.01914459244 | L67: 0 | M67: =M1151 -> 0 | N67: =N1151 -> 0 | O67: 0.1963556371 | P67: =P1163 -> 0.4501450514 | Q67: =Q1163 -> 0.00322929094 | R67: 0.6497299794
B68: CA11 | C68: Spare CAN Asset Class 11
B69: CA12 | C69: Spare CAN Asset Class 12
B70: CA13 | C70: Spare CAN Asset Class 13
B71: CA14 | C71: Spare CAN Asset Class 14
B72: CA15 | C72: Spare CAN Asset Class 15
B73: CA16 | C73: Spare CAN Asset Class 16
B74: CA17 | C74: Spare CAN Asset Class 17
B75: CA18 | C75: Spare CAN Asset Class 18
B76: CA19 | C76: Spare CAN Asset Class 19
B77: CA20 | C77: Spare CAN Asset Class 20
B78: Core Asset Class
B79: CO01 | C79: Switching Equipment - Local | E79: =SUM(AE644:AG644) -> 0.0009090909091 | F79: =AH644 -> 0.000303030303 | G79: =MAX(O644,SUM(AI644:AL644)) -> 0.001212121212 | H79: =H644 -> 0.001428571429 | I79: =I644 -> 0.001428571429 | J79: =N644 -> 0.000303030303 | K79: =Q644 -> 0.000303030303 | L79: 0 | M79: 0 | N79: 0 | O79: =SUM(E79:N79) -> 0.005887445887 | P79: =SUM($C$644:$AP$644)-O79 -> 0.01411255411 | Q79: 0 | R79: =SUM(O79:Q79) -> 0.02
B80: CO02 | C80: Switching Equipment - Trunk | E80: =SUM(AE667:AG667) -> 0 | F80: =AH667 -> 0 | G80: =MAX(O667,SUM(AI667:AL667)) -> 0 | H80: =H667 -> 0.1428571429 | I80: =I667 -> 0.1428571429 | J80: =N667 -> 0 | K80: =Q667 -> 0 | L80: 0 | M80: 0 | N80: 0 | O80: =SUM(E80:N80) -> 0.2857142857 | P80: =SUM($C$667:$AP$667)-O80 -> 0.7142857143 | Q80: 0 | R80: 1
B81: CO03 | C81: Switching Equipment - Other | E81: =SUM(AE690:AG690) -> 0 | F81: =AH690 -> 0 | G81: =MAX(O690,SUM(AI690:AL690)) -> 0 | H81: =H690 -> 0.1428571429 | I81: =I690 -> 0.1428571429 | J81: =N690 -> 0 | K81: =Q690 -> 0 | L81: 0 | M81: 0 | N81: 0 | O81: 0.2857142857 | P81: =SUM($C$690:$AP$690)-O81 -> 0.7142857143 | Q81: 0 | R81: 1
B82: CO04 | C82: Inter-exchange Cables | E82: =SUM(AE743:AG743) -> 0 | F82: =AH743 -> 0 | G82: =MAX(O743,SUM(AI743:AL743)) -> 0 | H82: =H743 -> 0.001429142857 | I82: =I743 -> 0.001429142857 | J82: =N743 -> 0 | K82: =Q743 -> 0.005002 | L82: 0 | M82: 0 | N82: 0 | O82: 0.007860285714 | P82: =SUM($C$743:$AP$743)-O82 -> 0.02215171429 | Q82: =SUM($F$714,$G$714*(1-SUM($C$816:$AP$816))) -> 0.019988 | R82: 0.05
B83: CO05 | C83: Transmission Equipment | E83: =SUM(AE816:AG816) -> 0 | F83: =AH816 -> 0 | G83: =MAX(O816,SUM(AI816:AL816)) -> 0 | H83: =H816 -> 5.714285714e-05 | I83: =I816 -> 5.714285714e-05 | J83: =N816 -> 0 | K83: =Q816 -> 0.0002 | L83: 0 | M83: 0 | N83: 0 | O83: 0.0003142857143 | P83: =SUM($C$816:$AP$816)-O83 -> 0.0008857142857 | Q83: =$U$767 -> 0.0388 | R83: 0.04
B84: CO06 | C84: Core Radio Bearer Equipment | E84: =SUM(AE889:AG889) -> 0 | F84: =AH889 -> 0 | G84: =MAX(O889,SUM(AI889:AL889)) -> 0 | H84: =H889 -> 5.714285714e-05 | I84: =I889 -> 5.714285714e-05 | J84: =N889 -> 0 | K84: =Q889 -> 0.0002 | L84: 0 | M84: 0 | N84: 0 | O84: 0.0003142857143 | P84: =SUM($C$889:$AP$889)-O84 -> 0.0008857142857 | Q84: =$U$840 -> 0.0388 | R84: 0.04
B85: CO07 | C85: Other Communications Plant and Equipment | E85: =E$1164*INDEX(FLS_TPA_alloc,MATCH($B$56,$B$910:$B$915,0)) -> 0.01234004749 | F85: 0.004113349164 | G85: 0.01645339666 | H85: 0.0274697012 | I85: 0.0274697012 | J85: 0.004113349164 | K85: 0.004600844256 | L85: =INDEX(TEBA_TPA_Alloc,MATCH($B$56,$B$910:$B$915,0)) -> 1 | M85: =M$1164*INDEX(FLS_TPA_alloc,MATCH($B$56,$B$910:$B$915,0)) -> 0 | N85: 0 | O85: 1.096560389 | P85: =P$1164*INDEX(FLS_TPA_alloc,MATCH($B$56,$B$910:$B$915,0)) -> 0.2334180221 | Q85: =Q$1164*INDEX(FLS_TPA_alloc,MATCH($B$56,$B$910:$B$915,0))+INDEX(Other_TPA_alloc,MATCH($B$56,$B$910:$B$915,0)) -> 1.01094192 | R85: 2.340920331
B86: CO08 | C86: Network Land | E86: 0.01234004749 | F86: 0.004113349164 | G86: 0.01645339666 | H86: 0.0274697012 | I86: 0.0274697012 | J86: 0.004113349164 | K86: 0.004600844256 | L86: =INDEX(TEBA_TPA_Alloc,MATCH($B$56,$B$910:$B$915,0)) -> 1 | M86: 0 | N86: 0 | O86: 1.096560389 | P86: =P$1164*INDEX(FLS_TPA_alloc,MATCH($B$56,$B$910:$B$915,0)) -> 0.2334180221 | Q86: =Q$1164*INDEX(FLS_TPA_alloc,MATCH($B$56,$B$910:$B$915,0))+INDEX(Other_TPA_alloc,MATCH($B$56,$B$910:$B$915,0)) -> 1.01094192 | R86: =SUM(O86:Q86) -> 2.340920331
B87: CO09 | C87: Network Buildings/Support | E87: 0.01234004749 | F87: 0.004113349164 | G87: 0.01645339666 | H87: 0.0274697012 | I87: 0.0274697012 | J87: 0.004113349164 | K87: 0.004600844256 | L87: =INDEX(TEBA_TPA_Alloc,MATCH($B$56,$B$910:$B$915,0)) -> 1 | M87: 0 | N87: 0 | O87: 1.096560389 | P87: =P$1164*INDEX(FLS_TPA_alloc,MATCH($B$56,$B$910:$B$915,0)) -> 0.2334180221 | Q87: =Q$1164*INDEX(FLS_TPA_alloc,MATCH($B$56,$B$910:$B$915,0))+INDEX(Other_TPA_alloc,MATCH($B$56,$B$910:$B$915,0)) -> 1.01094192 | R87: =SUM(O87:Q87) -> 2.340920331
B88: CO10 | C88: Indirect Capital Assets | E88: =E1165 -> 0.01234004749 | F88: 0.004113349164 | G88: 0.01645339666 | H88: 0.0274697012 | I88: 0.0274697012 | J88: 0.004113349164 | K88: 0.004600844256 | L88: 0.2632235776 | M88: 0 | N88: 0 | O88: 0.3597839668 | P88: =P1165 -> 0.2334180221 | Q88: =Q1165 -> 0.2741654978 | R88: =SUM(O88:Q88) -> 0.8673674867
B89: CO11 | C89: LSS equipment | E89: =SUM(AE973:AG973) -> 0.075 | F89: =AH973 -> 0.025 | G89: =O973 -> 0.025 | H89: =H973 -> 0.025 | I89: =I973 -> 0.025 | J89: =N973 -> 0.025 | K89: =Q973 -> 0.025 | L89: 0 | M89: 0 | N89: 0 | O89: 0.225 | P89: =SUM($C$973:$AP$973)-O89 -> 0.775 | Q89: 0 | R89: =SUM(O89:Q89) -> 1
B90: CO12 | C90: Data Equipment | E90: =SUM(AE996:AG996) -> 0.09090909091 | F90: =AH996 -> 0.0303030303 | G90: =MAX(O996,SUM(AI996:AL996)) -> 0.1212121212 | H90: =H996 -> 0 | I90: =I996 -> 0 | J90: =N996 -> 0.0303030303 | K90: =Q996 -> 0.0303030303 | L90: 0 | M90: 0 | N90: 0 | O90: 0.303030303 | P90: =SUM($C$996:$AP$996)-O90 -> 0.696969697 | Q90: 0 | R90: =SUM(O90:Q90) -> 1
B91: CO13 | C91: Spare Core Asset Class 13
B92: CO14 | C92: Spare Core Asset Class 14
B93: CO15 | C93: Spare Core Asset Class 15
B94: CO16 | C94: Spare Core Asset Class 16
B95: CO17 | C95: Spare Core Asset Class 17
B96: CO18 | C96: Spare Core Asset Class 18
B97: CO19 | C97: Spare Core Asset Class 19
B98: CO20 | C98: Spare Core Asset Class 20
A100: FY2016 Allocations | E100: S01 | F100: S02 | G100: S03 | H100: S04 | I100: S05 | J100: S06 | K100: S07 | L100: S08 | M100: S09 | N100: S10
B101: FY2016 | D101: ULLS | E101: ULLS13 | F101: ULLS4 | G101: WLR | H101: FOTAS | I101: LCS | J101: LSS | K101: WADSL | L101: TEBA | M101: AS1 | N101: AS2 | O101: Total | P101: Other Fixed Line Services | Q101: Other Services | R101: Total
B102: CAN Asset Class
B103: CA01 | C103: Ducts and pipes | D103: =SUM(E103:F103) -> 0.006666666667 | E103: =SUM(AE325:AG325) -> 0.005 | F103: =AH325 -> 0.001666666667 | G103: =SUM(S325:V325,AI325:AL325)*F307 -> 0.006666666667 | H103: =H325 -> 0 | I103: =I325 -> 0 | J103: =N325 -> 0 | K103: =Q325 -> 0 | L103: 0 | M103: 0 | N103: 0 | O103: =SUM(E103:N103) -> 0.01333333333 | P103: =SUM($C325:$AP325)-(O103-L103) -> 0.02666666667 | Q103: =SUM($G298:$J298) -> 0.04 | R103: =SUM(O103:Q103) -> 0.08
B104: CA02 | C104: Copper cables | D104: =SUM(E104:F104) -> 0.006666666667 | E104: =SUM(AE385:AG385) -> 0.005 | F104: =AH385 -> 0.001666666667 | G104: =SUM(S385:V385,AI385:AL385)*F367 -> 0.006666666667 | H104: =H385 -> 0 | I104: =I385 -> 0 | J104: =N385 -> 0 | K104: =Q385 -> 0 | L104: 0 | M104: 0 | N104: 0 | O104: =SUM(E104:N104) -> 0.01333333333 | P104: =SUM($C$385:$AP$385)-O104 -> 0.02666666667 | Q104: 0 | R104: =SUM(O104:Q104) -> 0.04
B105: CA03 | C105: Other cables | D105: 0.1212121212 | E105: =SUM(AE408:AG408) -> 0.09090909091 | F105: =AH408 -> 0.0303030303 | G105: =MAX(O408,SUM(AI408:AL408)) -> 0.1212121212 | H105: =H408 -> 0 | I105: =I408 -> 0 | J105: =N408 -> 0.0303030303 | K105: =Q408 -> 0.0303030303 | L105: 0 | M105: 0 | N105: 0 | O105: 0.303030303 | P105: =SUM($C$408:$AP$408)-O105 -> 0.696969697 | Q105: 0 | R105: 1
B106: CA04 | C106: Pair gain systems | D106: 0.1212121212 | E106: =SUM(AE431:AG431) -> 0.09090909091 | F106: =AH431 -> 0.0303030303 | G106: =MAX(O431,SUM(AI431:AL431)) -> 0.1212121212 | H106: =H431 -> 0 | I106: =I431 -> 0 | J106: =N431 -> 0.0303030303 | K106: =Q431 -> 0.0303030303 | L106: 0 | M106: 0 | N106: 0 | O106: 0.303030303 | P106: =SUM($C$431:$AP$431)-O106 -> 0.696969697 | Q106: 0 | R106: 1
B107: CA05 | C107: CAN Radio Bearer Equipment | D107: 0.1212121212 | E107: =SUM(AE454:AG454) -> 0.09090909091 | F107: =AH454 -> 0.0303030303 | G107: =MAX(O454,SUM(AI454:AL454)) -> 0.1212121212 | H107: =H454 -> 0 | I107: =I454 -> 0 | J107: =N454 -> 0.0303030303 | K107: =Q454 -> 0.0303030303 | L107: 0 | M107: 0 | N107: 0 | O107: 0.303030303 | P107: =SUM($C$454:$AP$454)-O107 -> 0.696969697 | Q107: 0 | R107: 1
B108: CA06 | C108: Other CAN assets | D108: 0.1212121212 | E108: =SUM(AE477:AG477) -> 0.09090909091 | F108: =AH477 -> 0.0303030303 | G108: =MAX(O477,SUM(AI477:AL477)) -> 0.1212121212 | H108: =H477 -> 0 | I108: =I477 -> 0 | J108: =N477 -> 0.0303030303 | K108: =Q477 -> 0.0303030303 | L108: 0 | M108: 0 | N108: 0 | O108: 0.303030303 | P108: =SUM($C$477:$AP$477)-O108 -> 0.696969697 | Q108: 0 | R108: 1
B109: CA07 | C109: Other Communications Plant and Equipment | D109: 0.1212121212 | E109: =SUM(AE500:AG500) -> 0.09090909091 | F109: =AH500 -> 0.0303030303 | G109: =MAX(O500,SUM(AI500:AL500)) -> 0.1212121212 | H109: =H500 -> 0 | I109: =I500 -> 0 | J109: =N500 -> 0.0303030303 | K109: =Q500 -> 0.0303030303 | L109: 0 | M109: 0 | N109: 0 | O109: 0.303030303 | P109: =SUM($C$500:$AP$500)-O109 -> 0.696969697 | Q109: 0 | R109: 1
B110: CA08 | C110: Network Land | D110: 0.006666666667 | E110: =SUM(AE541:AG541) -> 0.005 | F110: =AH541 -> 0.001666666667 | G110: =MAX(O541,SUM(AI541:AL541)) -> 0.006666666667 | H110: =H541 -> 0 | I110: =I541 -> 0 | J110: =N541 -> 0 | K110: =Q541 -> 0 | L110: 0 | M110: 0 | N110: 0 | O110: 0.01333333333 | P110: =SUM($C$541:$AP$541)-O110 -> 0.02666666667 | Q110: 0 | R110: 0.04
B111: CA09 | C111: Network Buildings/Support | D111: 0.006666666667 | E111: =SUM(AE582:AG582) -> 0.005 | F111: =AH582 -> 0.001666666667 | G111: =MAX(O582,SUM(AI582:AL582)) -> 0.006666666667 | H111: =H582 -> 0 | I111: =I582 -> 0 | J111: =N582 -> 0 | K111: =Q582 -> 0 | L111: 0 | M111: 0 | N111: 0 | O111: 0.01333333333 | P111: =SUM($C$582:$AP$582)-O111 -> 0.02666666667 | Q111: 0 | R111: 0.04
B112: CA10 | C112: Indirect Capital Assets | D112: 0.07599153528 | E112: =E1220 -> 0.05699365146 | F112: 0.01899788382 | G112: 0.07599153528 | H112: 0 | I112: 0 | J112: 0.01833991233 | K112: 0.01833991233 | L112: 0 | M112: 0 | N112: 0 | O112: 0.1886628952 | P112: =P1220 -> 0.4323455274 | Q112: =Q1220 -> 0.003540125719 | R112: 0.6245485484
B113: CA11 | C113: Spare CAN Asset Class 11
B114: CA12 | C114: Spare CAN Asset Class 12
B115: CA13 | C115: Spare CAN Asset Class 13
B116: CA14 | C116: Spare CAN Asset Class 14
B117: CA15 | C117: Spare CAN Asset Class 15
B118: CA16 | C118: Spare CAN Asset Class 16
B119: CA17 | C119: Spare CAN Asset Class 17
B120: CA18 | C120: Spare CAN Asset Class 18
B121: CA19 | C121: Spare CAN Asset Class 19
B122: CA20 | C122: Spare CAN Asset Class 20
B123: Core Asset Class
B124: CO01 | C124: Switching Equipment - Local | E124: =SUM(AE645:AG645) -> 0.0009090909091 | F124: =AH645 -> 0.000303030303 | G124: =MAX(O645,SUM(AI645:AL645)) -> 0.001212121212 | H124: =H645 -> 0.001428571429 | I124: =I645 -> 0.001428571429 | J124: =N645 -> 0.000303030303 | K124: =Q645 -> 0.000303030303 | L124: 0 | M124: 0 | N124: 0 | O124: =SUM(E124:N124) -> 0.005887445887 | P124: =SUM($C$645:$AP$645)-O124 -> 0.01411255411 | Q124: 0 | R124: =SUM(O124:Q124) -> 0.02
B125: CO02 | C125: Switching Equipment - Trunk | E125: =SUM(AE668:AG668) -> 0 | F125: =AH668 -> 0 | G125: =MAX(O668,SUM(AI668:AL668)) -> 0 | H125: =H668 -> 0.1428571429 | I125: =I668 -> 0.1428571429 | J125: =N668 -> 0 | K125: =Q668 -> 0 | L125: 0 | M125: 0 | N125: 0 | O125: =SUM(E125:N125) -> 0.2857142857 | P125: =SUM($C$668:$AP$668)-O125 -> 0.7142857143 | Q125: 0 | R125: 1
B126: CO03 | C126: Switching Equipment - Other | E126: =SUM(AE691:AG691) -> 0 | F126: =AH691 -> 0 | G126: =MAX(O691,SUM(AI691:AL691)) -> 0 | H126: =H691 -> 0.1428571429 | I126: =I691 -> 0.1428571429 | J126: =N691 -> 0 | K126: =Q691 -> 0 | L126: 0 | M126: 0 | N126: 0 | O126: 0.2857142857 | P126: =SUM($C$691:$AP$691)-O126 -> 0.7142857143 | Q126: 0 | R126: 1
B127: CO04 | C127: Inter-exchange Cables | E127: =SUM(AE744:AG744) -> 0 | F127: =AH744 -> 0 | G127: =MAX(O744,SUM(AI744:AL744)) -> 0 | H127: =H744 -> 0.001429142857 | I127: =I744 -> 0.001429142857 | J127: =N744 -> 0 | K127: =Q744 -> 0.005002 | L127: 0 | M127: 0 | N127: 0 | O127: 0.007860285714 | P127: =SUM($C$744:$AP$744)-O127 -> 0.02215171429 | Q127: =SUM($F$715,$G$715*(1-SUM($C$817:$AP$817))) -> 0.019988 | R127: 0.05
B128: CO05 | C128: Transmission Equipment | E128: =SUM(AE817:AG817) -> 0 | F128: =AH817 -> 0 | G128: =MAX(O817,SUM(AI817:AL817)) -> 0 | H128: =H817 -> 5.714285714e-05 | I128: =I817 -> 5.714285714e-05 | J128: =N817 -> 0 | K128: =Q817 -> 0.0002 | L128: 0 | M128: 0 | N128: 0 | O128: 0.0003142857143 | P128: =SUM($C$817:$AP$817)-O128 -> 0.0008857142857 | Q128: =$U$768 -> 0.0388 | R128: 0.04
B129: CO06 | C129: Core Radio Bearer Equipment | E129: =SUM(AE890:AG890) -> 0 | F129: =AH890 -> 0 | G129: =MAX(O890,SUM(AI890:AL890)) -> 0 | H129: =H890 -> 5.714285714e-05 | I129: =I890 -> 5.714285714e-05 | J129: =N890 -> 0 | K129: =Q890 -> 0.0002 | L129: 0 | M129: 0 | N129: 0 | O129: 0.0003142857143 | P129: =SUM($C$890:$AP$890)-O129 -> 0.0008857142857 | Q129: =$U$841 -> 0.0388 | R129: 0.04
B130: CO07 | C130: Other Communications Plant and Equipment | E130: =E1221*INDEX(FLS_TPA_alloc,MATCH($B$101,$B$910:$B$915,0)) -> 0.01451830012 | F130: 0.004839433373 | G130: 0.01935773349 | H130: 0.04184763571 | I130: 0.04184763571 | J130: 0.004839433373 | K130: 0.005760228463 | L130: =INDEX(TEBA_TPA_Alloc,MATCH($B$101,$B$910:$B$915,0)) -> 1 | M130: =M1221*INDEX(FLS_TPA_alloc,MATCH($B$101,$B$910:$B$915,0)) -> 0 | N130: =N1221*INDEX(FLS_TPA_alloc,MATCH($B$101,$B$910:$B$915,0)) -> 0 | O130: 1.1330104 | P130: =P1221*INDEX(FLS_TPA_alloc,MATCH($B$101,$B$910:$B$915,0)) -> 0.3233075314 | Q130: =Q1221*INDEX(FLS_TPA_alloc,MATCH($B$101,$B$910:$B$915,0))+INDEX(Other_TPA_alloc,MATCH($B$101,$B$910:$B$915,0)) -> 1.013777337 | R130: 2.470095268
B131: CO08 | C131: Network Land | E131: =E1221*INDEX(FLS_TPA_alloc,MATCH($B$101,$B$910:$B$915,0)) -> 0.01451830012 | F131: 0.004839433373 | G131: 0.01935773349 | H131: 0.04184763571 | I131: 0.04184763571 | J131: 0.004839433373 | K131: 0.005760228463 | L131: =INDEX(TEBA_TPA_Alloc,MATCH($B$101,$B$910:$B$915,0)) -> 1 | M131: =M1221*INDEX(FLS_TPA_alloc,MATCH($B$101,$B$910:$B$915,0)) -> 0 | N131: =N1221*INDEX(FLS_TPA_alloc,MATCH($B$101,$B$910:$B$915,0)) -> 0 | O131: 1.1330104 | P131: =P1221*INDEX(FLS_TPA_alloc,MATCH($B$101,$B$910:$B$915,0)) -> 0.3233075314 | Q131: =Q1221*INDEX(FLS_TPA_alloc,MATCH($B$101,$B$910:$B$915,0))+INDEX(Other_TPA_alloc,MATCH($B$101,$B$910:$B$915,0)) -> 1.013777337 | R131: =SUM(O131:Q131) -> 2.470095268
B132: CO09 | C132: Network Buildings/Support | E132: =E1221*INDEX(FLS_TPA_alloc,MATCH($B$101,$B$910:$B$915,0)) -> 0.01451830012 | F132: 0.004839433373 | G132: 0.01935773349 | H132: 0.04184763571 | I132: 0.04184763571 | J132: 0.004839433373 | K132: 0.005760228463 | L132: =INDEX(TEBA_TPA_Alloc,MATCH($B$101,$B$910:$B$915,0)) -> 1 | M132: =M1221*INDEX(FLS_TPA_alloc,MATCH($B$101,$B$910:$B$915,0)) -> 0 | N132: =N1221*INDEX(FLS_TPA_alloc,MATCH($B$101,$B$910:$B$915,0)) -> 0 | O132: 1.1330104 | P132: =P1221*INDEX(FLS_TPA_alloc,MATCH($B$101,$B$910:$B$915,0)) -> 0.3233075314 | Q132: =Q1221*INDEX(FLS_TPA_alloc,MATCH($B$101,$B$910:$B$915,0))+INDEX(Other_TPA_alloc,MATCH($B$101,$B$910:$B$915,0)) -> 1.013777337 | R132: =SUM(O132:Q132) -> 2.470095268
B133: CO10 | C133: Indirect Capital Assets | E133: =E1222 -> 0.01451830012 | F133: 0.004839433373 | G133: 0.01935773349 | H133: 0.04184763571 | I133: 0.04184763571 | J133: 0.004839433373 | K133: 0.005760228463 | L133: 0.2822244699 | M133: 0 | N133: 0 | O133: 0.4152348701 | P133: =P1222 -> 0.3233075314 | Q133: =Q1222 -> 0.2960018065 | R133: =SUM(O133:Q133) -> 1.034544208
B134: CO11 | C134: LSS equipment | E134: =SUM(AE974:AG974) -> 0.075 | F134: =AH974 -> 0.025 | G134: =O974 -> 0.025 | H134: =H974 -> 0.025 | I134: =I974 -> 0.025 | J134: =N974 -> 0.025 | K134: =Q974 -> 0.025 | L134: 0 | M134: 0 | N134: 0 | O134: 0.225 | P134: =SUM($C$974:$AP$974)-O134 -> 0.775 | Q134: 0 | R134: =SUM(O134:Q134) -> 1
B135: CO12 | C135: Data Equipment | E135: =SUM(AE997:AG997) -> 0.09090909091 | F135: =AH997 -> 0.0303030303 | G135: =MAX(O997,SUM(AI997:AL997)) -> 0.1212121212 | H135: =H997 -> 0 | I135: =I997 -> 0 | J135: =N997 -> 0.0303030303 | K135: =Q997 -> 0.0303030303 | L135: 0 | M135: 0 | N135: 0 | O135: 0.303030303 | P135: =SUM($C$997:$AP$997)-O135 -> 0.696969697 | Q135: 0 | R135: =SUM(O135:Q135) -> 1
B136: CO13 | C136: Spare Core Asset Class 13
B137: CO14 | C137: Spare Core Asset Class 14
B138: CO15 | C138: Spare Core Asset Class 15
B139: CO16 | C139: Spare Core Asset Class 16
B140: CO17 | C140: Spare Core Asset Class 17
B141: CO18 | C141: Spare Core Asset Class 18
B142: CO19 | C142: Spare Core Asset Class 19
B143: CO20 | C143: Spare Core Asset Class 20
A145: FY2017 Allocations | E145: S01 | F145: S02 | G145: S03 | H145: S04 | I145: S05 | J145: S06 | K145: S07 | L145: S08 | M145: S09 | N145: S10
B146: FY2017 | D146: ULLS | E146: ULLS13 | F146: ULLS4 | G146: WLR | H146: FOTAS | I146: LCS | J146: LSS | K146: WADSL | L146: TEBA | M146: AS1 | N146: AS2 | O146: Total | P146: Other Fixed Line Services | Q146: Other Services | R146: Total
B147: CAN Asset Class
B148: CA01 | C148: Ducts and pipes | D148: =SUM(E148:F148) -> 0.006666666667 | E148: =SUM(AE326:AG326) -> 0.005 | F148: =AH326 -> 0.001666666667 | G148: =SUM(S326:V326,AI326:AL326)*F308 -> 0.006666666667 | H148: =H326 -> 0 | I148: =I326 -> 0 | J148: =N326 -> 0 | K148: =Q326 -> 0 | L148: 0 | M148: 0 | N148: 0 | O148: =SUM(E148:N148) -> 0.01333333333 | P148: =SUM($C326:$AP326)-(O148-L148) -> 0.02666666667 | Q148: =SUM($G299:$J299) -> 0.04 | R148: =SUM(O148:Q148) -> 0.08
B149: CA02 | C149: Copper cables | D149: =SUM(E149:F149) -> 0.006666666667 | E149: =SUM(AE386:AG386) -> 0.005 | F149: =AH386 -> 0.001666666667 | G149: =SUM(S386:V386,AI386:AL386)*F368 -> 0.006666666667 | H149: =H386 -> 0 | I149: =I386 -> 0 | J149: =N386 -> 0 | K149: =Q386 -> 0 | L149: 0 | M149: 0 | N149: 0 | O149: =SUM(E149:N149) -> 0.01333333333 | P149: =SUM($C$386:$AP$386)-O149 -> 0.02666666667 | Q149: 0 | R149: =SUM(O149:Q149) -> 0.04
B150: CA03 | C150: Other cables | D150: 0.1212121212 | E150: =SUM(AE409:AG409) -> 0.09090909091 | F150: =AH409 -> 0.0303030303 | G150: =MAX(O409,SUM(AI409:AL409)) -> 0.1212121212 | H150: =H409 -> 0 | I150: =I409 -> 0 | J150: =N409 -> 0.0303030303 | K150: =Q409 -> 0.0303030303 | L150: 0 | M150: 0 | N150: 0 | O150: 0.303030303 | P150: =SUM($C$409:$AP$409)-O150 -> 0.696969697 | Q150: 0 | R150: 1
B151: CA04 | C151: Pair gain systems | D151: 0.1212121212 | E151: =SUM(AE432:AG432) -> 0.09090909091 | F151: =AH432 -> 0.0303030303 | G151: =MAX(O432,SUM(AI432:AL432)) -> 0.1212121212 | H151: =H432 -> 0 | I151: =I432 -> 0 | J151: =N432 -> 0.0303030303 | K151: =Q432 -> 0.0303030303 | L151: 0 | M151: 0 | N151: 0 | O151: 0.303030303 | P151: =SUM($C$432:$AP$432)-O151 -> 0.696969697 | Q151: 0 | R151: 1
B152: CA05 | C152: CAN Radio Bearer Equipment | D152: 0.1212121212 | E152: =SUM(AE455:AG455) -> 0.09090909091 | F152: =AH455 -> 0.0303030303 | G152: =MAX(O455,SUM(AI455:AL455)) -> 0.1212121212 | H152: =H455 -> 0 | I152: =I455 -> 0 | J152: =N455 -> 0.0303030303 | K152: =Q455 -> 0.0303030303 | L152: 0 | M152: 0 | N152: 0 | O152: 0.303030303 | P152: =SUM($C$455:$AP$455)-O152 -> 0.696969697 | Q152: 0 | R152: 1
B153: CA06 | C153: Other CAN assets | D153: 0.1212121212 | E153: =SUM(AE478:AG478) -> 0.09090909091 | F153: =AH478 -> 0.0303030303 | G153: =MAX(O478,SUM(AI478:AL478)) -> 0.1212121212 | H153: =H478 -> 0 | I153: =I478 -> 0 | J153: =N478 -> 0.0303030303 | K153: =Q478 -> 0.0303030303 | L153: 0 | M153: 0 | N153: 0 | O153: 0.303030303 | P153: =SUM($C$478:$AP$478)-O153 -> 0.696969697 | Q153: 0 | R153: 1
B154: CA07 | C154: Other Communications Plant and Equipment | D154: 0.1212121212 | E154: =SUM(AE501:AG501) -> 0.09090909091 | F154: =AH501 -> 0.0303030303 | G154: =MAX(O501,SUM(AI501:AL501)) -> 0.1212121212 | H154: =H501 -> 0 | I154: =I501 -> 0 | J154: =N501 -> 0.0303030303 | K154: =Q501 -> 0.0303030303 | L154: 0 | M154: 0 | N154: 0 | O154: 0.303030303 | P154: =SUM($C$501:$AP$501)-O154 -> 0.696969697 | Q154: 0 | R154: 1
B155: CA08 | C155: Network Land | D155: 0.006666666667 | E155: =SUM(AE542:AG542) -> 0.005 | F155: =AH542 -> 0.001666666667 | G155: =MAX(O542,SUM(AI542:AL542)) -> 0.006666666667 | H155: =H542 -> 0 | I155: =I542 -> 0 | J155: =N542 -> 0 | K155: =Q542 -> 0 | L155: 0 | M155: 0 | N155: 0 | O155: 0.01333333333 | P155: =SUM($C$542:$AP$542)-O155 -> 0.02666666667 | Q155: 0 | R155: 0.04
B156: CA09 | C156: Network Buildings/Support | D156: 0.006666666667 | E156: =SUM(AE583:AG583) -> 0.005 | F156: =AH583 -> 0.001666666667 | G156: =MAX(O583,SUM(AI583:AL583)) -> 0.006666666667 | H156: =H583 -> 0 | I156: =I583 -> 0 | J156: =N583 -> 0 | K156: =Q583 -> 0 | L156: 0 | M156: 0 | N156: 0 | O156: 0.01333333333 | P156: =SUM($C$583:$AP$583)-O156 -> 0.02666666667 | Q156: 0 | R156: 0.04
B157: CA10 | C157: Indirect Capital Assets | D157: 0.07592428923 | E157: =E1277 -> 0.05694321692 | F157: 0.01898107231 | G157: 0.07592428923 | H157: 0 | I157: 0 | J157: 0.01832212237 | K157: 0.01832212237 | L157: 0 | M157: 0 | N157: 0 | O157: 0.1884928232 | P157: =P1277 -> 0.4319520135 | Q157: =Q1277 -> 0.003600128599 | R157: 0.6240449653
B158: CA11 | C158: Spare CAN Asset Class 11
B159: CA12 | C159: Spare CAN Asset Class 12
B160: CA13 | C160: Spare CAN Asset Class 13
B161: CA14 | C161: Spare CAN Asset Class 14
B162: CA15 | C162: Spare CAN Asset Class 15
B163: CA16 | C163: Spare CAN Asset Class 16
B164: CA17 | C164: Spare CAN Asset Class 17
B165: CA18 | C165: Spare CAN Asset Class 18
B166: CA19 | C166: Spare CAN Asset Class 19
B167: CA20 | C167: Spare CAN Asset Class 20
B168: Core Asset Class
B169: CO01 | C169: Switching Equipment - Local | E169: =SUM(AE646:AG646) -> 0.0009090909091 | F169: =AH646 -> 0.000303030303 | G169: =MAX(O646,SUM(AI646:AL646)) -> 0.001212121212 | H169: =H646 -> 0.001428571429 | I169: =I646 -> 0.001428571429 | J169: =N646 -> 0.000303030303 | K169: =Q646 -> 0.000303030303 | L169: 0 | M169: 0 | N169: 0 | O169: =SUM(E169:N169) -> 0.005887445887 | P169: =SUM($C$646:$AP$646)-O169 -> 0.01411255411 | Q169: 0 | R169: =SUM(O169:Q169) -> 0.02
B170: CO02 | C170: Switching Equipment - Trunk | E170: =SUM(AE669:AG669) -> 0 | F170: =AH669 -> 0 | G170: =MAX(O669,SUM(AI669:AL669)) -> 0 | H170: =H669 -> 0.1428571429 | I170: =I669 -> 0.1428571429 | J170: =N669 -> 0 | K170: =Q669 -> 0 | L170: 0 | M170: 0 | N170: 0 | O170: =SUM(E170:N170) -> 0.2857142857 | P170: =SUM($C$669:$AP$669)-O170 -> 0.7142857143 | Q170: 0 | R170: 1
B171: CO03 | C171: Switching Equipment - Other | E171: =SUM(AE692:AG692) -> 0 | F171: =AH692 -> 0 | G171: =MAX(O692,SUM(AI692:AL692)) -> 0 | H171: =H692 -> 0.1428571429 | I171: =I692 -> 0.1428571429 | J171: =N692 -> 0 | K171: =Q692 -> 0 | L171: 0 | M171: 0 | N171: 0 | O171: 0.2857142857 | P171: =SUM($C$692:$AP$692)-O171 -> 0.7142857143 | Q171: 0 | R171: 1
B172: CO04 | C172: Inter-exchange Cables | E172: =SUM(AE745:AG745) -> 0 | F172: =AH745 -> 0 | G172: =MAX(O745,SUM(AI745:AL745)) -> 0 | H172: =H745 -> 0.001429142857 | I172: =I745 -> 0.001429142857 | J172: =N745 -> 0 | K172: =Q745 -> 0.005002 | L172: 0 | M172: 0 | N172: 0 | O172: 0.007860285714 | P172: =SUM($C$745:$AP$745)-O172 -> 0.02215171429 | Q172: =SUM($F$716,$G$716*(1-SUM($C$818:$AP$818))) -> 0.019988 | R172: 0.05
B173: CO05 | C173: Transmission Equipment | E173: =SUM(AE818:AG818) -> 0 | F173: =AH818 -> 0 | G173: =MAX(O818,SUM(AI818:AL818)) -> 0 | H173: =H818 -> 5.714285714e-05 | I173: =I818 -> 5.714285714e-05 | J173: =N818 -> 0 | K173: =Q818 -> 0.0002 | L173: 0 | M173: 0 | N173: 0 | O173: 0.0003142857143 | P173: =SUM($C$818:$AP$818)-O173 -> 0.0008857142857 | Q173: =$U$769 -> 0.0388 | R173: 0.04
B174: CO06 | C174: Core Radio Bearer Equipment | E174: =SUM(AE891:AG891) -> 0 | F174: =AH891 -> 0 | G174: =MAX(O891,SUM(AI891:AL891)) -> 0 | H174: =H891 -> 5.714285714e-05 | I174: =I891 -> 5.714285714e-05 | J174: =N891 -> 0 | K174: =Q891 -> 0.0002 | L174: 0 | M174: 0 | N174: 0 | O174: 0.0003142857143 | P174: =SUM($C$891:$AP$891)-O174 -> 0.0008857142857 | Q174: =$U$842 -> 0.0388 | R174: 0.04
B175: CO07 | C175: Other Communications Plant and Equipment | E175: =E$1278*INDEX(FLS_TPA_alloc,MATCH($B$146,$B$910:$B$915,0)) -> 0.0141886389 | F175: 0.0047295463 | G175: 0.0189181852 | H175: 0.04172095656 | I175: 0.04172095656 | J175: 0.0047295463 | K175: 0.005630542889 | L175: =INDEX(TEBA_TPA_Alloc,MATCH($B$146,$B$910:$B$915,0)) -> 1 | M175: =M$1278*INDEX(FLS_TPA_alloc,MATCH($B$146,$B$910:$B$915,0)) -> 0 | N175: 0 | O175: 1.131638373 | P175: =P$1278*INDEX(FLS_TPA_alloc,MATCH($B$146,$B$910:$B$915,0)) -> 0.3200873375 | Q175: =Q$1278*INDEX(FLS_TPA_alloc,MATCH($B$146,$B$910:$B$915,0))+INDEX(Other_TPA_alloc,MATCH($B$146,$B$910:$B$915,0)) -> 1.013731726 | R175: 2.465457437
B176: CO08 | C176: Network Land | E176: 0.0141886389 | F176: 0.0047295463 | G176: 0.0189181852 | H176: 0.04172095656 | I176: 0.04172095656 | J176: 0.0047295463 | K176: 0.005630542889 | L176: =INDEX(TEBA_TPA_Alloc,MATCH($B$146,$B$910:$B$915,0)) -> 1 | M176: 0 | N176: 0 | O176: 1.131638373 | P176: =P$1278*INDEX(FLS_TPA_alloc,MATCH($B$146,$B$910:$B$915,0)) -> 0.3200873375 | Q176: =Q$1278*INDEX(FLS_TPA_alloc,MATCH($B$146,$B$910:$B$915,0))+INDEX(Other_TPA_alloc,MATCH($B$146,$B$910:$B$915,0)) -> 1.013731726 | R176: =SUM(O176:Q176) -> 2.465457437
B177: CO09 | C177: Network Buildings/Support | E177: 0.0141886389 | F177: 0.0047295463 | G177: 0.0189181852 | H177: 0.04172095656 | I177: 0.04172095656 | J177: 0.0047295463 | K177: 0.005630542889 | L177: =INDEX(TEBA_TPA_Alloc,MATCH($B$146,$B$910:$B$915,0)) -> 1 | M177: 0 | N177: 0 | O177: 1.131638373 | P177: =P$1278*INDEX(FLS_TPA_alloc,MATCH($B$146,$B$910:$B$915,0)) -> 0.3200873375 | Q177: =Q$1278*INDEX(FLS_TPA_alloc,MATCH($B$146,$B$910:$B$915,0))+INDEX(Other_TPA_alloc,MATCH($B$146,$B$910:$B$915,0)) -> 1.013731726 | R177: =SUM(O177:Q177) -> 2.465457437
B178: CO10 | C178: Indirect Capital Assets | E178: =E1279 -> 0.0141886389 | F178: 0.0047295463 | G178: 0.0189181852 | H178: 0.04172095656 | I178: 0.04172095656 | J178: 0.0047295463 | K178: 0.005630542889 | L178: 0.2796800751 | M178: 0 | N178: 0 | O178: 0.4113184478 | P178: =P1279 -> 0.3200873375 | Q178: =Q1279 -> 0.2934118016 | R178: =SUM(O178:Q178) -> 1.024817587
B179: CO11 | C179: LSS equipment | E179: =SUM(AE975:AG975) -> 0.075 | F179: =AH975 -> 0.025 | G179: =O975 -> 0.025 | H179: =H975 -> 0.025 | I179: =I975 -> 0.025 | J179: =N975 -> 0.025 | K179: =Q975 -> 0.025 | L179: 0 | M179: 0 | N179: 0 | O179: 0.225 | P179: =SUM($C$975:$AP$975)-O179 -> 0.775 | Q179: 0 | R179: =SUM(O179:Q179) -> 1
B180: CO12 | C180: Data Equipment | E180: =SUM(AE998:AG998) -> 0.09090909091 | F180: =AH998 -> 0.0303030303 | G180: =MAX(O998,SUM(AI998:AL998)) -> 0.1212121212 | H180: =H998 -> 0 | I180: =I998 -> 0 | J180: =N998 -> 0.0303030303 | K180: =Q998 -> 0.0303030303 | L180: 0 | M180: 0 | N180: 0 | O180: 0.303030303 | P180: =SUM($C$998:$AP$998)-O180 -> 0.696969697 | Q180: 0 | R180: =SUM(O180:Q180) -> 1
B181: CO13 | C181: Spare Core Asset Class 13
B182: CO14 | C182: Spare Core Asset Class 14
B183: CO15 | C183: Spare Core Asset Class 15
B184: CO16 | C184: Spare Core Asset Class 16
B185: CO17 | C185: Spare Core Asset Class 17
B186: CO18 | C186: Spare Core Asset Class 18
B187: CO19 | C187: Spare Core Asset Class 19
B188: CO20 | C188: Spare Core Asset Class 20
A190: FY2018 Allocations | E190: S01 | F190: S02 | G190: S03 | H190: S04 | I190: S05 | J190: S06 | K190: S07 | L190: S08 | M190: S09 | N190: S10
B191: FY2018 | D191: ULLS | E191: =VLOOKUP(E190,Services,4,FALSE) -> ULLS13 | F191: ULLS4 | G191: WLR | H191: FOTAS | I191: LCS | J191: LSS | K191: WADSL | L191: AS1 | M191: AS2 | N191: AS3 | O191: Total | P191: Other Fixed Line Services | Q191: Other Services | R191: Total
B192: CAN Asset Class
B193: CA01 | C193: Ducts and pipes | D193: =SUM(E193:F193) -> 0.006666666667 | E193: =SUM(AE327:AG327) -> 0.005 | F193: =AH327 -> 0.001666666667 | G193: =SUM(S327:V327,AI327:AL327)*F309 -> 0.006666666667 | H193: =H327 -> 0 | I193: =I327 -> 0 | J193: =N327 -> 0 | K193: =Q327 -> 0 | L193: 0 | M193: 0 | N193: 0 | O193: =SUM(E193:N193) -> 0.01333333333 | P193: =SUM($C327:$AP327)-(O193-L193) -> 0.02666666667 | Q193: =SUM($G300:$J300) -> 0.04 | R193: =SUM(O193:Q193) -> 0.08
B194: CA02 | C194: Copper cables | D194: =SUM(E194:F194) -> 0.006666666667 | E194: =SUM(AE387:AG387) -> 0.005 | F194: =AH387 -> 0.001666666667 | G194: =SUM(S387:V387,AI387:AL387)*F369 -> 0.006666666667 | H194: =H387 -> 0 | I194: =I387 -> 0 | J194: =N387 -> 0 | K194: =Q387 -> 0 | L194: 0 | M194: 0 | N194: 0 | O194: =SUM(E194:N194) -> 0.01333333333 | P194: =SUM($C$387:$AP$387)-O194 -> 0.02666666667 | Q194: 0 | R194: =SUM(O194:Q194) -> 0.04
B195: CA03 | C195: Other cables | D195: 0.1212121212 | E195: =SUM(AE410:AG410) -> 0.09090909091 | F195: =AH410 -> 0.0303030303 | G195: =MAX(O410,SUM(AI410:AL410)) -> 0.1212121212 | H195: =H410 -> 0 | I195: =I410 -> 0 | J195: =N410 -> 0.0303030303 | K195: =Q410 -> 0.0303030303 | L195: 0 | M195: 0 | N195: 0 | O195: 0.303030303 | P195: =SUM($C$410:$AP$410)-O195 -> 0.696969697 | Q195: 0 | R195: 1
B196: CA04 | C196: Pair gain systems | D196: 0.1212121212 | E196: =SUM(AE433:AG433) -> 0.09090909091 | F196: =AH433 -> 0.0303030303 | G196: =MAX(O433,SUM(AI433:AL433)) -> 0.1212121212 | H196: =H433 -> 0 | I196: =I433 -> 0 | J196: =N433 -> 0.0303030303 | K196: =Q433 -> 0.0303030303 | L196: 0 | M196: 0 | N196: 0 | O196: 0.303030303 | P196: =SUM($C$433:$AP$433)-O196 -> 0.696969697 | Q196: 0 | R196: 1
B197: CA05 | C197: CAN Radio Bearer Equipment | D197: 0.1212121212 | E197: =SUM(AE456:AG456) -> 0.09090909091 | F197: =AH456 -> 0.0303030303 | G197: =MAX(O456,SUM(AI456:AL456)) -> 0.1212121212 | H197: =H456 -> 0 | I197: =I456 -> 0 | J197: =N456 -> 0.0303030303 | K197: =Q456 -> 0.0303030303 | L197: 0 | M197: 0 | N197: 0 | O197: 0.303030303 | P197: =SUM($C$456:$AP$456)-O197 -> 0.696969697 | Q197: 0 | R197: 1
B198: CA06 | C198: Other CAN assets | D198: 0.1212121212 | E198: =SUM(AE479:AG479) -> 0.09090909091 | F198: =AH479 -> 0.0303030303 | G198: =MAX(O479,SUM(AI479:AL479)) -> 0.1212121212 | H198: =H479 -> 0 | I198: =I479 -> 0 | J198: =N479 -> 0.0303030303 | K198: =Q479 -> 0.0303030303 | L198: 0 | M198: 0 | N198: 0 | O198: 0.303030303 | P198: =SUM($C$479:$AP$479)-O198 -> 0.696969697 | Q198: 0 | R198: 1
B199: CA07 | C199: Other Communications Plant and Equipment | D199: 0.1212121212 | E199: =SUM(AE502:AG502) -> 0.09090909091 | F199: =AH502 -> 0.0303030303 | G199: =MAX(O502,SUM(AI502:AL502)) -> 0.1212121212 | H199: =H502 -> 0 | I199: =I502 -> 0 | J199: =N502 -> 0.0303030303 | K199: =Q502 -> 0.0303030303 | L199: 0 | M199: 0 | N199: 0 | O199: 0.303030303 | P199: =SUM($C$502:$AP$502)-O199 -> 0.696969697 | Q199: 0 | R199: 1
B200: CA08 | C200: Network Land | D200: 0.006666666667 | E200: =SUM(AE543:AG543) -> 0.005 | F200: =AH543 -> 0.001666666667 | G200: =MAX(O543,SUM(AI543:AL543)) -> 0.006666666667 | H200: =H543 -> 0 | I200: =I543 -> 0 | J200: =N543 -> 0 | K200: =Q543 -> 0 | L200: 0 | M200: 0 | N200: 0 | O200: 0.01333333333 | P200: =SUM($C$543:$AP$543)-O200 -> 0.02666666667 | Q200: 0 | R200: 0.04
B201: CA09 | C201: Network Buildings/Support | D201: 0.006666666667 | E201: =SUM(AE584:AG584) -> 0.005 | F201: =AH584 -> 0.001666666667 | G201: =MAX(O584,SUM(AI584:AL584)) -> 0.006666666667 | H201: =H584 -> 0 | I201: =I584 -> 0 | J201: =N584 -> 0 | K201: =Q584 -> 0 | L201: 0 | M201: 0 | N201: 0 | O201: 0.01333333333 | P201: =SUM($C$584:$AP$584)-O201 -> 0.02666666667 | Q201: 0 | R201: 0.04
B202: CA10 | C202: Indirect Capital Assets | D202: 0.07584507103 | E202: =E1334 -> 0.05688380327 | F202: 0.01896126776 | G202: 0.07584507103 | H202: 0 | I202: 0 | J202: 0.01830116518 | K202: 0.01830116518 | L202: 0 | M202: 0 | N202: 0 | O202: 0.1882924724 | P202: =P1334 -> 0.4314884404 | Q202: =Q1334 -> 0.00365790734 | R202: 0.6234388201
B203: CA11 | C203: Spare CAN Asset Class 11
B204: CA12 | C204: Spare CAN Asset Class 12
B205: CA13 | C205: Spare CAN Asset Class 13
B206: CA14 | C206: Spare CAN Asset Class 14
B207: CA15 | C207: Spare CAN Asset Class 15
... 1053 more rows

Sheet NBN Scale Adjustments
A1: Allocation Summary
F2: 5 | G2: 6 | H2: 7 | I2: 8 | J2: 9 | K2: 10
B3: Purpose
B4: Summarise allocators per Asset Class, Service and year
F6: 5 | G6: 6 | H6: 7 | I6: 8 | J6: 9 | K6: 10
B7: Allocators
B10: Y05 | C10: FY2014
F11: S01 | G11: S02 | H11: S03 | I11: S04 | J11: S05 | K11: S06 | L11: S07 | M11: S08 | N11: S09 | O11: S10
B12: Code | C12: Asset Class | E12: ULLS | F12: =VLOOKUP(F11,Services,4,FALSE) -> ULLS13 | G12: ULLS4 | H12: WLR | I12: FOTAS | J12: LCS | K12: LSS | L12: WADSL | M12: AS1 | N12: AS2 | O12: AS3 | P12: Total FLSM services | Q12: Other fixed line services | R12: Total fixed line services | S12: Other services | T12: Telstra-NBN | U12: Total | W12: NBN scale adjustment
B13: CAN Asset Class
B14: CA01 | C14: Ducts and pipes | E14: =SUM(F14:G14) -> 0.006666666667 | F14: ='Cost Allocation'!E13*$W14 -> 0.005 | G14: ='Cost Allocation'!F13*$W14 -> 0.001666666667 | H14: ='Cost Allocation'!G13*$W14 -> 0.006666666667 | I14: ='Cost Allocation'!H13*$W14 -> 0 | J14: ='Cost Allocation'!I13*$W14 -> 0 | K14: ='Cost Allocation'!J13*$W14 -> 0 | L14: ='Cost Allocation'!K13*$W14 -> 0 | M14: ='Cost Allocation'!L13*$W14 -> 0 | N14: ='Cost Allocation'!M13*$W14 -> 0 | O14: ='Cost Allocation'!N13*$W14 -> 0 | P14: =SUM(F14:O14) -> 0.01333333333 | Q14: ='Cost Allocation'!P13*$W14 -> 0.02666666667 | R14: =SUM(P14:Q14) -> 0.04 | S14: ='Cost Allocation'!Q13*$W14 -> 0.04 | T14: =IF(W14>0,1-W14,0) -> 0 | U14: =SUM(R14:T14) -> 0.08 | W14: =VLOOKUP(B14,'NBN Scale Adjustments'!$C$748:$Q$767,AB14) -> 1 | AB14: 10
B15: CA02 | C15: Copper cables | E15: 0.006666666667 | F15: ='Cost Allocation'!E14*$W15 -> 0.005 | G15: ='Cost Allocation'!F14*$W15 -> 0.001666666667 | H15: ='Cost Allocation'!G14*$W15 -> 0.006666666667 | I15: ='Cost Allocation'!H14*$W15 -> 0 | J15: ='Cost Allocation'!I14*$W15 -> 0 | K15: ='Cost Allocation'!J14*$W15 -> 0 | L15: ='Cost Allocation'!K14*$W15 -> 0 | M15: ='Cost Allocation'!L14*$W15 -> 0 | N15: ='Cost Allocation'!M14*$W15 -> 0 | O15: ='Cost Allocation'!N14*$W15 -> 0 | P15: =SUM(F15:O15) -> 0.01333333333 | Q15: ='Cost Allocation'!P14*$W15 -> 0.02666666667 | R15: =SUM(P15:Q15) -> 0.04 | S15: ='Cost Allocation'!Q14*$W15 -> 0 | T15: =IF(W15>0,1-W15,0) -> 0 | U15: =SUM(R15:T15) -> 0.04 | W15: 1 | AB15: 10
B16: CA03 | C16: Other cables | E16: 0.1212121212 | F16: ='Cost Allocation'!E15*$W16 -> 0.09090909091 | G16: ='Cost Allocation'!F15*$W16 -> 0.0303030303 | H16: ='Cost Allocation'!G15*$W16 -> 0.1212121212 | I16: ='Cost Allocation'!H15*$W16 -> 0 | J16: ='Cost Allocation'!I15*$W16 -> 0 | K16: ='Cost Allocation'!J15*$W16 -> 0.0303030303 | L16: ='Cost Allocation'!K15*$W16 -> 0.0303030303 | M16: ='Cost Allocation'!L15*$W16 -> 0 | N16: ='Cost Allocation'!M15*$W16 -> 0 | O16: ='Cost Allocation'!N15*$W16 -> 0 | P16: =SUM(F16:O16) -> 0.303030303 | Q16: ='Cost Allocation'!P15*$W16 -> 0.696969697 | R16: =SUM(P16:Q16) -> 1 | S16: ='Cost Allocation'!Q15*$W16 -> 0 | T16: =IF(W16>0,1-W16,0) -> 0 | U16: =SUM(R16:T16) -> 1 | W16: 1 | AB16: 10
B17: CA04 | C17: Pair gain systems | E17: 0.1212121212 | F17: ='Cost Allocation'!E16*$W17 -> 0.09090909091 | G17: ='Cost Allocation'!F16*$W17 -> 0.0303030303 | H17: ='Cost Allocation'!G16*$W17 -> 0.1212121212 | I17: ='Cost Allocation'!H16*$W17 -> 0 | J17: ='Cost Allocation'!I16*$W17 -> 0 | K17: ='Cost Allocation'!J16*$W17 -> 0.0303030303 | L17: ='Cost Allocation'!K16*$W17 -> 0.0303030303 | M17: ='Cost Allocation'!L16*$W17 -> 0 | N17: ='Cost Allocation'!M16*$W17 -> 0 | O17: ='Cost Allocation'!N16*$W17 -> 0 | P17: 0.303030303 | Q17: ='Cost Allocation'!P16*$W17 -> 0.696969697 | R17: 1 | S17: ='Cost Allocation'!Q16*$W17 -> 0 | T17: 0 | U17: 1 | W17: 1 | AB17: 10
B18: CA05 | C18: CAN Radio Bearer Equipment | E18: 0.1212121212 | F18: ='Cost Allocation'!E17*$W18 -> 0.09090909091 | G18: ='Cost Allocation'!F17*$W18 -> 0.0303030303 | H18: ='Cost Allocation'!G17*$W18 -> 0.1212121212 | I18: ='Cost Allocation'!H17*$W18 -> 0 | J18: ='Cost Allocation'!I17*$W18 -> 0 | K18: ='Cost Allocation'!J17*$W18 -> 0.0303030303 | L18: ='Cost Allocation'!K17*$W18 -> 0.0303030303 | M18: ='Cost Allocation'!L17*$W18 -> 0 | N18: ='Cost Allocation'!M17*$W18 -> 0 | O18: ='Cost Allocation'!N17*$W18 -> 0 | P18: 0.303030303 | Q18: ='Cost Allocation'!P17*$W18 -> 0.696969697 | R18: 1 | S18: ='Cost Allocation'!Q17*$W18 -> 0 | T18: 0 | U18: 1 | W18: 1 | AB18: 10
B19: CA06 | C19: Other CAN assets | E19: 0.1212121212 | F19: ='Cost Allocation'!E18*$W19 -> 0.09090909091 | G19: ='Cost Allocation'!F18*$W19 -> 0.0303030303 | H19: ='Cost Allocation'!G18*$W19 -> 0.1212121212 | I19: ='Cost Allocation'!H18*$W19 -> 0 | J19: ='Cost Allocation'!I18*$W19 -> 0 | K19: ='Cost Allocation'!J18*$W19 -> 0.0303030303 | L19: ='Cost Allocation'!K18*$W19 -> 0.0303030303 | M19: ='Cost Allocation'!L18*$W19 -> 0 | N19: ='Cost Allocation'!M18*$W19 -> 0 | O19: ='Cost Allocation'!N18*$W19 -> 0 | P19: 0.303030303 | Q19: ='Cost Allocation'!P18*$W19 -> 0.696969697 | R19: 1 | S19: ='Cost Allocation'!Q18*$W19 -> 0 | T19: 0 | U19: 1 | W19: 1 | AB19: 10
B20: CA07 | C20: Other Communications Plant and Equipment | E20: 0.1212121212 | F20: ='Cost Allocation'!E19*$W20 -> 0.09090909091 | G20: ='Cost Allocation'!F19*$W20 -> 0.0303030303 | H20: ='Cost Allocation'!G19*$W20 -> 0.1212121212 | I20: ='Cost Allocation'!H19*$W20 -> 0 | J20: ='Cost Allocation'!I19*$W20 -> 0 | K20: ='Cost Allocation'!J19*$W20 -> 0.0303030303 | L20: ='Cost Allocation'!K19*$W20 -> 0.0303030303 | M20: ='Cost Allocation'!L19*$W20 -> 0 | N20: ='Cost Allocation'!M19*$W20 -> 0 | O20: ='Cost Allocation'!N19*$W20 -> 0 | P20: 0.303030303 | Q20: ='Cost Allocation'!P19*$W20 -> 0.696969697 | R20: 1 | S20: ='Cost Allocation'!Q19*$W20 -> 0 | T20: 0 | U20: 1 | W20: =VLOOKUP(B20,'NBN Scale Adjustments'!$C$748:$Q$767,AB20) -> 1 | AB20: 10
B21: CA08 | C21: Network Land | E21: 0.006666666667 | F21: ='Cost Allocation'!E20*$W21 -> 0.005 | G21: ='Cost Allocation'!F20*$W21 -> 0.001666666667 | H21: ='Cost Allocation'!G20*$W21 -> 0.006666666667 | I21: ='Cost Allocation'!H20*$W21 -> 0 | J21: ='Cost Allocation'!I20*$W21 -> 0 | K21: ='Cost Allocation'!J20*$W21 -> 0 | L21: ='Cost Allocation'!K20*$W21 -> 0 | M21: ='Cost Allocation'!L20*$W21 -> 0 | N21: ='Cost Allocation'!M20*$W21 -> 0 | O21: ='Cost Allocation'!N20*$W21 -> 0 | P21: 0.01333333333 | Q21: ='Cost Allocation'!P20*$W21 -> 0.02666666667 | R21: 0.04 | S21: ='Cost Allocation'!Q20*$W21 -> 0 | T21: 0 | U21: 0.04 | W21: =VLOOKUP(B21,'NBN Scale Adjustments'!$C$748:$Q$767,AB21) -> 1 | AB21: 10
B22: CA09 | C22: Network Buildings/Support | E22: 0.006666666667 | F22: ='Cost Allocation'!E21*$W22 -> 0.005 | G22: ='Cost Allocation'!F21*$W22 -> 0.001666666667 | H22: ='Cost Allocation'!G21*$W22 -> 0.006666666667 | I22: ='Cost Allocation'!H21*$W22 -> 0 | J22: ='Cost Allocation'!I21*$W22 -> 0 | K22: ='Cost Allocation'!J21*$W22 -> 0 | L22: ='Cost Allocation'!K21*$W22 -> 0 | M22: ='Cost Allocation'!L21*$W22 -> 0 | N22: ='Cost Allocation'!M21*$W22 -> 0 | O22: ='Cost Allocation'!N21*$W22 -> 0 | P22: 0.01333333333 | Q22: ='Cost Allocation'!P21*$W22 -> 0.02666666667 | R22: 0.04 | S22: ='Cost Allocation'!Q21*$W22 -> 0 | T22: 0 | U22: 0.04 | W22: =VLOOKUP(B22,'NBN Scale Adjustments'!$C$748:$Q$767,AB22) -> 1 | AB22: 10
B23: CA10 | C23: Indirect Capital Assets | E23: 0.09957177382 | F23: ='Cost Allocation'!E22*$W23 -> 0.07467883036 | G23: ='Cost Allocation'!F22*$W23 -> 0.02489294345 | H23: ='Cost Allocation'!G22*$W23 -> 0.09957177382 | I23: ='Cost Allocation'!H22*$W23 -> 0 | J23: ='Cost Allocation'!I22*$W23 -> 0 | K23: ='Cost Allocation'!J22*$W23 -> 0.02457807067 | L23: ='Cost Allocation'!K22*$W23 -> 0.02457807067 | M23: ='Cost Allocation'!L22*$W23 -> 0 | N23: ='Cost Allocation'!M22*$W23 -> 0 | O23: ='Cost Allocation'!N22*$W23 -> 0 | P23: 0.248299689 | Q23: ='Cost Allocation'!P22*$W23 -> 0.57033359 | R23: 0.818633279 | S23: ='Cost Allocation'!Q22*$W23 -> 0.002048559583 | T23: 0 | U23: 0.8206818386 | W23: =VLOOKUP(B23,'NBN Scale Adjustments'!$C$748:$Q$767,AB23) -> 1 | AB23: 10
B24: CA11 | C24: Spare CAN Asset Class 11 | F24: ='Cost Allocation'!E23*$W24 -> 0 | G24: ='Cost Allocation'!F23*$W24 -> 0 | H24: ='Cost Allocation'!G23*$W24 -> 0 | I24: ='Cost Allocation'!H23*$W24 -> 0 | J24: ='Cost Allocation'!I23*$W24 -> 0 | K24: ='Cost Allocation'!J23*$W24 -> 0 | L24: ='Cost Allocation'!K23*$W24 -> 0 | M24: ='Cost Allocation'!L23*$W24 -> 0 | N24: ='Cost Allocation'!M23*$W24 -> 0 | O24: ='Cost Allocation'!N23*$W24 -> 0 | P24: 0 | Q24: ='Cost Allocation'!P23*$W24 -> 0 | R24: 0 | S24: ='Cost Allocation'!Q23*$W24 -> 0 | T24: 0 | U24: 0 | W24: =VLOOKUP(B24,'NBN Scale Adjustments'!$C$748:$Q$767,AB24) -> 0 | AB24: 10
B25: CA12 | C25: Spare CAN Asset Class 12 | F25: ='Cost Allocation'!E24*$W25 -> 0 | G25: ='Cost Allocation'!F24*$W25 -> 0 | H25: ='Cost Allocation'!G24*$W25 -> 0 | I25: ='Cost Allocation'!H24*$W25 -> 0 | J25: ='Cost Allocation'!I24*$W25 -> 0 | K25: ='Cost Allocation'!J24*$W25 -> 0 | L25: ='Cost Allocation'!K24*$W25 -> 0 | M25: ='Cost Allocation'!L24*$W25 -> 0 | N25: ='Cost Allocation'!M24*$W25 -> 0 | O25: ='Cost Allocation'!N24*$W25 -> 0 | P25: 0 | Q25: ='Cost Allocation'!P24*$W25 -> 0 | R25: 0 | S25: ='Cost Allocation'!Q24*$W25 -> 0 | T25: 0 | U25: 0 | W25: =VLOOKUP(B25,'NBN Scale Adjustments'!$C$748:$Q$767,AB25) -> 0 | AB25: 10
B26: CA13 | C26: Spare CAN Asset Class 13 | F26: ='Cost Allocation'!E25*$W26 -> 0 | G26: ='Cost Allocation'!F25*$W26 -> 0 | H26: ='Cost Allocation'!G25*$W26 -> 0 | I26: ='Cost Allocation'!H25*$W26 -> 0 | J26: ='Cost Allocation'!I25*$W26 -> 0 | K26: ='Cost Allocation'!J25*$W26 -> 0 | L26: ='Cost Allocation'!K25*$W26 -> 0 | M26: ='Cost Allocation'!L25*$W26 -> 0 | N26: ='Cost Allocation'!M25*$W26 -> 0 | O26: ='Cost Allocation'!N25*$W26 -> 0 | P26: 0 | Q26: ='Cost Allocation'!P25*$W26 -> 0 | R26: 0 | S26: ='Cost Allocation'!Q25*$W26 -> 0 | T26: 0 | U26: 0 | W26: =VLOOKUP(B26,'NBN Scale Adjustments'!$C$748:$Q$767,AB26) -> 0 | AB26: 10
B27: CA14 | C27: Spare CAN Asset Class 14 | F27: ='Cost Allocation'!E26*$W27 -> 0 | G27: ='Cost Allocation'!F26*$W27 -> 0 | H27: ='Cost Allocation'!G26*$W27 -> 0 | I27: ='Cost Allocation'!H26*$W27 -> 0 | J27: ='Cost Allocation'!I26*$W27 -> 0 | K27: ='Cost Allocation'!J26*$W27 -> 0 | L27: ='Cost Allocation'!K26*$W27 -> 0 | M27: ='Cost Allocation'!L26*$W27 -> 0 | N27: ='Cost Allocation'!M26*$W27 -> 0 | O27: ='Cost Allocation'!N26*$W27 -> 0 | P27: 0 | Q27: ='Cost Allocation'!P26*$W27 -> 0 | R27: 0 | S27: ='Cost Allocation'!Q26*$W27 -> 0 | T27: 0 | U27: 0 | W27: =VLOOKUP(B27,'NBN Scale Adjustments'!$C$748:$Q$767,AB27) -> 0 | AB27: 10
B28: CA15 | C28: Spare CAN Asset Class 15 | F28: ='Cost Allocation'!E27*$W28 -> 0 | G28: ='Cost Allocation'!F27*$W28 -> 0 | H28: ='Cost Allocation'!G27*$W28 -> 0 | I28: ='Cost Allocation'!H27*$W28 -> 0 | J28: ='Cost Allocation'!I27*$W28 -> 0 | K28: ='Cost Allocation'!J27*$W28 -> 0 | L28: ='Cost Allocation'!K27*$W28 -> 0 | M28: ='Cost Allocation'!L27*$W28 -> 0 | N28: ='Cost Allocation'!M27*$W28 -> 0 | O28: ='Cost Allocation'!N27*$W28 -> 0 | P28: 0 | Q28: ='Cost Allocation'!P27*$W28 -> 0 | R28: 0 | S28: ='Cost Allocation'!Q27*$W28 -> 0 | T28: 0 | U28: 0 | W28: =VLOOKUP(B28,'NBN Scale Adjustments'!$C$748:$Q$767,AB28) -> 0 | AB28: 10
B29: CA16 | C29: Spare CAN Asset Class 16 | F29: ='Cost Allocation'!E28*$W29 -> 0 | G29: ='Cost Allocation'!F28*$W29 -> 0 | H29: ='Cost Allocation'!G28*$W29 -> 0 | I29: ='Cost Allocation'!H28*$W29 -> 0 | J29: ='Cost Allocation'!I28*$W29 -> 0 | K29: ='Cost Allocation'!J28*$W29 -> 0 | L29: ='Cost Allocation'!K28*$W29 -> 0 | M29: ='Cost Allocation'!L28*$W29 -> 0 | N29: ='Cost Allocation'!M28*$W29 -> 0 | O29: ='Cost Allocation'!N28*$W29 -> 0 | P29: 0 | Q29: ='Cost Allocation'!P28*$W29 -> 0 | R29: 0 | S29: ='Cost Allocation'!Q28*$W29 -> 0 | T29: 0 | U29: 0 | W29: =VLOOKUP(B29,'NBN Scale Adjustments'!$C$748:$Q$767,AB29) -> 0 | AB29: 10
B30: CA17 | C30: Spare CAN Asset Class 17 | F30: ='Cost Allocation'!E29*$W30 -> 0 | G30: ='Cost Allocation'!F29*$W30 -> 0 | H30: ='Cost Allocation'!G29*$W30 -> 0 | I30: ='Cost Allocation'!H29*$W30 -> 0 | J30: ='Cost Allocation'!I29*$W30 -> 0 | K30: ='Cost Allocation'!J29*$W30 -> 0 | L30: ='Cost Allocation'!K29*$W30 -> 0 | M30: ='Cost Allocation'!L29*$W30 -> 0 | N30: ='Cost Allocation'!M29*$W30 -> 0 | O30: ='Cost Allocation'!N29*$W30 -> 0 | P30: 0 | Q30: ='Cost Allocation'!P29*$W30 -> 0 | R30: 0 | S30: ='Cost Allocation'!Q29*$W30 -> 0 | T30: 0 | U30: 0 | W30: =VLOOKUP(B30,'NBN Scale Adjustments'!$C$748:$Q$767,AB30) -> 0 | AB30: 10
B31: CA18 | C31: Spare CAN Asset Class 18 | F31: ='Cost Allocation'!E30*$W31 -> 0 | G31: ='Cost Allocation'!F30*$W31 -> 0 | H31: ='Cost Allocation'!G30*$W31 -> 0 | I31: ='Cost Allocation'!H30*$W31 -> 0 | J31: ='Cost Allocation'!I30*$W31 -> 0 | K31: ='Cost Allocation'!J30*$W31 -> 0 | L31: ='Cost Allocation'!K30*$W31 -> 0 | M31: ='Cost Allocation'!L30*$W31 -> 0 | N31: ='Cost Allocation'!M30*$W31 -> 0 | O31: ='Cost Allocation'!N30*$W31 -> 0 | P31: 0 | Q31: ='Cost Allocation'!P30*$W31 -> 0 | R31: 0 | S31: ='Cost Allocation'!Q30*$W31 -> 0 | T31: 0 | U31: 0 | W31: =VLOOKUP(B31,'NBN Scale Adjustments'!$C$748:$Q$767,AB31) -> 0 | AB31: 10
B32: CA19 | C32: Spare CAN Asset Class 19 | F32: ='Cost Allocation'!E31*$W32 -> 0 | G32: ='Cost Allocation'!F31*$W32 -> 0 | H32: ='Cost Allocation'!G31*$W32 -> 0 | I32: ='Cost Allocation'!H31*$W32 -> 0 | J32: ='Cost Allocation'!I31*$W32 -> 0 | K32: ='Cost Allocation'!J31*$W32 -> 0 | L32: ='Cost Allocation'!K31*$W32 -> 0 | M32: ='Cost Allocation'!L31*$W32 -> 0 | N32: ='Cost Allocation'!M31*$W32 -> 0 | O32: ='Cost Allocation'!N31*$W32 -> 0 | P32: 0 | Q32: ='Cost Allocation'!P31*$W32 -> 0 | R32: 0 | S32: ='Cost Allocation'!Q31*$W32 -> 0 | T32: 0 | U32: 0 | W32: =VLOOKUP(B32,'NBN Scale Adjustments'!$C$748:$Q$767,AB32) -> 0 | AB32: 10
B33: CA20 | C33: Spare CAN Asset Class 20 | F33: ='Cost Allocation'!E32*$W33 -> 0 | G33: ='Cost Allocation'!F32*$W33 -> 0 | H33: ='Cost Allocation'!G32*$W33 -> 0 | I33: ='Cost Allocation'!H32*$W33 -> 0 | J33: ='Cost Allocation'!I32*$W33 -> 0 | K33: ='Cost Allocation'!J32*$W33 -> 0 | L33: ='Cost Allocation'!K32*$W33 -> 0 | M33: ='Cost Allocation'!L32*$W33 -> 0 | N33: ='Cost Allocation'!M32*$W33 -> 0 | O33: ='Cost Allocation'!N32*$W33 -> 0 | P33: 0 | Q33: ='Cost Allocation'!P32*$W33 -> 0 | R33: 0 | S33: ='Cost Allocation'!Q32*$W33 -> 0 | T33: 0 | U33: 0 | W33: =VLOOKUP(B33,'NBN Scale Adjustments'!$C$748:$Q$767,AB33) -> 0 | AB33: 10
B34: Core Asset Class | F34: ='Cost Allocation'!E33*$W34 -> 0 | G34: ='Cost Allocation'!F33*$W34 -> 0 | H34: ='Cost Allocation'!G33*$W34 -> 0 | I34: ='Cost Allocation'!H33*$W34 -> 0 | J34: ='Cost Allocation'!I33*$W34 -> 0 | K34: ='Cost Allocation'!J33*$W34 -> 0 | L34: ='Cost Allocation'!K33*$W34 -> 0 | M34: ='Cost Allocation'!L33*$W34 -> 0 | N34: ='Cost Allocation'!M33*$W34 -> 0 | O34: ='Cost Allocation'!N33*$W34 -> 0 | P34: 0 | Q34: ='Cost Allocation'!P33*$W34 -> 0 | R34: 0 | S34: ='Cost Allocation'!Q33*$W34 -> 0 | T34: 0 | U34: 0
B35: CO01 | C35: Switching Equipment - Local | F35: ='Cost Allocation'!E34*$W35 -> 0.0009090909091 | G35: ='Cost Allocation'!F34*$W35 -> 0.000303030303 | H35: ='Cost Allocation'!G34*$W35 -> 0.001212121212 | I35: ='Cost Allocation'!H34*$W35 -> 0.001428571429 | J35: ='Cost Allocation'!I34*$W35 -> 0.001428571429 | K35: ='Cost Allocation'!J34*$W35 -> 0.000303030303 | L35: ='Cost Allocation'!K34*$W35 -> 0.000303030303 | M35: ='Cost Allocation'!L34*$W35 -> 0 | N35: ='Cost Allocation'!M34*$W35 -> 0 | O35: ='Cost Allocation'!N34*$W35 -> 0 | P35: 0.005887445887 | Q35: ='Cost Allocation'!P34*$W35 -> 0.01411255411 | R35: 0.02 | S35: ='Cost Allocation'!Q34*$W35 -> 0 | T35: 0 | U35: 0.02 | W35: =VLOOKUP(B35,'NBN Scale Adjustments'!$C$770:$Q$789,AB35) -> 1 | AB35: 10
B36: CO02 | C36: Switching Equipment - Trunk | F36: ='Cost Allocation'!E35*$W36 -> 0 | G36: ='Cost Allocation'!F35*$W36 -> 0 | H36: ='Cost Allocation'!G35*$W36 -> 0 | I36: ='Cost Allocation'!H35*$W36 -> 0.1428571429 | J36: ='Cost Allocation'!I35*$W36 -> 0.1428571429 | K36: ='Cost Allocation'!J35*$W36 -> 0 | L36: ='Cost Allocation'!K35*$W36 -> 0 | M36: ='Cost Allocation'!L35*$W36 -> 0 | N36: ='Cost Allocation'!M35*$W36 -> 0 | O36: ='Cost Allocation'!N35*$W36 -> 0 | P36: 0.2857142857 | Q36: ='Cost Allocation'!P35*$W36 -> 0.7142857143 | R36: 1 | S36: ='Cost Allocation'!Q35*$W36 -> 0 | T36: 0 | U36: 1 | W36: =VLOOKUP(B36,'NBN Scale Adjustments'!$C$770:$Q$789,AB36) -> 1 | AB36: 10
B37: CO03 | C37: Switching Equipment - Other | F37: ='Cost Allocation'!E36*$W37 -> 0 | G37: ='Cost Allocation'!F36*$W37 -> 0 | H37: ='Cost Allocation'!G36*$W37 -> 0 | I37: ='Cost Allocation'!H36*$W37 -> 0.1428571429 | J37: ='Cost Allocation'!I36*$W37 -> 0.1428571429 | K37: ='Cost Allocation'!J36*$W37 -> 0 | L37: ='Cost Allocation'!K36*$W37 -> 0 | M37: ='Cost Allocation'!L36*$W37 -> 0 | N37: ='Cost Allocation'!M36*$W37 -> 0 | O37: ='Cost Allocation'!N36*$W37 -> 0 | P37: 0.2857142857 | Q37: ='Cost Allocation'!P36*$W37 -> 0.7142857143 | R37: 1 | S37: ='Cost Allocation'!Q36*$W37 -> 0 | T37: 0 | U37: 1 | W37: =VLOOKUP(B37,'NBN Scale Adjustments'!$C$770:$Q$789,AB37) -> 1 | AB37: 10
B38: CO04 | C38: Inter-exchange Cables | F38: ='Cost Allocation'!E37*$W38 -> 0 | G38: ='Cost Allocation'!F37*$W38 -> 0 | H38: ='Cost Allocation'!G37*$W38 -> 0 | I38: ='Cost Allocation'!H37*$W38 -> 0.001429142857 | J38: ='Cost Allocation'!I37*$W38 -> 0.001429142857 | K38: ='Cost Allocation'!J37*$W38 -> 0 | L38: ='Cost Allocation'!K37*$W38 -> 0.005002 | M38: ='Cost Allocation'!L37*$W38 -> 0 | N38: ='Cost Allocation'!M37*$W38 -> 0 | O38: ='Cost Allocation'!N37*$W38 -> 0 | P38: 0.007860285714 | Q38: ='Cost Allocation'!P37*$W38 -> 0.02215171429 | R38: 0.030012 | S38: ='Cost Allocation'!Q37*$W38 -> 0.019988 | T38: 0 | U38: 0.05 | W38: =VLOOKUP(B38,'NBN Scale Adjustments'!$C$770:$Q$789,AB38) -> 1 | AB38: 10
B39: CO05 | C39: Transmission Equipment | F39: ='Cost Allocation'!E38*$W39 -> 0 | G39: ='Cost Allocation'!F38*$W39 -> 0 | H39: ='Cost Allocation'!G38*$W39 -> 0 | I39: ='Cost Allocation'!H38*$W39 -> 5.714285714e-05 | J39: ='Cost Allocation'!I38*$W39 -> 5.714285714e-05 | K39: ='Cost Allocation'!J38*$W39 -> 0 | L39: ='Cost Allocation'!K38*$W39 -> 0.0002 | M39: ='Cost Allocation'!L38*$W39 -> 0 | N39: ='Cost Allocation'!M38*$W39 -> 0 | O39: ='Cost Allocation'!N38*$W39 -> 0 | P39: 0.0003142857143 | Q39: ='Cost Allocation'!P38*$W39 -> 0.0008857142857 | R39: 0.0012 | S39: ='Cost Allocation'!Q38*$W39 -> 0.0388 | T39: 0 | U39: 0.04 | W39: =VLOOKUP(B39,'NBN Scale Adjustments'!$C$770:$Q$789,AB39) -> 1 | AB39: 10
B40: CO06 | C40: Core Radio Bearer Equipment | F40: ='Cost Allocation'!E39*$W40 -> 0 | G40: ='Cost Allocation'!F39*$W40 -> 0 | H40: ='Cost Allocation'!G39*$W40 -> 0 | I40: ='Cost Allocation'!H39*$W40 -> 5.714285714e-05 | J40: ='Cost Allocation'!I39*$W40 -> 5.714285714e-05 | K40: ='Cost Allocation'!J39*$W40 -> 0 | L40: ='Cost Allocation'!K39*$W40 -> 0.0002 | M40: ='Cost Allocation'!L39*$W40 -> 0 | N40: ='Cost Allocation'!M39*$W40 -> 0 | O40: ='Cost Allocation'!N39*$W40 -> 0 | P40: 0.0003142857143 | Q40: ='Cost Allocation'!P39*$W40 -> 0.0008857142857 | R40: 0.0012 | S40: ='Cost Allocation'!Q39*$W40 -> 0.0388 | T40: 0 | U40: 0.04 | W40: =VLOOKUP(B40,'NBN Scale Adjustments'!$C$770:$Q$789,AB40) -> 1 | AB40: 10
B41: CO07 | C41: Other Communications Plant and Equipment | F41: ='Cost Allocation'!E40*$W41 -> 0.009566608949 | G41: ='Cost Allocation'!F40*$W41 -> 0.00318886965 | H41: ='Cost Allocation'!G40*$W41 -> 0.0127554786 | I41: ='Cost Allocation'!H40*$W41 -> 0.007177911148 | J41: ='Cost Allocation'!I40*$W41 -> 0.007177911148 | K41: ='Cost Allocation'!J40*$W41 -> 0.00318886965 | L41: ='Cost Allocation'!K40*$W41 -> 0.003364367555 | M41: ='Cost Allocation'!L40*$W41 -> 1 | N41: ='Cost Allocation'!M40*$W41 -> 0 | O41: ='Cost Allocation'!N40*$W41 -> 0 | P41: 1.046420017 | Q41: ='Cost Allocation'!P40*$W41 -> 0.1097600514 | R41: 1.156180068 | S41: ='Cost Allocation'!Q40*$W41 -> 1.004500062 | T41: 0 | U41: 2.16068013 | W41: =VLOOKUP(B41,'NBN Scale Adjustments'!$C$770:$Q$789,AB41) -> 1 | AB41: 10
B42: CO08 | C42: Network Land | F42: ='Cost Allocation'!E41*$W42 -> 0.009566608949 | G42: ='Cost Allocation'!F41*$W42 -> 0.00318886965 | H42: ='Cost Allocation'!G41*$W42 -> 0.0127554786 | I42: ='Cost Allocation'!H41*$W42 -> 0.007177911148 | J42: ='Cost Allocation'!I41*$W42 -> 0.007177911148 | K42: ='Cost Allocation'!J41*$W42 -> 0.00318886965 | L42: ='Cost Allocation'!K41*$W42 -> 0.003364367555 | M42: ='Cost Allocation'!L41*$W42 -> 1 | N42: ='Cost Allocation'!M41*$W42 -> 0 | O42: ='Cost Allocation'!N41*$W42 -> 0 | P42: 1.046420017 | Q42: ='Cost Allocation'!P41*$W42 -> 0.1097600514 | R42: 1.156180068 | S42: ='Cost Allocation'!Q41*$W42 -> 1.004500062 | T42: 0 | U42: 2.16068013 | W42: =VLOOKUP(B42,'NBN Scale Adjustments'!$C$770:$Q$789,AB42) -> 1 | AB42: 10
B43: CO09 | C43: Network Buildings/Support | F43: ='Cost Allocation'!E42*$W43 -> 0.009566608949 | G43: ='Cost Allocation'!F42*$W43 -> 0.00318886965 | H43: ='Cost Allocation'!G42*$W43 -> 0.0127554786 | I43: ='Cost Allocation'!H42*$W43 -> 0.007177911148 | J43: ='Cost Allocation'!I42*$W43 -> 0.007177911148 | K43: ='Cost Allocation'!J42*$W43 -> 0.00318886965 | L43: ='Cost Allocation'!K42*$W43 -> 0.003364367555 | M43: ='Cost Allocation'!L42*$W43 -> 1 | N43: ='Cost Allocation'!M42*$W43 -> 0 | O43: ='Cost Allocation'!N42*$W43 -> 0 | P43: 1.046420017 | Q43: ='Cost Allocation'!P42*$W43 -> 0.1097600514 | R43: 1.156180068 | S43: ='Cost Allocation'!Q42*$W43 -> 1.004500062 | T43: 0 | U43: 2.16068013 | W43: =VLOOKUP(B43,'NBN Scale Adjustments'!$C$770:$Q$789,AB43) -> 1 | AB43: 10
B44: CO10 | C44: Indirect Capital Assets | F44: ='Cost Allocation'!E43*$W44 -> 0.009566608949 | G44: ='Cost Allocation'!F43*$W44 -> 0.00318886965 | H44: ='Cost Allocation'!G43*$W44 -> 0.0127554786 | I44: ='Cost Allocation'!H43*$W44 -> 0.007177911148 | J44: ='Cost Allocation'!I43*$W44 -> 0.007177911148 | K44: ='Cost Allocation'!J43*$W44 -> 0.00318886965 | L44: ='Cost Allocation'!K43*$W44 -> 0.003364367555 | M44: ='Cost Allocation'!L43*$W44 -> 0.1259923075 | N44: ='Cost Allocation'!M43*$W44 -> 0 | O44: ='Cost Allocation'!N43*$W44 -> 0 | P44: 0.1724123242 | Q44: ='Cost Allocation'!P43*$W44 -> 0.1097600514 | R44: 0.2821723756 | S44: ='Cost Allocation'!Q43*$W44 -> 0.1304923697 | T44: 0 | U44: 0.4126647452 | W44: =VLOOKUP(B44,'NBN Scale Adjustments'!$C$770:$Q$789,AB44) -> 1 | AB44: 10
B45: CO11 | C45: LSS equipment | F45: ='Cost Allocation'!E44*$W45 -> 0.075 | G45: ='Cost Allocation'!F44*$W45 -> 0.025 | H45: ='Cost Allocation'!G44*$W45 -> 0.025 | I45: ='Cost Allocation'!H44*$W45 -> 0.025 | J45: ='Cost Allocation'!I44*$W45 -> 0.025 | K45: ='Cost Allocation'!J44*$W45 -> 0.025 | L45: ='Cost Allocation'!K44*$W45 -> 0.025 | M45: ='Cost Allocation'!L44*$W45 -> 0 | N45: ='Cost Allocation'!M44*$W45 -> 0 | O45: ='Cost Allocation'!N44*$W45 -> 0 | P45: 0.225 | Q45: ='Cost Allocation'!P44*$W45 -> 0.775 | R45: 1 | S45: ='Cost Allocation'!Q44*$W45 -> 0 | T45: 0 | U45: 1 | W45: =VLOOKUP(B45,'NBN Scale Adjustments'!$C$770:$Q$789,AB45) -> 1 | AB45: 10
B46: CO12 | C46: Data Equipment | F46: ='Cost Allocation'!E45*$W46 -> 0.09090909091 | G46: ='Cost Allocation'!F45*$W46 -> 0.0303030303 | H46: ='Cost Allocation'!G45*$W46 -> 0.1212121212 | I46: ='Cost Allocation'!H45*$W46 -> 0 | J46: ='Cost Allocation'!I45*$W46 -> 0 | K46: ='Cost Allocation'!J45*$W46 -> 0.0303030303 | L46: ='Cost Allocation'!K45*$W46 -> 0.0303030303 | M46: ='Cost Allocation'!L45*$W46 -> 0 | N46: ='Cost Allocation'!M45*$W46 -> 0 | O46: ='Cost Allocation'!N45*$W46 -> 0 | P46: 0.303030303 | Q46: ='Cost Allocation'!P45*$W46 -> 0.696969697 | R46: 1 | S46: ='Cost Allocation'!Q45*$W46 -> 0 | T46: 0 | U46: 1 | W46: =VLOOKUP(B46,'NBN Scale Adjustments'!$C$770:$Q$789,AB46) -> 1 | AB46: 10
B47: CO13 | C47: Spare Core Asset Class 13 | F47: ='Cost Allocation'!E46*$W47 -> 0 | G47: ='Cost Allocation'!F46*$W47 -> 0 | H47: ='Cost Allocation'!G46*$W47 -> 0 | I47: ='Cost Allocation'!H46*$W47 -> 0 | J47: ='Cost Allocation'!I46*$W47 -> 0 | K47: ='Cost Allocation'!J46*$W47 -> 0 | L47: ='Cost Allocation'!K46*$W47 -> 0 | M47: ='Cost Allocation'!L46*$W47 -> 0 | N47: ='Cost Allocation'!M46*$W47 -> 0 | O47: ='Cost Allocation'!N46*$W47 -> 0 | P47: 0 | Q47: ='Cost Allocation'!P46*$W47 -> 0 | R47: 0 | S47: ='Cost Allocation'!Q46*$W47 -> 0 | T47: 0 | U47: 0 | W47: =VLOOKUP(B47,'NBN Scale Adjustments'!$C$770:$Q$789,AB47) -> 0 | AB47: 10
B48: CO14 | C48: Spare Core Asset Class 14 | F48: ='Cost Allocation'!E47*$W48 -> 0 | G48: ='Cost Allocation'!F47*$W48 -> 0 | H48: ='Cost Allocation'!G47*$W48 -> 0 | I48: ='Cost Allocation'!H47*$W48 -> 0 | J48: ='Cost Allocation'!I47*$W48 -> 0 | K48: ='Cost Allocation'!J47*$W48 -> 0 | L48: ='Cost Allocation'!K47*$W48 -> 0 | M48: ='Cost Allocation'!L47*$W48 -> 0 | N48: ='Cost Allocation'!M47*$W48 -> 0 | O48: ='Cost Allocation'!N47*$W48 -> 0 | P48: 0 | Q48: ='Cost Allocation'!P47*$W48 -> 0 | R48: 0 | S48: ='Cost Allocation'!Q47*$W48 -> 0 | T48: 0 | U48: 0 | W48: =VLOOKUP(B48,'NBN Scale Adjustments'!$C$770:$Q$789,AB48) -> 0 | AB48: 10
B49: CO15 | C49: Spare Core Asset Class 15 | F49: ='Cost Allocation'!E48*$W49 -> 0 | G49: ='Cost Allocation'!F48*$W49 -> 0 | H49: ='Cost Allocation'!G48*$W49 -> 0 | I49: ='Cost Allocation'!H48*$W49 -> 0 | J49: ='Cost Allocation'!I48*$W49 -> 0 | K49: ='Cost Allocation'!J48*$W49 -> 0 | L49: ='Cost Allocation'!K48*$W49 -> 0 | M49: ='Cost Allocation'!L48*$W49 -> 0 | N49: ='Cost Allocation'!M48*$W49 -> 0 | O49: ='Cost Allocation'!N48*$W49 -> 0 | P49: 0 | Q49: ='Cost Allocation'!P48*$W49 -> 0 | R49: 0 | S49: ='Cost Allocation'!Q48*$W49 -> 0 | T49: 0 | U49: 0 | W49: =VLOOKUP(B49,'NBN Scale Adjustments'!$C$770:$Q$789,AB49) -> 0 | AB49: 10
B50: CO16 | C50: Spare Core Asset Class 16 | F50: ='Cost Allocation'!E49*$W50 -> 0 | G50: ='Cost Allocation'!F49*$W50 -> 0 | H50: ='Cost Allocation'!G49*$W50 -> 0 | I50: ='Cost Allocation'!H49*$W50 -> 0 | J50: ='Cost Allocation'!I49*$W50 -> 0 | K50: ='Cost Allocation'!J49*$W50 -> 0 | L50: ='Cost Allocation'!K49*$W50 -> 0 | M50: ='Cost Allocation'!L49*$W50 -> 0 | N50: ='Cost Allocation'!M49*$W50 -> 0 | O50: ='Cost Allocation'!N49*$W50 -> 0 | P50: 0 | Q50: ='Cost Allocation'!P49*$W50 -> 0 | R50: 0 | S50: ='Cost Allocation'!Q49*$W50 -> 0 | T50: 0 | U50: 0 | W50: =VLOOKUP(B50,'NBN Scale Adjustments'!$C$770:$Q$789,AB50) -> 0 | AB50: 10
B51: CO17 | C51: Spare Core Asset Class 17 | F51: ='Cost Allocation'!E50*$W51 -> 0 | G51: ='Cost Allocation'!F50*$W51 -> 0 | H51: ='Cost Allocation'!G50*$W51 -> 0 | I51: ='Cost Allocation'!H50*$W51 -> 0 | J51: ='Cost Allocation'!I50*$W51 -> 0 | K51: ='Cost Allocation'!J50*$W51 -> 0 | L51: ='Cost Allocation'!K50*$W51 -> 0 | M51: ='Cost Allocation'!L50*$W51 -> 0 | N51: ='Cost Allocation'!M50*$W51 -> 0 | O51: ='Cost Allocation'!N50*$W51 -> 0 | P51: 0 | Q51: ='Cost Allocation'!P50*$W51 -> 0 | R51: 0 | S51: ='Cost Allocation'!Q50*$W51 -> 0 | T51: 0 | U51: 0 | W51: =VLOOKUP(B51,'NBN Scale Adjustments'!$C$770:$Q$789,AB51) -> 0 | AB51: 10
B52: CO18 | C52: Spare Core Asset Class 18 | F52: ='Cost Allocation'!E51*$W52 -> 0 | G52: ='Cost Allocation'!F51*$W52 -> 0 | H52: ='Cost Allocation'!G51*$W52 -> 0 | I52: ='Cost Allocation'!H51*$W52 -> 0 | J52: ='Cost Allocation'!I51*$W52 -> 0 | K52: ='Cost Allocation'!J51*$W52 -> 0 | L52: ='Cost Allocation'!K51*$W52 -> 0 | M52: ='Cost Allocation'!L51*$W52 -> 0 | N52: ='Cost Allocation'!M51*$W52 -> 0 | O52: ='Cost Allocation'!N51*$W52 -> 0 | P52: 0 | Q52: ='Cost Allocation'!P51*$W52 -> 0 | R52: 0 | S52: ='Cost Allocation'!Q51*$W52 -> 0 | T52: 0 | U52: 0 | W52: =VLOOKUP(B52,'NBN Scale Adjustments'!$C$770:$Q$789,AB52) -> 0 | AB52: 10
B53: CO19 | C53: Spare Core Asset Class 19 | F53: ='Cost Allocation'!E52*$W53 -> 0 | G53: ='Cost Allocation'!F52*$W53 -> 0 | H53: ='Cost Allocation'!G52*$W53 -> 0 | I53: ='Cost Allocation'!H52*$W53 -> 0 | J53: ='Cost Allocation'!I52*$W53 -> 0 | K53: ='Cost Allocation'!J52*$W53 -> 0 | L53: ='Cost Allocation'!K52*$W53 -> 0 | M53: ='Cost Allocation'!L52*$W53 -> 0 | N53: ='Cost Allocation'!M52*$W53 -> 0 | O53: ='Cost Allocation'!N52*$W53 -> 0 | P53: 0 | Q53: ='Cost Allocation'!P52*$W53 -> 0 | R53: 0 | S53: ='Cost Allocation'!Q52*$W53 -> 0 | T53: 0 | U53: 0 | W53: =VLOOKUP(B53,'NBN Scale Adjustments'!$C$770:$Q$789,AB53) -> 0 | AB53: 10
B54: CO20 | C54: Spare Core Asset Class 20 | F54: ='Cost Allocation'!E53*$W54 -> 0 | G54: ='Cost Allocation'!F53*$W54 -> 0 | H54: ='Cost Allocation'!G53*$W54 -> 0 | I54: ='Cost Allocation'!H53*$W54 -> 0 | J54: ='Cost Allocation'!I53*$W54 -> 0 | K54: ='Cost Allocation'!J53*$W54 -> 0 | L54: ='Cost Allocation'!K53*$W54 -> 0 | M54: ='Cost Allocation'!L53*$W54 -> 0 | N54: ='Cost Allocation'!M53*$W54 -> 0 | O54: ='Cost Allocation'!N53*$W54 -> 0 | P54: 0 | Q54: ='Cost Allocation'!P53*$W54 -> 0 | R54: 0 | S54: ='Cost Allocation'!Q53*$W54 -> 0 | T54: 0 | U54: 0 | W54: =VLOOKUP(B54,'NBN Scale Adjustments'!$C$770:$Q$789,AB54) -> 0 | AB54: 10
B57: Y06 | C57: FY2015
F58: S01 | G58: S02 | H58: S03 | I58: S04 | J58: S05 | K58: S06 | L58: S07 | M58: S08 | N58: S09 | O58: S10
B59: Code | C59: Asset Class | E59: ULLS | F59: =VLOOKUP(F58,Services,4,FALSE) -> ULLS13 | G59: ULLS4 | H59: WLR | I59: FOTAS | J59: LCS | K59: LSS | L59: WADSL | M59: AS1 | N59: AS2 | O59: AS3 | P59: Total FLSM services | Q59: Other fixed line services | R59: Total fixed line services | S59: Other services | T59: Telstra-NBN | U59: Total | W59: NBN scale adjustment
B60: CAN Asset Class
B61: CA01 | C61: =VLOOKUP(B61,CAN_AC,2,FALSE) -> Ducts and pipes | E61: =SUM(F61:G61) -> 0.006666666667 | F61: ='Cost Allocation'!E58*$W61 -> 0.005 | G61: ='Cost Allocation'!F58*$W61 -> 0.001666666667 | H61: ='Cost Allocation'!G58*$W61 -> 0.006666666667 | I61: ='Cost Allocation'!H58*$W61 -> 0 | J61: ='Cost Allocation'!I58*$W61 -> 0 | K61: ='Cost Allocation'!J58*$W61 -> 0 | L61: ='Cost Allocation'!K58*$W61 -> 0 | M61: ='Cost Allocation'!L58*$W61 -> 0 | N61: ='Cost Allocation'!M58*$W61 -> 0 | O61: ='Cost Allocation'!N58*$W61 -> 0 | P61: =SUM(F61:O61) -> 0.01333333333 | Q61: ='Cost Allocation'!P58*$W61 -> 0.02666666667 | R61: =SUM(P61:Q61) -> 0.04 | S61: ='Cost Allocation'!Q58*$W61 -> 0.04 | T61: =IF(W61>0,1-W61,0) -> 0 | U61: =SUM(R61:T61) -> 0.08 | W61: =VLOOKUP(B61,'NBN Scale Adjustments'!$C$748:$Q$767,AB61) -> 1 | AB61: 11
B62: CA02 | C62: Copper cables | E62: 0.006666666667 | F62: ='Cost Allocation'!E59*$W62 -> 0.005 | G62: ='Cost Allocation'!F59*$W62 -> 0.001666666667 | H62: ='Cost Allocation'!G59*$W62 -> 0.006666666667 | I62: ='Cost Allocation'!H59*$W62 -> 0 | J62: ='Cost Allocation'!I59*$W62 -> 0 | K62: ='Cost Allocation'!J59*$W62 -> 0 | L62: ='Cost Allocation'!K59*$W62 -> 0 | M62: ='Cost Allocation'!L59*$W62 -> 0 | N62: ='Cost Allocation'!M59*$W62 -> 0 | O62: ='Cost Allocation'!N59*$W62 -> 0 | P62: =SUM(F62:O62) -> 0.01333333333 | Q62: ='Cost Allocation'!P59*$W62 -> 0.02666666667 | R62: =SUM(P62:Q62) -> 0.04 | S62: ='Cost Allocation'!Q59*$W62 -> 0 | T62: =IF(W62>0,1-W62,0) -> 0 | U62: =SUM(R62:T62) -> 0.04 | W62: 1 | AB62: 11
B63: CA03 | C63: Other cables | E63: 0.1212121212 | F63: ='Cost Allocation'!E60*$W63 -> 0.09090909091 | G63: ='Cost Allocation'!F60*$W63 -> 0.0303030303 | H63: ='Cost Allocation'!G60*$W63 -> 0.1212121212 | I63: ='Cost Allocation'!H60*$W63 -> 0 | J63: ='Cost Allocation'!I60*$W63 -> 0 | K63: ='Cost Allocation'!J60*$W63 -> 0.0303030303 | L63: ='Cost Allocation'!K60*$W63 -> 0.0303030303 | M63: ='Cost Allocation'!L60*$W63 -> 0 | N63: ='Cost Allocation'!M60*$W63 -> 0 | O63: ='Cost Allocation'!N60*$W63 -> 0 | P63: =SUM(F63:O63) -> 0.303030303 | Q63: ='Cost Allocation'!P60*$W63 -> 0.696969697 | R63: =SUM(P63:Q63) -> 1 | S63: ='Cost Allocation'!Q60*$W63 -> 0 | T63: =IF(W63>0,1-W63,0) -> 0 | U63: =SUM(R63:T63) -> 1 | W63: 1 | AB63: 11
B64: CA04 | C64: Pair gain systems | E64: 0.1212121212 | F64: ='Cost Allocation'!E61*$W64 -> 0.09090909091 | G64: ='Cost Allocation'!F61*$W64 -> 0.0303030303 | H64: ='Cost Allocation'!G61*$W64 -> 0.1212121212 | I64: ='Cost Allocation'!H61*$W64 -> 0 | J64: ='Cost Allocation'!I61*$W64 -> 0 | K64: ='Cost Allocation'!J61*$W64 -> 0.0303030303 | L64: ='Cost Allocation'!K61*$W64 -> 0.0303030303 | M64: ='Cost Allocation'!L61*$W64 -> 0 | N64: ='Cost Allocation'!M61*$W64 -> 0 | O64: ='Cost Allocation'!N61*$W64 -> 0 | P64: 0.303030303 | Q64: ='Cost Allocation'!P61*$W64 -> 0.696969697 | R64: 1 | S64: ='Cost Allocation'!Q61*$W64 -> 0 | T64: 0 | U64: 1 | W64: 1 | AB64: 11
B65: CA05 | C65: CAN Radio Bearer Equipment | E65: 0.1212121212 | F65: ='Cost Allocation'!E62*$W65 -> 0.09090909091 | G65: ='Cost Allocation'!F62*$W65 -> 0.0303030303 | H65: ='Cost Allocation'!G62*$W65 -> 0.1212121212 | I65: ='Cost Allocation'!H62*$W65 -> 0 | J65: ='Cost Allocation'!I62*$W65 -> 0 | K65: ='Cost Allocation'!J62*$W65 -> 0.0303030303 | L65: ='Cost Allocation'!K62*$W65 -> 0.0303030303 | M65: ='Cost Allocation'!L62*$W65 -> 0 | N65: ='Cost Allocation'!M62*$W65 -> 0 | O65: ='Cost Allocation'!N62*$W65 -> 0 | P65: 0.303030303 | Q65: ='Cost Allocation'!P62*$W65 -> 0.696969697 | R65: 1 | S65: ='Cost Allocation'!Q62*$W65 -> 0 | T65: 0 | U65: 1 | W65: 1 | AB65: 11
B66: CA06 | C66: Other CAN assets | E66: 0.1212121212 | F66: ='Cost Allocation'!E63*$W66 -> 0.09090909091 | G66: ='Cost Allocation'!F63*$W66 -> 0.0303030303 | H66: ='Cost Allocation'!G63*$W66 -> 0.1212121212 | I66: ='Cost Allocation'!H63*$W66 -> 0 | J66: ='Cost Allocation'!I63*$W66 -> 0 | K66: ='Cost Allocation'!J63*$W66 -> 0.0303030303 | L66: ='Cost Allocation'!K63*$W66 -> 0.0303030303 | M66: ='Cost Allocation'!L63*$W66 -> 0 | N66: ='Cost Allocation'!M63*$W66 -> 0 | O66: ='Cost Allocation'!N63*$W66 -> 0 | P66: 0.303030303 | Q66: ='Cost Allocation'!P63*$W66 -> 0.696969697 | R66: 1 | S66: ='Cost Allocation'!Q63*$W66 -> 0 | T66: 0 | U66: 1 | W66: 1 | AB66: 11
B67: CA07 | C67: Other Communications Plant and Equipment | E67: 0.1212121212 | F67: ='Cost Allocation'!E64*$W67 -> 0.09090909091 | G67: ='Cost Allocation'!F64*$W67 -> 0.0303030303 | H67: ='Cost Allocation'!G64*$W67 -> 0.1212121212 | I67: ='Cost Allocation'!H64*$W67 -> 0 | J67: ='Cost Allocation'!I64*$W67 -> 0 | K67: ='Cost Allocation'!J64*$W67 -> 0.0303030303 | L67: ='Cost Allocation'!K64*$W67 -> 0.0303030303 | M67: ='Cost Allocation'!L64*$W67 -> 0 | N67: ='Cost Allocation'!M64*$W67 -> 0 | O67: ='Cost Allocation'!N64*$W67 -> 0 | P67: 0.303030303 | Q67: ='Cost Allocation'!P64*$W67 -> 0.696969697 | R67: 1 | S67: ='Cost Allocation'!Q64*$W67 -> 0 | T67: 0 | U67: 1 | W67: =VLOOKUP(B67,'NBN Scale Adjustments'!$C$748:$Q$767,AB67) -> 1 | AB67: 11
B68: CA08 | C68: Network Land | E68: 0.006666666667 | F68: ='Cost Allocation'!E65*$W68 -> 0.005 | G68: ='Cost Allocation'!F65*$W68 -> 0.001666666667 | H68: ='Cost Allocation'!G65*$W68 -> 0.006666666667 | I68: ='Cost Allocation'!H65*$W68 -> 0 | J68: ='Cost Allocation'!I65*$W68 -> 0 | K68: ='Cost Allocation'!J65*$W68 -> 0 | L68: ='Cost Allocation'!K65*$W68 -> 0 | M68: ='Cost Allocation'!L65*$W68 -> 0 | N68: ='Cost Allocation'!M65*$W68 -> 0 | O68: ='Cost Allocation'!N65*$W68 -> 0 | P68: 0.01333333333 | Q68: ='Cost Allocation'!P65*$W68 -> 0.02666666667 | R68: 0.04 | S68: ='Cost Allocation'!Q65*$W68 -> 0 | T68: 0 | U68: 0.04 | W68: =VLOOKUP(B68,'NBN Scale Adjustments'!$C$748:$Q$767,AB68) -> 1 | AB68: 11
B69: CA09 | C69: Network Buildings/Support | E69: 0.006666666667 | F69: ='Cost Allocation'!E66*$W69 -> 0.005 | G69: ='Cost Allocation'!F66*$W69 -> 0.001666666667 | H69: ='Cost Allocation'!G66*$W69 -> 0.006666666667 | I69: ='Cost Allocation'!H66*$W69 -> 0 | J69: ='Cost Allocation'!I66*$W69 -> 0 | K69: ='Cost Allocation'!J66*$W69 -> 0 | L69: ='Cost Allocation'!K66*$W69 -> 0 | M69: ='Cost Allocation'!L66*$W69 -> 0 | N69: ='Cost Allocation'!M66*$W69 -> 0 | O69: ='Cost Allocation'!N66*$W69 -> 0 | P69: 0.01333333333 | Q69: ='Cost Allocation'!P66*$W69 -> 0.02666666667 | R69: 0.04 | S69: ='Cost Allocation'!Q66*$W69 -> 0 | T69: 0 | U69: 0.04 | W69: =VLOOKUP(B69,'NBN Scale Adjustments'!$C$748:$Q$767,AB69) -> 1 | AB69: 11
B70: CA10 | C70: Indirect Capital Assets | E70: 0.07903322609 | F70: ='Cost Allocation'!E67*$W70 -> 0.05927491957 | G70: ='Cost Allocation'!F67*$W70 -> 0.01975830652 | H70: ='Cost Allocation'!G67*$W70 -> 0.07903322609 | I70: ='Cost Allocation'!H67*$W70 -> 0 | J70: ='Cost Allocation'!I67*$W70 -> 0 | K70: ='Cost Allocation'!J67*$W70 -> 0.01914459244 | L70: ='Cost Allocation'!K67*$W70 -> 0.01914459244 | M70: ='Cost Allocation'!L67*$W70 -> 0 | N70: ='Cost Allocation'!M67*$W70 -> 0 | O70: ='Cost Allocation'!N67*$W70 -> 0 | P70: 0.1963556371 | Q70: ='Cost Allocation'!P67*$W70 -> 0.4501450514 | R70: 0.6465006885 | S70: ='Cost Allocation'!Q67*$W70 -> 0.00322929094 | T70: 0 | U70: 0.6497299794 | W70: =VLOOKUP(B70,'NBN Scale Adjustments'!$C$748:$Q$767,AB70) -> 1 | AB70: 11
B71: CA11 | C71: Spare CAN Asset Class 11 | F71: ='Cost Allocation'!E68*$W71 -> 0 | G71: ='Cost Allocation'!F68*$W71 -> 0 | H71: ='Cost Allocation'!G68*$W71 -> 0 | I71: ='Cost Allocation'!H68*$W71 -> 0 | J71: ='Cost Allocation'!I68*$W71 -> 0 | K71: ='Cost Allocation'!J68*$W71 -> 0 | L71: ='Cost Allocation'!K68*$W71 -> 0 | M71: ='Cost Allocation'!L68*$W71 -> 0 | N71: ='Cost Allocation'!M68*$W71 -> 0 | O71: ='Cost Allocation'!N68*$W71 -> 0 | P71: 0 | Q71: ='Cost Allocation'!P68*$W71 -> 0 | R71: 0 | S71: ='Cost Allocation'!Q68*$W71 -> 0 | T71: 0 | U71: 0 | W71: =VLOOKUP(B71,'NBN Scale Adjustments'!$C$748:$Q$767,AB71) -> 0 | AB71: 11
B72: CA12 | C72: Spare CAN Asset Class 12 | F72: ='Cost Allocation'!E69*$W72 -> 0 | G72: ='Cost Allocation'!F69*$W72 -> 0 | H72: ='Cost Allocation'!G69*$W72 -> 0 | I72: ='Cost Allocation'!H69*$W72 -> 0 | J72: ='Cost Allocation'!I69*$W72 -> 0 | K72: ='Cost Allocation'!J69*$W72 -> 0 | L72: ='Cost Allocation'!K69*$W72 -> 0 | M72: ='Cost Allocation'!L69*$W72 -> 0 | N72: ='Cost Allocation'!M69*$W72 -> 0 | O72: ='Cost Allocation'!N69*$W72 -> 0 | P72: 0 | Q72: ='Cost Allocation'!P69*$W72 -> 0 | R72: 0 | S72: ='Cost Allocation'!Q69*$W72 -> 0 | T72: 0 | U72: 0 | W72: =VLOOKUP(B72,'NBN Scale Adjustments'!$C$748:$Q$767,AB72) -> 0 | AB72: 11
B73: CA13 | C73: Spare CAN Asset Class 13 | F73: ='Cost Allocation'!E70*$W73 -> 0 | G73: ='Cost Allocation'!F70*$W73 -> 0 | H73: ='Cost Allocation'!G70*$W73 -> 0 | I73: ='Cost Allocation'!H70*$W73 -> 0 | J73: ='Cost Allocation'!I70*$W73 -> 0 | K73: ='Cost Allocation'!J70*$W73 -> 0 | L73: ='Cost Allocation'!K70*$W73 -> 0 | M73: ='Cost Allocation'!L70*$W73 -> 0 | N73: ='Cost Allocation'!M70*$W73 -> 0 | O73: ='Cost Allocation'!N70*$W73 -> 0 | P73: 0 | Q73: ='Cost Allocation'!P70*$W73 -> 0 | R73: 0 | S73: ='Cost Allocation'!Q70*$W73 -> 0 | T73: 0 | U73: 0 | W73: =VLOOKUP(B73,'NBN Scale Adjustments'!$C$748:$Q$767,AB73) -> 0 | AB73: 11
B74: CA14 | C74: Spare CAN Asset Class 14 | F74: ='Cost Allocation'!E71*$W74 -> 0 | G74: ='Cost Allocation'!F71*$W74 -> 0 | H74: ='Cost Allocation'!G71*$W74 -> 0 | I74: ='Cost Allocation'!H71*$W74 -> 0 | J74: ='Cost Allocation'!I71*$W74 -> 0 | K74: ='Cost Allocation'!J71*$W74 -> 0 | L74: ='Cost Allocation'!K71*$W74 -> 0 | M74: ='Cost Allocation'!L71*$W74 -> 0 | N74: ='Cost Allocation'!M71*$W74 -> 0 | O74: ='Cost Allocation'!N71*$W74 -> 0 | P74: 0 | Q74: ='Cost Allocation'!P71*$W74 -> 0 | R74: 0 | S74: ='Cost Allocation'!Q71*$W74 -> 0 | T74: 0 | U74: 0 | W74: =VLOOKUP(B74,'NBN Scale Adjustments'!$C$748:$Q$767,AB74) -> 0 | AB74: 11
B75: CA15 | C75: Spare CAN Asset Class 15 | F75: ='Cost Allocation'!E72*$W75 -> 0 | G75: ='Cost Allocation'!F72*$W75 -> 0 | H75: ='Cost Allocation'!G72*$W75 -> 0 | I75: ='Cost Allocation'!H72*$W75 -> 0 | J75: ='Cost Allocation'!I72*$W75 -> 0 | K75: ='Cost Allocation'!J72*$W75 -> 0 | L75: ='Cost Allocation'!K72*$W75 -> 0 | M75: ='Cost Allocation'!L72*$W75 -> 0 | N75: ='Cost Allocation'!M72*$W75 -> 0 | O75: ='Cost Allocation'!N72*$W75 -> 0 | P75: 0 | Q75: ='Cost Allocation'!P72*$W75 -> 0 | R75: 0 | S75: ='Cost Allocation'!Q72*$W75 -> 0 | T75: 0 | U75: 0 | W75: =VLOOKUP(B75,'NBN Scale Adjustments'!$C$748:$Q$767,AB75) -> 0 | AB75: 11
B76: CA16 | C76: Spare CAN Asset Class 16 | F76: ='Cost Allocation'!E73*$W76 -> 0 | G76: ='Cost Allocation'!F73*$W76 -> 0 | H76: ='Cost Allocation'!G73*$W76 -> 0 | I76: ='Cost Allocation'!H73*$W76 -> 0 | J76: ='Cost Allocation'!I73*$W76 -> 0 | K76: ='Cost Allocation'!J73*$W76 -> 0 | L76: ='Cost Allocation'!K73*$W76 -> 0 | M76: ='Cost Allocation'!L73*$W76 -> 0 | N76: ='Cost Allocation'!M73*$W76 -> 0 | O76: ='Cost Allocation'!N73*$W76 -> 0 | P76: 0 | Q76: ='Cost Allocation'!P73*$W76 -> 0 | R76: 0 | S76: ='Cost Allocation'!Q73*$W76 -> 0 | T76: 0 | U76: 0 | W76: =VLOOKUP(B76,'NBN Scale Adjustments'!$C$748:$Q$767,AB76) -> 0 | AB76: 11
B77: CA17 | C77: Spare CAN Asset Class 17 | F77: ='Cost Allocation'!E74*$W77 -> 0 | G77: ='Cost Allocation'!F74*$W77 -> 0 | H77: ='Cost Allocation'!G74*$W77 -> 0 | I77: ='Cost Allocation'!H74*$W77 -> 0 | J77: ='Cost Allocation'!I74*$W77 -> 0 | K77: ='Cost Allocation'!J74*$W77 -> 0 | L77: ='Cost Allocation'!K74*$W77 -> 0 | M77: ='Cost Allocation'!L74*$W77 -> 0 | N77: ='Cost Allocation'!M74*$W77 -> 0 | O77: ='Cost Allocation'!N74*$W77 -> 0 | P77: 0 | Q77: ='Cost Allocation'!P74*$W77 -> 0 | R77: 0 | S77: ='Cost Allocation'!Q74*$W77 -> 0 | T77: 0 | U77: 0 | W77: =VLOOKUP(B77,'NBN Scale Adjustments'!$C$748:$Q$767,AB77) -> 0 | AB77: 11
B78: CA18 | C78: Spare CAN Asset Class 18 | F78: ='Cost Allocation'!E75*$W78 -> 0 | G78: ='Cost Allocation'!F75*$W78 -> 0 | H78: ='Cost Allocation'!G75*$W78 -> 0 | I78: ='Cost Allocation'!H75*$W78 -> 0 | J78: ='Cost Allocation'!I75*$W78 -> 0 | K78: ='Cost Allocation'!J75*$W78 -> 0 | L78: ='Cost Allocation'!K75*$W78 -> 0 | M78: ='Cost Allocation'!L75*$W78 -> 0 | N78: ='Cost Allocation'!M75*$W78 -> 0 | O78: ='Cost Allocation'!N75*$W78 -> 0 | P78: 0 | Q78: ='Cost Allocation'!P75*$W78 -> 0 | R78: 0 | S78: ='Cost Allocation'!Q75*$W78 -> 0 | T78: 0 | U78: 0 | W78: =VLOOKUP(B78,'NBN Scale Adjustments'!$C$748:$Q$767,AB78) -> 0 | AB78: 11
B79: CA19 | C79: Spare CAN Asset Class 19 | F79: ='Cost Allocation'!E76*$W79 -> 0 | G79: ='Cost Allocation'!F76*$W79 -> 0 | H79: ='Cost Allocation'!G76*$W79 -> 0 | I79: ='Cost Allocation'!H76*$W79 -> 0 | J79: ='Cost Allocation'!I76*$W79 -> 0 | K79: ='Cost Allocation'!J76*$W79 -> 0 | L79: ='Cost Allocation'!K76*$W79 -> 0 | M79: ='Cost Allocation'!L76*$W79 -> 0 | N79: ='Cost Allocation'!M76*$W79 -> 0 | O79: ='Cost Allocation'!N76*$W79 -> 0 | P79: 0 | Q79: ='Cost Allocation'!P76*$W79 -> 0 | R79: 0 | S79: ='Cost Allocation'!Q76*$W79 -> 0 | T79: 0 | U79: 0 | W79: =VLOOKUP(B79,'NBN Scale Adjustments'!$C$748:$Q$767,AB79) -> 0 | AB79: 11
B80: CA20 | C80: Spare CAN Asset Class 20 | F80: ='Cost Allocation'!E77*$W80 -> 0 | G80: ='Cost Allocation'!F77*$W80 -> 0 | H80: ='Cost Allocation'!G77*$W80 -> 0 | I80: ='Cost Allocation'!H77*$W80 -> 0 | J80: ='Cost Allocation'!I77*$W80 -> 0 | K80: ='Cost Allocation'!J77*$W80 -> 0 | L80: ='Cost Allocation'!K77*$W80 -> 0 | M80: ='Cost Allocation'!L77*$W80 -> 0 | N80: ='Cost Allocation'!M77*$W80 -> 0 | O80: ='Cost Allocation'!N77*$W80 -> 0 | P80: 0 | Q80: ='Cost Allocation'!P77*$W80 -> 0 | R80: 0 | S80: ='Cost Allocation'!Q77*$W80 -> 0 | T80: 0 | U80: 0 | W80: =VLOOKUP(B80,'NBN Scale Adjustments'!$C$748:$Q$767,AB80) -> 0 | AB80: 11
B81: Core Asset Class | F81: ='Cost Allocation'!E78*$W81 -> 0 | G81: ='Cost Allocation'!F78*$W81 -> 0 | H81: ='Cost Allocation'!G78*$W81 -> 0 | I81: ='Cost Allocation'!H78*$W81 -> 0 | J81: ='Cost Allocation'!I78*$W81 -> 0 | K81: ='Cost Allocation'!J78*$W81 -> 0 | L81: ='Cost Allocation'!K78*$W81 -> 0 | M81: ='Cost Allocation'!L78*$W81 -> 0 | N81: ='Cost Allocation'!M78*$W81 -> 0 | O81: ='Cost Allocation'!N78*$W81 -> 0 | P81: 0 | Q81: ='Cost Allocation'!P78*$W81 -> 0 | R81: 0 | S81: ='Cost Allocation'!Q78*$W81 -> 0 | T81: 0 | U81: 0
